Workbook

Sheet START
A1: =muni -> Choose name from list

Sheet Instructions
D2: 2020
X4: Yes
X5: No
W7: Type of Entities Range: | X7: Parent Municipality
X8: Consolidated Information
W10: Date linked | X10: 17
W11: Date | X11: =VLOOKUP(X10,W39:X55,2) -> Mid-Year Assessment | Y11: 2013-08-01
W19: MTREF Range: | X19: 2008
X20: 2009
X21: 2010
X22: 2011
X23: 2012
X24: 2013
X25: 2014
X26: 2015
X27: 2016
X28: 2017
X29: 2018
X30: 2019
X31: 2020
X32: 2021
X33: 2022
W34: MTREF Linked:
W35: MTREF: | X35: 13
X36: =INDEX(X19:X33,X35,1) -> 2020
W37: Fin Year:
X38: =MTREF&"/"&RIGHT(MTREF,2)+1 -> 2020/21
V39: Date/type of report | W39: 1 | X39: M01 July
W40: 2 | X40: M02 August
W41: 3 | X41: M03 September
W42: 4 | X42: M04 October
W43: 5 | X43: M05 November
W44: 6 | X44: M06 December
W45: 7 | X45: M07 January
W46: 8 | X46: M08 February
W47: 9 | X47: M09 March
W48: 10 | X48: M10 April
W49: 11 | X49: M11 May
W50: 12 | X50: M12 June
W51: 13 | X51: Q1 First Quarter
W52: 14 | X52: Q2 Second Quarter
W53: 15 | X53: Q3 Third Quarter
W54: 16 | X54: Q4 Fourth Quarter
W55: 17 | X55: Mid-Year Assessment

Sheet Template names (hidden)
A1: Common sheet headings
A2: Head1 | B2: =HLOOKUP(MTREF,Headings,2) -> 2019/20 | C2: Prior year -1
A3: Head2 | B3: =HLOOKUP(MTREF,Headings,5) -> Budget Year 2020/21 | C3: Year of approved budget
A4: Head2A | B4: =HLOOKUP(MTREF,Headings,4) -> 2020/21 | C4: Approved budget year
A5: Head3 | B5: =HLOOKUP(MTREF,Headings,3) -> 2020/21 Medium Term Revenue & Expenditure Framework | C5: MTREF header name
A6: Head5 | B6: Audited Outcome
A7: Head5A | B7: Outcome
A8: Head5B | B8: Pre-audit outcome
A9: Head6 | B9: Original Budget
A10: Head7 | B10: Adjusted Budget
A11: Head8 | B11: Full Year Forecast
A12: Head9 | B12: =HLOOKUP(MTREF,Headings,5) -> Budget Year 2020/21 | C12: 1st year of MTREF | D12: Year1
A13: Head10 | B13: =HLOOKUP(MTREF,Headings,6) -> Budget Year +1 2021/22 | C13: 2nd year of MTREF | D13: Year2
A14: Head11 | B14: =HLOOKUP(MTREF,Headings,7) -> Budget Year +2 2022/23 | C14: 3rd year of MTREF | D14: Year3
A15: Head12 | B15: Forecast 2010/11 | D15: Year4
A16: Head13 | B16: Forecast 2011/12 | D16: Year5
A17: Head14 | B17: Forecast 2012/13 | D17: Year6
A18: Head15 | B18: Forecast 2013/14 | D18: Year7
A19: Head16 | B19: Forecast 2014/15 | D19: Year8
A20: Head17 | B20: Forecast 2015/16 | D20: Year9
A21: Head18 | B21: Forecast 2016/17 | D21: Year10
A22: Head19 | B22: Forecast 2017/18 | D22: Year11
A23: Head20 | B23: Forecast 2018/19 | D23: Year12
A24: Head21 | B24: Forecast 2019/20 | D24: Year13
A25: Head22 | B25: Forecast 2020/21 | D25: Year14
A26: Head23 | B26: Forecast 2021/22 | D26: Year15
A27: Head24 | B27: Description | D27: Desc
A28: Head25 | B28: Schedule of funding diligence | D28: fdil
A29: Head26 | B29: Vote Description | D29: VDesc
A30: Head27 | B30: Ref
A31: Head27a | B31: References
A32: Head28 | B32: Surplus/ (Deficit) for the year | D32: Result
A33: Head29 | B33: Annual target 2007/08
A34: Head30 | B34: Revised target 2007/08
A35: Head31 | B35: Quarter ended 30 September
A36: Head32 | B36: Quarter ended 31 December
A37: Head33 | B37: Quarter ended 31 March
A38: Head34 | B38: Quarter ended 30 June
A39: Head35 | B39: Variance explanation
A40: Head36 | B40: YTD Actual 31 Dec
A41: Head37 | B41: YTD Budget 31 Dec
A42: Head38 | B42: Monthly actual
A43: Head39 | B43: YearTD actual
A44: Head40 | B44: YearTD budget
A45: Head41 | B45: YTD variance
A46: Head42 | B46: Surplus/ (Deficit) for the yr/period
A47: Head43 | B47: =Head3&" Summary" -> 2020/21 Medium Term Revenue & Expenditure Framework Summary
A48: Head44 | B48: 1996 Census
A49: Head45 | B49: 2001 Census
A50: Head46 | B50: - Adjustments Budget - Month YYYY
A51: Head47 | B51: Previous target year to complete
A52: Head48 | B52: Present value
A53: Head49 | B53: Virement
A54: Head50 | B54: Other Adjusts.
A55: Head51 | B55: Accum. Funds
A56: Head52 | B56: Multi-year capital
A57: Head53 | B57: Unfore. Unavoid.
A58: Head54 | B58: Prior Adjusted
A59: Head55 | B59: Nat. or Prov. Govt
A60: Head56 | B60: Total Adjusts.
A61: Head57 | B61: =date -> Mid-Year Assessment
A62: Head58 | B62: Parent muni.
A63: Head59 | B63: Downward adjusts
A64: Head60 | B64: Month | C64: Report header part name | D64: =MONTH(date) -> 
A65: SFPerf1 | B65: Budgeted Financial Performance
A66: SFPerf2 | B66: Forecast Financial Performance
A67: SFPos1 | B67: Budgeted Financial Position
A68: SFPos2 | B68: Forecast Financial Position
A69: Cash1 | B69: Budget Cash Flow
A70: Cash2 | B70: Forecast Cash Flow
A71: RandM | B71: Expenditure includes repairs & maintenance of R'000
A72: Standard nomenclature
A73: Muni | B73: ='Lookup and lists'!B27 -> Choose name from list
A74: Municipal Entities | B74: 2 | C74: Type of report: | D74: 3
A75: =IF((MuniEntities=1)*(MuniType=2),"YES","NO") -> NO | B75: Does this municipality have entities (consolidated budget and entity budgets required)? YES/NO
A76: s71 (Monthly Mayor report) schedules and charts
A77: S71sum | B77: =IF(Consolques="YES",E77,F77) -> Table C1 Monthly Budget Statement Summary | D77: Table C1 | E77: =D77&"Consolidated Monthly Budget Statement Summary" -> Table C1 Consolidated Monthly Budget Statement Summary | F77: =D77&"Monthly Budget Statement Summary" -> Table C1 Monthly Budget Statement Summary
A78: S71C | B78: Table C3 Monthly Budget Statement - Financial Performance (revenue and expenditure by municipal vote) | D78: Table C3 | E78: =D78&"Consolidated Monthly Budget Statement - Financial Performance (revenue and expenditure by municipal vote) " -> Table C3 Consolidated Monthly Budget Statement - Financial Performance (revenue and expenditure by municipal vote) | F78: =D78&"Monthly Budget Statement - Financial Performance (revenue and expenditure by municipal vote)" -> Table C3 Monthly Budget Statement - Financial Performance (revenue and expenditure by municipal vote)
A79: S71A | B79: =IF(Consolques="YES",E79,F79) -> Table C2 Monthly Budget Statement - Financial Performance (functional classification) | D79: Table C2 | E79: =D79&"Consolidated Monthly Budget Statement - Financial Performance (functional classification) " -> Table C2 Consolidated Monthly Budget Statement - Financial Performance (functional classification) | F79: =D79&"Monthly Budget Statement - Financial Performance (functional classification)" -> Table C2 Monthly Budget Statement - Financial Performance (functional classification)
A80: S71B | B80: =IF(Consolques="YES",E80,F80) -> Table C4 Monthly Budget Statement - Financial Performance (revenue and expenditure) | D80: Table C4 | E80: =D80&"Consolidated Monthly Budget Statement - Financial Performance (revenue and expenditure) " -> Table C4 Consolidated Monthly Budget Statement - Financial Performance (revenue and expenditure) | F80: =D80&"Monthly Budget Statement - Financial Performance (revenue and expenditure)" -> Table C4 Monthly Budget Statement - Financial Performance (revenue and expenditure)
A81: S71D | B81: =IF(Consolques="YES",E81,F81) -> Table C5 Monthly Budget Statement - Capital Expenditure (municipal vote, functional classification and funding) | D81: Table C5 | E81: =D81&"Consolidated Monthly Budget Statement - Capital Expenditure (municipal vote, functional classification and funding " -> Table C5 Consolidated Monthly Budget Statement - Capital Expenditure (municipal vote, functional classification and funding | F81: =D81&"Monthly Budget Statement - Capital Expenditure (municipal vote, functional classification and funding)" -> Table C5 Monthly Budget Statement - Capital Expenditure (municipal vote, functional classification and funding)
A82: S71E | B82: Table C6 Monthly Budget Statement - Financial Position | D82: Table C6 | E82: =D82&"Consolidated Monthly Budget Statement - Financial Position " -> Table C6 Consolidated Monthly Budget Statement - Financial Position | F82: =D82&"Monthly Budget Statement - Financial Position" -> Table C6 Monthly Budget Statement - Financial Position
A83: S71F | B83: Table C7 Monthly Budget Statement - Cash Flow | D83: Table C7 | E83: =D83&"Consolidated Monthly Budget Statement - Cash Flow " -> Table C7 Consolidated Monthly Budget Statement - Cash Flow | F83: =D83&"Monthly Budget Statement - Cash Flow " -> Table C7 Monthly Budget Statement - Cash Flow
A84: S71G | B84: =D84&"Material variance explanations " -> Supporting Table SC1 Material variance explanations | D84: Supporting Table SC1
A85: S71H | B85: =D85&"Monthly Budget Statement - performance indicators " -> Supporting Table SC2 Monthly Budget Statement - performance indicators | D85: Supporting Table SC2
A86: S71I | B86: =D86&"Monthly Budget Statement - aged debtors" -> Supporting Table SC3 Monthly Budget Statement - aged debtors | D86: Supporting Table SC3
A87: S71J | B87: =D87&"Monthly Budget Statement - aged creditors " -> Supporting Table SC4 Monthly Budget Statement - aged creditors | D87: Supporting Table SC4
A88: S71K | B88: =D88&"Monthly Budget Statement - investment portfolio " -> Supporting Table SC5 Monthly Budget Statement - investment portfolio | D88: Supporting Table SC5
A89: S71L | B89: =D89&"Monthly Budget Statement - transfers and grant receipts " -> Supporting Table SC6 Monthly Budget Statement - transfers and grant receipts | D89: Supporting Table SC6
A90: S71M | B90: =D90&" Monthly Budget Statement - transfers and grant expenditure " -> Supporting Table SC7(1) Monthly Budget Statement - transfers and grant expenditure | D90: Supporting Table SC7(1)
A91: S71N | B91: =D91&"Monthly Budget Statement - councillor and staff benefits " -> Supporting Table SC8 Monthly Budget Statement - councillor and staff benefits | D91: Supporting Table SC8
A92: S71O | B92: =D92&"Monthly Budget Statement - actuals and revised targets for cash receipts" -> Supporting Table SC9 Monthly Budget Statement - actuals and revised targets for cash receipts | D92: Supporting Table SC9
A93: S71P | B93: =IF(Consolques="YES",E93,F93) -> NOT REQUIRED - municipality does not have entities or this is the parent municipality's budget | D93: Supporting Table SC10 | E93: =D93&"Monthly Budget Statement - Parent Municipality Financial Performance (revenue and expenditure) " -> Supporting Table SC10 Monthly Budget Statement - Parent Municipality Financial Performance (revenue and expenditure) | F93: NOT REQUIRED - municipality does not have entities or this is the parent municipality's budget
A94: S71Q | B94: NOT REQUIRED - municipality does not have entities or this is the parent municipality's budget | D94: Supporting Table SC11 | E94: =D94&"Monthly Budget Statement - summary of municipal entities" -> Supporting Table SC11 Monthly Budget Statement - summary of municipal entities | F94: NOT REQUIRED - municipality does not have entities or this is the parent municipality's budget
A95: S71R | B95: Supporting Table SC12 Monthly Budget Statement - capital expenditure trend | D95: Supporting Table SC12 | E95: =D95&"Consolidated Monthly Budget Statement - capital expenditure trend " -> Supporting Table SC12 Consolidated Monthly Budget Statement - capital expenditure trend | F95: =D95&"Monthly Budget Statement - capital expenditure trend" -> Supporting Table SC12 Monthly Budget Statement - capital expenditure trend
A96: S71Sa | B96: Supporting Table SC13a Monthly Budget Statement - capital expenditure on new assets by asset class | D96: Supporting Table SC13a | E96: =D96&"Consolidated Monthly Budget Statement - capital expenditure on new assets by asset class" -> Supporting Table SC13a Consolidated Monthly Budget Statement - capital expenditure on new assets by asset class | F96: =D96&"Monthly Budget Statement - capital expenditure on new assets by asset class" -> Supporting Table SC13a Monthly Budget Statement - capital expenditure on new assets by asset class
A97: S71Sb | B97: Supporting Table SC13b Monthly Budget Statement - capital expenditure on renewal of existing assets by asset class | D97: Supporting Table SC13b | E97: =D97&"Consolidated Monthly Budget Statement - capital expenditure on renewal of existing assets by asset class" -> Supporting Table SC13b Consolidated Monthly Budget Statement - capital expenditure on renewal of existing assets by asset class | F97: =D97&"Monthly Budget Statement - capital expenditure on renewal of existing assets by asset class" -> Supporting Table SC13b Monthly Budget Statement - capital expenditure on renewal of existing assets by asset class
A98: S71Sc | B98: Supporting Table SC13c Monthly Budget Statement - expenditure on repairs and maintenance by asset class | D98: Supporting Table SC13c | E98: =D98&"Consolidated Monthly Budget Statement - expenditure on repairs and maintenance by asset class" -> Supporting Table SC13c Consolidated Monthly Budget Statement - expenditure on repairs and maintenance by asset class | F98: =D98&"Monthly Budget Statement - expenditure on repairs and maintenance by asset class" -> Supporting Table SC13c Monthly Budget Statement - expenditure on repairs and maintenance by asset class
A99: S71Sd | B99: Supporting Table SC13d Monthly Budget Statement - depreciation by asset class | D99: Supporting Table SC13d | E99: =D99&"Consolidated Monthly Budget Statement - depreciation by asset class" -> Supporting Table SC13d Consolidated Monthly Budget Statement - depreciation by asset class | F99: =D99&"Monthly Budget Statement - depreciation by asset class" -> Supporting Table SC13d Monthly Budget Statement - depreciation by asset class
A100: S71Se | B100: =IF(Consolques="YES",E100,F100) -> Supporting Table SC13e Monthly Budget Statement - capital expenditure on upgrading of existing assets by asset class | D100: Supporting Table SC13e | E100: =D100&"Consolidated Monthly Budget Statement - capital expenditure on upgrading of existing assets by asset class" -> Supporting Table SC13e Consolidated Monthly Budget Statement - capital expenditure on upgrading of existing assets by asset class | F100: =D100&"Monthly Budget Statement - capital expenditure on upgrading of existing assets by asset class" -> Supporting Table SC13e Monthly Budget Statement - capital expenditure on upgrading of existing assets by asset class
B101: s71 charts listing
B102: =D102&Head2A&" Capital Expenditure Monthly Trend: actual v target" -> Chart C1 2020/21 Capital Expenditure Monthly Trend: actual v target | D102: Chart C1
B103: =D103&Head2A&" Capital Expenditure: YTD actual v YTD target" -> Chart C2 2020/21 Capital Expenditure: YTD actual v YTD target | D103: Chart C2
B104: =D104&"Aged Consumer Debtors Analysis" -> Chart C3 Aged Consumer Debtors Analysis | D104: Chart C3
B105: =D105&"Consumer Debtors (total by Debtor Customer Category)" -> Chart C4 Consumer Debtors (total by Debtor Customer Category) | D105: Chart C4
B106: =D106&"Aged Creditors Analysis" -> Chart C5 Aged Creditors Analysis | D106: Chart C5
A107: S71T | B107: =D107&" Monthly Budget Statement - Expenditure against approved rollovers" -> Supporting Table SC7(2) Monthly Budget Statement - Expenditure against approved rollovers | D107: Supporting Table SC7(2)

Sheet Lookup and lists (hidden)
A1: Description | B1: 2007 | C1: 2008 | D1: 2009 | E1: 2010 | F1: 2011 | G1: 2012 | H1: 2013 | I1: 2014 | J1: 2015 | K1: 2016 | L1: 2017 | M1: 2018 | N1: 2019 | O1: 2020 | Q1: Grants: | R1: National - opex | S1: Provincial - opex | T1: National - capex | U1: Provincial - capex | V1: YESNO
A2: ='Template names'!C2 -> Prior year -1 | B2: 2006/07 | C2: 2007/08 | D2: 2008/09 | E2: =E1-1&"/"&RIGHT(E1,2)-0 -> 2009/10 | F2: =F1-1&"/"&RIGHT(F1,2)-0 -> 2010/11 | G2: 2011/12 | H2: 2012/13 | I2: 2013/14 | J2: 2014/15 | K2: 2015/16 | L2: 2016/17 | M2: 2017/18 | N2: 2018/19 | O2: 2019/20 | R2: Local Government Equitable Share | S2: Health subsidy | T2: Municipal Infrastructure Grant (MIG) | U2: Agriculture | V2: Yes
A3: ='Template names'!C5 -> MTREF header name | B3: 2007/08 Medium Term Revenue & Expenditure Framework | C3: 2008/09 Medium Term Revenue & Expenditure Framework | D3: 2009/10 Medium Term Revenue & Expenditure Framework | E3: =E1&"/"&RIGHT(E1,2)+1&" Medium Term Revenue & Expenditure Framework" -> 2010/11 Medium Term Revenue & Expenditure Framework | F3: =F1&"/"&RIGHT(F1,2)+1&" Medium Term Revenue & Expenditure Framework" -> 2011/12 Medium Term Revenue & Expenditure Framework | G3: 2012/13 Medium Term Revenue & Expenditure Framework | H3: 2013/14 Medium Term Revenue & Expenditure Framework | I3: 2014/15 Medium Term Revenue & Expenditure Framework | J3: 2015/16 Medium Term Revenue & Expenditure Framework | K3: 2016/17 Medium Term Revenue & Expenditure Framework | L3: 2017/18 Medium Term Revenue & Expenditure Framework | M3: 2018/19 Medium Term Revenue & Expenditure Framework | N3: 2019/20 Medium Term Revenue & Expenditure Framework | O3: 2020/21 Medium Term Revenue & Expenditure Framework | R3: RSC Levy Replacement | S3: Ambulance subsidy | T3: Public Transport and Systems | U3: Education | V3: No
A4: ='Template names'!C4 -> Approved budget year | B4: 2007/08 | C4: 2008/09 | D4: 2009/10 | E4: =E1&"/"&RIGHT(E1,2)+1 -> 2010/11 | F4: =F1&"/"&RIGHT(F1,2)+1 -> 2011/12 | G4: 2012/13 | H4: 2013/14 | I4: 2014/15 | J4: 2015/16 | K4: 2016/17 | L4: 2017/18 | M4: 2018/19 | N4: 2019/20 | O4: 2020/21 | R4: Finance Management | S4: Housing | T4: Rural Transport Services and Infrastructure | U4: Health
A5: ='Template names'!C12 -> 1st year of MTREF | B5: Budget Year 2007/08 | C5: Budget Year 2008/09 | D5: Budget Year 2009/10 | E5: ="Budget Year "&E1&"/"&RIGHT(E1,2)+1 -> Budget Year 2010/11 | F5: ="Budget Year "&F1&"/"&RIGHT(F1,2)+1 -> Budget Year 2011/12 | G5: Budget Year 2012/13 | H5: Budget Year 2013/14 | I5: Budget Year 2014/15 | J5: Budget Year 2015/16 | K5: Budget Year 2016/17 | L5: Budget Year 2017/18 | M5: Budget Year 2018/19 | N5: Budget Year 2019/20 | O5: Budget Year 2020/21 | R5: Municipal Systems Improvement | S5: Sport and Recreation | T5: Regional Bulk Infrastructure | U5: Housing and Local Government
A6: ='Template names'!C13 -> 2nd year of MTREF | B6: Budget Year +1 2008/09 | C6: Budget Year +1 2009/10 | D6: Budget Year +1 2010/11 | E6: ="Budget Year +1 "&E1+1&"/"&RIGHT(E1,2)+2 -> Budget Year +1 2011/12 | F6: ="Budget Year +1 "&F1+1&"/"&RIGHT(F1,2)+2 -> Budget Year +1 2012/13 | G6: Budget Year +1 2013/14 | H6: Budget Year +1 2014/15 | I6: Budget Year +1 2015/16 | J6: Budget Year +1 2016/17 | K6: Budget Year +1 2017/18 | L6: Budget Year +1 2018/19 | M6: Budget Year +1 2019/20 | N6: Budget Year +1 2020/21 | O6: Budget Year +1 2021/22 | R6: Water Services Operating Subsidy | T6: Rural Households Infrastructure | U6: Other Departments
A7: ='Template names'!C14 -> 3rd year of MTREF | B7: Budget Year +2 2009/10 | C7: Budget Year +2 2010/11 | D7: Budget Year +2 2011/12 | E7: ="Budget Year +2 "&E1+2&"/"&RIGHT(E1,2)+3 -> Budget Year +2 2012/13 | F7: ="Budget Year +2 "&F1+2&"/"&RIGHT(F1,2)+3 -> Budget Year +2 2013/14 | G7: Budget Year +2 2014/15 | H7: Budget Year +2 2015/16 | I7: Budget Year +2 2016/17 | J7: Budget Year +2 2017/18 | K7: Budget Year +2 2018/19 | L7: Budget Year +2 2019/20 | M7: Budget Year +2 2020/21 | N7: Budget Year +2 2021/22 | O7: Budget Year +2 2022/23 | R7: Energy Efficiency and Demand Management | T7: Neighbourhood Development Partnership | U7: Public Works, Roads, Transport
A8: NOTE: This sheet should not be directly amended - select headings from sheet 'S' | R8: Integrated National Electrification Programme | T8: 2010 FIFA World Cup Stadiums Development | U8: Sport and Recreation
R9: Municipal Drought Relief
R10: 2010 FIFA World Cup Operating
R11: Electricity Demand Side Management
R12: EPWP Incentive
A26: Name link | B26: 1
A27: Name of Muni | B27: =INDEX(B28:B311,B26,1) -> Choose name from list
B28: Choose name from list | C28: Set name on 'Instructions' sheet
B29: BUF Buffalo City | C29: EC EASTERN CAPE
B30: NMA Nelson Mandela Bay | C30: EC EASTERN CAPE
B31: EC101 Dr Beyers Naude | C31: EC EASTERN CAPE
B32: EC102 Blue Crane Route | C32: EC EASTERN CAPE
B33: EC104 Makana | C33: EC EASTERN CAPE
B34: EC105 Ndlambe | C34: EC EASTERN CAPE
B35: EC106 Sundays River Valley | C35: EC EASTERN CAPE
B36: EC108 Kouga | C36: EC EASTERN CAPE
B37: EC109 Kou-Kamma | C37: EC EASTERN CAPE
B38: DC10 Sarah Baartman | C38: EC EASTERN CAPE
B39: EC121 Mbhashe | C39: EC EASTERN CAPE
B40: EC122 Mnquma | C40: EC EASTERN CAPE
B41: EC123 Great Kei | C41: EC EASTERN CAPE
B42: EC124 Amahlathi | C42: EC EASTERN CAPE
B43: EC126 Ngqushwa | C43: EC EASTERN CAPE
B44: EC129 Raymond Mhlaba | C44: EC EASTERN CAPE
B45: DC12 Amathole | C45: EC EASTERN CAPE
B46: EC131 Inxuba Yethemba | C46: EC EASTERN CAPE
B47: EC135 Intsika Yethu | C47: EC EASTERN CAPE
B48: EC136 Emalahleni (Ec) | C48: EC EASTERN CAPE
B49: EC137 Engcobo | C49: EC EASTERN CAPE
B50: EC138 Sakhisizwe | C50: EC EASTERN CAPE
B51: EC139 Enoch Mgijima | C51: EC EASTERN CAPE
B52: DC13 Chris Hani | C52: EC EASTERN CAPE
B53: EC141 Elundini | C53: EC EASTERN CAPE
B54: EC142 Senqu | C54: EC EASTERN CAPE
B55: EC145 Walter Sisulu | C55: EC EASTERN CAPE
B56: DC14 Joe Gqabi | C56: EC EASTERN CAPE
B57: EC153 Ngquza Hills | C57: EC EASTERN CAPE
B58: EC154 Port St Johns | C58: EC EASTERN CAPE
B59: EC155 Nyandeni | C59: EC EASTERN CAPE
B60: EC156 Mhlontlo | C60: EC EASTERN CAPE
B61: EC157 King Sabata Dalindyebo | C61: EC EASTERN CAPE
B62: DC15 O .R. Tambo | C62: EC EASTERN CAPE
B63: EC441 Matatiele | C63: EC EASTERN CAPE
B64: EC442 Umzimvubu | C64: EC EASTERN CAPE
B65: EC443 Mbizana | C65: EC EASTERN CAPE
B66: EC444 Ntabankulu | C66: EC EASTERN CAPE
B67: DC44 Alfred Nzo | C67: EC EASTERN CAPE
B68: MAN Mangaung | C68: FS FREE STATE
B69: FS161 Letsemeng | C69: FS FREE STATE
B70: FS162 Kopanong | C70: FS FREE STATE
B71: FS163 Mohokare | C71: FS FREE STATE
B72: DC16 Xhariep | C72: FS FREE STATE
B73: FS181 Masilonyana | C73: FS FREE STATE
B74: FS182 Tokologo | C74: FS FREE STATE
B75: FS183 Tswelopele | C75: FS FREE STATE
B76: FS184 Matjhabeng | C76: FS FREE STATE
B77: FS185 Nala | C77: FS FREE STATE
B78: DC18 Lejweleputswa | C78: FS FREE STATE
B79: FS191 Setsoto | C79: FS FREE STATE
B80: FS192 Dihlabeng | C80: FS FREE STATE
B81: FS193 Nketoana | C81: FS FREE STATE
B82: FS194 Maluti-a-Phofung | C82: FS FREE STATE
B83: FS195 Phumelela | C83: FS FREE STATE
B84: FS196 Mantsopa | C84: FS FREE STATE
B85: DC19 Thabo Mofutsanyana | C85: FS FREE STATE
B86: FS201 Moqhaka | C86: FS FREE STATE
B87: FS203 Ngwathe | C87: FS FREE STATE
B88: FS204 Metsimaholo | C88: FS FREE STATE
B89: FS205 Mafube | C89: FS FREE STATE
B90: DC20 Fezile Dabi | C90: FS FREE STATE
B91: EKU City of Ekurhuleni | C91: GT GAUTENG
B92: JHB City Of Johannesburg | C92: GT GAUTENG
B93: TSH City Of Tshwane | C93: GT GAUTENG
B94: GT421 Emfuleni | C94: GT GAUTENG
B95: GT422 Midvaal | C95: GT GAUTENG
B96: GT423 Lesedi | C96: GT GAUTENG
B97: DC42 Sedibeng | C97: GT GAUTENG
B98: GT481 Mogale City | C98: GT GAUTENG
B99: GT484 Merafong City | C99: GT GAUTENG
B100: GT485 Rand West City | C100: GT GAUTENG
B101: DC48 West Rand | C101: GT GAUTENG
B102: ETH eThekwini | C102: KZN KWAZULU-NATAL
B103: KZN212 Umdoni | C103: KZN KWAZULU-NATAL
B104: KZN213 Umzumbe | C104: KZN KWAZULU-NATAL
B105: KZN214 uMuziwabantu | C105: KZN KWAZULU-NATAL
B106: KZN216 Ray Nkonyeni | C106: KZN KWAZULU-NATAL
B107: DC21 Ugu | C107: KZN KWAZULU-NATAL
B108: KZN221 uMshwathi | C108: KZN KWAZULU-NATAL
B109: KZN222 uMngeni | C109: KZN KWAZULU-NATAL
B110: KZN223 Mpofana | C110: KZN KWAZULU-NATAL
B111: KZN224 Impendle | C111: KZN KWAZULU-NATAL
B112: KZN225 Msunduzi | C112: KZN KWAZULU-NATAL
B113: KZN226 Mkhambathini | C113: KZN KWAZULU-NATAL
B114: KZN227 Richmond | C114: KZN KWAZULU-NATAL
B115: DC22 uMgungundlovu | C115: KZN KWAZULU-NATAL
B116: KZN235 Okhahlamba | C116: KZN KWAZULU-NATAL
B117: KZN237 Inkosi Langalibalele | C117: KZN KWAZULU-NATAL
B118: KZN238 Alfred Duma | C118: KZN KWAZULU-NATAL
B119: DC23 Uthukela | C119: KZN KWAZULU-NATAL
B120: KZN241 Endumeni | C120: KZN KWAZULU-NATAL
B121: KZN242 Nquthu | C121: KZN KWAZULU-NATAL
B122: KZN244 Msinga | C122: KZN KWAZULU-NATAL
B123: KZN245 Umvoti | C123: KZN KWAZULU-NATAL
B124: DC24 Umzinyathi | C124: KZN KWAZULU-NATAL
B125: KZN252 Newcastle | C125: KZN KWAZULU-NATAL
B126: KZN253 Emadlangeni | C126: KZN KWAZULU-NATAL
B127: KZN254 Dannhauser | C127: KZN KWAZULU-NATAL
B128: DC25 Amajuba | C128: KZN KWAZULU-NATAL
B129: KZN261 eDumbe | C129: KZN KWAZULU-NATAL
B130: KZN262 uPhongolo | C130: KZN KWAZULU-NATAL
B131: KZN263 Abaqulusi | C131: KZN KWAZULU-NATAL
B132: KZN265 Nongoma | C132: KZN KWAZULU-NATAL
B133: KZN266 Ulundi | C133: KZN KWAZULU-NATAL
B134: DC26 Zululand | C134: KZN KWAZULU-NATAL
B135: KZN271 Umhlabuyalingana | C135: KZN KWAZULU-NATAL
B136: KZN272 Jozini | C136: KZN KWAZULU-NATAL
B137: KZN275 Mtubatuba | C137: KZN KWAZULU-NATAL
B138: KZN276 Hlabisa Big Five | C138: KZN KWAZULU-NATAL
B139: DC27 Umkhanyakude | C139: KZN KWAZULU-NATAL
B140: KZN281 Mfolozi | C140: KZN KWAZULU-NATAL
B141: KZN282 uMhlathuze | C141: KZN KWAZULU-NATAL
B142: KZN284 uMlalazi | C142: KZN KWAZULU-NATAL
B143: KZN285 Mthonjaneni | C143: KZN KWAZULU-NATAL
B144: KZN286 Nkandla | C144: KZN KWAZULU-NATAL
B145: DC28 King Cetshwayo | C145: KZN KWAZULU-NATAL
B146: KZN291 Mandeni | C146: KZN KWAZULU-NATAL
B147: KZN292 KwaDukuza | C147: KZN KWAZULU-NATAL
B148: KZN293 Ndwedwe | C148: KZN KWAZULU-NATAL
B149: KZN294 Maphumulo | C149: KZN KWAZULU-NATAL
B150: DC29 iLembe | C150: KZN KWAZULU-NATAL
B151: KZN433 Greater Kokstad | C151: KZN KWAZULU-NATAL
B152: KZN434 Ubuhlebezwe | C152: KZN KWAZULU-NATAL
B153: KZN435 Umzimkhulu | C153: KZN KWAZULU-NATAL
B154: KZN436 Dr Nkosazana Dlamini Zuma | C154: KZN KWAZULU-NATAL
B155: DC43 Harry Gwala | C155: KZN KWAZULU-NATAL
B156: LIM331 Greater Giyani | C156: LIM LIMPOPO
B157: LIM332 Greater Letaba | C157: LIM LIMPOPO
B158: LIM333 Greater Tzaneen | C158: LIM LIMPOPO
B159: LIM334 Ba-Phalaborwa | C159: LIM LIMPOPO
B160: LIM335 Maruleng | C160: LIM LIMPOPO
B161: DC33 Mopani | C161: LIM LIMPOPO
B162: LIM341 Musina | C162: LIM LIMPOPO
B163: LIM343 Thulamela | C163: LIM LIMPOPO
B164: LIM344 Makhado | C164: LIM LIMPOPO
B165: LIM345 Collins Chabane | C165: LIM LIMPOPO
B166: DC34 Vhembe | C166: LIM LIMPOPO
B167: LIM351 Blouberg | C167: LIM LIMPOPO
B168: LIM353 Molemole | C168: LIM LIMPOPO
B169: LIM354 Polokwane | C169: LIM LIMPOPO
B170: LIM355 Lepelle-Nkumpi | C170: LIM LIMPOPO
B171: DC35 Capricorn | C171: LIM LIMPOPO
B172: LIM361 Thabazimbi | C172: LIM LIMPOPO
B173: LIM362 Lephalale | C173: LIM LIMPOPO
B174: LIM366 Bela Bela | C174: LIM LIMPOPO
B175: LIM367 Mogalakwena | C175: LIM LIMPOPO
B176: LIM368 Modimolle-Mookgopong | C176: LIM LIMPOPO
B177: DC36 Waterberg | C177: LIM LIMPOPO
B178: LIM471 Ephraim Mogale | C178: LIM LIMPOPO
B179: LIM472 Elias Motsoaledi | C179: LIM LIMPOPO
B180: LIM473 Makhuduthamaga | C180: LIM LIMPOPO
B181: LIM476 Tubatse Fetakgomo | C181: LIM LIMPOPO
B182: DC47 Sekhukhune | C182: LIM LIMPOPO
B183: MP301 Albert Luthuli | C183: MP MPUMALANGA
B184: MP302 Msukaligwa | C184: MP MPUMALANGA
B185: MP303 Mkhondo | C185: MP MPUMALANGA
B186: MP304 Pixley Ka Seme (MP) | C186: MP MPUMALANGA
B187: MP305 Lekwa | C187: MP MPUMALANGA
B188: MP306 Dipaleseng | C188: MP MPUMALANGA
B189: MP307 Govan Mbeki | C189: MP MPUMALANGA
B190: DC30 Gert Sibande | C190: MP MPUMALANGA
B191: MP311 Victor Khanye | C191: MP MPUMALANGA
B192: MP312 Emalahleni (Mp) | C192: MP MPUMALANGA
B193: MP313 Steve Tshwete | C193: MP MPUMALANGA
B194: MP314 Emakhazeni | C194: MP MPUMALANGA
B195: MP315 Thembisile Hani | C195: MP MPUMALANGA
B196: MP316 Dr J.S. Moroka | C196: MP MPUMALANGA
B197: DC31 Nkangala | C197: MP MPUMALANGA
B198: MP321 Thaba Chweu | C198: MP MPUMALANGA
B199: MP324 Nkomazi | C199: MP MPUMALANGA
B200: MP325 Bushbuckridge | C200: MP MPUMALANGA
B201: MP326 City of Mbombela | C201: MP MPUMALANGA
B202: DC32 Ehlanzeni | C202: MP MPUMALANGA
B203: NC451 Joe Morolong | C203: NC NORTHERN CAPE
B204: NC452 Ga-Segonyana | C204: NC NORTHERN CAPE
B205: NC453 Gamagara | C205: NC NORTHERN CAPE
B206: DC45 John Taolo Gaetsewe | C206: NC NORTHERN CAPE
B207: NC061 Richtersveld | C207: NC NORTHERN CAPE
B208: NC062 Nama Khoi | C208: NC NORTHERN CAPE
B209: NC064 Kamiesberg | C209: NC NORTHERN CAPE
B210: NC065 Hantam | C210: NC NORTHERN CAPE
B211: NC066 Karoo Hoogland | C211: NC NORTHERN CAPE
B212: NC067 Khai-Ma | C212: NC NORTHERN CAPE
B213: DC6 Namakwa | C213: NC NORTHERN CAPE
... 73 more rows

Sheet Org structure
A1: Organisational Structure Votes | C1: Organisational Structure Sub-Votes | E1: Display Sub-Votes
A2: Vote 1 - Finance and Administration | B2: Vote 1 | C2: Finance and Administration
A3: Vote 2 - Finance and Administration2 | B3: 1.1 | C3: Finance | D3: =CONCATENATE(B3, " - ", C3) -> 1.1 - Finance | E3: 1.1 - Finance
A4: Vote 3 - Executive and Council | B4: 1.2 | C4: Fleet Management | D4: 1.2 - Fleet Management | E4: 1.2 - Fleet Management
A5: Vote 4 - Community and Social Services | B5: 1.3 | C5: Asset Management | D5: 1.3 - Asset Management | E5: 1.3 - Asset Management
A6: Vote 5 - Community and Social Services2 | B6: 1.4 | C6: Administrative and Corporate Support | D6: 1.4 - Administrative and Corporate Support | E6: 1.4 - Administrative and Corporate Support
A7: Vote 6 - Energy Sources | B7: 1.5 | C7: Human Resources | D7: 1.5 - Human Resources | E7: 1.5 - Human Resources
A8: Vote 7 - Road Transport | B8: 1.6 | C8: Property Services | D8: 1.6 - Property Services | E8: 1.6 - Property Services
A9: Vote 8 - Planning and Development | B9: 1.7 | C9: Legal Services | D9: 1.7 - Legal Services | E9: 1.7 - Legal Services
A10: Vote 9 - Sport and Recreation | B10: 1.8 | C10: Information Technology | D10: 1.8 - Information Technology | E10: 1.8 - Information Technology
A11: Vote 10 - Public Safety | B11: 1.9 | C11: Marketing, Customer Relations, Publicity and Media Co-ordination | D11: 1.9 - Marketing, Customer Relations, Publicity and Media Co-ordination | E11: 1.9 - Marketing, Customer Relations, Publicity and Media Co-ordination
A12: Vote 11 - Other | B12: 1.10 | C12: Valuation Service | D12: 1.10 - Valuation Service | E12: 1.10 - Valuation Service
A13: Vote 12 - Waste Management | B13: Vote 2 | C13: Finance and Administration2
A14: Vote 13 - Housing | B14: 2.1 | C14: Supply Chain Management | D14: =CONCATENATE(B14, " - ", C14) -> 2.1 - Supply Chain Management | E14: 2.1 - Supply Chain Management
A15: Vote 14 - Waste Water Management | B15: 2.2 | C15: [Name of sub-vote] | D15: 2.2 - [Name of sub-vote]
A16: Vote 15 - Health | B16: 2.3 | C16: [Name of sub-vote] | D16: 2.3 - [Name of sub-vote]
B17: 2.4 | C17: [Name of sub-vote] | D17: 2.4 - [Name of sub-vote]
B18: 2.5 | C18: [Name of sub-vote] | D18: 2.5 - [Name of sub-vote]
B19: 2.6 | C19: [Name of sub-vote] | D19: 2.6 - [Name of sub-vote]
B20: 2.7 | C20: [Name of sub-vote] | D20: 2.7 - [Name of sub-vote]
B21: 2.8 | C21: [Name of sub-vote] | D21: 2.8 - [Name of sub-vote]
B22: 2.9 | C22: [Name of sub-vote] | D22: 2.9 - [Name of sub-vote]
B23: 2.10 | C23: [Name of sub-vote] | D23: 2.10 - [Name of sub-vote]
B24: Vote 3 | C24: Executive and Council
B25: 3.1 | C25: Municipal Manager, Town Secretary and Chief Executive | D25: =CONCATENATE(B25, " - ", C25) -> 3.1 - Municipal Manager, Town Secretary and Chief Executive | E25: 3.1 - Municipal Manager, Town Secretary and Chief Executive
B26: 3.2 | C26: Mayor and Council | D26: 3.2 - Mayor and Council | E26: 3.2 - Mayor and Council
B27: 3.3 | C27: [Name of sub-vote] | D27: 3.3 - [Name of sub-vote]
B28: 3.4 | C28: [Name of sub-vote] | D28: 3.4 - [Name of sub-vote]
B29: 3.5 | C29: [Name of sub-vote] | D29: 3.5 - [Name of sub-vote]
B30: 3.6 | C30: [Name of sub-vote] | D30: 3.6 - [Name of sub-vote]
B31: 3.7 | C31: [Name of sub-vote] | D31: 3.7 - [Name of sub-vote]
B32: 3.8 | C32: [Name of sub-vote] | D32: 3.8 - [Name of sub-vote]
B33: 3.9 | C33: [Name of sub-vote] | D33: 3.9 - [Name of sub-vote]
B34: 3.10 | C34: [Name of sub-vote] | D34: 3.10 - [Name of sub-vote]
B35: Vote 4 | C35: Community and Social Services
B36: 4.1 | C36: Disaster Management | D36: =CONCATENATE(B36, " - ", C36) -> 4.1 - Disaster Management | E36: 4.1 - Disaster Management
B37: 4.2 | C37: Libraries and Archives | D37: 4.2 - Libraries and Archives | E37: 4.2 - Libraries and Archives
B38: 4.3 | C38: Population Development | D38: 4.3 - Population Development | E38: 4.3 - Population Development
B39: 4.4 | C39: Cultural Matters | D39: 4.4 - Cultural Matters | E39: 4.4 - Cultural Matters
B40: 4.5 | C40: Indigenous and Customary Law | D40: 4.5 - Indigenous and Customary Law | E40: 4.5 - Indigenous and Customary Law
B41: 4.6 | C41: Industrial Promotion | D41: 4.6 - Industrial Promotion | E41: 4.6 - Industrial Promotion
B42: 4.7 | C42: Agricultural | D42: 4.7 - Agricultural | E42: 4.7 - Agricultural
B43: 4.8 | C43: Aged Care | D43: 4.8 - Aged Care | E43: 4.8 - Aged Care
B44: 4.9 | C44: Child Care Facilities | D44: 4.9 - Child Care Facilities | E44: 4.9 - Child Care Facilities
B45: 4.10 | C45: Animal Care and Diseases | D45: 4.10 - Animal Care and Diseases | E45: 4.10 - Animal Care and Diseases
B46: Vote 5 | C46: Community and Social Services2
B47: 5.1 | C47: Literacy Programmes | D47: =CONCATENATE(B47, " - ", C47) -> 5.1 - Literacy Programmes | E47: 5.1 - Literacy Programmes
B48: 5.2 | C48: Education | D48: 5.2 - Education | E48: 5.2 - Education
B49: 5.3 | C49: Community Halls and Facilities | D49: 5.3 - Community Halls and Facilities | E49: 5.3 - Community Halls and Facilities
B50: 5.4 | C50: [Name of sub-vote] | D50: 5.4 - [Name of sub-vote]
B51: 5.5 | C51: [Name of sub-vote] | D51: 5.5 - [Name of sub-vote]
B52: 5.6 | C52: [Name of sub-vote] | D52: 5.6 - [Name of sub-vote]
B53: 5.7 | C53: [Name of sub-vote] | D53: 5.7 - [Name of sub-vote]
B54: 5.8 | C54: [Name of sub-vote] | D54: 5.8 - [Name of sub-vote]
B55: 5.9 | C55: [Name of sub-vote] | D55: 5.9 - [Name of sub-vote]
B56: 5.10 | C56: [Name of sub-vote] | D56: 5.10 - [Name of sub-vote]
B57: Vote 6 | C57: Energy Sources
B58: 6.1 | C58: Electricity | D58: =CONCATENATE(B58, " - ", C58) -> 6.1 - Electricity | E58: 6.1 - Electricity
B59: 6.2 | C59: [Name of sub-vote] | D59: 6.2 - [Name of sub-vote]
B60: 6.3 | C60: [Name of sub-vote] | D60: 6.3 - [Name of sub-vote]
B61: 6.4 | C61: [Name of sub-vote] | D61: 6.4 - [Name of sub-vote]
B62: 6.5 | C62: [Name of sub-vote] | D62: 6.5 - [Name of sub-vote]
B63: 6.6 | C63: [Name of sub-vote] | D63: 6.6 - [Name of sub-vote]
B64: 6.7 | C64: [Name of sub-vote] | D64: 6.7 - [Name of sub-vote]
B65: 6.8 | C65: [Name of sub-vote] | D65: 6.8 - [Name of sub-vote]
B66: 6.9 | C66: [Name of sub-vote] | D66: 6.9 - [Name of sub-vote]
B67: 6.10 | C67: [Name of sub-vote] | D67: 6.10 - [Name of sub-vote]
B68: Vote 7 | C68: Road Transport
B69: 7.1 | C69: Roads | D69: =CONCATENATE(B69, " - ", C69) -> 7.1 - Roads | E69: 7.1 - Roads
B70: 7.2 | C70: [Name of sub-vote] | D70: 7.2 - [Name of sub-vote]
B71: 7.3 | C71: [Name of sub-vote] | D71: 7.3 - [Name of sub-vote]
B72: 7.4 | C72: [Name of sub-vote] | D72: 7.4 - [Name of sub-vote]
B73: 7.5 | C73: [Name of sub-vote] | D73: 7.5 - [Name of sub-vote]
B74: 7.6 | C74: [Name of sub-vote] | D74: 7.6 - [Name of sub-vote]
B75: 7.7 | C75: [Name of sub-vote] | D75: 7.7 - [Name of sub-vote]
B76: 7.8 | C76: [Name of sub-vote] | D76: 7.8 - [Name of sub-vote]
B77: 7.9 | C77: [Name of sub-vote] | D77: 7.9 - [Name of sub-vote]
B78: 7.10 | C78: [Name of sub-vote] | D78: 7.10 - [Name of sub-vote]
B79: Vote 8 | C79: Planning and Development
B80: 8.1 | C80: Town Planning, Building Regulations and Enforcement, and City Engineer | D80: =CONCATENATE(B80, " - ", C80) -> 8.1 - Town Planning, Building Regulations and Enforcement, and City Engineer | E80: 8.1 - Town Planning, Building Regulations and Enforcement, and City Engineer
B81: 8.2 | C81: Development Facilitation | D81: 8.2 - Development Facilitation | E81: 8.2 - Development Facilitation
B82: 8.3 | C82: Economic Development/Planning | D82: 8.3 - Economic Development/Planning | E82: 8.3 - Economic Development/Planning
B83: 8.4 | C83: Regional Planning and Development | D83: 8.4 - Regional Planning and Development | E83: 8.4 - Regional Planning and Development
B84: 8.5 | C84: Corporate Wide Strategic Planning (IDPs, LEDs) | D84: 8.5 - Corporate Wide Strategic Planning (IDPs, LEDs) | E84: 8.5 - Corporate Wide Strategic Planning (IDPs, LEDs)
B85: 8.6 | C85: Project Management Unit | D85: 8.6 - Project Management Unit | E85: 8.6 - Project Management Unit
B86: 8.7 | C86: [Name of sub-vote] | D86: 8.7 - [Name of sub-vote]
B87: 8.8 | C87: [Name of sub-vote] | D87: 8.8 - [Name of sub-vote]
B88: 8.9 | C88: [Name of sub-vote] | D88: 8.9 - [Name of sub-vote]
B89: 8.10 | C89: [Name of sub-vote] | D89: 8.10 - [Name of sub-vote]
B90: Vote 9 | C90: Sport and Recreation
B91: 9.1 | C91: Sports Grounds and Stadiums | D91: =CONCATENATE(B91, " - ", C91) -> 9.1 - Sports Grounds and Stadiums | E91: 9.1 - Sports Grounds and Stadiums
B92: 9.2 | C92: [Name of sub-vote] | D92: 9.2 - [Name of sub-vote]
B93: 9.3 | C93: [Name of sub-vote] | D93: 9.3 - [Name of sub-vote]
B94: 9.4 | C94: [Name of sub-vote] | D94: 9.4 - [Name of sub-vote]
B95: 9.5 | C95: [Name of sub-vote] | D95: 9.5 - [Name of sub-vote]
B96: 9.6 | C96: [Name of sub-vote] | D96: 9.6 - [Name of sub-vote]
B97: 9.7 | C97: [Name of sub-vote] | D97: 9.7 - [Name of sub-vote]
B98: 9.8 | C98: [Name of sub-vote] | D98: 9.8 - [Name of sub-vote]
B99: 9.9 | C99: [Name of sub-vote] | D99: 9.9 - [Name of sub-vote]
B100: 9.10 | C100: [Name of sub-vote] | D100: 9.10 - [Name of sub-vote]
B101: Vote 10 | C101: Public Safety
B102: 10.1 | C102: Fire Fighting and Protection | D102: =CONCATENATE(B102, " - ", C102) -> 10.1 - Fire Fighting and Protection | E102: 10.1 - Fire Fighting and Protection
B103: 10.2 | C103: Fencing and Fences | D103: 10.2 - Fencing and Fences | E103: 10.2 - Fencing and Fences
B104: 10.3 | C104: [Name of sub-vote] | D104: 10.3 - [Name of sub-vote]
B105: 10.4 | C105: [Name of sub-vote] | D105: 10.4 - [Name of sub-vote]
B106: 10.5 | C106: [Name of sub-vote] | D106: 10.5 - [Name of sub-vote]
B107: 10.6 | C107: [Name of sub-vote] | D107: 10.6 - [Name of sub-vote]
B108: 10.7 | C108: [Name of sub-vote] | D108: 10.7 - [Name of sub-vote]
B109: 10.8 | C109: [Name of sub-vote] | D109: 10.8 - [Name of sub-vote]
B110: 10.9 | C110: [Name of sub-vote] | D110: 10.9 - [Name of sub-vote]
B111: 10.10 | C111: [Name of sub-vote] | D111: 10.10 - [Name of sub-vote]
B112: Vote 11 | C112: Other
B113: 11.1 | C113: Licensing and Regulation | D113: =CONCATENATE(B113, " - ", C113) -> 11.1 - Licensing and Regulation | E113: 11.1 - Licensing and Regulation
B114: 11.2 | C114: [Name of sub-vote] | D114: 11.2 - [Name of sub-vote]
B115: 11.3 | C115: [Name of sub-vote] | D115: 11.3 - [Name of sub-vote]
B116: 11.4 | C116: [Name of sub-vote] | D116: 11.4 - [Name of sub-vote]
B117: 11.5 | C117: [Name of sub-vote] | D117: 11.5 - [Name of sub-vote]
B118: 11.6 | C118: [Name of sub-vote] | D118: 11.6 - [Name of sub-vote]
B119: 11.7 | C119: [Name of sub-vote] | D119: 11.7 - [Name of sub-vote]
B120: 11.8 | C120: [Name of sub-vote] | D120: 11.8 - [Name of sub-vote]
B121: 11.9 | C121: [Name of sub-vote] | D121: 11.9 - [Name of sub-vote]
B122: 11.10 | C122: [Name of sub-vote] | D122: 11.10 - [Name of sub-vote]
B123: Vote 12 | C123: Waste Management
B124: 12.1 | C124: Solid Waste Removal | D124: =CONCATENATE(B124, " - ", C124) -> 12.1 - Solid Waste Removal | E124: 12.1 - Solid Waste Removal
B125: 12.2 | C125: Street Cleaning | D125: 12.2 - Street Cleaning | E125: 12.2 - Street Cleaning
B126: 12.3 | C126: Solid Waste Disposal (Landfill Sites) | D126: 12.3 - Solid Waste Disposal (Landfill Sites) | E126: 12.3 - Solid Waste Disposal (Landfill Sites)
B127: 12.4 | C127: [Name of sub-vote] | D127: 12.4 - [Name of sub-vote]
B128: 12.5 | C128: [Name of sub-vote] | D128: 12.5 - [Name of sub-vote]
B129: 12.6 | C129: [Name of sub-vote] | D129: 12.6 - [Name of sub-vote]
B130: 12.7 | C130: [Name of sub-vote] | D130: 12.7 - [Name of sub-vote]
B131: 12.8 | C131: [Name of sub-vote] | D131: 12.8 - [Name of sub-vote]
B132: 12.9 | C132: [Name of sub-vote] | D132: 12.9 - [Name of sub-vote]
B133: 12.10 | C133: [Name of sub-vote] | D133: 12.10 - [Name of sub-vote]
B134: Vote 13 | C134: Housing
B135: 13.1 | C135: Housing | D135: =CONCATENATE(B135, " - ", C135) -> 13.1 - Housing | E135: 13.1 - Housing
B136: 13.2 | C136: [Name of sub-vote] | D136: 13.2 - [Name of sub-vote]
B137: 13.3 | C137: [Name of sub-vote] | D137: 13.3 - [Name of sub-vote]
B138: 13.4 | C138: [Name of sub-vote] | D138: 13.4 - [Name of sub-vote]
B139: 13.5 | C139: [Name of sub-vote] | D139: 13.5 - [Name of sub-vote]
B140: 13.6 | C140: [Name of sub-vote] | D140: 13.6 - [Name of sub-vote]
B141: 13.7 | C141: [Name of sub-vote] | D141: 13.7 - [Name of sub-vote]
B142: 13.8 | C142: [Name of sub-vote] | D142: 13.8 - [Name of sub-vote]
B143: 13.9 | C143: [Name of sub-vote] | D143: 13.9 - [Name of sub-vote]
B144: 13.10 | C144: [Name of sub-vote] | D144: 13.10 - [Name of sub-vote]
B145: Vote 14 | C145: Waste Water Management
B146: 14.1 | C146: Storm Water Management | D146: =CONCATENATE(B146, " - ", C146) -> 14.1 - Storm Water Management | E146: 14.1 - Storm Water Management
B147: 14.2 | C147: [Name of sub-vote] | D147: 14.2 - [Name of sub-vote]
B148: 14.3 | C148: [Name of sub-vote] | D148: 14.3 - [Name of sub-vote]
B149: 14.4 | C149: [Name of sub-vote] | D149: 14.4 - [Name of sub-vote]
B150: 14.5 | C150: [Name of sub-vote] | D150: 14.5 - [Name of sub-vote]
B151: 14.6 | C151: [Name of sub-vote] | D151: 14.6 - [Name of sub-vote]
B152: 14.7 | C152: [Name of sub-vote] | D152: 14.7 - [Name of sub-vote]
B153: 14.8 | C153: [Name of sub-vote] | D153: 14.8 - [Name of sub-vote]
B154: 14.9 | C154: [Name of sub-vote] | D154: 14.9 - [Name of sub-vote]
B155: 14.10 | C155: [Name of sub-vote] | D155: 14.10 - [Name of sub-vote]
B156: Vote 15 | C156: Health
B157: 15.1 | C157: Health Services | D157: =CONCATENATE(B157, " - ", C157) -> 15.1 - Health Services | E157: 15.1 - Health Services
B158: 15.2 | C158: Tourism | D158: 15.2 - Tourism | E158: 15.2 - Tourism
B159: 15.3 | C159: [Name of sub-vote] | D159: 15.3 - [Name of sub-vote]
B160: 15.4 | C160: [Name of sub-vote] | D160: 15.4 - [Name of sub-vote]
B161: 15.5 | C161: [Name of sub-vote] | D161: 15.5 - [Name of sub-vote]
B162: 15.6 | C162: [Name of sub-vote] | D162: 15.6 - [Name of sub-vote]
B163: 15.7 | C163: [Name of sub-vote] | D163: 15.7 - [Name of sub-vote]
B164: 15.8 | C164: [Name of sub-vote] | D164: 15.8 - [Name of sub-vote]
B165: 15.9 | C165: [Name of sub-vote] | D165: 15.9 - [Name of sub-vote]
B166: 15.10 | C166: [Name of sub-vote] | D166: 15.10 - [Name of sub-vote]

Sheet Contacts
A1: =muni&" - "&" Contact Information" -> Choose name from list - Contact Information
A3: A. GENERAL INFORMATION
A4: Municipality | B4: KZN226 Mkhambathini | C4: Set name on 'Instructions' sheet
A6: Grade | C6: 1 Grade in terms of the Remuneration of Public Office Bearers Act.
A8: Province | B8: =IF(B4>" ",VLOOKUP(B4,'Lookup and lists'!B28:C311,2, FALSE)," ") -> KZN KWAZULU-NATAL
A10: Web Address | B10: www.mkhambathini.gov.za
A12: e-mail Address | B12: mm@mkhambathini
A14: B. CONTACT INFORMATION
A15: Postal address:
A16: P.O. Box | B16: Private bag X04
A17: City / Town | B17: Camperdown
A18: Postal Code | B18: 3720
A20: Street address
A21: Building | B21: 18 old main road
A22: Street No. & Name | B22: Camperdown
A23: City / Town | B23: Camperdown
A24: Postal Code | B24: 3720
A26: General Contacts
A27: Telephone number | B27: 317859300
A28: Fax number | B28: 0317852121
A30: C. POLITICAL LEADERSHIP
A31: Speaker: | C31: Secretary/PA to the Speaker:
A32: ID Number | B32: 6703035937088 | C32: ID Number | D32: 7310170539080
A33: Title | B33: Mr | C33: Title | D33: Mrs
A34: Name | B34: Cllr T.A. Gwala | C34: Name | D34: Mrs. Nompumelelo Makhanya
A35: Telephone number | B35: 031 785 9318 | C35: Telephone number | D35: 0317859316
A36: Cell number | B36: 0825934610 | C36: Cell number | D36: 0826594155
A37: Fax number | B37: 031 785 2121 | C37: Fax number | D37: 0317852121
A38: E-mail address | B38: speaker@mkhambathini.gov.za | C38: E-mail address | D38: mpume.makhanya@mkhambathini.gov.za
A40: Mayor/Executive Mayor: | C40: Secretary/PA to the Mayor/Executive Mayor:
A41: ID Number | B41: 6011115589088 | C41: ID Number | D41: 7805080583086
A42: Title | B42: Mr | C42: Title | D42: Mrs
A43: Name | B43: Cllr E Ngcongo | C43: Name | D43: Zandile Mathenjwa
A44: Telephone number | B44: 0317859318 | C44: Telephone number | D44: 317859317
A45: Cell number | B45: 0723534647 | C45: Cell number | D45: 844463391
A46: Fax number | B46: 0317852121 | C46: Fax number | D46: 317852121
A47: E-mail address | B47: mayor@mkhambathini.gov.za | C47: E-mail address | D47: mayor@mkhambathini.gov.za
A49: Deputy Mayor/Executive Mayor: | C49: Secretary/PA to the Deputy Mayor/Executive Mayor:
A50: ID Number | B50: 7109040468086 | C50: ID Number | D50: 7310170539080
A51: Title | B51: Mrs | C51: Title | D51: Mrs
A52: Name | B52: Cllr L.Z Lembethe | C52: Name | D52: Mrs. Nompumelelo Makhanya
A53: Telephone number | B53: 031 785 9314 | C53: Telephone number | D53: 0317859316
A54: Cell number | B54: 0834667846 | C54: Cell number | D54: 0826594155
A55: Fax number | B55: 031 785 2121 | C55: Fax number | D55: 0317852121
A56: E-mail address | B56: deputymayor@mkhambathini.gov.za | C56: E-mail address | D56: mpume.makhanya@mkhambathini.gov.za
A58: D. MANAGEMENT LEADERSHIP
A59: Municipal Manager: | C59: Secretary/PA to the Municipal Manager:
A60: ID Number | B60: 8503036087083 | C60: ID Number | D60: 9611290379085
A61: Title | B61: Municipal Manager | C61: Title | D61: Miss
A62: Name | B62: Mr Sanele Mngwengwe | C62: Name | D62: Nokulunga Nkosi
A63: Telephone number | B63: 031 785 9520 | C63: Telephone number | D63: 317859307
A64: Cell number | B64: 082 850 9555 | C64: Cell number | D64: 733824086
A65: Fax number | B65: 031 785 2121 | C65: Fax number | D65: 317852121
A66: E-mail address | B66: mm@mkhambathini.gov.za | C66: E-mail address | D66: secretarymm@mkhambathini.gov.za
A68: Chief Financial Officer | C68: Secretary/PA to the Chief Financial Officer
A69: ID Number | B69: 8204305598088 | C69: ID Number | D69: 8105240556083
A70: Title | B70: Mr | C70: Title | D70: Mrs
A71: Name | B71: Thokozani Gambu | C71: Name | D71: Ms.Mpho Motsoeneng
A72: Telephone number | B72: 0317859300 | C72: Telephone number | D72: 0317859319
A73: Cell number | B73: 823130226 | C73: Cell number | D73: 7146094720
A74: Fax number | B74: 0317852121 | C74: Fax number | D74: 0317852121
A75: E-mail address | B75: cfo@mkhambathini.gov.za | C75: E-mail address | D75: mpho.motsoeneng@mkhambathini.gov.za
A77: Official responsible for submitting financial information | C77: Official responsible for submitting financial information
A78: ID Number | B78: 880228570086 | C78: ID Number | D78: 9406101281087
A79: Title | B79: Budget Officer | C79: Title | D79: Miss
A80: Name | B80: Mr Thuthukani Zondo | C80: Name | D80: Nonkululeko Ngubane
A81: Telephone number | B81: 031 785 9333 | C81: Telephone number | D81: 0317859326
A82: Cell number | B82: 0716409705 | C82: Cell number | D82: 0791808234
A83: Fax number | B83: 031 785 2121 | C83: Fax number | D83: 031 785 2121
A84: E-mail address | B84: budget@mkhambathini.gov.za | C84: E-mail address | D84: budget@mkhambathini.gov.za
A85: Official responsible for submitting financial information | C85: Official responsible for submitting financial information
A86: ID Number | C86: ID Number
A87: Title | C87: Title
A88: Name | C88: Name
A89: Telephone number | C89: Telephone number
A90: Cell number | C90: Cell number
A91: Fax number | C91: Fax number
A92: E-mail address | C92: E-mail address
A93: Official responsible for submitting financial information | C93: Official responsible for submitting financial information
A94: ID Number | C94: ID Number
A95: Title | C95: Title
A96: Name | C96: Name
A97: Telephone number | C97: Telephone number
A98: Cell number | C98: Cell number
A99: Fax number | C99: Fax number
A100: E-mail address | C100: E-mail address
A101: Official responsible for submitting financial information | C101: Official responsible for submitting financial information
A102: ID Number | C102: ID Number
A103: Title | C103: Title
A104: Name | C104: Name
A105: Telephone number | C105: Telephone number
A106: Cell number | C106: Cell number
A107: Fax number | C107: Fax number
A108: E-mail address | C108: E-mail address
A109: Official responsible for submitting financial information | C109: Official responsible for submitting financial information
A110: ID Number | C110: ID Number
A111: Title | C111: Title
A112: Name | C112: Name
A113: Telephone number | C113: Telephone number
A114: Cell number | C114: Cell number
A115: Fax number | C115: Fax number
A116: E-mail address | C116: E-mail address
A117: Official responsible for submitting financial information | C117: Official responsible for submitting financial information
A118: ID Number | C118: ID Number
A119: Title | C119: Title
A120: Name | C120: Name
A121: Telephone number | C121: Telephone number
A122: Cell number | C122: Cell number
A123: Fax number | C123: Fax number
A124: E-mail address | C124: E-mail address
A125: Official responsible for submitting financial information | C125: Official responsible for submitting financial information
A126: ID Number | C126: ID Number
A127: Title | C127: Title
A128: Name | C128: Name
A129: Telephone number | C129: Telephone number
A130: Cell number | C130: Cell number
A131: Fax number | C131: Fax number
A132: E-mail address | C132: E-mail address
A133: Official responsible for submitting financial information
A134: ID Number
A135: Title
A136: Name
A137: Telephone number
A138: Cell number
A139: Fax number
A140: E-mail address

Sheet C1-Sum
A1: =muni& " - "&s71sum& " - "&date -> Choose name from list - Table C1 Monthly Budget Statement Summary - Mid-Year Assessment
A2: =desc -> Description | B2: =Head1 -> 2019/20 | C2: =Head2 -> Budget Year 2020/21
B3: =Head5 -> Audited Outcome | C3: =Head6 -> Original Budget | D3: =Head7 -> Adjusted Budget | E3: =Head38 -> Monthly actual | F3: =Head39 -> YearTD actual | G3: =Head40 -> YearTD budget | H3: =Head41 -> YTD variance | I3: =Head41 -> YTD variance | J3: =Head8 -> Full Year Forecast
A4: R thousands | I4: %
A5: Financial Performance
A6: Property rates | B6: =SUM('C4-FinPerf RE'!C6:C6) -> 17367687 | C6: =SUM('C4-FinPerf RE'!D6:D6) -> 19781622 | D6: =SUM('C4-FinPerf RE'!E6:E6) -> 19781622 | E6: =SUM('C4-FinPerf RE'!F6:F6) -> 1599529 | F6: =SUM('C4-FinPerf RE'!G6:G6) -> 9597548 | G6: =SUM('C4-FinPerf RE'!H6:H6) -> 9890813.02 | H6: =F6-G6 -> -293265.02 | I6: =IF(H6=0,"",H6/G6) -> -0.02965024406 | J6: =SUM('C4-FinPerf RE'!K6:K6) -> 19781622
A7: Service charges | B7: =SUM('C4-FinPerf RE'!C7:C10) -> 528201 | C7: =SUM('C4-FinPerf RE'!D7:D10) -> 574287 | D7: =SUM('C4-FinPerf RE'!E7:E10) -> 574287 | E7: =SUM('C4-FinPerf RE'!F7:F10) -> 44458 | F7: =SUM('C4-FinPerf RE'!G7:G10) -> 266748 | G7: =SUM('C4-FinPerf RE'!H7:H10) -> 287142 | H7: =F7-G7 -> -20394 | I7: =IF(H7=0,"",H7/G7) -> -0.07102409261 | J7: =SUM('C4-FinPerf RE'!K7:K10) -> 574287
A8: Investment revenue | B8: ='C4-FinPerf RE'!C13 -> 4285972 | C8: ='C4-FinPerf RE'!D13 -> 3850000 | D8: ='C4-FinPerf RE'!E13 -> 3850000 | E8: ='C4-FinPerf RE'!F13 -> 127274 | F8: ='C4-FinPerf RE'!G13 -> 892752 | G8: ='C4-FinPerf RE'!H13 -> 1924998 | H8: =F8-G8 -> -1032246 | I8: =IF(H8=0,"",H8/G8) -> -0.5362322454 | J8: ='C4-FinPerf RE'!K13 -> 3850000
A9: Transfers and subsidies | B9: ='C4-FinPerf RE'!C19 -> 69092059 | C9: ='C4-FinPerf RE'!D19 -> 73462500 | D9: ='C4-FinPerf RE'!E19 -> 85867500 | E9: ='C4-FinPerf RE'!F19 -> 33239068 | F9: ='C4-FinPerf RE'!G19 -> 65605750 | G9: ='C4-FinPerf RE'!H19 -> 42933750 | H9: =F9-G9 -> 22672000 | I9: =IF(H9=0,"",H9/G9) -> 0.5280694093 | J9: ='C4-FinPerf RE'!K19 -> 85867500
A10: Other own revenue | B10: ='C4-FinPerf RE'!C12+'C4-FinPerf RE'!C14+'C4-FinPerf RE'!C15+'C4-FinPerf RE'!C16+'C4-FinPerf RE'!C17+'C4-FinPerf RE'!C18+'C4-FinPerf RE'!C20+'C4-FinPerf RE'!C21 -> 6471279 | C10: ='C4-FinPerf RE'!D12+'C4-FinPerf RE'!D14+'C4-FinPerf RE'!D15+'C4-FinPerf RE'!D16+'C4-FinPerf RE'!D17+'C4-FinPerf RE'!D18+'C4-FinPerf RE'!D20+'C4-FinPerf RE'!D21 -> 10558046 | D10: ='C4-FinPerf RE'!E12+'C4-FinPerf RE'!E14+'C4-FinPerf RE'!E15+'C4-FinPerf RE'!E16+'C4-FinPerf RE'!E17+'C4-FinPerf RE'!E18+'C4-FinPerf RE'!E20+'C4-FinPerf RE'!E21 -> 10558046 | E10: ='C4-FinPerf RE'!F12+'C4-FinPerf RE'!F14+'C4-FinPerf RE'!F15+'C4-FinPerf RE'!F16+'C4-FinPerf RE'!F17+'C4-FinPerf RE'!F18+'C4-FinPerf RE'!F20+'C4-FinPerf RE'!F21 -> 2688268 | F10: ='C4-FinPerf RE'!G12+'C4-FinPerf RE'!G14+'C4-FinPerf RE'!G15+'C4-FinPerf RE'!G16+'C4-FinPerf RE'!G17+'C4-FinPerf RE'!G18+'C4-FinPerf RE'!G20+'C4-FinPerf RE'!G21 -> 5287402 | G10: ='C4-FinPerf RE'!H12+'C4-FinPerf RE'!H14+'C4-FinPerf RE'!H15+'C4-FinPerf RE'!H16+'C4-FinPerf RE'!H17+'C4-FinPerf RE'!H18+'C4-FinPerf RE'!H20+'C4-FinPerf RE'!H21 -> 5279028 | H10: =F10-G10 -> 8374 | I10: =IF(H10=0,"",H10/G10) -> 0.001586276868 | J10: ='C4-FinPerf RE'!K12+'C4-FinPerf RE'!K14+'C4-FinPerf RE'!K15+'C4-FinPerf RE'!K16+'C4-FinPerf RE'!K17+'C4-FinPerf RE'!K18+'C4-FinPerf RE'!K20+'C4-FinPerf RE'!K21 -> 10558046
A11: Total Revenue (excluding capital transfers and contributions) | B11: =SUM(B6:B10) -> 97745198 | C11: 108226455 | D11: 120631455 | E11: 37698597 | F11: 81650200 | G11: 60315731.02 | H11: =F11-G11 -> 21334468.98 | I11: =IF(H11=0,"",H11/G11) -> 0.3537131793 | J11: 120631455
A12: Employee costs | B12: ='C4-FinPerf RE'!C25 -> 36529095 | C12: ='C4-FinPerf RE'!D25 -> 44691585 | D12: ='C4-FinPerf RE'!E25 -> 44691585 | E12: ='C4-FinPerf RE'!F25 -> 5121303 | F12: ='C4-FinPerf RE'!G25 -> 20700872 | G12: ='C4-FinPerf RE'!H25 -> 22345806 | H12: -1644934 | I12: -0.07361265018 | J12: ='C4-FinPerf RE'!K25 -> 44691612
A13: Remuneration of Councillors | B13: ='C4-FinPerf RE'!C26 -> 6023555 | C13: ='C4-FinPerf RE'!D26 -> 6373921 | D13: ='C4-FinPerf RE'!E26 -> 6373921 | E13: ='C4-FinPerf RE'!F26 -> 501793 | F13: ='C4-FinPerf RE'!G26 -> 2973759 | G13: ='C4-FinPerf RE'!H26 -> 3186966 | H13: -213207 | I13: -0.06689967825 | J13: ='C4-FinPerf RE'!K26 -> 6373932
A14: Depreciation & asset impairment | B14: ='C4-FinPerf RE'!C28 -> 9318525 | C14: ='C4-FinPerf RE'!D28 -> 11173339 | D14: ='C4-FinPerf RE'!E28 -> 11173339 | E14: ='C4-FinPerf RE'!F28 -> 810718 | F14: ='C4-FinPerf RE'!G28 -> 4806692 | G14: ='C4-FinPerf RE'!H28 -> 5586666 | H14: -779974 | I14: -0.1396135011 | J14: ='C4-FinPerf RE'!K28 -> 11173332
A15: Finance charges | B15: ='C4-FinPerf RE'!C29 -> 4109 | C15: ='C4-FinPerf RE'!D29 -> 0 | D15: ='C4-FinPerf RE'!E29 -> 0 | E15: ='C4-FinPerf RE'!F29 -> 0 | F15: ='C4-FinPerf RE'!G29 -> 4206 | G15: ='C4-FinPerf RE'!H29 -> 0 | H15: 4206 | J15: ='C4-FinPerf RE'!K29 -> 0
A16: Materials and bulk purchases | B16: =SUM('C4-FinPerf RE'!C30:C31) -> 2898053 | C16: =SUM('C4-FinPerf RE'!D30:D31) -> 6366500 | D16: =SUM('C4-FinPerf RE'!E30:E31) -> 6366500 | E16: =SUM('C4-FinPerf RE'!F30:F31) -> 321575 | F16: =SUM('C4-FinPerf RE'!G30:G31) -> 2389087 | G16: =SUM('C4-FinPerf RE'!H30:H31) -> 3183264 | H16: -794177 | I16: -0.2494851197 | J16: =SUM('C4-FinPerf RE'!K30:K31) -> 6366528
A17: Transfers and subsidies | B17: ='C4-FinPerf RE'!C33 -> 0 | C17: ='C4-FinPerf RE'!D33 -> 309425 | D17: ='C4-FinPerf RE'!E33 -> 309425 | E17: ='C4-FinPerf RE'!F33 -> 0 | F17: ='C4-FinPerf RE'!G33 -> 66285 | G17: ='C4-FinPerf RE'!H33 -> 154710 | H17: -88425 | I17: -0.5715532286 | J17: ='C4-FinPerf RE'!K33 -> 309420
A18: Other expenditure | B18: ='C4-FinPerf RE'!C36-SUM('C1-Sum'!B12:B17) -> 42093387 | C18: ='C4-FinPerf RE'!D36-SUM('C1-Sum'!C12:C17) -> 52622132 | D18: ='C4-FinPerf RE'!E36-SUM('C1-Sum'!D12:D17) -> 52622132 | E18: ='C4-FinPerf RE'!F36-SUM('C1-Sum'!E12:E17) -> 4223198 | F18: ='C4-FinPerf RE'!G36-SUM('C1-Sum'!F12:F17) -> 27478945 | G18: ='C4-FinPerf RE'!H36-SUM('C1-Sum'!G12:G17) -> 26311152 | H18: 1167793 | I18: 0.04438395552 | J18: ='C4-FinPerf RE'!K36-SUM('C1-Sum'!J12:J17) -> 52622304
A19: Total Expenditure | B19: =SUM(B12:B18) -> 96866724 | C19: 121536902 | D19: 121536902 | E19: 10978587 | F19: 58419846 | G19: 60768564 | H19: -2348718 | I19: -0.03865021395 | J19: =SUM(J12:J18) -> 121537128
A20: Surplus/(Deficit) | B20: =B11-B19 -> 878474 | C20: -13310447 | D20: -905447 | E20: 26720010 | F20: 23230354 | G20: -452832.98 | H20: 23683186.98 | I20: -52.30004886 | J20: =J11-J19 -> -905673
A21: ='C4-FinPerf RE'!A39 -> Transfers and subsidies - capital (monetary allocations) (National / Provincial and District) | B21: ='C4-FinPerf RE'!C39 -> 16076001 | C21: ='C4-FinPerf RE'!D39 -> 15996000 | D21: ='C4-FinPerf RE'!E39 -> 15996000 | E21: ='C4-FinPerf RE'!F39 -> 333103 | F21: ='C4-FinPerf RE'!G39 -> 11106881 | G21: ='C4-FinPerf RE'!H39 -> 7998000 | H21: 3108881 | I21: 0.3887073018 | J21: ='C4-FinPerf RE'!K39 -> 15996000
A22: ='C4-FinPerf RE'!A40&" & "&'C4-FinPerf RE'!A41 -> Transfers and subsidies - capital (monetary allocations) (National / Provincial Departmental Agencies, Households, Non-profit Institutions, Private Enterprises, Public Corporatons, Higher Educational Institutions) & Transfers and subsidies - capital (in-kind - all) | B22: =SUM('C4-FinPerf RE'!C40:C41) -> 0 | C22: =SUM('C4-FinPerf RE'!D40:D41) -> 0 | D22: =SUM('C4-FinPerf RE'!E40:E41) -> 0 | E22: =SUM('C4-FinPerf RE'!F40:F41) -> 0 | F22: =SUM('C4-FinPerf RE'!G40:G41) -> 10036 | G22: =SUM('C4-FinPerf RE'!H40:H41) -> 0 | H22: 10036 | J22: =SUM('C4-FinPerf RE'!K40:K41) -> 0
A23: Surplus/(Deficit) after capital transfers & contributions | B23: =B20+B21+B22 -> 16954475 | C23: 2685553 | D23: 15090553 | E23: 27053113 | F23: 34347271 | G23: 7545167.02 | H23: 26802103.98 | I23: 3.55222143 | J23: =J20+J21+J22 -> 15090327
A24: Share of surplus/ (deficit) of associate | B24: ='C4-FinPerf RE'!C47 -> 0 | C24: ='C4-FinPerf RE'!D47 -> 0 | D24: ='C4-FinPerf RE'!E47 -> 0 | E24: ='C4-FinPerf RE'!F47 -> 0 | F24: ='C4-FinPerf RE'!G47 -> 0 | G24: ='C4-FinPerf RE'!H47 -> 0 | H24: 0 | J24: ='C4-FinPerf RE'!K47 -> 0
A25: Surplus/ (Deficit) for the year | B25: =B23+B24 -> 16954475 | C25: 2685553 | D25: 15090553 | E25: 27053113 | F25: 34347271 | G25: 7545167.02 | H25: 26802103.98 | I25: 3.55222143 | J25: =J23+J24 -> 15090327
A27: Capital expenditure & funds sources
A28: Capital expenditure | B28: ='C5-Capex'!C40 -> 210788293 | C28: ='C5-Capex'!D40 -> 25696767 | D28: ='C5-Capex'!E40 -> 33420752 | E28: ='C5-Capex'!F40 -> 4030949 | F28: ='C5-Capex'!G40 -> 22129248 | G28: ='C5-Capex'!H40 -> 15970506 | H28: =F28-G28 -> 6158742 | I28: =IF(H28=0,"",H28/G28) -> 0.3856322398 | J28: ='C5-Capex'!K40 -> 31941000.66
A29: Capital transfers recognised | B29: ='C5-Capex'!C70 -> 124282443 | C29: ='C5-Capex'!D70 -> 15996767 | D29: ='C5-Capex'!E70 -> 15996002 | E29: ='C5-Capex'!F70 -> 289655 | F29: ='C5-Capex'!G70 -> 9240502 | G29: ='C5-Capex'!H70 -> 7998000 | H29: 1242502 | I29: 0.1553515879 | J29: ='C5-Capex'!K70 -> 15996000
A31: Borrowing | B31: ='C5-Capex'!C72 -> 0 | C31: ='C5-Capex'!D72 -> 0 | D31: ='C5-Capex'!E72 -> 0 | E31: ='C5-Capex'!F72 -> 0 | F31: ='C5-Capex'!G72 -> 0 | G31: ='C5-Capex'!H72 -> 0 | H31: 0 | J31: ='C5-Capex'!K72 -> 0
A32: Internally generated funds | B32: ='C5-Capex'!C73 -> 92392856 | C32: ='C5-Capex'!D73 -> 9700000 | D32: ='C5-Capex'!E73 -> 17424750 | E32: ='C5-Capex'!F73 -> 3741294 | F32: ='C5-Capex'!G73 -> 12888746 | G32: ='C5-Capex'!H73 -> 7972506 | H32: 4916240 | I32: 0.6166492694 | J32: ='C5-Capex'!K73 -> 15945012
A33: Total sources of capital funds | B33: =+B29+B31+B32 -> 216675299 | C33: 25696767 | D33: 33420752 | E33: 4030949 | F33: 22129248 | G33: 15970506 | H33: 6158742 | I33: 0.3856322398 | J33: =+J29+J31+J32 -> 31941012
A35: Financial position
A36: Total current assets | B36: ='C6-FinPos'!C13 -> 87884617 | C36: ='C6-FinPos'!D13 -> 106812901 | D36: ='C6-FinPos'!E13 -> 106812901 | F36: ='C6-FinPos'!F13 -> 122933907.5 | J36: ='C6-FinPos'!G13 -> 106812901
A37: Total non current assets | B37: ='C6-FinPos'!C25 -> 141518792 | C37: ='C6-FinPos'!D25 -> 176890888 | D37: ='C6-FinPos'!E25 -> 176890888 | F37: ='C6-FinPos'!F25 -> 168740461 | J37: ='C6-FinPos'!G25 -> 170645121
A38: Total current liabilities | B38: ='C6-FinPos'!C35 -> 13052595 | C38: ='C6-FinPos'!D35 -> 12960907 | D38: ='C6-FinPos'!E35 -> 12960907 | F38: ='C6-FinPos'!F35 -> 18544423.5 | J38: ='C6-FinPos'!G35 -> 7960907
A39: Total non current liabilities | B39: ='C6-FinPos'!C40 -> 2590571 | C39: ='C6-FinPos'!D40 -> 5110195 | D39: ='C6-FinPos'!E40 -> 5110195 | F39: ='C6-FinPos'!F40 -> 2374000 | J39: ='C6-FinPos'!G40 -> 5110195
A40: Community wealth/Equity | B40: ='C6-FinPos'!C48 -> 213760243 | C40: ='C6-FinPos'!D48 -> 265632687 | D40: ='C6-FinPos'!E48 -> 265632687 | F40: ='C6-FinPos'!F48 -> 270755945 | J40: ='C6-FinPos'!G48 -> 264386920
A42: Cash flows
A43: Net cash from (used) operating | B43: ='C7-CFlow'!C18 -> 51630017 | C43: ='C7-CFlow'!D18 -> 17535308 | D43: ='C7-CFlow'!E18 -> 17535308 | E43: ='C7-CFlow'!F18 -> 30638562.59 | F43: ='C7-CFlow'!G18 -> 42302201.92 | G43: ='C7-CFlow'!H18 -> 46653079.5 | H43: =G43-F43 -> 4350877.58 | I43: =IF(H43=0,"",H43/G43) -> 0.09326024405 | J43: ='C7-CFlow'!K18 -> 17749854.69
A44: Net cash from (used) investing | B44: ='C7-CFlow'!C28 -> 189451960 | C44: ='C7-CFlow'!D28 -> -31941767 | D44: ='C7-CFlow'!E28 -> -31941767 | E44: ='C7-CFlow'!F28 -> -4030949 | F44: ='C7-CFlow'!G28 -> -22129249 | G44: ='C7-CFlow'!H28 -> -15970883 | H44: =G44-F44 -> 6158366 | I44: =IF(H44=0,"",H44/G44) -> -0.385599594 | J44: ='C7-CFlow'!K28 -> 31941002
A45: Net cash from (used) financing | B45: ='C7-CFlow'!C37 -> 0 | C45: ='C7-CFlow'!D37 -> 0 | D45: ='C7-CFlow'!E37 -> 0 | E45: ='C7-CFlow'!F37 -> 0 | F45: ='C7-CFlow'!G37 -> 0 | G45: ='C7-CFlow'!H37 -> 0 | H45: =G45-F45 -> 0 | I45: =IF(H45=0,"",H45/G45) ->  | J45: ='C7-CFlow'!K37 -> 0
A46: Cash/cash equivalents at the month/year end | B46: ='C7-CFlow'!C41 -> 306536676 | C46: ='C7-CFlow'!D41 -> 95634541 | D46: ='C7-CFlow'!E41 -> 95634541 | E46: ='C7-CFlow'!F41 -> 0 | F46: ='C7-CFlow'!G41 -> 85627651.92 | G46: ='C7-CFlow'!H41 -> 140723196.5 | H46: =G46-F46 -> 55095544.58 | I46: =IF(H46=0,"",H46/G46) -> 0.3915171482 | J46: ='C7-CFlow'!K41 -> 115145555.7
A48: Debtors & creditors analysis | B48: ='SC3'!C3 -> 0-30 Days | C48: ='SC3'!D3 -> 31-60 Days | D48: ='SC3'!E3 -> 61-90 Days | E48: ='SC3'!F3 -> 91-120 Days | F48: ='SC3'!G3 -> 121-150 Dys | G48: ='SC3'!H3 -> 151-180 Dys | H48: ='SC3'!I3 -> 181 Dys-1 Yr | I48: ='SC3'!J3 -> Over 1Yr | J48: Total
A49: =LEFT('SC3'!A4,20) -> Debtors Age Analysis
A50: ='SC3'!A14 -> Total By Income Source | B50: ='SC3'!C14 -> 1263779 | C50: ='SC3'!D14 -> 681062 | D50: ='SC3'!E14 -> -760966 | E50: ='SC3'!F14 -> 633521 | F50: ='SC3'!G14 -> 468361 | G50: ='SC3'!H14 -> 449384 | H50: ='SC3'!I14 -> 2527397 | I50: ='SC3'!J14 -> 23872824 | J50: ='SC3'!K14 -> 29135362
A51: =LEFT('SC4'!A5,22) -> Creditors Age Analysis
A52: Total Creditors | B52: ='SC4'!C15 -> 1175646 | C52: ='SC4'!D15 -> 0 | D52: ='SC4'!E15 -> 0 | E52: ='SC4'!F15 -> 0 | F52: ='SC4'!G15 -> 0 | G52: ='SC4'!H15 -> 0 | H52: ='SC4'!I15 -> 0 | I52: ='SC4'!J15 -> 0 | J52: ='SC4'!K15 -> 1175646

Sheet C2-FinPerf SC
A1: =muni& " - "&S71A& " - "&date -> Choose name from list - Table C2 Monthly Budget Statement - Financial Performance (functional classification) - Mid-Year Assessment
A2: =desc -> Description | B2: =head27 -> Ref | C2: =Head1 -> 2019/20 | D2: =Head2 -> Budget Year 2020/21
C3: =Head5 -> Audited Outcome | D3: =Head6 -> Original Budget | E3: =Head7 -> Adjusted Budget | F3: =Head38 -> Monthly actual | G3: =Head39 -> YearTD actual | H3: =Head40 -> YearTD budget | I3: =Head41 -> YTD variance | J3: =Head41 -> YTD variance | K3: =Head8 -> Full Year Forecast
A4: R thousands | B4: 1 | J4: %
A5: Revenue - Functional
A6: Governance and administration | C6: =SUM(C7:C9) -> 106050185 | D6: 113346009 | E6: 125751009 | F6: 34985519 | G6: 86197620 | H6: 62875499.02 | I6: =G6-H6 -> 23322120.98 | J6: =IF(I6=0,"",I6/H6) -> 0.3709254216 | K6: =SUM(K7:K9) -> 125751009
A7: Executive and council | C7: ='C2C'!C7 -> 0 | D7: ='C2C'!D7 -> 0 | E7: ='C2C'!E7 -> 0 | F7: ='C2C'!F7 -> 0 | G7: ='C2C'!G7 -> 0 | H7: ='C2C'!H7 -> 0 | I7: 0 | J7: =IF(I7=0,"",I7/H7) ->  | K7: ='C2C'!K7 -> 0
A8: Finance and administration | C8: ='C2C'!C10 -> 106050185 | D8: ='C2C'!D10 -> 113346009 | E8: ='C2C'!E10 -> 125751009 | F8: ='C2C'!F10 -> 34985519 | G8: ='C2C'!G10 -> 86197620 | H8: ='C2C'!H10 -> 62875499.02 | I8: 23322120.98 | J8: 0.3709254216 | K8: ='C2C'!K10 -> 125751009
A9: Internal audit | C9: ='C2C'!C24 -> 0 | D9: ='C2C'!D24 -> 0 | E9: ='C2C'!E24 -> 0 | F9: ='C2C'!F24 -> 0 | G9: ='C2C'!G24 -> 0 | H9: ='C2C'!H24 -> 0 | I9: 0 | K9: ='C2C'!K24 -> 0
A10: Community and public safety | C10: =SUM(C11:C15) -> 2502293 | D10: 2212094 | E10: 2212094 | F10: 341137 | G10: 1118561 | H10: 1106052 | I10: 12509 | J10: 0.01130959485 | K10: =SUM(K11:K15) -> 2212094
A11: Community and social services | C11: ='C2C'!C27 -> 2477352 | D11: ='C2C'!D27 -> 2212094 | E11: ='C2C'!E27 -> 2212094 | F11: ='C2C'!F27 -> 341137 | G11: ='C2C'!G27 -> 1118561 | H11: ='C2C'!H27 -> 1106052 | I11: 12509 | J11: 0.01130959485 | K11: ='C2C'!K27 -> 2212094
A12: Sport and recreation | C12: ='C2C'!C49 -> 24941 | D12: ='C2C'!D49 -> 0 | E12: ='C2C'!E49 -> 0 | F12: ='C2C'!F49 -> 0 | G12: ='C2C'!G49 -> 0 | H12: ='C2C'!H49 -> 0 | I12: 0 | K12: ='C2C'!K49 -> 0
A13: Public safety | C13: ='C2C'!C55 -> 0 | D13: ='C2C'!D55 -> 0 | E13: ='C2C'!E55 -> 0 | F13: ='C2C'!F55 -> 0 | G13: ='C2C'!G55 -> 0 | H13: ='C2C'!H55 -> 0 | I13: 0 | K13: ='C2C'!K55 -> 0
A14: Housing | C14: ='C2C'!C64 -> 0 | D14: ='C2C'!D64 -> 0 | E14: ='C2C'!E64 -> 0 | F14: ='C2C'!F64 -> 0 | G14: ='C2C'!G64 -> 0 | H14: ='C2C'!H64 -> 0 | I14: =G14-H14 -> 0 | J14: =IF(I14=0,"",I14/H14) ->  | K14: ='C2C'!K64 -> 0
A15: Health | C15: ='C2C'!C67 -> 0 | D15: ='C2C'!D67 -> 0 | E15: ='C2C'!E67 -> 0 | F15: ='C2C'!F67 -> 0 | G15: ='C2C'!G67 -> 0 | H15: ='C2C'!H67 -> 0 | I15: 0 | K15: ='C2C'!K67 -> 0
A16: Economic and environmental services | C16: =SUM(C17:C19) -> 155935 | D16: 968955 | E16: 968955 | F16: 2254590 | G16: 2370825 | H16: 484476 | I16: 1886349 | J16: 3.89358606 | K16: =SUM(K17:K19) -> 968955
A17: Planning and development | C17: ='C2C'!C76 -> 132745 | D17: ='C2C'!D76 -> 938955 | E17: ='C2C'!E76 -> 938955 | F17: ='C2C'!F76 -> 2254590 | G17: ='C2C'!G76 -> 2370825 | H17: ='C2C'!H76 -> 469476 | I17: 1901349 | J17: 4.049938655 | K17: ='C2C'!K76 -> 938955
A18: Road transport | C18: ='C2C'!C87 -> 23190 | D18: ='C2C'!D87 -> 30000 | E18: ='C2C'!E87 -> 30000 | F18: ='C2C'!F87 -> 0 | G18: ='C2C'!G87 -> 0 | H18: ='C2C'!H87 -> 15000 | I18: -15000 | J18: -1 | K18: ='C2C'!K87 -> 30000
A19: Environmental protection | C19: ='C2C'!C92 -> 0 | D19: ='C2C'!D92 -> 0 | E19: ='C2C'!E92 -> 0 | F19: ='C2C'!F92 -> 0 | G19: ='C2C'!G92 -> 0 | H19: ='C2C'!H92 -> 0 | I19: 0 | K19: ='C2C'!K92 -> 0
A20: Trading services | C20: =SUM(C21:C24) -> 528201 | D20: =SUM(D21:D24) -> 574287 | E20: 574287 | F20: 44458 | G20: 266748 | H20: 287142 | I20: -20394 | J20: -0.07102409261 | K20: =SUM(K21:K24) -> 574287
A21: Energy sources | C21: ='C2C'!C100 -> 0 | D21: ='C2C'!D100 -> 0 | E21: ='C2C'!E100 -> 0 | F21: ='C2C'!F100 -> 0 | G21: ='C2C'!G100 -> 0 | H21: ='C2C'!H100 -> 0 | I21: =G21-H21 -> 0 | K21: ='C2C'!K100 -> 0
A22: Water management | C22: ='C2C'!C104 -> 0 | D22: ='C2C'!D104 -> 0 | E22: ='C2C'!E104 -> 0 | F22: ='C2C'!F104 -> 0 | G22: ='C2C'!G104 -> 0 | H22: ='C2C'!H104 -> 0 | I22: =G22-H22 -> 0 | K22: ='C2C'!K104 -> 0
A23: Waste water management | C23: ='C2C'!C108 -> 0 | D23: ='C2C'!D108 -> 0 | E23: ='C2C'!E108 -> 0 | F23: ='C2C'!F108 -> 0 | G23: ='C2C'!G108 -> 0 | H23: ='C2C'!H108 -> 0 | I23: =G23-H23 -> 0 | K23: ='C2C'!K108 -> 0
A24: Waste management | C24: ='C2C'!C113 -> 528201 | D24: ='C2C'!D113 -> 574287 | E24: ='C2C'!E113 -> 574287 | F24: ='C2C'!F113 -> 44458 | G24: ='C2C'!G113 -> 266748 | H24: ='C2C'!H113 -> 287142 | I24: =G24-H24 -> -20394 | J24: -0.07102409261 | K24: ='C2C'!K113 -> 574287
A25: Other | B25: 4 | C25: ='C2C'!C118 -> 4704487 | D25: ='C2C'!D118 -> 7121110 | E25: ='C2C'!E118 -> 7121110 | F25: ='C2C'!F118 -> 405996 | G25: ='C2C'!G118 -> 2813363 | H25: ='C2C'!H118 -> 3560562 | I25: =G25-H25 -> -747199 | J25: -0.2098542309 | K25: ='C2C'!K118 -> 7121110
A26: Total Revenue - Functional | B26: 2 | C26: =C6+C10+C16+C20+C25 -> 113941101 | D26: =D6+D10+D16+D20+D25 -> 124222455 | E26: 136627455 | F26: 38031700 | G26: 92767117 | H26: 68313731.02 | I26: 24453385.98 | J26: 0.3579571137 | K26: =K6+K10+K16+K20+K25 -> 136627455
A28: Expenditure - Functional
A29: Governance and administration | C29: =SUM(C30:C32) -> 53963638 | D29: 69553541 | E29: 69553541 | F29: 4509638 | G29: 25823513 | H29: 34776816 | I29: =G29-H29 -> -8953303 | J29: =IF(I29=0,"",I29/H29) -> -0.257450337 | K29: =SUM(K30:K32) -> 69553538.85
A30: Executive and council | C30: ='C2C'!C129 -> 12619987 | D30: ='C2C'!D129 -> 19001756 | E30: ='C2C'!E129 -> 19001756 | F30: ='C2C'!F129 -> 1315393 | G30: ='C2C'!G129 -> 8160601 | H30: ='C2C'!H129 -> 9500880 | I30: -1340279 | J30: =IF(I30=0,"",I30/H30) -> -0.1410689326 | K30: ='C2C'!K129 -> 19001755.55
A31: Finance and administration | C31: ='C2C'!C132 -> 41343651 | D31: ='C2C'!D132 -> 50551785 | E31: ='C2C'!E132 -> 50551785 | F31: ='C2C'!F132 -> 3194245 | G31: ='C2C'!G132 -> 17662912 | H31: ='C2C'!H132 -> 25275936 | I31: -7613024 | J31: -0.3011965215 | K31: ='C2C'!K132 -> 50551783.3
A32: Internal audit | C32: ='C2C'!C146 -> 0 | D32: ='C2C'!D146 -> 0 | E32: ='C2C'!E146 -> 0 | F32: ='C2C'!F146 -> 0 | G32: ='C2C'!G146 -> 0 | H32: ='C2C'!H146 -> 0 | I32: 0 | K32: ='C2C'!K146 -> 0
A33: Community and public safety | C33: =SUM(C34:C38) -> 18243367 | D33: 24955232 | E33: 24955232 | F33: 3493506 | G33: 11172570 | H33: 12477672 | I33: -1305102 | J33: -0.1045949918 | K33: =SUM(K34:K38) -> 24955231.29
A34: Community and social services | C34: ='C2C'!C149 -> 14039866 | D34: ='C2C'!D149 -> 21370232 | E34: ='C2C'!E149 -> 21370232 | F34: ='C2C'!F149 -> 2967737 | G34: ='C2C'!G149 -> 10058658 | H34: ='C2C'!H149 -> 10685154 | I34: -626496 | J34: -0.05863237909 | K34: ='C2C'!K149 -> 21370231.29
A35: Sport and recreation | C35: ='C2C'!C171 -> 4086381 | D35: ='C2C'!D171 -> 3300000 | E35: ='C2C'!E171 -> 3300000 | F35: ='C2C'!F171 -> 430184 | G35: ='C2C'!G171 -> 1003747 | H35: ='C2C'!H171 -> 1650018 | I35: -646271 | J35: -0.3916751211 | K35: ='C2C'!K171 -> 3300000
A36: Public safety | C36: ='C2C'!C177 -> 1704 | D36: ='C2C'!D177 -> 15000 | E36: ='C2C'!E177 -> 15000 | F36: ='C2C'!F177 -> 0 | G36: ='C2C'!G177 -> 0 | H36: ='C2C'!H177 -> 7500 | I36: -7500 | J36: -1 | K36: ='C2C'!K177 -> 15000
A37: Housing | C37: ='C2C'!C186 -> 0 | D37: ='C2C'!D186 -> 0 | E37: ='C2C'!E186 -> 0 | F37: ='C2C'!F186 -> 0 | G37: ='C2C'!G186 -> 0 | H37: ='C2C'!H186 -> 0 | I37: 0 | K37: ='C2C'!K186 -> 0
A38: Health | C38: ='C2C'!C189 -> 115416 | D38: ='C2C'!D189 -> 270000 | E38: ='C2C'!E189 -> 270000 | F38: ='C2C'!F189 -> 95585 | G38: ='C2C'!G189 -> 110165 | H38: ='C2C'!H189 -> 135000 | I38: -24835 | J38: -0.183962963 | K38: ='C2C'!K189 -> 270000
A39: Economic and environmental services | C39: =SUM(C40:C42) -> 11984020 | D39: 17956674 | E39: 17956674 | F39: 790216 | G39: 16917777 | H39: 8978340 | I39: 7939437 | J39: 0.8842878528 | K39: =SUM(K40:K42) -> 17956673.85
A40: Planning and development | C40: ='C2C'!C198 -> 1694782 | D40: ='C2C'!D198 -> 580000 | E40: ='C2C'!E198 -> 580000 | F40: ='C2C'!F198 -> 15000 | G40: ='C2C'!G198 -> 49777 | H40: ='C2C'!H198 -> 290004 | I40: -240227 | J40: -0.8283575399 | K40: ='C2C'!K198 -> 580000
A41: Road transport | C41: ='C2C'!C209 -> 10289238 | D41: ='C2C'!D209 -> 17376674 | E41: ='C2C'!E209 -> 17376674 | F41: ='C2C'!F209 -> 775216 | G41: ='C2C'!G209 -> 16868000 | H41: ='C2C'!H209 -> 8688336 | I41: 8179664 | J41: 0.9414534613 | K41: ='C2C'!K209 -> 17376673.85
A42: Environmental protection | C42: ='C2C'!C214 -> 0 | D42: ='C2C'!D214 -> 0 | E42: ='C2C'!E214 -> 0 | F42: ='C2C'!F214 -> 0 | G42: ='C2C'!G214 -> 0 | H42: ='C2C'!H214 -> 0 | I42: 0 | K42: ='C2C'!K214 -> 0
A43: Trading services | C43: =SUM(C44:C47) -> 8849192 | D43: =SUM(D44:D47) -> 2558000 | E43: 2558000 | F43: 2028807 | G43: 3839625 | H43: 1279008 | I43: 2560617 | J43: 2.002033607 | K43: =SUM(K44:K47) -> 2558000
A44: Energy sources | C44: ='C2C'!C222 -> 6223503 | D44: ='C2C'!D222 -> 0 | E44: ='C2C'!E222 -> 0 | F44: ='C2C'!F222 -> 1819983 | G44: ='C2C'!G222 -> 2980791 | H44: ='C2C'!H222 -> 0 | I44: 2980791 | K44: ='C2C'!K222 -> 0
A45: Water management | C45: ='C2C'!C226 -> 0 | D45: ='C2C'!D226 -> 0 | E45: ='C2C'!E226 -> 0 | F45: ='C2C'!F226 -> 0 | G45: ='C2C'!G226 -> 0 | H45: ='C2C'!H226 -> 0 | I45: 0 | K45: ='C2C'!K226 -> 0
A46: Waste water management | C46: ='C2C'!C230 -> 129 | D46: ='C2C'!D230 -> 0 | E46: ='C2C'!E230 -> 0 | F46: ='C2C'!F230 -> 0 | G46: ='C2C'!G230 -> 0 | H46: ='C2C'!H230 -> 0 | I46: 0 | K46: ='C2C'!K230 -> 0
A47: Waste management | C47: ='C2C'!C235 -> 2625560 | D47: ='C2C'!D235 -> 2558000 | E47: ='C2C'!E235 -> 2558000 | F47: ='C2C'!F235 -> 208824 | G47: ='C2C'!G235 -> 858834 | H47: ='C2C'!H235 -> 1279008 | I47: -420174 | J47: -0.328515537 | K47: ='C2C'!K235 -> 2558000
A48: Other | C48: ='C2C'!C240 -> 3826636 | D48: ='C2C'!D240 -> 6513455 | E48: ='C2C'!E240 -> 6513455 | F48: ='C2C'!F240 -> 156420 | G48: ='C2C'!G240 -> 666361 | H48: ='C2C'!H240 -> 3256728 | I48: -2590367 | J48: -0.7953894215 | K48: ='C2C'!K240 -> 6513455
A49: Total Expenditure - Functional | B49: 3 | C49: =C29+C33+C39+C43+C48 -> 96866853 | D49: =D29+D33+D39+D43+D48 -> 121536902 | E49: 121536902 | F49: 10978587 | G49: 58419846 | H49: 60768564 | I49: -2348718 | J49: -0.03865021395 | K49: =K29+K33+K39+K43+K48 -> 121536899
A50: Surplus/ (Deficit) for the year | C50: =C26-C49 -> 17074248 | D50: 2685553 | E50: 15090553 | F50: 27053113 | G50: 34347271 | H50: 7545167.02 | I50: =I26-I49 -> 26802103.98 | J50: =IF(I50=0,"",I50/H50) -> 3.55222143 | K50: =K26-K49 -> 15090556.01
A51: =head27a -> References
A52: 1. Government Finance Statistics Functions and Sub-functions are standardised to assist the compilation of national and international accounts for comparison purposes
A53: 2. Total Revenue by functional classification must reconcile to Total Operating Revenue shown in the Financial Performance Statement
A54: 3. Total Expenditure by functional classification must reconcile to total operating expenditure shown in 'Financial Performance Statement'
A55: 4. All amounts must be classified under a functional classification (modified GFS). The GFS function 'Other' is only for Abbatoirs, Air Transport, Licensing and Regulation, Markets and Tourism - and if used must be supported by footnotes. Nothing else may be placed under 'Other'. Assign associate share to relevant classification

Sheet C2C
A1: =muni& " - "&S71A& " - "&date -> Choose name from list - Table C2 Monthly Budget Statement - Financial Performance (functional classification) - Mid-Year Assessment
A2: =desc -> Description | B2: =head27 -> Ref | C2: =Head1 -> 2019/20 | D2: =Head2 -> Budget Year 2020/21
C3: =Head5 -> Audited Outcome | D3: =Head6 -> Original Budget | E3: =Head7 -> Adjusted Budget | F3: =Head38 -> Monthly actual | G3: =Head39 -> YearTD actual | H3: =Head40 -> YearTD budget | I3: =Head41 -> YTD variance | J3: =Head41 -> YTD variance | K3: =Head8 -> Full Year Forecast
A4: R thousands | B4: 1 | J4: %
A5: Revenue - Functional
A6: Municipal governance and administration | C6: =C7+C10+C24 -> 106050185 | D6: 113346009 | E6: 125751009 | F6: 34985519 | G6: 86197620 | H6: 62875499.02 | I6: =G6-H6 -> 23322120.98 | J6: =IF(I6=0,"",I6/H6) -> 0.3709254216 | K6: =K7+K10+K24 -> 125751009
A7: Executive and council | C7: =SUM(C8:C9) -> 0 | D7: =SUM(D8:D9) -> 0 | E7: 0 | F7: 0 | G7: 0 | H7: 0 | I7: =G7-H7 -> 0 | J7: =IF(I7=0,"",I7/H7) ->  | K7: 0
A8: Mayor and Council | I8: 0
A9: Municipal Manager, Town Secretary and Chief Executive | I9: 0
A10: Finance and administration | C10: =SUM(C11:C23) -> 106050185 | D10: 113346009 | E10: 125751009 | F10: 34985519 | G10: 86197620 | H10: 62875499.02 | I10: =G10-H10 -> 23322120.98 | J10: =IF(I10=0,"",I10/H10) -> 0.3709254216 | K10: =SUM(K11:K23) -> 125751009
A11: Administrative and Corporate Support | C11: 40121 | D11: 62000 | E11: 62000 | F11: 0 | G11: 0 | H11: 31002 | I11: -31002 | J11: -1 | K11: 62000
A12: Asset Management | C12: 120020 | D12: 0 | E12: 0 | F12: 0 | G12: 10036 | H12: 0 | I12: 10036 | K12: 0
A13: Finance | C13: 43156354 | D13: 45954009 | E13: 45954009 | F13: 2381519 | G13: 23285584 | H13: 22976999.02 | I13: 308584.98 | J13: 0.013430169 | K13: 45954009
A14: Fleet Management | C14: 0 | D14: 0 | E14: 0 | F14: 0 | G14: 0 | H14: 0 | I14: 0 | K14: 0
A15: Human Resources | C15: 0 | D15: 0 | E15: 0 | F15: 0 | G15: 0 | H15: 0 | I15: 0 | K15: 0
A16: Information Technology | C16: 0 | D16: 0 | E16: 0 | F16: 0 | G16: 0 | H16: 0 | I16: =G16-H16 -> 0 | J16: =IF(I16=0,"",I16/H16) ->  | K16: 0
A17: Legal Services | C17: 0 | D17: 0 | E17: 0 | F17: 0 | G17: 0 | H17: 0 | I17: 0 | K17: 0
A18: Marketing, Customer Relations, Publicity and Media Co-ordination | C18: 0 | D18: 0 | E18: 0 | F18: 0 | G18: 0 | H18: 0 | I18: 0 | K18: 0
A19: Property Services | C19: 62733690 | D19: 67330000 | E19: 79735000 | F19: 32604000 | G19: 62902000 | H19: 39867498 | I19: 23034502 | J19: 0.5777764634 | K19: 79735000
A20: Risk Management | C20: 0 | D20: 0 | E20: 0 | F20: 0 | G20: 0 | H20: 0 | I20: 0 | K20: 0
A21: Security Services | C21: 0 | D21: 0 | E21: 0 | F21: 0 | G21: 0 | H21: 0 | I21: 0 | K21: 0
A22: Supply Chain Management | C22: 0 | D22: 0 | E22: 0 | F22: 0 | G22: 0 | H22: 0 | I22: 0 | K22: 0
A23: Valuation Service | C23: 0 | D23: 0 | E23: 0 | F23: 0 | G23: 0 | H23: 0 | I23: 0 | K23: 0
A24: Internal audit | C24: =SUM(C25:C25) -> 0 | D24: 0 | E24: 0 | F24: 0 | G24: 0 | H24: 0 | I24: 0 | K24: =SUM(K25:K25) -> 0
A25: Governance Function | I25: 0
A26: Community and public safety | C26: =C27+C49+C55+C64+C67 -> 2502293 | D26: =D27+D49+D55+D64+D67 -> 2212094 | E26: 2212094 | F26: 341137 | G26: 1118561 | H26: 1106052 | I26: 12509 | J26: 0.01130959485 | K26: 2212094
A27: Community and social services | C27: =SUM(C28:C48) -> 2477352 | D27: 2212094 | E27: 2212094 | F27: 341137 | G27: 1118561 | H27: 1106052 | I27: 12509 | J27: 0.01130959485 | K27: =SUM(K28:K48) -> 2212094
A28: Aged Care | C28: 0 | D28: 0 | E28: 0 | F28: 0 | G28: 0 | H28: 0 | I28: =G28-H28 -> 0 | J28: =IF(I28=0,"",I28/H28) ->  | K28: 0
A29: Agricultural | C29: 0 | D29: 0 | E29: 0 | F29: 0 | G29: 0 | H29: 0 | I29: 0 | K29: 0
A30: Animal Care and Diseases | C30: 0 | D30: 0 | E30: 0 | F30: 0 | G30: 0 | H30: 0 | I30: 0 | K30: 0
A31: Cemeteries, Funeral Parlours and Crematoriums | C31: 0 | D31: 0 | E31: 0 | F31: 0 | G31: 0 | H31: 0 | I31: 0 | K31: 0
A32: Child Care Facilities | C32: 0 | D32: 0 | E32: 0 | F32: 0 | G32: 0 | H32: 0 | I32: 0 | K32: 0
A33: Community Halls and Facilities | C33: 0 | D33: 0 | E33: 0 | F33: 0 | G33: 0 | H33: 0 | I33: 0 | K33: 0
A34: Consumer Protection | C34: 0 | D34: 0 | E34: 0 | F34: 0 | G34: 0 | H34: 0 | I34: 0 | K34: 0
A35: Cultural Matters | C35: 0 | D35: 0 | E35: 0 | F35: 0 | G35: 0 | H35: 0 | I35: =G35-H35 -> 0 | J35: =IF(I35=0,"",I35/H35) ->  | K35: 0
A36: Disaster Management | C36: 745000 | D36: 372500 | E36: 372500 | F36: 0 | G36: 0 | H36: 186252 | I36: -186252 | J36: -1 | K36: 372500
A37: Education | C37: 0 | D37: 0 | E37: 0 | F37: 0 | G37: 0 | H37: 0 | I37: 0 | K37: 0
A38: Indigenous and Customary Law | C38: 0 | D38: 0 | E38: 0 | F38: 0 | G38: 0 | H38: 0 | I38: 0 | K38: 0
A39: Industrial Promotion | C39: 0 | D39: 0 | E39: 0 | F39: 0 | G39: 0 | H39: 0 | I39: 0 | K39: 0
A40: Language Policy | C40: 0 | D40: 0 | E40: 0 | F40: 0 | G40: 0 | H40: 0 | I40: 0 | K40: 0
A41: Libraries and Archives | C41: 1732352 | D41: 1839594 | E41: 1839594 | F41: 341137 | G41: 1118561 | H41: 919800 | I41: 198761 | J41: 0.2160915416 | K41: 1839594
A42: Literacy Programmes | C42: 0 | D42: 0 | E42: 0 | F42: 0 | G42: 0 | H42: 0 | I42: 0 | K42: 0
A43: Media Services | C43: 0 | D43: 0 | E43: 0 | F43: 0 | G43: 0 | H43: 0 | I43: 0 | K43: 0
A44: Museums and Art Galleries | C44: 0 | D44: 0 | E44: 0 | F44: 0 | G44: 0 | H44: 0 | I44: 0 | K44: 0
A45: Population Development | C45: 0 | D45: 0 | E45: 0 | F45: 0 | G45: 0 | H45: 0 | I45: 0 | K45: 0
A46: Provincial Cultural Matters | C46: 0 | D46: 0 | E46: 0 | F46: 0 | G46: 0 | H46: 0 | I46: 0 | K46: 0
A47: Theatres | C47: 0 | D47: 0 | E47: 0 | F47: 0 | G47: 0 | H47: 0 | I47: 0 | K47: 0
A48: Zoo's | C48: 0 | D48: 0 | E48: 0 | F48: 0 | G48: 0 | H48: 0 | I48: 0 | K48: 0
A49: Sport and recreation | C49: =SUM(C50:C54) -> 24941 | D49: =SUM(D50:D54) -> 0 | E49: 0 | F49: 0 | G49: 0 | H49: 0 | I49: =G49-H49 -> 0 | J49: =IF(I49=0,"",I49/H49) ->  | K49: 0
A50: Beaches and Jetties | C50: 0 | D50: 0 | E50: 0 | F50: 0 | G50: 0 | H50: 0 | I50: 0
A51: Casinos, Racing, Gambling, Wagering | C51: 0 | D51: 0 | E51: 0 | F51: 0 | G51: 0 | H51: 0 | I51: 0
A52: Community Parks (including Nurseries) | C52: 0 | D52: 0 | E52: 0 | F52: 0 | G52: 0 | H52: 0 | I52: 0
A53: Recreational Facilities | C53: 0 | D53: 0 | E53: 0 | F53: 0 | G53: 0 | H53: 0 | I53: 0
A54: Sports Grounds and Stadiums | C54: 24941 | D54: 0 | E54: 0 | F54: 0 | G54: 0 | H54: 0 | I54: 0
A55: Public safety | C55: =SUM(C56:C63) -> 0 | D55: =SUM(D56:D63) -> 0 | E55: 0 | F55: 0 | G55: 0 | H55: 0 | I55: 0 | K55: 0
A56: Civil Defence | I56: 0
A57: Cleansing | I57: 0
A58: Control of Public Nuisances | I58: =G58-H58 -> 0 | J58: =IF(I58=0,"",I58/H58) -> 
A59: Fencing and Fences | I59: 0
A60: Fire Fighting and Protection | I60: 0
A61: Licensing and Control of Animals | I61: =G61-H61 -> 0 | J61: =IF(I61=0,"",I61/H61) -> 
A62: Police Forces, Traffic and Street Parking Control | I62: =G62-H62 -> 0 | J62: =IF(I62=0,"",I62/H62) -> 
A63: Pounds | I63: 0
A64: Housing | C64: =SUM(C65:C66) -> 0 | D64: 0 | E64: 0 | F64: 0 | G64: 0 | H64: 0 | I64: =G64-H64 -> 0 | J64: =IF(I64=0,"",I64/H64) ->  | K64: =SUM(K65:K66) -> 0
A65: Housing | I65: =G65-H65 -> 0 | J65: =IF(I65=0,"",I65/H65) -> 
A66: Informal Settlements | I66: =G66-H66 -> 0 | J66: =IF(I66=0,"",I66/H66) -> 
A67: Health | C67: =SUM(C68:C74) -> 0 | D67: 0 | E67: 0 | F67: 0 | G67: 0 | H67: 0 | I67: 0 | K67: =SUM(K68:K74) -> 0
A68: Ambulance | I68: 0
A69: Health Services | I69: 0
A70: Laboratory Services | I70: =G70-H70 -> 0 | J70: =IF(I70=0,"",I70/H70) -> 
A71: Food Control | I71: =G71-H71 -> 0 | J71: =IF(I71=0,"",I71/H71) -> 
A72: Health Surveillance and Prevention of Communicable Diseases including immunizations | I72: 0
A73: Vector Control | I73: 0
A74: Chemical Safety | I74: 0
A75: Economic and environmental services | C75: =C76+C87+C92 -> 155935 | D75: 968955 | E75: 968955 | F75: 2254590 | G75: 2370825 | H75: 484476 | I75: 1886349 | J75: 3.89358606 | K75: =K76+K87+K92 -> 968955
A76: Planning and development | C76: =SUM(C77:C86) -> 132745 | D76: 938955 | E76: 938955 | F76: 2254590 | G76: 2370825 | H76: 469476 | I76: 1901349 | J76: 4.049938655 | K76: =SUM(K77:K86) -> 938955
A77: Billboards | C77: 0 | D77: 0 | E77: 0 | F77: 0 | G77: 0 | H77: 0 | I77: =G77-H77 -> 0 | J77: =IF(I77=0,"",I77/H77) ->  | K77: 0
A78: Corporate Wide Strategic Planning (IDPs, LEDs) | C78: 0 | D78: 0 | E78: 0 | F78: 0 | G78: 0 | H78: 0 | I78: 0 | K78: 0
A79: Central City Improvement District | C79: 0 | D79: 0 | E79: 0 | F79: 0 | G79: 0 | H79: 0 | I79: 0 | K79: 0
A80: Development Facilitation | C80: 0 | D80: 0 | E80: 0 | F80: 0 | G80: 0 | H80: 0 | I80: =G80-H80 -> 0 | J80: =IF(I80=0,"",I80/H80) ->  | K80: 0
A81: Economic Development/Planning | C81: 0 | D81: 0 | E81: 0 | F81: 0 | G81: 0 | H81: 0 | I81: =G81-H81 -> 0 | J81: =IF(I81=0,"",I81/H81) ->  | K81: 0
A82: Regional Planning and Development | C82: 0 | D82: 0 | E82: 0 | F82: 0 | G82: 0 | H82: 0 | I82: =G82-H82 -> 0 | J82: =IF(I82=0,"",I82/H82) ->  | K82: 0
A83: Town Planning, Building Regulations and Enforcement, and City Engineer | C83: 132745 | D83: 938955 | E83: 938955 | F83: 2254590 | G83: 2370825 | H83: 469476 | I83: =G83-H83 -> 1901349 | J83: =IF(I83=0,"",I83/H83) -> 4.049938655 | K83: 938955
A84: Project Management Unit | C84: 0 | D84: 0 | E84: 0 | F84: 0 | G84: 0 | H84: 0 | I84: 0 | K84: 0
A85: Provincial Planning | C85: 0 | D85: 0 | E85: 0 | F85: 0 | G85: 0 | H85: 0 | I85: 0 | K85: 0
A86: Support to Local Municipalities | C86: 0 | D86: 0 | E86: 0 | F86: 0 | G86: 0 | H86: 0 | I86: 0 | K86: 0
A87: Road transport | C87: =SUM(C88:C91) -> 23190 | D87: 30000 | E87: 30000 | F87: 0 | G87: 0 | H87: 15000 | I87: -15000 | J87: -1 | K87: =SUM(K88:K91) -> 30000
A88: Public Transport | C88: 0 | D88: 0 | E88: 0 | F88: 0 | G88: 0 | H88: 0 | I88: 0 | K88: 0
A89: Road and Traffic Regulation | C89: 0 | D89: 0 | E89: 0 | F89: 0 | G89: 0 | H89: 0 | I89: 0 | K89: 0
A90: Roads | C90: 23190 | D90: 30000 | E90: 30000 | F90: 0 | G90: 0 | H90: 15000 | I90: -15000 | J90: -1 | K90: 30000
A91: Taxi Ranks | C91: 0 | D91: 0 | E91: 0 | F91: 0 | G91: 0 | H91: 0 | I91: 0 | K91: 0
A92: Environmental protection | C92: =SUM(C93:C98) -> 0 | D92: =SUM(D93:D98) -> 0 | E92: 0 | F92: 0 | G92: 0 | H92: 0 | I92: 0 | K92: 0
A93: Biodiversity and Landscape | I93: 0
A94: Coastal Protection | I94: 0
A95: Indigenous Forests | I95: =G95-H95 -> 0 | J95: =IF(I95=0,"",I95/H95) -> 
A96: Nature Conservation | I96: =G96-H96 -> 0 | J96: =IF(I96=0,"",I96/H96) -> 
A97: Pollution Control | I97: 0
A98: Soil Conservation | I98: 0
A99: Trading services | C99: =C100+C104+C108+C113 -> 528201 | D99: =D100+D104+D108+D113 -> 574287 | E99: 574287 | F99: 44458 | G99: 266748 | H99: 287142 | I99: -20394 | J99: -0.07102409261 | K99: =K100+K104+K108+K113 -> 574287
A100: Energy sources | C100: =SUM(C101:C103) -> 0 | D100: =SUM(D101:D103) -> 0 | E100: 0 | F100: 0 | G100: 0 | H100: 0 | I100: 0 | K100: 0
A101: Electricity | I101: 0
A102: Street Lighting and Signal Systems | I102: =G102-H102 -> 0 | J102: =IF(I102=0,"",I102/H102) -> 
A103: Nonelectric Energy | I103: 0
A104: Water management | C104: =SUM(C105:C107) -> 0 | D104: =SUM(D105:D107) -> 0 | E104: 0 | F104: 0 | G104: 0 | H104: 0 | I104: 0 | K104: 0
A105: Water Treatment | I105: 0
A106: Water Distribution | I106: =G106-H106 -> 0 | J106: =IF(I106=0,"",I106/H106) -> 
A107: Water Storage | I107: 0
A108: Waste water management | C108: =SUM(C109:C112) -> 0 | D108: =SUM(D109:D112) -> 0 | E108: 0 | F108: 0 | G108: 0 | H108: 0 | I108: 0 | K108: 0
A109: Public Toilets | I109: 0
A110: Sewerage | I110: 0
A111: Storm Water Management | I111: =G111-H111 -> 0 | J111: =IF(I111=0,"",I111/H111) -> 
A112: Waste Water Treatment | I112: 0
A113: Waste management | C113: =SUM(C114:C117) -> 528201 | D113: 574287 | E113: 574287 | F113: 44458 | G113: 266748 | H113: 287142 | I113: -20394 | J113: -0.07102409261 | K113: =SUM(K114:K117) -> 574287
A114: Recycling | C114: 0 | D114: 0 | E114: 0 | F114: 0 | G114: 0 | H114: 0 | I114: =G114-H114 -> 0 | J114: =IF(I114=0,"",I114/H114) ->  | K114: 0
A115: Solid Waste Disposal (Landfill Sites) | C115: 0 | D115: 0 | E115: 0 | F115: 0 | G115: 0 | H115: 0 | I115: =G115-H115 -> 0 | J115: =IF(I115=0,"",I115/H115) ->  | K115: 0
A116: Solid Waste Removal | C116: 528201 | D116: 574287 | E116: 574287 | F116: 44458 | G116: 266748 | H116: 287142 | I116: -20394 | J116: -0.07102409261 | K116: 574287
A117: Street Cleaning | C117: 0 | D117: 0 | E117: 0 | F117: 0 | G117: 0 | H117: 0 | I117: =G117-H117 -> 0 | J117: =IF(I117=0,"",I117/H117) ->  | K117: 0
A118: Other | C118: =SUM(C119:C124) -> 4704487 | D118: =SUM(D119:D124) -> 7121110 | E118: 7121110 | F118: 405996 | G118: 2813363 | H118: 3560562 | I118: -747199 | J118: -0.2098542309 | K118: 7121110
A119: Abattoirs | C119: 0 | D119: 0 | E119: 0 | F119: 0 | G119: 0 | H119: 0 | I119: 0 | K119: 0
A120: Air Transport | C120: 0 | D120: 0 | E120: 0 | F120: 0 | G120: 0 | H120: 0 | I120: 0 | K120: 0
A121: Forestry | C121: 0 | D121: 0 | E121: 0 | F121: 0 | G121: 0 | H121: 0 | I121: =G121-H121 -> 0 | J121: =IF(I121=0,"",I121/H121) ->  | K121: 0
A122: Licensing and Regulation | C122: 4704487 | D122: 7121110 | E122: 7121110 | F122: 405996 | G122: 2813363 | H122: 3560562 | I122: -747199 | J122: -0.2098542309 | K122: 7121110
A123: Markets | C123: 0 | D123: 0 | E123: 0 | F123: 0 | G123: 0 | H123: 0 | I123: 0 | K123: 0
A124: Tourism | C124: 0 | D124: 0 | E124: 0 | F124: 0 | G124: 0 | H124: 0 | I124: =G124-H124 -> 0 | J124: =IF(I124=0,"",I124/H124) ->  | K124: 0
A125: ="Total "&A5 -> Total Revenue - Functional | B125: 2 | C125: =C6+C26+C75+C99+C118 -> 113941101 | D125: 124222455 | E125: 136627455 | F125: 38031700 | G125: 92767117 | H125: 68313731.02 | I125: =G125-H125 -> 24453385.98 | J125: =IF(I125=0,"",I125/H125) -> 0.3579571137 | K125: =K6+K26+K75+K99+K118 -> 136627455
A127: Expenditure - Functional
A128: =A6 -> Municipal governance and administration | C128: =C129+C132+C146 -> 53963638 | D128: 69553541 | E128: 69553541 | F128: 4509638 | G128: 25823513 | H128: 34776816 | I128: =G128-H128 -> -8953303 | J128: =IF(I128=0,"",I128/H128) -> -0.257450337 | K128: =K129+K132+K146 -> 69553538.85
A129: Executive and council | C129: =SUM(C130:C131) -> 12619987 | D129: 19001756 | E129: 19001756 | F129: 1315393 | G129: 8160601 | H129: 9500880 | I129: -1340279 | J129: -0.1410689326 | K129: 19001755.55
A130: Mayor and Council | C130: 8980145 | D130: 7456921 | E130: 7456921 | F130: 711840 | G130: 4200061 | H130: 3728472 | I130: 471589 | J130: 0.1264831813 | K130: 7456920.73
A131: Municipal Manager, Town Secretary and Chief Executive | C131: 3639842 | D131: 11544835 | E131: 11544835 | F131: 603553 | G131: 3960540 | H131: 5772408 | I131: -1811868 | J131: -0.3138842577 | K131: 11544834.82
A132: Finance and administration | C132: =SUM(C133:C145) -> 41343651 | D132: 50551785 | E132: 50551785 | F132: 3194245 | G132: 17662912 | H132: 25275936 | I132: -7613024 | J132: -0.3011965215 | K132: =SUM(K133:K145) -> 50551783.3
A133: Administrative and Corporate Support | C133: 10731235 | D133: 11894526 | E133: 11894526 | F133: 1028771 | G133: 4590761 | H133: 5947272 | I133: -1356511 | J133: -0.2280896182 | K133: 11894525.26
A134: Asset Management | C134: 10383094 | D134: 13173339 | E134: 13173339 | F134: 810718 | G134: 5299183 | H134: 6586668 | I134: -1287485 | J134: -0.1954683309 | K134: 13173339
A135: Finance | C135: 12126785 | D135: 17834080 | E135: 17834080 | F135: 964306 | G135: 3805583 | H135: 8917056 | I135: -5111473 | J135: -0.5732242794 | K135: 17834079.23
A136: Fleet Management | C136: 1206406 | D136: 910000 | E136: 910000 | F136: 79916 | G136: 728316 | H136: 455004 | I136: 273312 | J136: 0.6006804336 | K136: 910000
A137: Human Resources | C137: 734652 | D137: 1099190 | E137: 1099190 | F137: 6568 | G137: 118336 | H137: 549600 | I137: -431264 | J137: -0.7846870451 | K137: 1099189.81
A138: Information Technology | C138: 3460653 | D138: 1595000 | E138: 1595000 | F138: 45338 | G138: 1437768 | H138: 797502 | I138: 640266 | J138: 0.8028393659 | K138: 1595000
A139: Legal Services | C139: 333462 | D139: 500000 | E139: 500000 | F139: 393 | G139: 393052 | H139: 250002 | I139: 143050 | J139: 0.5721954224 | K139: 500000
A140: Marketing, Customer Relations, Publicity and Media Co-ordination | C140: 0 | D140: 0 | E140: 0 | F140: 0 | G140: 0 | H140: 0 | I140: 0 | K140: 0
A141: Property Services | C141: 2250153 | D141: 2635650 | E141: 2635650 | F141: 73857 | G141: 1104170 | H141: 1317828 | I141: -213658 | J141: -0.1621288969 | K141: 2635650
A142: Risk Management | C142: 0 | D142: 0 | E142: 0 | F142: 0 | G142: 0 | H142: 0 | I142: 0 | K142: 0
A143: Security Services | C143: 0 | D143: 0 | E143: 0 | F143: 0 | G143: 0 | H143: 0 | I143: 0 | K143: 0
A144: Supply Chain Management | C144: 70542 | D144: 650000 | E144: 650000 | F144: 105975 | G144: 106482 | H144: 325002 | I144: -218520 | J144: -0.6723650931 | K144: 650000
A145: Valuation Service | C145: 46669 | D145: 260000 | E145: 260000 | F145: 78403 | G145: 79261 | H145: 130002 | I145: -50741 | J145: -0.3903093799 | K145: 260000
A146: Internal audit | C146: =SUM(C147:C147) -> 0 | D146: 0 | E146: 0 | F146: 0 | G146: 0 | H146: 0 | I146: 0 | K146: =SUM(K147:K147) -> 0
A147: Governance Function | I147: 0
A148: Community and public safety | C148: =C149+C171+C177+C186+C189 -> 18243367 | D148: 24955232 | E148: 24955232 | F148: 3493506 | G148: 11172570 | H148: 12477672 | I148: -1305102 | J148: -0.1045949918 | K148: =K149+K171+K177+K186+K189 -> 24955231.29
A149: Community and social services | C149: =SUM(C150:C170) -> 14039866 | D149: 21370232 | E149: 21370232 | F149: 2967737 | G149: 10058658 | H149: 10685154 | I149: -626496 | J149: -0.05863237909 | K149: =SUM(K150:K170) -> 21370231.29
A150: Aged Care | C150: 237085 | D150: 490000 | E150: 490000 | F150: 301572 | G150: 301572 | H150: 244998 | I150: 56574 | J150: 0.2309161707 | K150: 490000
A151: Agricultural | C151: 179642 | D151: 150000 | E151: 150000 | F151: 0 | G151: 0 | H151: 75000 | I151: -75000 | J151: -1 | K151: 150000
A152: Animal Care and Diseases | C152: 0 | D152: 0 | E152: 0 | F152: 0 | G152: 0 | H152: 0 | I152: 0 | K152: 0
A153: Cemeteries, Funeral Parlours and Crematoriums | C153: 0 | D153: 0 | E153: 0 | F153: 0 | G153: 0 | H153: 0 | I153: 0 | K153: 0
A154: Child Care Facilities | C154: 1008348 | D154: 0 | E154: 0 | F154: -25000 | G154: 0 | H154: 0 | I154: 0 | K154: 0
A155: Community Halls and Facilities | C155: 7577621 | D155: 9702528 | E155: 9702528 | F155: 1636030 | G155: 6748381 | H155: 4851264 | I155: 1897117 | J155: 0.3910562278 | K155: 9702527.29
A156: Consumer Protection | C156: 0 | D156: 0 | E156: 0 | F156: 0 | G156: 0 | H156: 0 | I156: 0 | K156: 0
A157: Cultural Matters | C157: 209824 | D157: 620000 | E157: 620000 | F157: 303412 | G157: 606938 | H157: 310008 | I157: =G157-H157 -> 296930 | J157: =IF(I157=0,"",I157/H157) -> 0.9578139919 | K157: 620000
A158: Disaster Management | C158: 347962 | D158: 1430000 | E158: 1430000 | F158: 239413 | G158: 384318 | H158: 715002 | I158: =G158-H158 -> -330684 | J158: =IF(I158=0,"",I158/H158) -> -0.4624938112 | K158: 1430000
A159: Education | C159: 405345 | D159: 190000 | E159: 190000 | F159: 0 | G159: 91500 | H159: 95004 | I159: =G159-H159 -> -3504 | J159: =IF(I159=0,"",I159/H159) -> -0.03688265757 | K159: 190000
A160: =A38 -> Indigenous and Customary Law | C160: 98912 | D160: 261500 | E160: 261500 | F160: 0 | G160: 0 | H160: 130752 | I160: -130752 | J160: -1 | K160: 261500
A161: Industrial Promotion | C161: 0 | D161: 380000 | E161: 380000 | F161: 0 | G161: 0 | H161: 190002 | I161: -190002 | J161: -1 | K161: 380000
A162: Language Policy | C162: 0 | D162: 0 | E162: 0 | F162: 0 | G162: 0 | H162: 0 | I162: 0 | K162: 0
A163: Libraries and Archives | C163: 2080138 | D163: 2919704 | E163: 2919704 | F163: 339878 | G163: 1114263 | H163: 1459860 | I163: -345597 | J163: -0.2367329744 | K163: 2919704
A164: Literacy Programmes | C164: 859950 | D164: 2320000 | E164: 2320000 | F164: 0 | G164: 0 | H164: 1159998 | I164: -1159998 | J164: -1 | K164: 2320000
A165: Media Services | C165: 0 | D165: 0 | E165: 0 | F165: 0 | G165: 0 | H165: 0 | I165: 0 | K165: 0
A166: Museums and Art Galleries | C166: 0 | D166: 0 | E166: 0 | F166: 0 | G166: 0 | H166: 0 | I166: 0 | K166: 0
A167: Population Development | C167: 1035039 | D167: 2906500 | E167: 2906500 | F167: 172432 | G167: 811686 | H167: 1453266 | I167: -641580 | J167: -0.4414745821 | K167: 2906500
A168: Provincial Cultural Matters | C168: 0 | D168: 0 | E168: 0 | F168: 0 | G168: 0 | H168: 0 | I168: 0 | K168: 0
A169: Theatres | C169: 0 | D169: 0 | E169: 0 | F169: 0 | G169: 0 | H169: 0 | I169: 0 | K169: 0
A170: Zoo's | C170: 0 | D170: 0 | E170: 0 | F170: 0 | G170: 0 | H170: 0 | I170: 0 | K170: 0
A171: Sport and recreation | C171: =SUM(C172:C176) -> 4086381 | D171: 3300000 | E171: 3300000 | F171: 430184 | G171: 1003747 | H171: 1650018 | I171: =G171-H171 -> -646271 | J171: =IF(I171=0,"",I171/H171) -> -0.3916751211 | K171: 3300000
A172: Beaches and Jetties | C172: 0 | D172: 0 | E172: 0 | F172: 0 | G172: 0 | H172: 0 | I172: 0 | K172: 0
A173: Casinos, Racing, Gambling, Wagering | C173: 0 | D173: 0 | E173: 0 | F173: 0 | G173: 0 | H173: 0 | I173: 0 | K173: 0
A174: Community Parks (including Nurseries) | C174: 0 | D174: 0 | E174: 0 | F174: 0 | G174: 0 | H174: 0 | I174: 0 | K174: 0
A175: Recreational Facilities | C175: 0 | D175: 0 | E175: 0 | F175: 0 | G175: 0 | H175: 0 | I175: 0 | K175: 0
A176: Sports Grounds and Stadiums | C176: 4086381 | D176: 3300000 | E176: 3300000 | F176: 430184 | G176: 1003747 | H176: 1650018 | I176: -646271 | J176: -0.3916751211 | K176: 3300000
A177: Public safety | C177: =SUM(C178:C185) -> 1704 | D177: 15000 | E177: 15000 | F177: 0 | G177: 0 | H177: 7500 | I177: -7500 | J177: -1 | K177: 15000
A178: Civil Defence | C178: 0 | D178: 0 | E178: 0 | F178: 0 | G178: 0 | H178: 0 | I178: 0 | K178: 0
A179: Cleansing | C179: 0 | D179: 0 | E179: 0 | F179: 0 | G179: 0 | H179: 0 | I179: 0 | K179: 0
A180: Control of Public Nuisances | C180: 0 | D180: 0 | E180: 0 | F180: 0 | G180: 0 | H180: 0 | I180: =G180-H180 -> 0 | J180: =IF(I180=0,"",I180/H180) ->  | K180: 0
A181: Fencing and Fences | C181: 0 | D181: 0 | E181: 0 | F181: 0 | G181: 0 | H181: 0 | I181: 0 | K181: 0
A182: Fire Fighting and Protection | C182: 1704 | D182: 15000 | E182: 15000 | F182: 0 | G182: 0 | H182: 7500 | I182: -7500 | J182: -1 | K182: 15000
A183: Licensing and Control of Animals | C183: 0 | D183: 0 | E183: 0 | F183: 0 | G183: 0 | H183: 0 | I183: =G183-H183 -> 0 | J183: =IF(I183=0,"",I183/H183) ->  | K183: 0
A184: Police Forces, Traffic and Street Parking Control | C184: 0 | D184: 0 | E184: 0 | F184: 0 | G184: 0 | H184: 0 | I184: =G184-H184 -> 0 | J184: =IF(I184=0,"",I184/H184) ->  | K184: 0
A185: Pounds | C185: 0 | D185: 0 | E185: 0 | F185: 0 | G185: 0 | H185: 0 | I185: 0 | K185: 0
A186: Housing | C186: =SUM(C187:C188) -> 0 | D186: 0 | E186: 0 | F186: 0 | G186: 0 | H186: 0 | I186: =G186-H186 -> 0 | J186: =IF(I186=0,"",I186/H186) ->  | K186: =SUM(K187:K188) -> 0
A187: Housing | I187: =G187-H187 -> 0 | J187: =IF(I187=0,"",I187/H187) -> 
A188: Informal Settlements | I188: =G188-H188 -> 0 | J188: =IF(I188=0,"",I188/H188) -> 
A189: Health | C189: =SUM(C190:C196) -> 115416 | D189: 270000 | E189: 270000 | F189: 95585 | G189: 110165 | H189: 135000 | I189: -24835 | J189: -0.183962963 | K189: 270000
A190: Ambulance | C190: 0 | D190: 0 | E190: 0 | F190: 0 | G190: 0 | H190: 0 | I190: 0 | K190: 0
A191: Health Services | C191: 115416 | D191: 270000 | E191: 270000 | F191: 95585 | G191: 110165 | H191: 135000 | I191: -24835 | J191: -0.183962963 | K191: 270000
A192: =A70 -> Laboratory Services | C192: 0 | D192: 0 | E192: 0 | F192: 0 | G192: 0 | H192: 0 | I192: 0 | K192: 0
A193: Food Control | C193: 0 | D193: 0 | E193: 0 | F193: 0 | G193: 0 | H193: 0 | I193: =G193-H193 -> 0 | J193: =IF(I193=0,"",I193/H193) ->  | K193: 0
A194: Health Surveillance and Prevention of Communicable Diseases including immunizations | C194: 0 | D194: 0 | E194: 0 | F194: 0 | G194: 0 | H194: 0 | I194: =G194-H194 -> 0 | J194: =IF(I194=0,"",I194/H194) ->  | K194: 0
A195: Vector Control | C195: 0 | D195: 0 | E195: 0 | F195: 0 | G195: 0 | H195: 0 | I195: 0 | K195: 0
A196: Chemical Safety | C196: 0 | D196: 0 | E196: 0 | F196: 0 | G196: 0 | H196: 0 | I196: 0 | K196: 0
A197: Economic and environmental services | C197: =C198+C209+C214 -> 11984020 | D197: 17956674 | E197: 17956674 | F197: 790216 | G197: =G198+G209+G214 -> 16917777 | H197: 8978340 | I197: 7939437 | J197: 0.8842878528 | K197: =K198+K209+K214 -> 17956673.85
A198: Planning and development | C198: =SUM(C199:C208) -> 1694782 | D198: 580000 | E198: 580000 | F198: 15000 | G198: 49777 | H198: 290004 | I198: -240227 | J198: -0.8283575399 | K198: 580000
A199: Billboards | C199: 0 | D199: 0 | E199: 0 | F199: 0 | G199: 0 | H199: 0 | I199: 0 | K199: 0
A200: Corporate Wide Strategic Planning (IDPs, LEDs) | C200: 0 | D200: 0 | E200: 0 | F200: 0 | G200: 0 | H200: 0 | I200: 0 | K200: 0
A201: Central City Improvement District | C201: 0 | D201: 0 | E201: 0 | F201: 0 | G201: 0 | H201: 0 | I201: 0 | K201: 0
... 54 more rows

Sheet C3-FinPerf V
A1: =muni& " - "&S71C& " - "&date -> Choose name from list - Table C3 Monthly Budget Statement - Financial Performance (revenue and expenditure by municipal vote) - Mid-Year Assessment
A2: =Vdesc -> Vote Description | B2: =head27 -> Ref | C2: =Head1 -> 2019/20 | D2: =Head2 -> Budget Year 2020/21
C3: =Head5 -> Audited Outcome | D3: =Head6 -> Original Budget | E3: =Head7 -> Adjusted Budget | F3: =Head38 -> Monthly actual | G3: =Head39 -> YearTD actual | H3: =Head40 -> YearTD budget | I3: =Head41 -> YTD variance | J3: =Head41 -> YTD variance | K3: =Head8 -> Full Year Forecast
A4: R thousands | J4: %
A5: Revenue by Vote | B5: 1
A6: ='Org structure'!A2 -> Vote 1 - Finance and Administration | C6: ='C3C'!C6 -> 106050185 | D6: ='C3C'!D6 -> 113346009 | E6: ='C3C'!E6 -> 125751009 | F6: ='C3C'!F6 -> 34985519 | G6: ='C3C'!G6 -> 86197620 | H6: ='C3C'!H6 -> 62875499.02 | I6: =G6-H6 -> 23322120.98 | J6: =IF(I6=0,"",I6/H6) -> 0.3709254216 | K6: ='C3C'!K6 -> 125751009
A7: ='Org structure'!A3 -> Vote 2 - Finance and Administration2 | C7: ='C3C'!C17 -> 0 | D7: ='C3C'!D17 -> 0 | E7: ='C3C'!E17 -> 0 | F7: ='C3C'!F17 -> 0 | G7: ='C3C'!G17 -> 0 | H7: ='C3C'!H17 -> 0 | I7: =G7-H7 -> 0 | J7: =IF(I7=0,"",I7/H7) ->  | K7: ='C3C'!K17 -> 0
A8: ='Org structure'!A4 -> Vote 3 - Executive and Council | C8: ='C3C'!C28 -> 0 | D8: ='C3C'!D28 -> 0 | E8: ='C3C'!E28 -> 0 | F8: ='C3C'!F28 -> 0 | G8: ='C3C'!G28 -> 0 | H8: ='C3C'!H28 -> 0 | I8: 0 | K8: ='C3C'!K28 -> 0
A9: ='Org structure'!A5 -> Vote 4 - Community and Social Services | C9: ='C3C'!C39 -> 2477352 | D9: ='C3C'!D39 -> 2212094 | E9: ='C3C'!E39 -> 2212094 | F9: ='C3C'!F39 -> 341137 | G9: ='C3C'!G39 -> 1118561 | H9: ='C3C'!H39 -> 1106052 | I9: 12509 | J9: 0.01130959485 | K9: ='C3C'!K39 -> 2212094
A10: ='Org structure'!A6 -> Vote 5 - Community and Social Services2 | C10: ='C3C'!C50 -> 0 | D10: ='C3C'!D50 -> 0 | E10: ='C3C'!E50 -> 0 | F10: ='C3C'!F50 -> 0 | G10: ='C3C'!G50 -> 0 | H10: ='C3C'!H50 -> 0 | I10: 0 | K10: ='C3C'!K50 -> 0
A11: ='Org structure'!A7 -> Vote 6 - Energy Sources | C11: ='C3C'!C61 -> 0 | D11: ='C3C'!D61 -> 0 | E11: ='C3C'!E61 -> 0 | F11: ='C3C'!F61 -> 0 | G11: ='C3C'!G61 -> 0 | H11: ='C3C'!H61 -> 0 | I11: 0 | K11: ='C3C'!K61 -> 0
A12: ='Org structure'!A8 -> Vote 7 - Road Transport | C12: ='C3C'!C72 -> 23190 | D12: ='C3C'!D72 -> 30000 | E12: ='C3C'!E72 -> 30000 | F12: ='C3C'!F72 -> 0 | G12: ='C3C'!G72 -> 0 | H12: ='C3C'!H72 -> 15000 | I12: -15000 | J12: -1 | K12: ='C3C'!K72 -> 30000
A13: ='Org structure'!A9 -> Vote 8 - Planning and Development | C13: ='C3C'!C83 -> 132745 | D13: ='C3C'!D83 -> 938955 | E13: ='C3C'!E83 -> 938955 | F13: ='C3C'!F83 -> 2254590 | G13: ='C3C'!G83 -> 2370825 | H13: ='C3C'!H83 -> 469476 | I13: 1901349 | J13: 4.049938655 | K13: ='C3C'!K83 -> 938955
A14: ='Org structure'!A10 -> Vote 9 - Sport and Recreation | C14: ='C3C'!C94 -> 24941 | D14: ='C3C'!D94 -> 0 | E14: ='C3C'!E94 -> 0 | F14: ='C3C'!F94 -> 0 | G14: ='C3C'!G94 -> 0 | H14: ='C3C'!H94 -> 0 | I14: 0 | K14: ='C3C'!K94 -> 0
A15: ='Org structure'!A11 -> Vote 10 - Public Safety | C15: ='C3C'!C105 -> 0 | D15: ='C3C'!D105 -> 0 | E15: ='C3C'!E105 -> 0 | F15: ='C3C'!F105 -> 0 | G15: ='C3C'!G105 -> 0 | H15: ='C3C'!H105 -> 0 | I15: 0 | K15: ='C3C'!K105 -> 0
A16: ='Org structure'!A12 -> Vote 11 - Other | C16: ='C3C'!C116 -> 4704487 | D16: ='C3C'!D116 -> 7121110 | E16: ='C3C'!E116 -> 7121110 | F16: ='C3C'!F116 -> 405996 | G16: ='C3C'!G116 -> 2813363 | H16: ='C3C'!H116 -> 3560562 | I16: -747199 | J16: -0.2098542309 | K16: ='C3C'!K116 -> 7121110
A17: ='Org structure'!A13 -> Vote 12 - Waste Management | C17: ='C3C'!C127 -> 528201 | D17: ='C3C'!D127 -> 574287 | E17: ='C3C'!E127 -> 574287 | F17: ='C3C'!F127 -> 44458 | G17: ='C3C'!G127 -> 266748 | H17: ='C3C'!H127 -> 287142 | I17: -20394 | J17: -0.07102409261 | K17: ='C3C'!K127 -> 574287
A18: ='Org structure'!A14 -> Vote 13 - Housing | C18: ='C3C'!C138 -> 0 | D18: ='C3C'!D138 -> 0 | E18: ='C3C'!E138 -> 0 | F18: ='C3C'!F138 -> 0 | G18: ='C3C'!G138 -> 0 | H18: ='C3C'!H138 -> 0 | I18: 0 | K18: ='C3C'!K138 -> 0
A19: ='Org structure'!A15 -> Vote 14 - Waste Water Management | C19: ='C3C'!C149 -> 0 | D19: ='C3C'!D149 -> 0 | E19: ='C3C'!E149 -> 0 | F19: ='C3C'!F149 -> 0 | G19: ='C3C'!G149 -> 0 | H19: ='C3C'!H149 -> 0 | I19: 0 | K19: ='C3C'!K149 -> 0
A20: ='Org structure'!A16 -> Vote 15 - Health | C20: ='C3C'!C160 -> 0 | D20: ='C3C'!D160 -> 0 | E20: ='C3C'!E160 -> 0 | F20: ='C3C'!F160 -> 0 | G20: ='C3C'!G160 -> 0 | H20: ='C3C'!H160 -> 0 | I20: 0 | K20: ='C3C'!K160 -> 0
A21: Total Revenue by Vote | B21: 2 | C21: =SUM(C6:C20) -> 113941101 | D21: =SUM(D6:D20) -> 124222455 | E21: 136627455 | F21: 38031700 | G21: 92767117 | H21: 68313731.02 | I21: 24453385.98 | J21: 0.3579571137 | K21: =SUM(K6:K20) -> 136627455
A23: Expenditure by Vote | B23: 1
A24: ='Org structure'!A2 -> Vote 1 - Finance and Administration | C24: ='C3C'!C174 -> 41273109 | D24: ='C3C'!D174 -> 49901785 | E24: ='C3C'!E174 -> 49901785 | F24: ='C3C'!F174 -> 3088270 | G24: ='C3C'!G174 -> 17556430 | H24: ='C3C'!H174 -> 24950934 | I24: =G24-H24 -> -7394504 | J24: =IF(I24=0,"",I24/H24) -> -0.2963618115 | K24: ='C3C'!K174 -> 49901785
A25: ='Org structure'!A3 -> Vote 2 - Finance and Administration2 | C25: ='C3C'!C185 -> 70542 | D25: ='C3C'!D185 -> 650000 | E25: ='C3C'!E185 -> 650000 | F25: ='C3C'!F185 -> 105975 | G25: ='C3C'!G185 -> 106482 | H25: ='C3C'!H185 -> 325002 | I25: -218520 | J25: -0.6723650931 | K25: ='C3C'!K185 -> 650000
A26: ='Org structure'!A4 -> Vote 3 - Executive and Council | C26: ='C3C'!C196 -> 12619987 | D26: ='C3C'!D196 -> 19001756 | E26: ='C3C'!E196 -> 19001756 | F26: ='C3C'!F196 -> 1315393 | G26: ='C3C'!G196 -> 8160601 | H26: ='C3C'!H196 -> 9500880 | I26: -1340279 | J26: -0.1410689326 | K26: ='C3C'!K196 -> 19001755.55
A27: ='Org structure'!A5 -> Vote 4 - Community and Social Services | C27: ='C3C'!C207 -> 5196950 | D27: ='C3C'!D207 -> 9157704 | E27: ='C3C'!E207 -> 9157704 | F27: ='C3C'!F207 -> 1331707 | G27: ='C3C'!G207 -> 3218777 | H27: ='C3C'!H207 -> 4578888 | I27: -1360111 | J27: -0.2970395869 | K27: ='C3C'!K207 -> 9157704
A28: ='Org structure'!A6 -> Vote 5 - Community and Social Services2 | C28: ='C3C'!C218 -> 8842916 | D28: ='C3C'!D218 -> 12212528 | E28: ='C3C'!E218 -> 12212528 | F28: ='C3C'!F218 -> 1636030 | G28: ='C3C'!G218 -> 6839881 | H28: ='C3C'!H218 -> 6106266 | I28: 733615 | J28: 0.1201413433 | K28: ='C3C'!K218 -> 12212527.29
A29: ='Org structure'!A7 -> Vote 6 - Energy Sources | C29: ='C3C'!C229 -> 6223503 | D29: ='C3C'!D229 -> 0 | E29: ='C3C'!E229 -> 0 | F29: ='C3C'!F229 -> 1819983 | G29: ='C3C'!G229 -> 2980791 | H29: ='C3C'!H229 -> 0 | I29: 2980791 | K29: ='C3C'!K229 -> 0
A30: ='Org structure'!A8 -> Vote 7 - Road Transport | C30: ='C3C'!C240 -> 10289238 | D30: ='C3C'!D240 -> 17376674 | E30: ='C3C'!E240 -> 17376674 | F30: ='C3C'!F240 -> 775216 | G30: ='C3C'!G240 -> 16868000 | H30: ='C3C'!H240 -> 8688336 | I30: 8179664 | J30: =IF(I30=0,"",I30/H30) -> 0.9414534613 | K30: ='C3C'!K240 -> 17376673.85
A31: ='Org structure'!A9 -> Vote 8 - Planning and Development | C31: ='C3C'!C251 -> 1694782 | D31: ='C3C'!D251 -> 580000 | E31: ='C3C'!E251 -> 580000 | F31: ='C3C'!F251 -> 15000 | G31: ='C3C'!G251 -> 49777 | H31: ='C3C'!H251 -> 290004 | I31: -240227 | J31: -0.8283575399 | K31: ='C3C'!K251 -> 440000
A32: ='Org structure'!A10 -> Vote 9 - Sport and Recreation | C32: ='C3C'!C262 -> 4086381 | D32: ='C3C'!D262 -> 3300000 | E32: ='C3C'!E262 -> 3300000 | F32: ='C3C'!F262 -> 430184 | G32: ='C3C'!G262 -> 1003747 | H32: ='C3C'!H262 -> 1650018 | I32: -646271 | J32: -0.3916751211 | K32: ='C3C'!K262 -> 3300000
A33: ='Org structure'!A11 -> Vote 10 - Public Safety | C33: ='C3C'!C273 -> 1704 | D33: ='C3C'!D273 -> 15000 | E33: ='C3C'!E273 -> 15000 | F33: ='C3C'!F273 -> 0 | G33: ='C3C'!G273 -> 0 | H33: ='C3C'!H273 -> 7500 | I33: -7500 | J33: =IF(I33=0,"",I33/H33) -> -1 | K33: ='C3C'!K273 -> 15000
A34: ='Org structure'!A12 -> Vote 11 - Other | C34: ='C3C'!C284 -> 3826636 | D34: ='C3C'!D284 -> 6513455 | E34: ='C3C'!E284 -> 6513455 | F34: ='C3C'!F284 -> 156420 | G34: ='C3C'!G284 -> 333112 | H34: ='C3C'!H284 -> 3256728 | I34: -2923616 | J34: =IF(I34=0,"",I34/H34) -> -0.8977157441 | K34: ='C3C'!K284 -> 6513454.54
A35: ='Org structure'!A13 -> Vote 12 - Waste Management | C35: ='C3C'!C295 -> 2625560 | D35: ='C3C'!D295 -> 2558000 | E35: ='C3C'!E295 -> 2558000 | F35: ='C3C'!F295 -> 208824 | G35: ='C3C'!G295 -> 858834 | H35: ='C3C'!H295 -> 1279008 | I35: -420174 | J35: =IF(I35=0,"",I35/H35) -> -0.328515537 | K35: ='C3C'!K295 -> 2558000
A36: ='Org structure'!A14 -> Vote 13 - Housing | C36: ='C3C'!C306 -> 0 | D36: ='C3C'!D306 -> 0 | E36: ='C3C'!E306 -> 0 | F36: ='C3C'!F306 -> 0 | G36: ='C3C'!G306 -> 0 | H36: ='C3C'!H306 -> 0 | I36: 0 | J36: =IF(I36=0,"",I36/H36) ->  | K36: ='C3C'!K306 -> 0
A37: ='Org structure'!A15 -> Vote 14 - Waste Water Management | C37: ='C3C'!C317 -> 0 | D37: ='C3C'!D317 -> 0 | E37: ='C3C'!E317 -> 0 | F37: ='C3C'!F317 -> 0 | G37: ='C3C'!G317 -> 0 | H37: ='C3C'!H317 -> 0 | I37: 0 | J37: =IF(I37=0,"",I37/H37) ->  | K37: ='C3C'!K317 -> 0
A38: ='Org structure'!A16 -> Vote 15 - Health | C38: ='C3C'!C328 -> 115416 | D38: ='C3C'!D328 -> 270000 | E38: ='C3C'!E328 -> 270000 | F38: ='C3C'!F328 -> 95585 | G38: ='C3C'!G328 -> 443414 | H38: ='C3C'!H328 -> 135000 | I38: 308414 | J38: 2.284548148 | K38: ='C3C'!K328 -> 270000
A39: Total Expenditure by Vote | B39: 2 | C39: =SUM(C24:C38) -> 96866724 | D39: =SUM(D24:D38) -> 121536902 | E39: 121536902 | F39: 10978587 | G39: 58419846 | H39: 60768564 | I39: -2348718 | J39: =IF(I39=0,"",I39/H39) -> -0.03865021395 | K39: =SUM(K24:K38) -> 121396900.2
A40: =result -> Surplus/ (Deficit) for the year | B40: 2 | C40: =C21-C39 -> 17074377 | D40: 2685553 | E40: 15090553 | F40: 27053113 | G40: 34347271 | H40: 7545167.02 | I40: =I21-I39 -> 26802103.98 | J40: =IF(I40=0,"",I40/H40) -> 3.55222143 | K40: =K21-K39 -> 15230554.77
A41: =head27a -> References
A42: 1. Insert 'Vote'; e.g. Department, if different to standard classification structure
A43: 2. Must reconcile to Monthly Budget Statement - Financial Performance Statement (standard classification)

Sheet C3C
A1: =muni& " - "&S71C& " - "&"A"& " - "&date -> Choose name from list - Table C3 Monthly Budget Statement - Financial Performance (revenue and expenditure by municipal vote) - A - Mid-Year Assessment
A2: =Vdesc -> Vote Description | B2: =head27 -> Ref | C2: =Head1 -> 2019/20 | D2: =Head2 -> Budget Year 2020/21 | L2: =Head4 -> 
A3: R thousand | C3: =Head5 -> Audited Outcome | D3: =Head6 -> Original Budget | E3: =Head7 -> Adjusted Budget | F3: =Head38 -> Monthly actual | G3: =Head39 -> YearTD actual | H3: =Head40 -> YearTD budget | I3: =Head41 -> YTD variance | J3: =Head41 -> YTD variance | K3: =Head8 -> Full Year Forecast | L3: =Head12 -> Forecast 2010/11 | M3: =Head13 -> Forecast 2011/12 | N3: =Head14 -> Forecast 2012/13 | O3: =Head15 -> Forecast 2013/14 | P3: =Head16 -> Forecast 2014/15 | Q3: =Head17 -> Forecast 2015/16 | R3: =Head18 -> Forecast 2016/17 | S3: =Head19 -> Forecast 2017/18 | T3: =Head20 -> Forecast 2018/19 | U3: =Head21 -> Forecast 2019/20 | V3: =Head22 -> Forecast 2020/21 | W3: =Head23 -> Forecast 2021/22
J4: %
A5: Revenue by Vote | B5: 1
A6: Vote 1 - Finance and Administration | C6: =SUM(C7:C16) -> 106050185 | D6: =SUM(D7:D16) -> 113346009 | E6: 125751009 | F6: 34985519 | G6: 86197620 | H6: 62875499.02 | I6: =G6-H6 -> 23322120.98 | J6: =IF(I6=0,"",I6/H6) -> 0.3709254216 | K6: 125751009
A7: 1.1 - Finance | C7: 43156354 | D7: 45954009 | E7: 45954009 | F7: 2381519 | G7: 23285584 | H7: 22976999.02 | I7: 308584.98 | J7: 0.013430169 | K7: 45954009
A8: ='Org structure'!E4 -> 1.2 - Fleet Management | C8: 0 | D8: 0 | E8: 0 | F8: 0 | G8: 0 | H8: 0 | I8: 0 | K8: 0
A9: ='Org structure'!E5 -> 1.3 - Asset Management | C9: 120020 | D9: 0 | E9: 0 | F9: 0 | G9: 10036 | H9: 0 | I9: 10036 | K9: 0
A10: ='Org structure'!E6 -> 1.4 - Administrative and Corporate Support | C10: 40121 | D10: 62000 | E10: 62000 | F10: 0 | G10: 0 | H10: 31002 | I10: -31002 | J10: -1 | K10: 62000
A11: ='Org structure'!E7 -> 1.5 - Human Resources | C11: 0 | D11: 0 | E11: 0 | F11: 0 | G11: 0 | H11: 0 | I11: 0 | K11: 0
A12: ='Org structure'!E8 -> 1.6 - Property Services | C12: 62733690 | D12: 67330000 | E12: 79735000 | F12: 32604000 | G12: 62902000 | H12: 39867498 | I12: 23034502 | J12: 0.5777764634 | K12: 79735000
A13: ='Org structure'!E9 -> 1.7 - Legal Services | C13: 0 | D13: 0 | E13: 0 | F13: 0 | G13: 0 | H13: 0 | I13: 0 | K13: 0
A14: ='Org structure'!E10 -> 1.8 - Information Technology | C14: 0 | D14: 0 | E14: 0 | F14: 0 | G14: 0 | H14: 0 | I14: 0 | K14: 0
A15: ='Org structure'!E11 -> 1.9 - Marketing, Customer Relations, Publicity and Media Co-ordination | C15: 0 | D15: 0 | E15: 0 | F15: 0 | G15: 0 | H15: 0 | I15: 0 | K15: 0
A16: ='Org structure'!E12 -> 1.10 - Valuation Service | C16: 0 | D16: 0 | E16: 0 | F16: 0 | G16: 0 | H16: 0 | I16: 0 | K16: 0
A17: Vote 2 - Finance and Administration2 | C17: =SUM(C18:C27) -> 0 | D17: =SUM(D18:D27) -> 0 | E17: 0 | F17: 0 | G17: 0 | H17: 0 | I17: 0 | K17: 0
A18: ='Org structure'!E14 -> 2.1 - Supply Chain Management | I18: 0
A19: ='Org structure'!E15 -> 0 | I19: 0
A20: ='Org structure'!E16 -> 0 | I20: 0
A21: ='Org structure'!E17 -> 0 | I21: 0
A22: ='Org structure'!E18 -> 0 | I22: 0
A23: ='Org structure'!E19 -> 0 | I23: 0
A24: ='Org structure'!E20 -> 0 | I24: 0
A25: ='Org structure'!E21 -> 0 | I25: 0
A26: ='Org structure'!E22 -> 0 | I26: 0
A27: ='Org structure'!E23 -> 0 | I27: 0
A28: Vote 3 - Executive and Council | C28: =SUM(C29:C38) -> 0 | D28: 0 | E28: 0 | F28: 0 | G28: 0 | H28: 0 | I28: 0 | K28: 0
A29: ='Org structure'!E25 -> 3.1 - Municipal Manager, Town Secretary and Chief Executive | I29: 0
A30: ='Org structure'!E26 -> 3.2 - Mayor and Council | I30: 0
A31: ='Org structure'!E27 -> 0 | I31: 0
A32: ='Org structure'!E28 -> 0 | I32: 0
A33: ='Org structure'!E29 -> 0 | I33: 0
A34: ='Org structure'!E30 -> 0 | I34: 0
A35: ='Org structure'!E31 -> 0 | I35: 0
A36: ='Org structure'!E32 -> 0 | I36: 0
A37: ='Org structure'!E33 -> 0 | I37: 0
A38: ='Org structure'!E34 -> 0 | I38: 0
A39: Vote 4 - Community and Social Services | C39: =SUM(C40:C49) -> 2477352 | D39: 2212094 | E39: 2212094 | F39: 341137 | G39: 1118561 | H39: 1106052 | I39: 12509 | J39: 0.01130959485 | K39: 2212094
A40: ='Org structure'!E36 -> 4.1 - Disaster Management | C40: 745000 | D40: 372500 | E40: 372500 | F40: 0 | G40: 0 | H40: 186252 | I40: -186252 | J40: -1 | K40: 372500
A41: ='Org structure'!E37 -> 4.2 - Libraries and Archives | C41: 1732352 | D41: 1839594 | E41: 1839594 | F41: 341137 | G41: 1118561 | H41: 919800 | I41: 198761 | J41: 0.2160915416 | K41: 1839594
A42: ='Org structure'!E38 -> 4.3 - Population Development | C42: 0 | D42: 0 | E42: 0 | F42: 0 | G42: 0 | H42: 0 | I42: 0 | K42: 0
A43: ='Org structure'!E39 -> 4.4 - Cultural Matters | C43: 0 | D43: 0 | E43: 0 | F43: 0 | G43: 0 | H43: 0 | I43: 0 | K43: 0
A44: ='Org structure'!E40 -> 4.5 - Indigenous and Customary Law | C44: 0 | D44: 0 | E44: 0 | F44: 0 | G44: 0 | H44: 0 | I44: 0 | K44: 0
A45: ='Org structure'!E41 -> 4.6 - Industrial Promotion | C45: 0 | D45: 0 | E45: 0 | F45: 0 | G45: 0 | H45: 0 | I45: 0 | K45: 0
A46: ='Org structure'!E42 -> 4.7 - Agricultural | C46: 0 | D46: 0 | E46: 0 | F46: 0 | G46: 0 | H46: 0 | I46: 0 | K46: 0
A47: ='Org structure'!E43 -> 4.8 - Aged Care | C47: 0 | D47: 0 | E47: 0 | F47: 0 | G47: 0 | H47: 0 | I47: 0 | K47: 0
A48: ='Org structure'!E44 -> 4.9 - Child Care Facilities | C48: 0 | D48: 0 | E48: 0 | F48: 0 | G48: 0 | H48: 0 | I48: 0 | K48: 0
A49: ='Org structure'!E45 -> 4.10 - Animal Care and Diseases | C49: 0 | D49: 0 | E49: 0 | F49: 0 | G49: 0 | H49: 0 | I49: 0 | K49: 0
A50: Vote 5 - Community and Social Services2 | C50: =SUM(C51:C60) -> 0 | D50: =SUM(D51:D60) -> 0 | E50: 0 | F50: 0 | G50: 0 | H50: 0 | I50: 0 | K50: 0
A51: ='Org structure'!E47 -> 5.1 - Literacy Programmes | I51: 0
A52: ='Org structure'!E48 -> 5.2 - Education | I52: 0
A53: ='Org structure'!E49 -> 5.3 - Community Halls and Facilities | I53: 0
A54: ='Org structure'!E50 -> 0 | I54: 0
A55: ='Org structure'!E51 -> 0 | I55: 0
A56: ='Org structure'!E52 -> 0 | I56: 0
A57: ='Org structure'!E53 -> 0 | I57: 0
A58: ='Org structure'!E54 -> 0 | I58: 0
A59: ='Org structure'!E55 -> 0 | I59: 0
A60: ='Org structure'!E56 -> 0 | I60: 0
A61: ='Org structure'!A7 -> Vote 6 - Energy Sources | C61: =SUM(C62:C71) -> 0 | D61: =SUM(D62:D71) -> 0 | E61: 0 | F61: 0 | G61: 0 | H61: 0 | I61: 0 | K61: 0
A62: ='Org structure'!E58 -> 6.1 - Electricity | I62: 0
A63: ='Org structure'!E59 -> 0 | I63: 0
A64: ='Org structure'!E60 -> 0 | I64: 0
A65: ='Org structure'!E61 -> 0 | I65: 0
A66: ='Org structure'!E62 -> 0 | I66: 0
A67: ='Org structure'!E63 -> 0 | I67: 0
A68: ='Org structure'!E64 -> 0 | I68: 0
A69: ='Org structure'!E65 -> 0 | I69: 0
A70: ='Org structure'!E66 -> 0 | I70: =G70-H70 -> 0 | J70: =IF(I70=0,"",I70/H70) -> 
A71: ='Org structure'!E67 -> 0 | I71: 0
A72: ='Org structure'!A8 -> Vote 7 - Road Transport | C72: =SUM(C73:C82) -> 23190 | D72: 30000 | E72: 30000 | F72: 0 | G72: 0 | H72: 15000 | I72: -15000 | J72: -1 | K72: 30000
A73: ='Org structure'!E69 -> 7.1 - Roads | C73: 23190 | D73: 30000 | E73: 30000 | F73: 0 | G73: 0 | H73: 15000 | I73: -15000 | J73: -1 | K73: 30000
A74: ='Org structure'!E70 -> 0 | C74: 0 | D74: 0 | E74: 0 | F74: 0 | G74: 0 | H74: 0 | I74: 0 | K74: 0
A75: ='Org structure'!E71 -> 0 | C75: 0 | D75: 0 | E75: 0 | F75: 0 | G75: 0 | H75: 0 | I75: 0 | K75: 0
A76: ='Org structure'!E72 -> 0 | C76: 0 | D76: 0 | E76: 0 | F76: 0 | G76: 0 | H76: 0 | I76: 0 | K76: 0
A77: ='Org structure'!E73 -> 0 | C77: 0 | D77: 0 | E77: 0 | F77: 0 | G77: 0 | H77: 0 | I77: 0 | K77: 0
A78: ='Org structure'!E74 -> 0 | C78: 0 | D78: 0 | E78: 0 | F78: 0 | G78: 0 | H78: 0 | I78: 0 | K78: 0
A79: ='Org structure'!E75 -> 0 | C79: 0 | D79: 0 | E79: 0 | F79: 0 | G79: 0 | H79: 0 | I79: 0 | K79: 0
A80: ='Org structure'!E76 -> 0 | C80: 0 | D80: 0 | E80: 0 | F80: 0 | G80: 0 | H80: 0 | I80: 0 | K80: 0
A81: ='Org structure'!E77 -> 0 | C81: 0 | D81: 0 | E81: 0 | F81: 0 | G81: 0 | H81: 0 | I81: 0 | K81: 0
A82: ='Org structure'!E78 -> 0 | C82: 0 | D82: 0 | E82: 0 | F82: 0 | G82: 0 | H82: 0 | I82: 0 | K82: 0
A83: Vote 8 - Planning and Development | C83: =SUM(C84:C93) -> 132745 | D83: =SUM(D84:D93) -> 938955 | E83: 938955 | F83: 2254590 | G83: 2370825 | H83: 469476 | I83: 1901349 | J83: 4.049938655 | K83: 938955
A84: ='Org structure'!E80 -> 8.1 - Town Planning, Building Regulations and Enforcement, and City Engineer | C84: 132745 | D84: 938955 | E84: 938955 | F84: 2254590 | G84: 2370825 | H84: 469476 | I84: 1901349 | J84: 4.049938655 | K84: 938955
A85: ='Org structure'!E81 -> 8.2 - Development Facilitation | C85: 0 | D85: 0 | E85: 0 | F85: 0 | G85: 0 | H85: 0 | I85: 0 | K85: 0
A86: ='Org structure'!E82 -> 8.3 - Economic Development/Planning | C86: 0 | D86: 0 | E86: 0 | F86: 0 | G86: 0 | H86: 0 | I86: 0 | K86: 0
A87: ='Org structure'!E83 -> 8.4 - Regional Planning and Development | C87: 0 | D87: 0 | E87: 0 | F87: 0 | G87: 0 | H87: 0 | I87: 0 | K87: 0
A88: ='Org structure'!E84 -> 8.5 - Corporate Wide Strategic Planning (IDPs, LEDs) | C88: 0 | D88: 0 | E88: 0 | F88: 0 | G88: 0 | H88: 0 | I88: 0 | K88: 0
A89: ='Org structure'!E85 -> 8.6 - Project Management Unit | C89: 0 | D89: 0 | E89: 0 | F89: 0 | G89: 0 | H89: 0 | I89: 0 | K89: 0
A90: ='Org structure'!E86 -> 0 | C90: 0 | D90: 0 | E90: 0 | F90: 0 | G90: 0 | H90: 0 | I90: 0 | K90: 0
A91: ='Org structure'!E87 -> 0 | C91: 0 | D91: 0 | E91: 0 | F91: 0 | G91: 0 | H91: 0 | I91: 0 | K91: 0
A92: ='Org structure'!E88 -> 0 | C92: 0 | D92: 0 | E92: 0 | F92: 0 | G92: 0 | H92: 0 | I92: 0 | K92: 0
A93: ='Org structure'!E89 -> 0 | C93: 0 | D93: 0 | E93: 0 | F93: 0 | G93: 0 | H93: 0 | I93: 0 | K93: 0
A94: Vote 9 - Sport and Recreation | C94: =SUM(C95:C104) -> 24941 | D94: =SUM(D95:D104) -> 0 | E94: 0 | F94: 0 | G94: 0 | H94: 0 | I94: 0 | K94: 0
A95: ='Org structure'!E91 -> 9.1 - Sports Grounds and Stadiums | C95: 24941 | D95: 0 | E95: 0 | F95: 0 | G95: 0 | H95: 0 | I95: 0 | K95: 0
A96: ='Org structure'!E92 -> 0 | C96: 0 | D96: 0 | E96: 0 | F96: 0 | G96: 0 | H96: 0 | I96: 0
A97: ='Org structure'!E93 -> 0 | C97: 0 | D97: 0 | E97: 0 | F97: 0 | G97: 0 | H97: 0 | I97: 0
A98: ='Org structure'!E94 -> 0 | C98: 0 | D98: 0 | E98: 0 | F98: 0 | G98: 0 | H98: 0 | I98: 0
A99: ='Org structure'!E95 -> 0 | C99: 0 | D99: 0 | E99: 0 | F99: 0 | G99: 0 | H99: 0 | I99: 0
A100: ='Org structure'!E96 -> 0 | C100: 0 | D100: 0 | E100: 0 | F100: 0 | G100: 0 | H100: 0 | I100: 0
A101: ='Org structure'!E97 -> 0 | C101: 0 | D101: 0 | E101: 0 | F101: 0 | G101: 0 | H101: 0 | I101: 0
A102: ='Org structure'!E98 -> 0 | C102: 0 | D102: 0 | E102: 0 | F102: 0 | G102: 0 | H102: 0 | I102: 0
A103: ='Org structure'!E99 -> 0 | C103: 0 | D103: 0 | E103: 0 | F103: 0 | G103: 0 | H103: 0 | I103: 0
A104: ='Org structure'!E100 -> 0 | C104: 0 | D104: 0 | E104: 0 | F104: 0 | G104: 0 | H104: 0 | I104: 0
A105: Vote 10 - Public Safety | C105: =SUM(C106:C115) -> 0 | D105: =SUM(D106:D115) -> 0 | E105: 0 | F105: 0 | G105: 0 | H105: 0 | I105: 0 | K105: 0
A106: ='Org structure'!E102 -> 10.1 - Fire Fighting and Protection | I106: 0
A107: ='Org structure'!E103 -> 10.2 - Fencing and Fences | I107: 0
A108: ='Org structure'!E104 -> 0 | I108: 0
A109: ='Org structure'!E105 -> 0 | I109: 0
A110: ='Org structure'!E106 -> 0 | I110: 0
A111: ='Org structure'!E107 -> 0 | I111: 0
A112: ='Org structure'!E108 -> 0 | I112: 0
A113: ='Org structure'!E109 -> 0 | I113: 0
A114: ='Org structure'!E110 -> 0 | I114: 0
A115: ='Org structure'!E111 -> 0 | I115: 0
A116: Vote 11 - Other | C116: =SUM(C117:C126) -> 4704487 | D116: =SUM(D117:D126) -> 7121110 | E116: 7121110 | F116: 405996 | G116: 2813363 | H116: 3560562 | I116: -747199 | J116: -0.2098542309 | K116: 7121110
A117: ='Org structure'!E113 -> 11.1 - Licensing and Regulation | C117: 4704487 | D117: 7121110 | E117: 7121110 | F117: 405996 | G117: 2813363 | H117: 3560562 | I117: -747199 | J117: -0.2098542309 | K117: 7121110
A118: ='Org structure'!E114 -> 0 | C118: 0 | D118: 0 | E118: 0 | F118: 0 | G118: 0 | H118: 0 | I118: 0 | K118: 0
A119: ='Org structure'!E115 -> 0 | C119: 0 | D119: 0 | E119: 0 | F119: 0 | G119: 0 | H119: 0 | I119: 0 | K119: 0
A120: ='Org structure'!E116 -> 0 | C120: 0 | D120: 0 | E120: 0 | F120: 0 | G120: 0 | H120: 0 | I120: 0 | K120: 0
A121: ='Org structure'!E117 -> 0 | C121: 0 | D121: 0 | E121: 0 | F121: 0 | G121: 0 | H121: 0 | I121: 0 | K121: 0
A122: ='Org structure'!E118 -> 0 | C122: 0 | D122: 0 | E122: 0 | F122: 0 | G122: 0 | H122: 0 | I122: 0 | K122: 0
A123: ='Org structure'!E119 -> 0 | C123: 0 | D123: 0 | E123: 0 | F123: 0 | G123: 0 | H123: 0 | I123: 0 | K123: 0
A124: ='Org structure'!E120 -> 0 | C124: 0 | D124: 0 | E124: 0 | F124: 0 | G124: 0 | H124: 0 | I124: 0 | K124: 0
A125: ='Org structure'!E121 -> 0 | C125: 0 | D125: 0 | E125: 0 | F125: 0 | G125: 0 | H125: 0 | I125: 0 | K125: 0
A126: ='Org structure'!E122 -> 0 | C126: 0 | D126: 0 | E126: 0 | F126: 0 | G126: 0 | H126: 0 | I126: 0 | K126: 0
A127: Vote 12 - Waste Management | C127: =SUM(C128:C137) -> 528201 | D127: =SUM(D128:D137) -> 574287 | E127: 574287 | F127: 44458 | G127: 266748 | H127: 287142 | I127: -20394 | J127: -0.07102409261 | K127: 574287
A128: ='Org structure'!E124 -> 12.1 - Solid Waste Removal | C128: 528201 | D128: 574287 | E128: 574287 | F128: 44458 | G128: 266748 | H128: 287142 | I128: -20394 | J128: -0.07102409261 | K128: 574287
A129: ='Org structure'!E125 -> 12.2 - Street Cleaning | C129: 0 | D129: 0 | E129: 0 | F129: 0 | G129: 0 | H129: 0 | I129: 0 | K129: 0
A130: ='Org structure'!E126 -> 12.3 - Solid Waste Disposal (Landfill Sites) | C130: 0 | D130: 0 | E130: 0 | F130: 0 | G130: 0 | H130: 0 | I130: 0 | K130: 0
A131: ='Org structure'!E127 -> 0 | C131: 0 | D131: 0 | E131: 0 | F131: 0 | G131: 0 | H131: 0 | I131: 0 | K131: 0
A132: ='Org structure'!E128 -> 0 | C132: 0 | D132: 0 | E132: 0 | F132: 0 | G132: 0 | H132: 0 | I132: 0 | K132: 0
A133: ='Org structure'!E129 -> 0 | C133: 0 | D133: 0 | E133: 0 | F133: 0 | G133: 0 | H133: 0 | I133: 0 | K133: 0
A134: ='Org structure'!E130 -> 0 | C134: 0 | D134: 0 | E134: 0 | F134: 0 | G134: 0 | H134: 0 | I134: =G134-H134 -> 0 | J134: =IF(I134=0,"",I134/H134) ->  | K134: 0
A135: ='Org structure'!E131 -> 0 | C135: 0 | D135: 0 | E135: 0 | F135: 0 | G135: 0 | H135: 0 | I135: 0 | K135: 0
A136: ='Org structure'!E132 -> 0 | C136: 0 | D136: 0 | E136: 0 | F136: 0 | G136: 0 | H136: 0 | I136: 0 | K136: 0
A137: ='Org structure'!E133 -> 0 | C137: 0 | D137: 0 | E137: 0 | F137: 0 | G137: 0 | H137: 0 | I137: 0 | K137: 0
A138: Vote 13 - Housing | C138: =SUM(C139:C148) -> 0 | D138: =SUM(D139:D148) -> 0 | E138: 0 | F138: 0 | G138: 0 | H138: 0 | I138: 0 | K138: 0
A139: ='Org structure'!E135 -> 13.1 - Housing | I139: 0
A140: ='Org structure'!E136 -> 0 | I140: 0
A141: ='Org structure'!E137 -> 0 | I141: 0
A142: ='Org structure'!E138 -> 0 | I142: 0
A143: ='Org structure'!E139 -> 0 | I143: 0
A144: ='Org structure'!E140 -> 0 | I144: 0
A145: ='Org structure'!E141 -> 0 | I145: 0
A146: ='Org structure'!E142 -> 0 | I146: 0
A147: ='Org structure'!E143 -> 0 | I147: 0
A148: ='Org structure'!E144 -> 0 | I148: 0
A149: ='Org structure'!A15 -> Vote 14 - Waste Water Management | C149: =SUM(C150:C159) -> 0 | D149: =SUM(D150:D159) -> 0 | E149: 0 | F149: 0 | G149: 0 | H149: 0 | I149: 0 | K149: 0
A150: ='Org structure'!E146 -> 14.1 - Storm Water Management | I150: 0
A151: ='Org structure'!E147 -> 0 | I151: 0
A152: ='Org structure'!E148 -> 0 | I152: 0
A153: ='Org structure'!E149 -> 0 | I153: 0
A154: ='Org structure'!E150 -> 0 | I154: 0
A155: ='Org structure'!E151 -> 0 | I155: 0
A156: ='Org structure'!E152 -> 0 | I156: 0
A157: ='Org structure'!E153 -> 0 | I157: 0
A158: ='Org structure'!E154 -> 0 | I158: 0
A159: ='Org structure'!E155 -> 0 | I159: 0
A160: ='Org structure'!A16 -> Vote 15 - Health | C160: =SUM(C161:C170) -> 0 | D160: =SUM(D161:D170) -> 0 | E160: 0 | F160: 0 | G160: 0 | H160: 0 | I160: 0 | K160: 0
A161: ='Org structure'!E157 -> 15.1 - Health Services | I161: 0
A162: ='Org structure'!E158 -> 15.2 - Tourism | I162: 0
A163: ='Org structure'!E159 -> 0 | I163: 0
A164: ='Org structure'!E160 -> 0 | I164: 0
A165: ='Org structure'!E161 -> 0 | I165: 0
A166: ='Org structure'!E162 -> 0 | I166: 0
A167: ='Org structure'!E163 -> 0 | I167: 0
A168: ='Org structure'!E164 -> 0 | I168: 0
A169: ='Org structure'!E165 -> 0 | I169: 0
A170: ='Org structure'!E166 -> 0 | I170: 0 | L170: =SUM(L78:L81) -> 0 | M170: 0 | N170: 0 | O170: 0 | P170: 0 | Q170: 0 | R170: 0 | S170: 0 | T170: 0 | U170: 0 | V170: 0 | W170: 0
A171: Total Revenue by Vote | B171: 2 | C171: =C6+C17+C28+C39+C50+C61+C72+C83+C94+C105+C116+C127+C138+C149+C160 -> 113941101 | D171: =D6+D17+D28+D39+D50+D61+D72+D83+D94+D105+D116+D127+D138+D149+D160 -> 124222455 | E171: 136627455 | F171: 38031700 | G171: 92767117 | H171: 68313731.02 | I171: 24453385.98 | J171: 0.3579571137 | K171: 136627455
I172: 0
A173: Expenditure by Vote | B173: 1 | I173: 0
A174: Vote 1 - Finance and Administration | C174: =SUM(C175:C184) -> 41273109 | D174: 49901785 | E174: 49901785 | F174: 3088270 | G174: 17556430 | H174: 24950934 | I174: -7394504 | J174: -0.2963618115 | K174: 49901785
A175: 1.1 - Finance | C175: 12126785 | D175: 17834080 | E175: 17834080 | F175: 964306 | G175: 3805583 | H175: 8917056 | I175: -5111473 | J175: -0.5732242794 | K175: 17834080
A176: ='Org structure'!E4 -> 1.2 - Fleet Management | C176: 1206406 | D176: 910000 | E176: 910000 | F176: 79916 | G176: 728316 | H176: 455004 | I176: 273312 | J176: 0.6006804336 | K176: 910000
A177: ='Org structure'!E5 -> 1.3 - Asset Management | C177: 10383094 | D177: 13173339 | E177: 13173339 | F177: 810718 | G177: 5299183 | H177: 6586668 | I177: -1287485 | J177: -0.1954683309 | K177: 13173339
A178: ='Org structure'!E6 -> 1.4 - Administrative and Corporate Support | C178: 10731235 | D178: 11894526 | E178: 11894526 | F178: 1028771 | G178: 4590761 | H178: 5947272 | I178: -1356511 | J178: -0.2280896182 | K178: 11894526
A179: ='Org structure'!E7 -> 1.5 - Human Resources | C179: 734652 | D179: 1099190 | E179: 1099190 | F179: 6568 | G179: 118336 | H179: 549600 | I179: -431264 | J179: -0.7846870451 | K179: 1099190
A180: ='Org structure'!E8 -> 1.6 - Property Services | C180: 2250153 | D180: 2635650 | E180: 2635650 | F180: 73857 | G180: 1104170 | H180: 1317828 | I180: -213658 | J180: -0.1621288969 | K180: 2635650
A181: ='Org structure'!E9 -> 1.7 - Legal Services | C181: 333462 | D181: 500000 | E181: 500000 | F181: 393 | G181: 393052 | H181: 250002 | I181: 143050 | J181: 0.5721954224 | K181: 500000
A182: ='Org structure'!E10 -> 1.8 - Information Technology | C182: 3460653 | D182: 1595000 | E182: 1595000 | F182: 45338 | G182: 1437768 | H182: 797502 | I182: 640266 | J182: 0.8028393659 | K182: 1595000
A183: ='Org structure'!E11 -> 1.9 - Marketing, Customer Relations, Publicity and Media Co-ordination | C183: 0 | D183: 0 | E183: 0 | F183: 0 | G183: 0 | H183: 0 | I183: 0 | K183: 0
A184: ='Org structure'!E12 -> 1.10 - Valuation Service | C184: 46669 | D184: 260000 | E184: 260000 | F184: 78403 | G184: 79261 | H184: 130002 | I184: -50741 | J184: -0.3903093799 | K184: 260000
A185: Vote 2 - Finance and Administration2 | C185: =SUM(C186:C195) -> 70542 | D185: =SUM(D186:D195) -> 650000 | E185: =SUM(E186:E195) -> 650000 | F185: 105975 | G185: 106482 | H185: 325002 | I185: -218520 | J185: -0.6723650931 | K185: 650000
A186: ='Org structure'!E14 -> 2.1 - Supply Chain Management | C186: 70542 | D186: 650000 | E186: 650000 | F186: 105975 | G186: 106482 | H186: 325002 | I186: -218520 | J186: -0.6723650931 | K186: 650000
A187: ='Org structure'!E15 -> 0 | C187: 0 | D187: 0 | E187: 0 | F187: 0 | G187: 0 | H187: 0 | I187: 0 | K187: 0
A188: ='Org structure'!E16 -> 0 | C188: 0 | D188: 0 | E188: 0 | F188: 0 | G188: 0 | H188: 0 | I188: 0 | K188: 0
A189: ='Org structure'!E17 -> 0 | C189: 0 | D189: 0 | E189: 0 | F189: 0 | G189: 0 | H189: 0 | I189: 0 | K189: 0
A190: ='Org structure'!E18 -> 0 | C190: 0 | D190: 0 | E190: 0 | F190: 0 | G190: 0 | H190: 0 | I190: 0 | K190: 0
A191: ='Org structure'!E19 -> 0 | C191: 0 | D191: 0 | E191: 0 | F191: 0 | G191: 0 | H191: 0 | I191: 0 | K191: 0
A192: ='Org structure'!E20 -> 0 | C192: 0 | D192: 0 | E192: 0 | F192: 0 | G192: 0 | H192: 0 | I192: 0 | K192: 0
A193: ='Org structure'!E21 -> 0 | C193: 0 | D193: 0 | E193: 0 | F193: 0 | G193: 0 | H193: 0 | I193: 0 | K193: 0
A194: ='Org structure'!E22 -> 0 | C194: 0 | D194: 0 | E194: 0 | F194: 0 | G194: 0 | H194: 0 | I194: 0 | K194: 0
A195: ='Org structure'!E23 -> 0 | C195: 0 | D195: 0 | E195: 0 | F195: 0 | G195: 0 | H195: 0 | I195: 0 | K195: 0
A196: ='Org structure'!A4 -> Vote 3 - Executive and Council | C196: =SUM(C197:C206) -> 12619987 | D196: 19001756 | E196: 19001756 | F196: 1315393 | G196: 8160601 | H196: 9500880 | I196: -1340279 | J196: -0.1410689326 | K196: 19001755.55
A197: ='Org structure'!E25 -> 3.1 - Municipal Manager, Town Secretary and Chief Executive | C197: 3639842 | D197: 11544835 | E197: 11544835 | F197: 603553 | G197: 3960540 | H197: 5772408 | I197: -1811868 | J197: -0.3138842577 | K197: 11544834.82
A198: ='Org structure'!E26 -> 3.2 - Mayor and Council | C198: 8980145 | D198: 7456921 | E198: 7456921 | F198: 711840 | G198: 4200061 | H198: 3728472 | I198: =G198-H198 -> 471589 | J198: =IF(I198=0,"",I198/H198) -> 0.1264831813 | K198: 7456920.73
A199: ='Org structure'!E27 -> 0 | C199: 0 | D199: 0 | E199: 0 | F199: 0 | G199: 0 | H199: 0 | I199: 0 | K199: 0
A200: ='Org structure'!E28 -> 0 | C200: 0 | D200: 0 | E200: 0 | F200: 0 | G200: 0 | H200: 0 | I200: 0 | K200: 0
... 147 more rows

Sheet C4-FinPerf RE
A1: =muni& " - "&S71B& " - "&date -> Choose name from list - Table C4 Monthly Budget Statement - Financial Performance (revenue and expenditure) - Mid-Year Assessment
A2: =desc -> Description | B2: =head27 -> Ref | C2: =Head1 -> 2019/20 | D2: =Head2 -> Budget Year 2020/21
C3: =Head5 -> Audited Outcome | D3: =Head6 -> Original Budget | E3: =Head7 -> Adjusted Budget | F3: =Head38 -> Monthly actual | G3: =Head39 -> YearTD actual | H3: =Head40 -> YearTD budget | I3: =Head41 -> YTD variance | J3: =Head41 -> YTD variance | K3: =Head8 -> Full Year Forecast
A4: R thousands | J4: %
A5: Revenue By Source
A6: Property rates | C6: 17367687 | D6: 19781622 | E6: 19781622 | F6: 1599529 | G6: 9597548 | H6: 9890813.02 | I6: =G6-H6 -> -293265.02 | J6: =IF(I6=0,"",I6/H6) -> -0.02965024406 | K6: 19781622
A7: Service charges - electricity revenue | C7: 0 | D7: 0 | E7: 0 | F7: 0 | G7: 0 | H7: 0 | I7: 0 | K7: 0
A8: Service charges - water revenue | C8: 0 | D8: 0 | E8: 0 | F8: 0 | G8: 0 | H8: 0 | I8: 0 | K8: 0
A9: Service charges - sanitation revenue | C9: 0 | D9: 0 | E9: 0 | F9: 0 | G9: 0 | H9: 0 | I9: 0 | K9: 0
A10: Service charges - refuse revenue | C10: 528201 | D10: 574287 | E10: 574287 | F10: 44458 | G10: 266748 | H10: 287142 | I10: -20394 | J10: -0.07102409261 | K10: 574287
A12: Rental of facilities and equipment | C12: 248300 | D12: 345181 | E12: 345181 | F12: 0 | G12: 0 | H12: 172590 | I12: -172590 | J12: -1 | K12: 345181
A13: Interest earned - external investments | C13: 4285972 | D13: 3850000 | E13: 3850000 | F13: 127274 | G13: 892752 | H13: 1924998 | I13: -1032246 | J13: -0.5362322454 | K13: 3850000
A14: Interest earned - outstanding debtors | C14: 959570 | D14: 1883321 | E14: 1883321 | F14: 0 | G14: 0 | H14: 941658 | I14: -941658 | J14: -1 | K14: 1883321
A15: Dividends received | C15: 0 | D15: 0 | E15: 0 | F15: 0 | G15: 0 | H15: 0 | I15: 0 | K15: 0
A16: Fines, penalties and forfeits | C16: 24635 | D16: 34200 | E16: 34200 | F16: 0 | G16: 3 | H16: 17100 | I16: -17097 | J16: -0.9998245614 | K16: 34200
A17: Licences and permits | C17: 4704487 | D17: 7121110 | E17: 7121110 | F17: 405996 | G17: 2813363 | H17: 3560562 | I17: -747199 | J17: -0.2098542309 | K17: 7121110
A18: Agency services | C18: 0 | D18: 0 | E18: 0 | F18: 0 | G18: 0 | H18: 0 | I18: 0 | K18: 0
A19: Transfers and subsidies | C19: 69092059 | D19: 73462500 | E19: 85867500 | F19: 33239068 | G19: 65605750 | H19: 42933750 | I19: 22672000 | J19: 0.5280694093 | K19: 85867500
A20: Other revenue | C20: 534287 | D20: 1174234 | E20: 1174234 | F20: 2282272 | G20: 2474036 | H20: 587118 | I20: 1886918 | J20: 3.213865015 | K20: 1174234
A21: Gains | C21: 0 | D21: 0 | E21: 0 | F21: 0 | G21: 0 | H21: 0 | I21: 0
A22: Total Revenue (excluding capital transfers and contributions) | C22: =SUM(C6:C10)+SUM(C12:C21) -> 97745198 | D22: 108226455 | E22: 120631455 | F22: 37698597 | G22: 81650200 | H22: 60315731.02 | I22: 21334468.98 | J22: 0.3537131793 | K22: =SUM(K6:K10)+SUM(K12:K21) -> 120631455
A24: Expenditure By Type
A25: Employee related costs | C25: 36529095 | D25: 44691585 | E25: 44691585 | F25: 5121303 | G25: 20700872 | H25: 22345806 | I25: =G25-H25 -> -1644934 | J25: =IF(I25=0,"",I25/H25) -> -0.07361265018 | K25: 44691612
A26: Remuneration of councillors | C26: 6023555 | D26: 6373921 | E26: 6373921 | F26: 501793 | G26: 2973759 | H26: 3186966 | I26: -213207 | J26: -0.06689967825 | K26: 6373932
A27: Debt impairment | C27: 590455 | D27: 3140135 | E27: 3140135 | F27: 0 | G27: 0 | H27: 1570068 | I27: -1570068 | J27: -1 | K27: 3140136
A28: Depreciation & asset impairment | C28: 9318525 | D28: 11173339 | E28: 11173339 | F28: 810718 | G28: 4806692 | H28: 5586666 | I28: -779974 | J28: -0.1396135011 | K28: 11173332
A29: Finance charges | C29: 4109 | D29: 0 | E29: 0 | F29: 0 | G29: 4206 | H29: 0 | I29: 4206 | K29: 0
A30: Bulk purchases | C30: 0 | D30: 0 | E30: 0 | F30: 0 | G30: 0 | H30: 0 | I30: 0 | K30: 0
A31: Other materials | C31: 2898053 | D31: 6366500 | E31: 6366500 | F31: 321575 | G31: 2389087 | H31: 3183264 | I31: -794177 | J31: -0.2494851197 | K31: 6366528
A32: Contracted services | C32: 27529769 | D32: 30419837 | E32: 30419837 | F32: 489021 | G32: 18825388 | H32: 15209964 | I32: 3615424 | J32: 0.2377010228 | K32: 30419928
A33: Transfers and subsidies | C33: 0 | D33: 309425 | E33: 309425 | F33: 0 | G33: 66285 | H33: 154710 | I33: -88425 | J33: -0.5715532286 | K33: 309420
A34: Other expenditure | C34: 13859878 | D34: 19062160 | E34: 19062160 | F34: 3734177 | G34: 8653557 | H34: 9531120 | I34: -877563 | J34: -0.09207343943 | K34: 19062240
A35: Losses | C35: 113285 | D35: 0 | E35: 0 | F35: 0 | G35: 0 | H35: 0 | I35: 0 | K35: 0
A36: Total Expenditure | C36: =SUM(C25:C35) -> 96866724 | D36: =SUM(D25:D35) -> 121536902 | E36: =SUM(E25:E35) -> 121536902 | F36: 10978587 | G36: 58419846 | H36: 60768564 | I36: -2348718 | J36: -0.03865021395 | K36: 121537128
A38: Surplus/(Deficit) | C38: =C22-C36 -> 878474 | D38: -13310447 | E38: -905447 | F38: 26720010 | G38: 23230354 | H38: -452832.98 | I38: =I22-I36 -> 23683186.98 | J38: -52.30004886 | K38: =K22-K36 -> -905673
A39: Transfers and subsidies - capital (monetary allocations) (National / Provincial and District) | C39: 16076001 | D39: 15996000 | E39: 15996000 | F39: 333103 | G39: 11106881 | H39: 7998000 | I39: =G39-H39 -> 3108881 | J39: 0.3887073018 | K39: 15996000
A40: Transfers and subsidies - capital (monetary allocations) (National / Provincial Departmental Agencies, Households, Non-profit Institutions, Private Enterprises, Public Corporatons, Higher Educational Institutions) | I40: =G40-H40 -> 0
A41: Transfers and subsidies - capital (in-kind - all) | G41: 10036 | I41: =G41-H41 -> 10036
A42: Surplus/(Deficit) after capital transfers & contributions | C42: =C38+SUM(C39:C41) -> 16954475 | D42: 2685553 | E42: 15090553 | F42: 27053113 | G42: 34347271 | H42: 7545167.02 | K42: =K38+SUM(K39:K41) -> 15090327
A43: Taxation | I43: =G43-H43 -> 0 | J43: =IF(I43=0,"",I43/H43) -> 
A44: Surplus/(Deficit) after taxation | C44: =C42-C43 -> 16954475 | D44: 2685553 | E44: 15090553 | F44: 27053113 | G44: 34347271 | H44: 7545167.02 | K44: =K42-K43 -> 15090327
A45: Attributable to minorities
A46: Surplus/(Deficit) attributable to municipality | C46: =SUM(C44:C45) -> 16954475 | D46: 2685553 | E46: 15090553 | F46: 27053113 | G46: 34347271 | H46: 7545167.02 | K46: =SUM(K44:K45) -> 15090327
A47: Share of surplus/ (deficit) of associate
A48: Surplus/ (Deficit) for the year | C48: =C46+C47 -> 16954475 | D48: 2685553 | E48: 15090553 | F48: 27053113 | G48: 34347271 | H48: 7545167.02 | K48: =K46+K47 -> 15090327
A49: =head27a -> References
A50: 1. Material variances to be explained on Table SC1
A53: =A22&" including capital transfers/contributions etc" -> Total Revenue (excluding capital transfers and contributions) including capital transfers/contributions etc | C53: =C22+SUM(C39:C41) -> 113821199 | D53: 124222455 | E53: 136627455 | F53: 38031700 | G53: 92767117 | H53: 68313731.02 | K53: =K22+SUM(K39:K41) -> 136627455

Sheet C5-Capex
A1: =muni& " - "&S71D& " - "&date -> Choose name from list - Table C5 Monthly Budget Statement - Capital Expenditure (municipal vote, functional classification and funding) - Mid-Year Assessment
A2: =Vdesc -> Vote Description | B2: =head27 -> Ref | C2: =Head1 -> 2019/20 | D2: =Head2 -> Budget Year 2020/21
C3: =Head5 -> Audited Outcome | D3: =Head6 -> Original Budget | E3: =Head7 -> Adjusted Budget | F3: =Head38 -> Monthly actual | G3: =Head39 -> YearTD actual | H3: =Head40 -> YearTD budget | I3: =Head41 -> YTD variance | J3: =Head41 -> YTD variance | K3: =Head8 -> Full Year Forecast
A4: R thousands | B4: 1 | J4: %
A5: Multi-Year expenditure appropriation | B5: 2
A6: ='Org structure'!A2 -> Vote 1 - Finance and Administration | C6: ='C5C'!C7 -> 0 | D6: ='C5C'!D7 -> 0 | E6: ='C5C'!E7 -> 0 | F6: ='C5C'!F7 -> 0 | G6: ='C5C'!G7 -> 0 | H6: ='C5C'!H7 -> 0 | I6: =G6-H6 -> 0 | J6: =IF(I6=0,"",I6/H6) ->  | K6: ='C5C'!K7 -> 0
A7: ='Org structure'!A3 -> Vote 2 - Finance and Administration2 | C7: ='C5C'!C18 -> 0 | D7: ='C5C'!D18 -> 0 | E7: ='C5C'!E18 -> 0 | F7: ='C5C'!F18 -> 0 | G7: ='C5C'!G18 -> 0 | H7: ='C5C'!H18 -> 0 | I7: =G7-H7 -> 0 | J7: =IF(I7=0,"",I7/H7) ->  | K7: ='C5C'!K18 -> 0
A8: ='Org structure'!A4 -> Vote 3 - Executive and Council | C8: ='C5C'!C29 -> 0 | D8: ='C5C'!D29 -> 0 | E8: ='C5C'!E29 -> 0 | F8: ='C5C'!F29 -> 0 | G8: ='C5C'!G29 -> 0 | H8: ='C5C'!H29 -> 0 | I8: =G8-H8 -> 0 | J8: =IF(I8=0,"",I8/H8) ->  | K8: ='C5C'!K29 -> 0
A9: ='Org structure'!A5 -> Vote 4 - Community and Social Services | C9: ='C5C'!C40 -> 0 | D9: ='C5C'!D40 -> 0 | E9: ='C5C'!E40 -> 0 | F9: ='C5C'!F40 -> 0 | G9: ='C5C'!G40 -> 0 | H9: ='C5C'!H40 -> 0 | I9: 0 | K9: ='C5C'!K40 -> 0
A10: ='Org structure'!A6 -> Vote 5 - Community and Social Services2 | C10: ='C5C'!C51 -> 0 | D10: ='C5C'!D51 -> 0 | E10: ='C5C'!E51 -> 0 | F10: ='C5C'!F51 -> 0 | G10: ='C5C'!G51 -> 0 | H10: ='C5C'!H51 -> 0 | I10: 0 | K10: ='C5C'!K51 -> 0
A11: ='Org structure'!A7 -> Vote 6 - Energy Sources | C11: ='C5C'!C62 -> 0 | D11: ='C5C'!D62 -> 0 | E11: ='C5C'!E62 -> 0 | F11: ='C5C'!F62 -> 0 | G11: ='C5C'!G62 -> 0 | H11: ='C5C'!H62 -> 0 | I11: 0 | K11: ='C5C'!K62 -> 0
A12: ='Org structure'!A8 -> Vote 7 - Road Transport | C12: ='C5C'!C73 -> 0 | D12: ='C5C'!D73 -> 0 | E12: ='C5C'!E73 -> 0 | F12: ='C5C'!F73 -> 0 | G12: ='C5C'!G73 -> 0 | H12: ='C5C'!H73 -> 0 | I12: 0 | K12: ='C5C'!K73 -> 0
A13: ='Org structure'!A9 -> Vote 8 - Planning and Development | C13: ='C5C'!C84 -> 0 | D13: ='C5C'!D84 -> 0 | E13: ='C5C'!E84 -> 0 | F13: ='C5C'!F84 -> 0 | G13: ='C5C'!G84 -> 0 | H13: ='C5C'!H84 -> 0 | I13: 0 | K13: ='C5C'!K84 -> 0
A14: ='Org structure'!A10 -> Vote 9 - Sport and Recreation | C14: ='C5C'!C95 -> 0 | D14: ='C5C'!D95 -> 0 | E14: ='C5C'!E95 -> 0 | F14: ='C5C'!F95 -> 0 | G14: ='C5C'!G95 -> 0 | H14: ='C5C'!H95 -> 0 | I14: 0 | K14: ='C5C'!K95 -> 0
A15: ='Org structure'!A11 -> Vote 10 - Public Safety | C15: ='C5C'!C106 -> 0 | D15: ='C5C'!D106 -> 0 | E15: ='C5C'!E106 -> 0 | F15: ='C5C'!F106 -> 0 | G15: ='C5C'!G106 -> 0 | H15: ='C5C'!H106 -> 0 | I15: 0 | K15: ='C5C'!K106 -> 0
A16: ='Org structure'!A12 -> Vote 11 - Other | C16: ='C5C'!C117 -> 0 | D16: ='C5C'!D117 -> 0 | E16: ='C5C'!E117 -> 0 | F16: ='C5C'!F117 -> 0 | G16: ='C5C'!G117 -> 0 | H16: ='C5C'!H117 -> 0 | I16: 0 | K16: ='C5C'!K117 -> 0
A17: ='Org structure'!A13 -> Vote 12 - Waste Management | C17: ='C5C'!C128 -> 0 | D17: ='C5C'!D128 -> 0 | E17: ='C5C'!E128 -> 0 | F17: ='C5C'!F128 -> 0 | G17: ='C5C'!G128 -> 0 | H17: ='C5C'!H128 -> 0 | I17: 0 | K17: ='C5C'!K128 -> 0
A18: ='Org structure'!A14 -> Vote 13 - Housing | C18: ='C5C'!C139 -> 0 | D18: ='C5C'!D139 -> 0 | E18: ='C5C'!E139 -> 0 | F18: ='C5C'!F139 -> 0 | G18: ='C5C'!G139 -> 0 | H18: ='C5C'!H139 -> 0 | I18: =G18-H18 -> 0 | J18: =IF(I18=0,"",I18/H18) ->  | K18: ='C5C'!K139 -> 0
A19: ='Org structure'!A15 -> Vote 14 - Waste Water Management | C19: ='C5C'!C150 -> 0 | D19: ='C5C'!D150 -> 0 | E19: ='C5C'!E150 -> 0 | F19: ='C5C'!F150 -> 0 | G19: ='C5C'!G150 -> 0 | H19: ='C5C'!H150 -> 0 | I19: =G19-H19 -> 0 | J19: =IF(I19=0,"",I19/H19) ->  | K19: ='C5C'!K150 -> 0
A20: ='Org structure'!A16 -> Vote 15 - Health | C20: ='C5C'!C161 -> 0 | D20: ='C5C'!D161 -> 0 | E20: ='C5C'!E161 -> 0 | F20: ='C5C'!F161 -> 0 | G20: ='C5C'!G161 -> 0 | H20: ='C5C'!H161 -> 0 | I20: =G20-H20 -> 0 | J20: =IF(I20=0,"",I20/H20) ->  | K20: ='C5C'!K161 -> 0
A21: Total Capital Multi-year expenditure | B21: 4,7 | C21: =SUM(C6:C20) -> 0 | D21: =SUM(D6:D20) -> 0 | E21: 0 | F21: 0 | G21: 0 | H21: 0 | I21: 0 | J21: =IF(I21=0,"",I21/H21) ->  | K21: =SUM(K6:K20) -> 0
A23: Single Year expenditure appropriation | B23: 2
A24: ='Org structure'!A2 -> Vote 1 - Finance and Administration | C24: ='C5C'!C176 -> 33565076 | D24: ='C5C'!D176 -> 6700000 | E24: ='C5C'!E176 -> 6700000 | F24: ='C5C'!F176 -> 1071196 | G24: ='C5C'!G176 -> 1239912 | H24: ='C5C'!H176 -> 3349998 | I24: ='C5C'!I176 -> -2110086 | J24: =IF(I24=0,"",I24/H24) -> -0.629876794 | K24: ='C5C'!K176 -> 6700000
A25: ='Org structure'!A3 -> Vote 2 - Finance and Administration2 | C25: ='C5C'!C187 -> 0 | D25: ='C5C'!D187 -> 0 | E25: ='C5C'!E187 -> 0 | F25: ='C5C'!F187 -> 0 | G25: ='C5C'!G187 -> 0 | H25: ='C5C'!H187 -> 0 | I25: ='C5C'!I187 -> 0 | J25: =IF(I25=0,"",I25/H25) ->  | K25: ='C5C'!K187 -> 0
A26: ='Org structure'!A4 -> Vote 3 - Executive and Council | C26: ='C5C'!C198 -> 0 | D26: ='C5C'!D198 -> 0 | E26: ='C5C'!E198 -> 0 | F26: ='C5C'!F198 -> 0 | G26: ='C5C'!G198 -> 0 | H26: ='C5C'!H198 -> 0 | I26: ='C5C'!I198 -> 0 | K26: ='C5C'!K198 -> 0
A27: ='Org structure'!A5 -> Vote 4 - Community and Social Services | C27: ='C5C'!C209 -> 3033135 | D27: ='C5C'!D209 -> 1538516 | E27: ='C5C'!E209 -> 1538516 | F27: ='C5C'!F209 -> 0 | G27: ='C5C'!G209 -> 964853 | H27: ='C5C'!H209 -> 769260 | I27: ='C5C'!I209 -> 195593 | J27: 0.2542612381 | K27: ='C5C'!K209 -> 1538515.68
A28: ='Org structure'!A6 -> Vote 5 - Community and Social Services2 | C28: ='C5C'!C220 -> 9953437 | D28: ='C5C'!D220 -> 7990468 | E28: ='C5C'!E220 -> 7990468 | F28: ='C5C'!F220 -> 289655 | G28: ='C5C'!G220 -> 2422166 | H28: ='C5C'!H220 -> 3995232 | I28: ='C5C'!I220 -> -1573066 | J28: -0.3937358331 | K28: ='C5C'!K220 -> 7990466.98
A29: ='Org structure'!A7 -> Vote 6 - Energy Sources | C29: ='C5C'!C231 -> 0 | D29: ='C5C'!D231 -> 0 | E29: ='C5C'!E231 -> 0 | F29: ='C5C'!F231 -> 0 | G29: ='C5C'!G231 -> 0 | H29: ='C5C'!H231 -> 0 | I29: ='C5C'!I231 -> 0 | K29: ='C5C'!K231 -> 0
A30: ='Org structure'!A8 -> Vote 7 - Road Transport | C30: ='C5C'!C242 -> 73517349 | D30: ='C5C'!D242 -> 9467783 | E30: ='C5C'!E242 -> 17191768 | F30: ='C5C'!F242 -> 2670098 | G30: ='C5C'!G242 -> 17502317 | H30: ='C5C'!H242 -> 7856016 | I30: ='C5C'!I242 -> 9646301 | J30: 1.227887138 | K30: ='C5C'!K242 -> 15712018
A31: ='Org structure'!A9 -> Vote 8 - Planning and Development | C31: ='C5C'!C253 -> 90719296 | D31: ='C5C'!D253 -> 0 | E31: ='C5C'!E253 -> 0 | F31: ='C5C'!F253 -> 0 | G31: ='C5C'!G253 -> 0 | H31: ='C5C'!H253 -> 0 | I31: ='C5C'!I253 -> 0 | K31: ='C5C'!K253 -> 0
A32: ='Org structure'!A10 -> Vote 9 - Sport and Recreation | C32: ='C5C'!C264 -> 0 | D32: ='C5C'!D264 -> 0 | E32: ='C5C'!E264 -> 0 | F32: ='C5C'!F264 -> 0 | G32: ='C5C'!G264 -> 0 | H32: ='C5C'!H264 -> 0 | I32: ='C5C'!I264 -> 0 | K32: ='C5C'!K264 -> 0
A33: ='Org structure'!A11 -> Vote 10 - Public Safety | C33: ='C5C'!C275 -> 0 | D33: ='C5C'!D275 -> 0 | E33: ='C5C'!E275 -> 0 | F33: ='C5C'!F275 -> 0 | G33: ='C5C'!G275 -> 0 | H33: ='C5C'!H275 -> 0 | I33: ='C5C'!I275 -> 0 | K33: ='C5C'!K275 -> 0
A34: ='Org structure'!A12 -> Vote 11 - Other | C34: ='C5C'!C286 -> 0 | D34: ='C5C'!D286 -> 0 | E34: ='C5C'!E286 -> 0 | F34: ='C5C'!F286 -> 0 | G34: ='C5C'!G286 -> 0 | H34: ='C5C'!H286 -> 0 | I34: ='C5C'!I286 -> 0 | K34: ='C5C'!K286 -> 0
A35: ='Org structure'!A13 -> Vote 12 - Waste Management | C35: ='C5C'!C297 -> 0 | D35: ='C5C'!D297 -> 0 | E35: ='C5C'!E297 -> 0 | F35: ='C5C'!F297 -> 0 | G35: ='C5C'!G297 -> 0 | H35: ='C5C'!H297 -> 0 | I35: ='C5C'!I297 -> 0 | K35: ='C5C'!K297 -> 0
A36: ='Org structure'!A14 -> Vote 13 - Housing | C36: ='C5C'!C308 -> 0 | D36: ='C5C'!D308 -> 0 | E36: ='C5C'!E308 -> 0 | F36: ='C5C'!F308 -> 0 | G36: ='C5C'!G308 -> 0 | H36: ='C5C'!H308 -> 0 | I36: ='C5C'!I308 -> 0 | K36: ='C5C'!K308 -> 0
A37: ='Org structure'!A15 -> Vote 14 - Waste Water Management | C37: ='C5C'!C319 -> 0 | D37: ='C5C'!D319 -> 0 | E37: ='C5C'!E319 -> 0 | F37: ='C5C'!F319 -> 0 | G37: ='C5C'!G319 -> 0 | H37: ='C5C'!H319 -> 0 | I37: ='C5C'!I319 -> 0 | K37: ='C5C'!K319 -> 0
A38: ='Org structure'!A16 -> Vote 15 - Health | C38: ='C5C'!C330 -> 0 | D38: ='C5C'!D330 -> 0 | E38: ='C5C'!E330 -> 0 | F38: ='C5C'!F330 -> 0 | G38: ='C5C'!G330 -> 0 | H38: ='C5C'!H330 -> 0 | I38: ='C5C'!I330 -> 0 | K38: ='C5C'!K330 -> 0
A39: Total Capital single-year expenditure | B39: 4 | C39: =SUM(C24:C38) -> 210788293 | D39: 25696767 | E39: 33420752 | F39: 4030949 | G39: 22129248 | H39: 15970506 | I39: 6158742 | J39: 0.3856322398 | K39: =SUM(K24:K38) -> 31941000.66
A40: Total Capital Expenditure | C40: =C39+C21 -> 210788293 | D40: 25696767 | E40: 33420752 | F40: 4030949 | G40: 22129248 | H40: 15970506 | I40: 6158742 | J40: =IF(I40=0,"",I40/H40) -> 0.3856322398 | K40: =K39+K21 -> 31941000.66
A42: Capital Expenditure - Functional Classification
A43: Governance and administration | C43: =SUM(C44:C46) -> 33565076 | D43: 6700000 | E43: 6700000 | F43: 1071196 | G43: 1239912 | H43: 3349998 | I43: =G43-H43 -> -2110086 | J43: =IF(I43=0,"",I43/H43) -> -0.629876794 | K43: =SUM(K44:K46) -> 6700000
A44: Executive and council | C44: 0 | D44: 0 | E44: 0 | F44: 0 | G44: 0 | H44: 0 | I44: 0 | J44: =IF(I44=0,"",I44/H44) ->  | K44: 0
A45: Finance and administration | C45: 33565076 | D45: 6700000 | E45: 6700000 | F45: 1071196 | G45: 1239912 | H45: 3349998 | I45: -2110086 | J45: -0.629876794 | K45: 6700000
A46: Internal audit | C46: 0 | D46: 0 | E46: 0 | F46: 0 | G46: 0 | H46: 0 | I46: 0 | K46: 0
A47: Community and public safety | C47: =SUM(C48:C52) -> 12986572 | D47: 9528984 | E47: 9528984 | F47: 289655 | G47: 3387019 | H47: 4764492 | I47: -1377473 | J47: -0.2891122495 | K47: =SUM(K48:K52) -> 9528982.66
A48: Community and social services | C48: 12986572 | D48: 9528984 | E48: 9528984 | F48: 289655 | G48: 3387019 | H48: 4764492 | I48: -1377473 | J48: -0.2891122495 | K48: 9528982.66
A49: Sport and recreation | C49: 0 | D49: 0 | E49: 0 | F49: 0 | G49: 0 | H49: 0 | I49: 0 | K49: 0
A50: Public safety | C50: 0 | D50: 0 | E50: 0 | F50: 0 | G50: 0 | H50: 0 | I50: 0 | K50: 0
A51: Housing | C51: 0 | D51: 0 | E51: 0 | F51: 0 | G51: 0 | H51: 0 | I51: 0 | K51: 0
A52: Health | C52: 0 | D52: 0 | E52: 0 | F52: 0 | G52: 0 | H52: 0 | I52: 0 | K52: 0
A53: Economic and environmental services | C53: =SUM(C54:C56) -> 170123651 | D53: 9467783 | E53: 17191768 | F53: 2670098 | G53: 17502317 | H53: 7856016 | I53: 9646301 | J53: 1.227887138 | K53: =SUM(K54:K56) -> 15712032
A54: Planning and development | C54: 96606302 | D54: 0 | E54: 0 | F54: 0 | G54: 0 | H54: 0 | I54: 0
A55: Road transport | C55: 73517349 | D55: 9467783 | E55: 17191768 | F55: 2670098 | G55: 17502317 | H55: 7856016 | I55: 9646301 | J55: 1.227887138 | K55: 15712032
A56: Environmental protection | C56: 0 | D56: 0 | E56: 0 | F56: 0 | G56: 0 | H56: 0 | I56: 0
A57: Trading services | C57: =SUM(C58:C61) -> 0 | D57: 0 | E57: 0 | F57: 0 | G57: 0 | H57: 0 | I57: 0 | K57: =SUM(K58:K61) -> 0
A58: Energy sources | I58: 0
A59: Water management | I59: 0
A60: Waste water management | I60: 0
A61: Waste management | I61: 0
A62: Other | I62: 0
A63: Total Capital Expenditure - Functional Classification | B63: 3 | C63: =C43+C47+C53+C57+C62 -> 216675299 | D63: =D43+D47+D53+D57+D62 -> 25696767 | E63: 33420752 | F63: 4030949 | G63: 22129248 | H63: 15970506 | I63: 6158742 | J63: 0.3856322398 | K63: =K43+K47+K53+K57+K62 -> 31941014.66
A65: Funded by:
A66: National Government | C66: 124282443 | D66: 15996767 | E66: 15996002 | F66: 289655 | G66: 9240502 | H66: 7998000 | I66: =G66-H66 -> 1242502 | J66: =IF(I66=0,"",I66/H66) -> 0.1553515879 | K66: 15996000
A67: Provincial Government | C67: 0 | D67: 0 | E67: 0 | F67: 0 | G67: 0 | H67: 0 | I67: 0
A68: District Municipality | C68: 0 | D68: 0 | E68: 0 | F68: 0 | G68: 0 | H68: 0 | I68: 0
A69: ='C4-FinPerf RE'!A40 -> Transfers and subsidies - capital (monetary allocations) (National / Provincial Departmental Agencies, Households, Non-profit Institutions, Private Enterprises, Public Corporatons, Higher Educational Institutions) | C69: 0 | D69: 0 | E69: 0 | F69: 0 | G69: 0 | H69: 0 | I69: 0
A70: Transfers recognised - capital | C70: =SUM(C66:C69) -> 124282443 | D70: 15996767 | E70: 15996002 | F70: 289655 | G70: 9240502 | H70: 7998000 | I70: 1242502 | J70: 0.1553515879 | K70: =SUM(K66:K69) -> 15996000
A72: Borrowing | B72: 6 | C72: 0 | D72: 0 | E72: 0 | F72: 0 | G72: 0 | H72: 0 | I72: 0
A73: Internally generated funds | C73: 92392856 | D73: 9700000 | E73: 17424750 | F73: 3741294 | G73: 12888746 | H73: 7972506 | I73: 4916240 | J73: 0.6166492694 | K73: 15945012
A74: Total Capital Funding | C74: =+C70+C72+C73 -> 216675299 | D74: 25696767 | E74: 33420752 | F74: 4030949 | G74: 22129248 | H74: 15970506 | I74: 6158742 | J74: 0.3856322398 | K74: =+K70+K72+K73 -> 31941012
A75: =head27a -> References
A76: 1. Municipalities may choose to appropriate for capital expenditure for three years or for one year (if one year appropriation projected expenditure required for yr2 and yr3).
A77: 2. Include capital component of PPP unitary payment
A78: 3. Capital expenditure by functional classification must reconcile to the total of multi-year and single year appropriations
A79: 4. Include expenditure on investment property, intangible and biological assets
A81: 6. Include finance leases and PPP capital funding component of unitary payment - total borrowing/repayments to reconcile to changes in Table SA17
A86: check balance | C86: =C40-C74 -> -5887006 | D86: =D40-D74 -> 0 | E86: 0 | F86: 0 | G86: 0 | H86: 0 | K86: -11.34

Sheet C5C
A1: =muni& " - "&S71D& " - "&"A"& " - "&date -> Choose name from list - Table C5 Monthly Budget Statement - Capital Expenditure (municipal vote, functional classification and funding) - A - Mid-Year Assessment
A2: =Vdesc -> Vote Description | B2: =head27 -> Ref | C2: =Head1 -> 2019/20 | D2: =Head2 -> Budget Year 2020/21 | L2: =Head4 -> 
A3: R thousand | C3: =Head5 -> Audited Outcome | D3: =Head6 -> Original Budget | E3: =Head7 -> Adjusted Budget | F3: =Head38 -> Monthly actual | G3: =Head39 -> YearTD actual | H3: =Head40 -> YearTD budget | I3: =Head41 -> YTD variance | J3: =Head41 -> YTD variance | K3: =Head8 -> Full Year Forecast | L3: =Head12 -> Forecast 2010/11 | M3: =Head13 -> Forecast 2011/12 | N3: =Head14 -> Forecast 2012/13 | O3: =Head15 -> Forecast 2013/14 | P3: =Head16 -> Forecast 2014/15 | Q3: =Head17 -> Forecast 2015/16 | R3: =Head18 -> Forecast 2016/17 | S3: =Head19 -> Forecast 2017/18 | T3: =Head20 -> Forecast 2018/19 | U3: =Head21 -> Forecast 2019/20 | V3: =Head22 -> Forecast 2020/21 | W3: =Head23 -> Forecast 2021/22
J4: %
A5: Capital expenditure - Municipal Vote
A6: Expenditure of multi-year capital appropriation | B6: 1
A7: ='Org structure'!A2 -> Vote 1 - Finance and Administration | C7: =SUM(C8:C17) -> 0 | D7: =SUM(D8:D17) -> 0 | E7: 0 | F7: 0 | G7: 0 | H7: 0 | I7: =G7-H7 -> 0 | J7: =IF(I7=0,"",I7/H7) ->  | K7: 0
A8: ='Org structure'!E3 -> 1.1 - Finance | I8: 0
A9: ='Org structure'!E4 -> 1.2 - Fleet Management | I9: 0
A10: ='Org structure'!E5 -> 1.3 - Asset Management | I10: 0
A11: ='Org structure'!E6 -> 1.4 - Administrative and Corporate Support | I11: 0
A12: ='Org structure'!E7 -> 1.5 - Human Resources | I12: 0
A13: ='Org structure'!E8 -> 1.6 - Property Services | I13: 0
A14: ='Org structure'!E9 -> 1.7 - Legal Services | I14: 0
A15: ='Org structure'!E10 -> 1.8 - Information Technology | I15: 0
A16: ='Org structure'!E11 -> 1.9 - Marketing, Customer Relations, Publicity and Media Co-ordination | I16: 0
A17: ='Org structure'!E12 -> 1.10 - Valuation Service | I17: 0
A18: ='Org structure'!A3 -> Vote 2 - Finance and Administration2 | C18: =SUM(C19:C28) -> 0 | D18: =SUM(D19:D28) -> 0 | E18: 0 | F18: 0 | G18: 0 | H18: 0 | I18: 0 | K18: 0
A19: ='Org structure'!E14 -> 2.1 - Supply Chain Management | I19: 0
A20: ='Org structure'!E15 -> 0 | I20: 0
A21: ='Org structure'!E16 -> 0 | I21: 0
A22: ='Org structure'!E17 -> 0 | I22: 0
A23: ='Org structure'!E18 -> 0 | I23: 0
A24: ='Org structure'!E19 -> 0 | I24: 0
A25: ='Org structure'!E20 -> 0 | I25: 0
A26: ='Org structure'!E21 -> 0 | I26: 0
A27: ='Org structure'!E22 -> 0 | I27: 0
A28: ='Org structure'!E23 -> 0 | I28: 0
A29: ='Org structure'!A4 -> Vote 3 - Executive and Council | C29: =SUM(C30:C39) -> 0 | D29: 0 | E29: 0 | F29: 0 | G29: 0 | H29: 0 | I29: 0 | K29: 0
A30: ='Org structure'!E25 -> 3.1 - Municipal Manager, Town Secretary and Chief Executive | I30: 0
A31: ='Org structure'!E26 -> 3.2 - Mayor and Council | I31: 0
A32: ='Org structure'!E27 -> 0 | I32: 0
A33: ='Org structure'!E28 -> 0 | I33: 0
A34: ='Org structure'!E29 -> 0 | I34: 0
A35: ='Org structure'!E30 -> 0 | I35: 0
A36: ='Org structure'!E31 -> 0 | I36: 0
A37: ='Org structure'!E32 -> 0 | I37: 0
A38: ='Org structure'!E33 -> 0 | I38: 0
A39: ='Org structure'!E34 -> 0 | I39: 0
A40: ='Org structure'!A5 -> Vote 4 - Community and Social Services | C40: =SUM(C41:C50) -> 0 | D40: 0 | E40: 0 | F40: 0 | G40: 0 | H40: 0 | I40: 0 | K40: 0
A41: ='Org structure'!E36 -> 4.1 - Disaster Management | I41: 0
A42: ='Org structure'!E37 -> 4.2 - Libraries and Archives | I42: 0
A43: ='Org structure'!E38 -> 4.3 - Population Development | I43: 0
A44: ='Org structure'!E39 -> 4.4 - Cultural Matters | I44: 0
A45: ='Org structure'!E40 -> 4.5 - Indigenous and Customary Law | I45: 0
A46: ='Org structure'!E41 -> 4.6 - Industrial Promotion | I46: 0
A47: ='Org structure'!E42 -> 4.7 - Agricultural | I47: 0
A48: ='Org structure'!E43 -> 4.8 - Aged Care | I48: 0
A49: ='Org structure'!E44 -> 4.9 - Child Care Facilities | I49: 0
A50: ='Org structure'!E45 -> 4.10 - Animal Care and Diseases | I50: 0
A51: ='Org structure'!A6 -> Vote 5 - Community and Social Services2 | C51: =SUM(C52:C61) -> 0 | D51: =SUM(D52:D61) -> 0 | E51: 0 | F51: 0 | G51: 0 | H51: 0 | I51: 0 | K51: 0
A52: ='Org structure'!E47 -> 5.1 - Literacy Programmes | I52: 0
A53: ='Org structure'!E48 -> 5.2 - Education | I53: 0
A54: ='Org structure'!E49 -> 5.3 - Community Halls and Facilities | I54: 0
A55: ='Org structure'!E50 -> 0 | I55: 0
A56: ='Org structure'!E51 -> 0 | I56: 0
A57: ='Org structure'!E52 -> 0 | I57: 0
A58: ='Org structure'!E53 -> 0 | I58: 0
A59: ='Org structure'!E54 -> 0 | I59: 0
A60: ='Org structure'!E55 -> 0 | I60: 0
A61: ='Org structure'!E56 -> 0 | I61: 0
A62: ='Org structure'!A7 -> Vote 6 - Energy Sources | C62: =SUM(C63:C72) -> 0 | D62: =SUM(D63:D72) -> 0 | E62: 0 | F62: 0 | G62: 0 | H62: 0 | I62: 0 | K62: 0
A63: ='Org structure'!E58 -> 6.1 - Electricity | I63: 0
A64: ='Org structure'!E59 -> 0 | I64: 0
A65: ='Org structure'!E60 -> 0 | I65: 0
A66: ='Org structure'!E61 -> 0 | I66: 0
A67: ='Org structure'!E62 -> 0 | I67: 0
A68: ='Org structure'!E63 -> 0 | I68: 0
A69: ='Org structure'!E64 -> 0 | I69: 0
A70: ='Org structure'!E65 -> 0 | I70: 0
A71: ='Org structure'!E66 -> 0 | I71: =G71-H71 -> 0 | J71: =IF(I71=0,"",I71/H71) -> 
A72: ='Org structure'!E67 -> 0 | I72: 0
A73: ='Org structure'!A8 -> Vote 7 - Road Transport | C73: =SUM(C74:C83) -> 0 | D73: 0 | E73: 0 | F73: 0 | G73: 0 | H73: 0 | I73: 0 | K73: 0
A74: ='Org structure'!E69 -> 7.1 - Roads | I74: 0
A75: ='Org structure'!E70 -> 0 | I75: 0
A76: ='Org structure'!E71 -> 0 | I76: 0
A77: ='Org structure'!E72 -> 0 | I77: 0
A78: ='Org structure'!E73 -> 0 | I78: 0
A79: ='Org structure'!E74 -> 0 | I79: 0
A80: ='Org structure'!E75 -> 0 | I80: 0
A81: ='Org structure'!E76 -> 0 | I81: 0
A82: ='Org structure'!E77 -> 0 | I82: 0
A83: ='Org structure'!E78 -> 0 | I83: 0
A84: ='Org structure'!A9 -> Vote 8 - Planning and Development | C84: =SUM(C85:C94) -> 0 | D84: =SUM(D85:D94) -> 0 | E84: 0 | F84: 0 | G84: 0 | H84: 0 | I84: 0 | K84: 0
A85: ='Org structure'!E80 -> 8.1 - Town Planning, Building Regulations and Enforcement, and City Engineer | I85: 0
A86: ='Org structure'!E81 -> 8.2 - Development Facilitation | I86: 0
A87: ='Org structure'!E82 -> 8.3 - Economic Development/Planning | I87: 0
A88: ='Org structure'!E83 -> 8.4 - Regional Planning and Development | I88: 0
A89: ='Org structure'!E84 -> 8.5 - Corporate Wide Strategic Planning (IDPs, LEDs) | I89: 0
A90: ='Org structure'!E85 -> 8.6 - Project Management Unit | I90: 0
A91: ='Org structure'!E86 -> 0 | I91: 0
A92: ='Org structure'!E87 -> 0 | I92: 0
A93: ='Org structure'!E88 -> 0 | I93: 0
A94: ='Org structure'!E89 -> 0 | I94: 0
A95: ='Org structure'!A10 -> Vote 9 - Sport and Recreation | C95: =SUM(C96:C105) -> 0 | D95: =SUM(D96:D105) -> 0 | E95: 0 | F95: 0 | G95: 0 | H95: 0 | I95: 0 | K95: 0
A96: ='Org structure'!E91 -> 9.1 - Sports Grounds and Stadiums | I96: 0
A97: ='Org structure'!E92 -> 0 | I97: 0
A98: ='Org structure'!E93 -> 0 | I98: 0
A99: ='Org structure'!E94 -> 0 | I99: 0
A100: ='Org structure'!E95 -> 0 | I100: 0
A101: ='Org structure'!E96 -> 0 | I101: 0
A102: ='Org structure'!E97 -> 0 | I102: 0
A103: ='Org structure'!E98 -> 0 | I103: 0
A104: ='Org structure'!E99 -> 0 | I104: 0
A105: ='Org structure'!E100 -> 0 | I105: 0
A106: ='Org structure'!A11 -> Vote 10 - Public Safety | C106: =SUM(C107:C116) -> 0 | D106: =SUM(D107:D116) -> 0 | E106: 0 | F106: 0 | G106: 0 | H106: 0 | I106: 0 | K106: 0
A107: ='Org structure'!E102 -> 10.1 - Fire Fighting and Protection | I107: 0
A108: ='Org structure'!E103 -> 10.2 - Fencing and Fences | I108: 0
A109: ='Org structure'!E104 -> 0 | I109: 0
A110: ='Org structure'!E105 -> 0 | I110: 0
A111: ='Org structure'!E106 -> 0 | I111: 0
A112: ='Org structure'!E107 -> 0 | I112: 0
A113: ='Org structure'!E108 -> 0 | I113: 0
A114: ='Org structure'!E109 -> 0 | I114: 0
A115: ='Org structure'!E110 -> 0 | I115: 0
A116: ='Org structure'!E111 -> 0 | I116: 0
A117: ='Org structure'!A12 -> Vote 11 - Other | C117: =SUM(C118:C127) -> 0 | D117: =SUM(D118:D127) -> 0 | E117: 0 | F117: 0 | G117: 0 | H117: 0 | I117: 0 | K117: 0
A118: ='Org structure'!E113 -> 11.1 - Licensing and Regulation | I118: 0
A119: ='Org structure'!E114 -> 0 | I119: 0
A120: ='Org structure'!E115 -> 0 | I120: 0
A121: ='Org structure'!E116 -> 0 | I121: 0
A122: ='Org structure'!E117 -> 0 | I122: 0
A123: ='Org structure'!E118 -> 0 | I123: 0
A124: ='Org structure'!E119 -> 0 | I124: 0
A125: ='Org structure'!E120 -> 0 | I125: 0
A126: ='Org structure'!E121 -> 0 | I126: 0
A127: ='Org structure'!E122 -> 0 | I127: 0
A128: ='Org structure'!A13 -> Vote 12 - Waste Management | C128: =SUM(C129:C138) -> 0 | D128: =SUM(D129:D138) -> 0 | E128: 0 | F128: 0 | G128: 0 | H128: 0 | I128: 0 | K128: 0
A129: ='Org structure'!E124 -> 12.1 - Solid Waste Removal | I129: 0
A130: ='Org structure'!E125 -> 12.2 - Street Cleaning | I130: 0
A131: ='Org structure'!E126 -> 12.3 - Solid Waste Disposal (Landfill Sites) | I131: 0
A132: ='Org structure'!E127 -> 0 | I132: 0
A133: ='Org structure'!E128 -> 0 | I133: 0
A134: ='Org structure'!E129 -> 0 | I134: 0
A135: ='Org structure'!E130 -> 0 | I135: =G135-H135 -> 0 | J135: =IF(I135=0,"",I135/H135) -> 
A136: ='Org structure'!E131 -> 0 | I136: 0
A137: ='Org structure'!E132 -> 0 | I137: 0
A138: ='Org structure'!E133 -> 0 | I138: 0
A139: ='Org structure'!A14 -> Vote 13 - Housing | C139: =SUM(C140:C149) -> 0 | D139: =SUM(D140:D149) -> 0 | E139: 0 | F139: 0 | G139: 0 | H139: 0 | I139: 0 | K139: 0
A140: ='Org structure'!E135 -> 13.1 - Housing | I140: 0
A141: ='Org structure'!E136 -> 0 | I141: 0
A142: ='Org structure'!E137 -> 0 | I142: 0
A143: ='Org structure'!E138 -> 0 | I143: 0
A144: ='Org structure'!E139 -> 0 | I144: 0
A145: ='Org structure'!E140 -> 0 | I145: 0
A146: ='Org structure'!E141 -> 0 | I146: 0
A147: ='Org structure'!E142 -> 0 | I147: 0
A148: ='Org structure'!E143 -> 0 | I148: 0
A149: ='Org structure'!E144 -> 0 | I149: 0
A150: ='Org structure'!A15 -> Vote 14 - Waste Water Management | C150: =SUM(C151:C160) -> 0 | D150: =SUM(D151:D160) -> 0 | E150: 0 | F150: 0 | G150: 0 | H150: 0 | I150: 0 | K150: 0
A151: ='Org structure'!E146 -> 14.1 - Storm Water Management | I151: 0
A152: ='Org structure'!E147 -> 0 | I152: 0
A153: ='Org structure'!E148 -> 0 | I153: 0
A154: ='Org structure'!E149 -> 0 | I154: 0
A155: ='Org structure'!E150 -> 0 | I155: 0
A156: ='Org structure'!E151 -> 0 | I156: 0
A157: ='Org structure'!E152 -> 0 | I157: 0
A158: ='Org structure'!E153 -> 0 | I158: 0
A159: ='Org structure'!E154 -> 0 | I159: 0
A160: ='Org structure'!E155 -> 0 | I160: 0
A161: ='Org structure'!A16 -> Vote 15 - Health | C161: =SUM(C162:C171) -> 0 | D161: =SUM(D162:D171) -> 0 | E161: 0 | F161: 0 | G161: 0 | H161: 0 | I161: 0 | K161: 0
A162: ='Org structure'!E157 -> 15.1 - Health Services | I162: 0
A163: ='Org structure'!E158 -> 15.2 - Tourism | I163: 0
A164: ='Org structure'!E159 -> 0 | I164: 0
A165: ='Org structure'!E160 -> 0 | I165: 0
A166: ='Org structure'!E161 -> 0 | I166: 0
A167: ='Org structure'!E162 -> 0 | I167: 0
A168: ='Org structure'!E163 -> 0 | I168: 0
A169: ='Org structure'!E164 -> 0 | I169: 0
A170: ='Org structure'!E165 -> 0 | I170: 0
A171: ='Org structure'!E166 -> 0 | I171: 0 | L171: =SUM(L79:L82) -> 0 | M171: 0 | N171: 0 | O171: 0 | P171: 0 | Q171: 0 | R171: 0 | S171: 0 | T171: 0 | U171: 0 | V171: 0 | W171: 0
A172: Total multi-year capital expenditure | C172: =C7+C18+C29+C40+C51+C62+C73+C84+C95+C106+C117+C128+C139+C150+C161 -> 0 | D172: =D7+D18+D29+D40+D51+D62+D73+D84+D95+D106+D117+D128+D139+D150+D161 -> 0 | E172: 0 | F172: 0 | G172: 0 | H172: 0 | I172: 0 | K172: 0
I173: 0
A174: Capital expenditure - Municipal Vote
A175: Expenditue of single-year capital appropriation | B175: 1 | I175: 0
A176: Vote 1 - Finance and Administration | C176: =SUM(C177:C186) -> 33565076 | D176: 6700000 | E176: 6700000 | F176: 1071196 | G176: 1239912 | H176: 3349998 | I176: -2110086 | J176: -0.629876794 | K176: 6700000
A177: ='Org structure'!E3 -> 1.1 - Finance | C177: 472275 | D177: 5000000 | E177: 5000000 | F177: 1022301 | G177: 1022301 | H177: 2500002 | I177: -1477701 | J177: -0.5910799271 | K177: 5000000
A178: ='Org structure'!E4 -> 1.2 - Fleet Management | C178: 2845481 | D178: 0 | E178: 0 | F178: 0 | G178: 0 | H178: 0 | I178: 0 | K178: 0
A179: ='Org structure'!E5 -> 1.3 - Asset Management | C179: 30247320 | D179: 300000 | E179: 300000 | F179: 0 | G179: 92826 | H179: 150000 | I179: -57174 | J179: -0.38116 | K179: 300000
A180: ='Org structure'!E6 -> 1.4 - Administrative and Corporate Support | C180: 0 | D180: 1400000 | E180: 1400000 | F180: 48895 | G180: 124785 | H180: 699996 | I180: -575211 | J180: -0.8217346956 | K180: 1400000
A181: ='Org structure'!E7 -> 1.5 - Human Resources | C181: 0 | D181: 0 | E181: 0 | F181: 0 | G181: 0 | H181: 0 | I181: 0 | K181: 0
A182: ='Org structure'!E8 -> 1.6 - Property Services | C182: 0 | D182: 0 | E182: 0 | F182: 0 | G182: 0 | H182: 0 | I182: 0 | K182: 0
A183: ='Org structure'!E9 -> 1.7 - Legal Services | C183: 0 | D183: 0 | E183: 0 | F183: 0 | G183: 0 | H183: 0 | I183: 0 | K183: 0
A184: ='Org structure'!E10 -> 1.8 - Information Technology | C184: 0 | D184: 0 | E184: 0 | F184: 0 | G184: 0 | H184: 0 | I184: 0 | K184: 0
A185: ='Org structure'!E11 -> 1.9 - Marketing, Customer Relations, Publicity and Media Co-ordination | C185: 0 | D185: 0 | E185: 0 | F185: 0 | G185: 0 | H185: 0 | I185: 0 | K185: 0
A186: ='Org structure'!E12 -> 1.10 - Valuation Service | C186: 0 | D186: 0 | E186: 0 | F186: 0 | G186: 0 | H186: 0 | I186: 0 | K186: 0
A187: Vote 2 - Finance and Administration2 | C187: =SUM(C188:C197) -> 0 | D187: =SUM(D188:D197) -> 0 | E187: =SUM(E188:E197) -> 0 | F187: 0 | G187: 0 | H187: 0 | I187: 0 | K187: 0
A188: ='Org structure'!E14 -> 2.1 - Supply Chain Management | I188: 0
A189: ='Org structure'!E15 -> 0 | I189: 0
A190: ='Org structure'!E16 -> 0 | I190: 0
A191: ='Org structure'!E17 -> 0 | I191: 0
A192: ='Org structure'!E18 -> 0 | I192: 0
A193: ='Org structure'!E19 -> 0 | I193: 0
A194: ='Org structure'!E20 -> 0 | I194: 0
A195: ='Org structure'!E21 -> 0 | I195: 0
A196: ='Org structure'!E22 -> 0 | I196: 0
A197: ='Org structure'!E23 -> 0 | I197: 0
A198: Vote 3 - Executive and Council | C198: =SUM(C199:C208) -> 0 | D198: 0 | E198: 0 | F198: 0 | G198: 0 | H198: 0 | I198: 0 | K198: 0
A199: ='Org structure'!E25 -> 3.1 - Municipal Manager, Town Secretary and Chief Executive | I199: 0
A200: ='Org structure'!E26 -> 3.2 - Mayor and Council | I200: =G200-H200 -> 0 | J200: =IF(I200=0,"",I200/H200) -> 
... 145 more rows

Sheet C6-FinPos
A1: =muni& " - "&S71E& " - "&date -> Choose name from list - Table C6 Monthly Budget Statement - Financial Position - Mid-Year Assessment
A2: =desc -> Description | B2: =head27 -> Ref | C2: =Head1 -> 2019/20 | D2: =Head2 -> Budget Year 2020/21
C3: =Head5 -> Audited Outcome | D3: =Head6 -> Original Budget | E3: =Head7 -> Adjusted Budget | F3: =Head39 -> YearTD actual | G3: =Head8 -> Full Year Forecast
A4: R thousands | B4: 1
A5: ASSETS
A6: Current assets
A7: Cash | C7: 6807334 | D7: 6807334 | E7: 6807334 | F7: 9689125 | G7: 6807334
A8: Call investment deposits | C8: 57134917 | D8: 60543564 | E8: 60543564 | F8: 75938526 | G8: 60543564
A9: Consumer debtors | C9: 19224680 | D9: 38919003 | E9: 38919003 | F9: 29135362 | G9: 38919003
A10: Other debtors | C10: 4709595 | D10: 543000 | E10: 543000 | F10: 7509523.7 | G10: 543000
A11: Current portion of long-term receivables | C11: 0 | D11: 0 | E11: 0 | F11: 0 | G11: 0
A12: Inventory | C12: 8091 | D12: 0 | E12: 0 | F12: 661370.82 | G12: 0
A13: Total current assets | C13: =SUM(C7:C12) -> 87884617 | D13: =SUM(D7:D12) -> 106812901 | E13: =SUM(E7:E12) -> 106812901 | F13: =SUM(F7:F12) -> 122933907.5 | G13: =SUM(G7:G12) -> 106812901
A15: Non current assets
A16: Long-term receivables
A17: Investments
A18: Investment property | D18: 4523600 | E18: 4523600 | F18: 10405000 | G18: 4523600
A19: Investments in Associate
A20: Property, plant and equipment | C20: 141109469 | D20: 172367288 | E20: 172367288 | F20: 157969401.7 | G20: 166121521
A22: Biological
A23: Intangible | C23: 409323 | F23: 366059.29
A24: Other non-current assets
A25: Total non current assets | C25: =SUM(C16:C20)+SUM(C22:C24) -> 141518792 | D25: =SUM(D16:D20)+SUM(D22:D24) -> 176890888 | E25: =SUM(E16:E20)+SUM(E22:E24) -> 176890888 | F25: =SUM(F16:F20)+SUM(F22:F24) -> 168740461 | G25: =SUM(G16:G20)+SUM(G22:G24) -> 170645121
A26: TOTAL ASSETS | C26: =C13+C25 -> 229403409 | D26: =D13+D25 -> 283703789 | E26: =E13+E25 -> 283703789 | F26: =F13+F25 -> 291674368.5 | G26: =G13+G25 -> 277458022
A28: LIABILITIES
A29: Current liabilities
A30: Bank overdraft | C30: 0 | D30: 0 | E30: 0 | F30: 0 | G30: 0
A31: Borrowing | C31: 0 | D31: 0 | E31: 0 | F31: 0 | G31: 0
A32: Consumer deposits | C32: 71200 | D32: 0 | E32: 0 | F32: 71199.87 | G32: 0
A33: Trade and other payables | C33: 12981395 | D33: 10352812 | E33: 10352812 | F33: 18473223.63 | G33: 5352812
A34: Provisions | C34: 0 | D34: 2608095 | E34: 2608095 | F34: 0 | G34: 2608095
A35: Total current liabilities | C35: =SUM(C30:C34) -> 13052595 | D35: =SUM(D30:D34) -> 12960907 | E35: =SUM(E30:E34) -> 12960907 | F35: =SUM(F30:F34) -> 18544423.5 | G35: =SUM(G30:G34) -> 7960907
A37: Non current liabilities
A38: Borrowing | C38: 0 | D38: 0 | E38: 0 | F38: 0 | G38: 0
A39: Provisions | C39: 2590571 | D39: 5110195 | E39: 5110195 | F39: 2374000 | G39: 5110195
A40: Total non current liabilities | C40: =SUM(C38:C39) -> 2590571 | D40: =SUM(D38:D39) -> 5110195 | E40: =SUM(E38:E39) -> 5110195 | F40: =SUM(F38:F39) -> 2374000 | G40: =SUM(G38:G39) -> 5110195
A41: TOTAL LIABILITIES | C41: =C35+C40 -> 15643166 | D41: =D35+D40 -> 18071102 | E41: =E35+E40 -> 18071102 | F41: =F35+F40 -> 20918423.5 | G41: =G35+G40 -> 13071102
A43: NET ASSETS | B43: 2 | C43: =C26-C41 -> 213760243 | D43: =D26-D41 -> 265632687 | E43: =E26-E41 -> 265632687 | F43: =F26-F41 -> 270755945 | G43: =G26-G41 -> 264386920
A45: COMMUNITY WEALTH/EQUITY
A46: Accumulated Surplus/(Deficit) | C46: 213760243 | D46: 265632687 | E46: 265632687 | F46: 270755945 | G46: 264386920
A47: Reserves | C47: 0 | D47: 0 | E47: 0 | F47: 0 | G47: 0
A48: TOTAL COMMUNITY WEALTH/EQUITY | B48: 2 | C48: =SUM(C46:C47) -> 213760243 | D48: =SUM(D46:D47) -> 265632687 | E48: =SUM(E46:E47) -> 265632687 | F48: =SUM(F46:F47) -> 270755945 | G48: =SUM(G46:G47) -> 264386920
A49: =head27a -> References
A50: 1. Material variances to be explained in Table SC1
A51: 2. Net assets must balance with Total Community Wealth/Equity
A54: check balance | C54: =C43-C48 -> 0 | D54: =D43-D48 -> 0 | E54: =E43-E48 -> 0 | F54: =F43-F48 -> 0 | G54: =G43-G48 -> 0

Sheet C7-CFlow
A1: =muni& " - "&S71F& " - "&date -> Choose name from list - Table C7 Monthly Budget Statement - Cash Flow - Mid-Year Assessment
A2: =desc -> Description | B2: =head27 -> Ref | C2: =Head1 -> 2019/20 | D2: =Head2 -> Budget Year 2020/21
C3: =Head5 -> Audited Outcome | D3: =Head6 -> Original Budget | E3: =Head7 -> Adjusted Budget | F3: =Head38 -> Monthly actual | G3: =Head39 -> YearTD actual | H3: =Head40 -> YearTD budget | I3: =Head41 -> YTD variance | J3: =Head41 -> YTD variance | K3: =Head8 -> Full Year Forecast
A4: R thousands | B4: 1 | J4: %
A5: CASH FLOW FROM OPERATING ACTIVITIES
A6: Receipts
A7: Property rates | C7: 16814377 | D7: 16814377 | E7: 16814377 | F7: 1044867.88 | G7: 10028124.21 | H7: 8407188 | I7: =G7-H7 -> 1620936.21 | J7: =IF(I7=0,"",I7/H7) -> 0.1928036116 | K7: 16814377
A8: Service charges | C8: 574284 | D8: 574284 | E8: 574284 | F8: 42388.65 | G8: 264667.09 | H8: 287142 | I8: -22474.91 | J8: =IF(I8=0,"",I8/H8) -> -0.07827106449 | K8: 574284
A9: Other revenue | C9: 8674725 | D9: 8674725 | E9: 8674725 | F9: =2815541.03-127274 -> 2688267.03 | G9: =8434208.7-892751 -> 7541457.7 | H9: 4337362 | I9: 3204095.7 | J9: =IF(I9=0,"",I9/H9) -> 0.7387199178 | K9: 8674725.22
A10: Transfers and Subsidies - Operational | C10: 76871147 | D10: 76871147 | E10: 76871147 | F10: 32604000 | G10: 73319000 | H10: 73319000 | I10: 0 | J10: =IF(I10=0,"",I10/H10) ->  | K10: 76871147
A11: Transfers and Subsidies - Capital | C11: 15996000 | D11: 15996000 | E11: 15996000 | F11: 3000000 | G11: 11000000 | H11: 11000000 | I11: 0 | J11: =IF(I11=0,"",I11/H11) ->  | K11: 15996000
A12: Interest | C12: 5733321 | D12: 5733321 | E12: 5733321 | F12: 127274.03 | G12: 892751.92 | H12: 2866660 | I12: -1973908.08 | J12: -0.6885741874 | K12: 5733321
A13: Dividends | C13: 0 | D13: 0 | E13: 0 | F13: 0 | G13: 0 | H13: 0 | I13: 0 | K13: 0
A14: Payments
A15: Suppliers and employees | C15: -73031191 | D15: -106914003 | E15: -106914003 | F15: -8851747 | G15: -60652075 | H15: -53457001 | I15: =H15-G15 -> 7195074 | J15: -0.1345955416 | K15: -106913999.5
A16: Finance charges | C16: -2646 | D16: -214543 | E16: -214543 | F16: -16488 | G16: -91724 | H16: -107271.5 | I16: =H16-G16 -> -15547.5 | J16: 0.1449359802 | K16: 0
A17: Transfers and Grants | C17: 0 | D17: 0 | E17: 0 | F17: 0 | G17: 0 | H17: 0 | I17: =H17-G17 -> 0 | K17: 0
A18: NET CASH FROM/(USED) OPERATING ACTIVITIES | C18: =SUM(C7:C13)+SUM(C15:C17) -> 51630017 | D18: 17535308 | E18: 17535308 | F18: 30638562.59 | G18: 42302201.92 | H18: 46653079.5 | I18: =H18-G18 -> 4350877.58 | J18: 0.09326024405 | K18: =SUM(K7:K13)+SUM(K15:K17) -> 17749854.69
A20: CASH FLOWS FROM INVESTING ACTIVITIES
A21: Receipts
A22: Proceeds on disposal of PPE | I22: =G22-H22 -> 0 | J22: =IF(I22=0,"",I22/H22) -> 
A24: Decrease (increase) in non-current receivables | I24: =G24-H24 -> 0
A25: Decrease (increase) in non-current investments | I25: =G25-H25 -> 0
A26: Payments
A27: Capital assets | C27: 189451960 | D27: -31941767 | E27: -31941767 | F27: -4030949 | G27: -22129249 | H27: -15970883 | I27: =H27-G27 -> 6158366 | J27: -0.385599594 | K27: 31941002
A28: NET CASH FROM/(USED) INVESTING ACTIVITIES | C28: =SUM(C22:C25)+C27 -> 189451960 | D28: =SUM(D22:D25)+D27 -> -31941767 | E28: -31941767 | F28: -4030949 | G28: -22129249 | H28: -15970883 | I28: =H28-G28 -> 6158366 | J28: -0.385599594 | K28: =SUM(K22:K25)+K27 -> 31941002
A30: CASH FLOWS FROM FINANCING ACTIVITIES
A31: Receipts
A32: Short term loans | I32: =G32-H32 -> 0 | J32: =IF(I32=0,"",I32/H32) -> 
A33: Borrowing long term/refinancing | I33: =G33-H33 -> 0
A34: Increase (decrease) in consumer deposits | I34: =G34-H34 -> 0
A35: Payments
A36: Repayment of borrowing | I36: =H36-G36 -> 0
A37: NET CASH FROM/(USED) FINANCING ACTIVITIES | C37: =SUM(C32:C34)+C36 -> 0 | D37: 0 | E37: 0 | F37: 0 | G37: 0 | H37: 0 | I37: =H37-G37 -> 0 | K37: =SUM(K32:K34)+K36 -> 0
A39: NET INCREASE/ (DECREASE) IN CASH HELD | C39: =C18+C28+C37 -> 241081977 | D39: -14406459 | E39: -14406459 | F39: 26607613.59 | G39: 20172952.92 | H39: 30682196.5 | K39: =K18+K28+K37 -> 49690856.69
A40: Cash/cash equivalents at beginning: | C40: 65454699 | D40: 110041000 | E40: 110041000 | G40: 65454699 | H40: =IF(E40=0, D40, E40) -> 110041000 | K40: =G40 -> 65454699
A41: Cash/cash equivalents at month/year end: | C41: =C39+C40 -> 306536676 | D41: =D39+D40 -> 95634541 | E41: =E39+E40 -> 95634541 | G41: =G39+G40 -> 85627651.92 | H41: =H39+H40 -> 140723196.5 | K41: =K39+K40 -> 115145555.7
A42: References
A43: 1. Material variances to be explained in Table SC1

Sheet SC1
A1: =muni& " - "&S71G& " - "&date -> Choose name from list - Supporting Table SC1 Material variance explanations - Mid-Year Assessment
A2: =head27 -> Ref | B2: =desc -> Description
C3: Variance | D3: Reasons for material deviations | E3: Remedial or corrective steps/remarks
B4: R thousands
A5: 1 | B5: ='C4-FinPerf RE'!A5 -> Revenue By Source
B6: Interest on investment | C6: 1032000 | D6: Invest will be mature towards the end of financial year | E6: we will wait for the maturity date of the interest
B7: interest on oustanding Balance | C7: 942000 | D7: The municipality does not charge interest on debtors | E7: we will revise during adjustment budget.
B8: Fine and Penalties | C8: 17000 | D8: the country is still underlock down there movements and number of people acceptable in our poremises is limited | E8: we will revise during adjustment budget.
B9: rental | C9: 173000 | D9: we have not yet received rent | E9: we wiil wait till we receive rental income.
A10: 2 | B10: ='C4-FinPerf RE'!A24 -> Expenditure By Type
B12: Depreciation & asset impairment | C12: =1308000+660000 -> 1968000 | D12: impaiment is done on annual bases | E12: this will be addresed to wards the year end
B13: Materials and bulk purchases | C13: 794000 | D13: due to lockdown other events are prohibitated | E13: revise during adjustment budget
B14: Transfers and subsidies | C14: 88000 | D14: we still waiting invoices from Eskom | E14: invoices are requested on monthly basis
A15: 3 | B15: =RIGHT('C5-Capex'!A40,19) -> Capital Expenditure
B16: Capex | C16: 1242502 | D16: Capital project are being priorites hence there is posite varience
A20: 4 | B20: Financial Position
A25: 5 | B25: Cash Flow
B26: Property rates | C26: 1977266.33 | D26: Public works made payments for the whole year. | E26: this will be corrected on adjustment budget
B27: Suppliers and employees | C27: 7195074 | D27: Some events are put on hold due to covid 19 | E27: Events/project will implement once people are vaccinated
B28: Other revenue | C28: 1414889 | D28: we have received more than what we anticipated | E28: we will revise during adjustment budget.
B29: Interest | C29: 2161308.43 | D29: interest is matring on annual basis | E29: we will wait for the maturity date of the interest
A30: 6 | B30: Measureable performance
A35: 7 | B35: Municipal Entities
B36: The municipality does not have entity | C36: 0 | D36: The municipality does not have entity | E36: The municipality does not have entity
A41: =head27a -> References
A42: 1. Revenue for each source, vote and standard classification
A43: 2. Expenditure for each type, vote and standard classification
A44: 3. Capital expenditure for each vote and standard classification
A45: 4. Explain any material variances between the annual budget and the expected financial position based on current trends
A46: 5. Cash receipts by source and cash payments by type where not explained under revenue and expenditure
A47: 6. For Sept, Dec, Mar and Jun statements explain any material variances in achievement of measurable performance objectives

Sheet SC2
A1: =muni& " - "&S71H& " - "&Head57 -> Choose name from list - Supporting Table SC2 Monthly Budget Statement - performance indicators - Mid-Year Assessment
A2: Description of financial indicator | B2: Basis of calculation | C2: =head27 -> Ref | D2: =Head1 -> 2019/20 | E2: =Head2 -> Budget Year 2020/21
D3: =Head5 -> Audited Outcome | E3: =Head6 -> Original Budget | F3: =Head7 -> Adjusted Budget | G3: =Head39 -> YearTD actual | H3: =Head8 -> Full Year Forecast
A5: Borrowing Management
A7: Capital Charges to Operating Expenditure | B7: Interest & principal paid/Operating Expenditure | D7: =IF(ISERROR((D42-D43)/D45),0,((D42-D43)/D45)) -> 4.241910772e-05 | E7: =IF(ISERROR((E42+E44)/E45),0,((E42+E44)/E45)) -> 0.09193371574 | F7: =IF(ISERROR((F42+F44)/F45),0,((F42+F44)/F45)) -> 0.09193371574 | G7: =IF(ISERROR((G42+G44)/G45),0,((G42+G44)/G45)) -> 7.199608161e-05 | H7: =IF(ISERROR((H42+H44)/H45),0,((H42+H44)/H45)) -> 0.05244431973
A8: Borrowed funding of 'own' capital expenditure | B8: Borrowings/Capital expenditure excl. transfers and grants | D8: =IF(ISERROR(D47/D46),0,(D47/D46)) -> 0 | E8: =IF(ISERROR(E47/E46),0,(E47/E46)) -> 0 | F8: =IF(ISERROR(F47/F46),0,(F47/F46)) -> 0 | G8: =IF(ISERROR(G47/G46),0,(G47/G46)) -> 0 | H8: =IF(ISERROR(H47/H46),0,(H47/H46)) -> 0
A9: Safety of Capital
A10: Debt to Equity | B10: Loans, Accounts Payable, Overdraft & Tax Provision/ Funds & Reserves | D10: =IF(ISERROR(D48/D49),0,(D48/D49)) -> 0.06072876236 | E10: =IF(ISERROR(E48/E49),0,(E48/E49)) -> 0.03897416435 | F10: =IF(ISERROR(F48/F49),0,(F48/F49)) -> 0.03897416435 | G10: =IF(ISERROR(G48/G49),0,(G48/G49)) -> 0.06822832137 | H10: =IF(ISERROR(H48/H49),0,(H48/H49)) -> 0.02024613018
A11: Gearing | B11: Long Term Borrowing/ Funds & Reserves | D11: =IF(ISERROR(D51/D50),0,(D51/D50)) -> 0 | E11: =IF(ISERROR(E51/E50),0,(E51/E50)) -> 0 | F11: =IF(ISERROR(F51/F50),0,(F51/F50)) -> 0 | G11: =IF(ISERROR(G51/G50),0,(G51/G50)) -> 0 | H11: =IF(ISERROR(H51/H50),0,(H51/H50)) -> 0
A12: Liquidity
A13: Current Ratio | B13: Current assets/current liabilities | C13: 1 | D13: =IF(ISERROR(D52/D53),0,(D52/D53)) -> 6.733114526 | E13: =IF(ISERROR(E52/E53),0,(E52/E53)) -> 8.241159434 | F13: =IF(ISERROR(F52/F53),0,(F52/F53)) -> 8.241159434 | G13: =IF(ISERROR(G52/G53),0,(G52/G53)) -> 6.629157683 | H13: =IF(ISERROR(H52/H53),0,(H52/H53)) -> 13.41717734
A14: Liquidity Ratio | B14: Monetary Assets/Current Liabilities | D14: =IF(ISERROR(D54/D53),0,(D54/D53)) -> 4.898815216 | E14: =IF(ISERROR(E54/E53),0,(E54/E53)) -> 5.196464877 | F14: =IF(ISERROR(F54/F53),0,(F54/F53)) -> 5.196464877 | G14: =IF(ISERROR(G54/G53),0,(G54/G53)) -> 4.617433969 | H14: =IF(ISERROR(H54/H53),0,(H54/H53)) -> 8.460204095
A15: Revenue Management
A16: Annual Debtors Collection Rate (Payment Level %) | B16: Last 12 Mths Receipts/ Last 12 Mths Billing
A17: Outstanding Debtors to Revenue | B17: Total Outstanding Debtors to Annual Revenue | D17: =IF(ISERROR(D59/D55),0,(D59/D55)) -> 0.2448639472 | E17: =IF(ISERROR(E59/E55),0,(E59/E55)) -> 0.3646243703 | F17: =IF(ISERROR(F59/F55),0,(F59/F55)) -> 0.3271286332 | G17: =IF(ISERROR(G59/G55),0,(G59/G55)) -> 0.4488033795 | H17: =IF(ISERROR(H59/H55),0,(H59/H55)) -> 0.3271286332
A18: Longstanding Debtors Recovered | B18: Debtors > 12 Mths Recovered/Total Debtors > 12 Months Old | D18: =IF(ISERROR(D64/D63),0,(D64/D63)) -> 0 | E18: =IF(ISERROR(E64/E63),0,(E64/E63)) -> 0 | F18: =IF(ISERROR(F64/F63),0,(F64/F63)) -> 0 | G18: =IF(ISERROR(G64/G63),0,(G64/G63)) -> 0 | H18: =IF(ISERROR(H64/H63),0,(H64/H63)) -> 0
A19: Creditors Management
A20: Creditors System Efficiency | B20: % of Creditors Paid Within Terms (within MFMA s 65(e)) | G20: 0.14
A21: Funding of Provisions
A22: Percentage Of Provisions Not Funded | B22: Unfunded Provisions/Total Provisions
A23: Other Indicators
A24: Electricity Distribution Losses | B24: % Volume (units purchased and generated less units sold)/units purchased and generated | C24: 2
A25: Water Distribution Losses | B25: % Volume (units purchased and own source less units sold)/Total units purchased and own source | C25: 2
A26: Employee costs | B26: Employee costs/Total Revenue - capital revenue | D26: =IF(ISERROR(D40/D55),0,(D40/D55)) -> 0.3737175406 | E26: =IF(ISERROR(E40/E55),0,(E40/E55)) -> 0.4129451066 | F26: =IF(ISERROR(F40/F55),0,(F40/F55)) -> 0.370480361 | G26: =IF(ISERROR(G40/G55),0,(G40/G55)) -> 0.2535311855 | H26: =IF(ISERROR(H40/H55),0,(H40/H55)) -> 0.3704805849
A27: Repairs & Maintenance | B27: R&M/Total Revenue - capital revenue | D27: =IF(ISERROR(D41/D55),0,(D41/D55)) -> 0.0850791156 | E27: =IF(ISERROR(E41/E55),0,(E41/E55)) -> 0.1559692591 | F27: =IF(ISERROR(F41/F55),0,(F41/F55)) -> 0.1399303357 | G27: =IF(ISERROR(G41/G55),0,(G41/G55)) -> 0.1937275475 | H27: =IF(ISERROR(H41/H55),0,(H41/H55)) -> 0.1399303357
A28: Interest & Depreciation | B28: I&D/Total Revenue - capital revenue | D28: =IF(ISERROR((D42+D44)/D55),0,((D42+D44)/D55)) -> 0.09537690025 | E28: =IF(ISERROR((E42+E44)/E55),0,((E42+E44)/E55)) -> 0.1032403676 | F28: =IF(ISERROR((F42+F44)/F55),0,((F42+F44)/F55)) -> 0.09262376053 | G28: =IF(ISERROR((G42+G44)/G55),0,((G42+G44)/G55)) -> 5.15124274e-05 | H28: =IF(ISERROR((H42+H44)/H55),0,((H42+H44)/H55)) -> 0.05283805953
A29: IDP regulation financial viability indicators
A30: i. Debt coverage | B30: (Total Operating Revenue - Operating Grants)/Debt service payments due within financial year) | G30: 0
A31: ii. O/S Service Debtors to Revenue | B31: Total outstanding service debtors/annual revenue received for services
A32: iii. Cost coverage | B32: (Available cash + Investments)/monthly fixed operational expenditure
A33: References
A34: 1. Consumer debtors > 12 months old are excluded from current assets.
A35: 2. Material variances to be explained.
A37: Calculations
A38: ='C6-FinPos'!A38 -> Borrowing | D38: ='C6-FinPos'!C38 -> 0 | E38: ='C6-FinPos'!D38 -> 0 | F38: ='C6-FinPos'!E38 -> 0 | G38: ='C6-FinPos'!F38 -> 0 | H38: 0
A39: Total Assets | D39: ='C6-FinPos'!C26 -> 229403409 | E39: ='C6-FinPos'!D26 -> 283703789 | F39: ='C6-FinPos'!E26 -> 283703789 | G39: ='C6-FinPos'!F26 -> 291674368.5 | H39: ='C6-FinPos'!G26 -> 277458022
A40: ='C4-FinPerf RE'!A25 -> Employee related costs | D40: ='C4-FinPerf RE'!C25 -> 36529095 | E40: ='C4-FinPerf RE'!D25 -> 44691585 | F40: ='C4-FinPerf RE'!E25 -> 44691585 | G40: ='C4-FinPerf RE'!G25 -> 20700872 | H40: ='C4-FinPerf RE'!K25 -> 44691612
A41: =A27 -> Repairs & Maintenance | D41: 8316075 | E41: 16880000 | F41: 16880000 | G41: 15817893 | H41: 16880000
A42: Interest (finance charges) | D42: ='C4-FinPerf RE'!C29 -> 4109 | E42: ='C4-FinPerf RE'!D29 -> 0 | F42: ='C4-FinPerf RE'!E29 -> 0 | G42: ='C4-FinPerf RE'!G29 -> 4206 | H42: ='C4-FinPerf RE'!K29 -> 0
A43: Principal paid | D43: =-'C7-CFlow'!C36 -> 0 | E43: =-'C7-CFlow'!D36 -> 0 | F43: =-'C7-CFlow'!E36 -> 0 | G43: =-'C7-CFlow'!G36 -> 0 | H43: =-'C7-CFlow'!K36 -> 0
A44: Depreciation | D44: ='C4-FinPerf RE'!C28 -> 9318525 | E44: ='C4-FinPerf RE'!D28 -> 11173339 | F44: ='C4-FinPerf RE'!E28 -> 11173339 | H44: ='C4-FinPerf RE'!K26 -> 6373932
A45: Operating expenditure | D45: ='C4-FinPerf RE'!C36 -> 96866724 | E45: ='C4-FinPerf RE'!D36 -> 121536902 | F45: ='C4-FinPerf RE'!E36 -> 121536902 | G45: ='C4-FinPerf RE'!G36 -> 58419846 | H45: ='C4-FinPerf RE'!K36 -> 121537128
A46: ='C5-Capex'!A40 -> Total Capital Expenditure | D46: ='C5-Capex'!C40 -> 210788293 | E46: ='C5-Capex'!D40 -> 25696767 | F46: ='C5-Capex'!E40 -> 33420752 | G46: ='C5-Capex'!G40 -> 22129248 | H46: ='C5-Capex'!K40 -> 31941000.66
A47: Borrowed funding for capital | D47: ='C5-Capex'!C72 -> 0 | E47: ='C5-Capex'!D72 -> 0 | F47: ='C5-Capex'!E72 -> 0 | G47: ='C5-Capex'!G72 -> 0 | H47: ='C5-Capex'!K72 -> 0
A48: Debt | D48: ='C6-FinPos'!C30+'C6-FinPos'!C31+'C6-FinPos'!C33+'C6-FinPos'!C38 -> 12981395 | E48: ='C6-FinPos'!D30+'C6-FinPos'!D31+'C6-FinPos'!D33+'C6-FinPos'!D38 -> 10352812 | F48: ='C6-FinPos'!E30+'C6-FinPos'!E31+'C6-FinPos'!E33+'C6-FinPos'!E38 -> 10352812 | G48: ='C6-FinPos'!F30+'C6-FinPos'!F31+'C6-FinPos'!F33+'C6-FinPos'!F38 -> 18473223.63 | H48: ='C6-FinPos'!G30+'C6-FinPos'!G31+'C6-FinPos'!G33+'C6-FinPos'!G38 -> 5352812
A49: Equity | D49: ='C6-FinPos'!C48 -> 213760243 | E49: ='C6-FinPos'!D48 -> 265632687 | F49: ='C6-FinPos'!E48 -> 265632687 | G49: ='C6-FinPos'!F48 -> 270755945 | H49: ='C6-FinPos'!G48 -> 264386920
A50: ='C6-FinPos'!A47 -> Reserves | D50: ='C6-FinPos'!C47 -> 0 | E50: ='C6-FinPos'!D47 -> 0 | F50: ='C6-FinPos'!E47 -> 0 | G50: ='C6-FinPos'!F47 -> 0 | H50: ='C6-FinPos'!G47 -> 0
A51: ='C6-FinPos'!A38 -> Borrowing | D51: ='C6-FinPos'!C38 -> 0 | E51: ='C6-FinPos'!D38 -> 0 | F51: ='C6-FinPos'!E38 -> 0 | G51: ='C6-FinPos'!F38 -> 0 | H51: ='C6-FinPos'!G38 -> 0
A52: ='C6-FinPos'!A6 -> Current assets | D52: ='C6-FinPos'!C13 -> 87884617 | E52: ='C6-FinPos'!D13 -> 106812901 | F52: ='C6-FinPos'!E13 -> 106812901 | G52: ='C6-FinPos'!F13 -> 122933907.5 | H52: ='C6-FinPos'!G13 -> 106812901
A53: ='C6-FinPos'!A29 -> Current liabilities | D53: ='C6-FinPos'!C35 -> 13052595 | E53: ='C6-FinPos'!D35 -> 12960907 | F53: ='C6-FinPos'!E35 -> 12960907 | G53: ='C6-FinPos'!F35 -> 18544423.5 | H53: ='C6-FinPos'!G35 -> 7960907
A54: Monetary assets | D54: ='C6-FinPos'!C7+'C6-FinPos'!C8 -> 63942251 | E54: ='C6-FinPos'!D7+'C6-FinPos'!D8 -> 67350898 | F54: ='C6-FinPos'!E7+'C6-FinPos'!E8 -> 67350898 | G54: ='C6-FinPos'!F7+'C6-FinPos'!F8 -> 85627651 | H54: ='C6-FinPos'!G7+'C6-FinPos'!G8 -> 67350898
A55: ='C4-FinPerf RE'!A22 -> Total Revenue (excluding capital transfers and contributions) | D55: ='C4-FinPerf RE'!C22 -> 97745198 | E55: ='C4-FinPerf RE'!D22 -> 108226455 | F55: ='C4-FinPerf RE'!E22 -> 120631455 | G55: ='C4-FinPerf RE'!G22 -> 81650200 | H55: ='C4-FinPerf RE'!K22 -> 120631455
A56: ='C4-FinPerf RE'!A19 -> Transfers and subsidies | D56: ='C4-FinPerf RE'!C19 -> 69092059 | E56: ='C4-FinPerf RE'!D19 -> 73462500 | F56: ='C4-FinPerf RE'!E19 -> 85867500 | G56: ='C4-FinPerf RE'!G19 -> 65605750 | H56: ='C4-FinPerf RE'!K19 -> 85867500
A57: ='C4-FinPerf RE'!A39 -> Transfers and subsidies - capital (monetary allocations) (National / Provincial and District) | D57: ='C4-FinPerf RE'!C39 -> 16076001 | E57: ='C4-FinPerf RE'!D39 -> 15996000 | F57: ='C4-FinPerf RE'!E39 -> 15996000 | G57: ='C4-FinPerf RE'!G39 -> 11106881 | H57: ='C4-FinPerf RE'!K39 -> 15996000
A58: Debt service payments | D58: ='C7-CFlow'!C12+'C7-CFlow'!C36 -> 5733321 | E58: ='C7-CFlow'!D12+'C7-CFlow'!D36 -> 5733321 | F58: ='C7-CFlow'!E12+'C7-CFlow'!E36 -> 5733321 | G58: ='C7-CFlow'!G16+'C7-CFlow'!G36 -> -91724 | H58: ='C7-CFlow'!K16+'C7-CFlow'!K36 -> 0
A59: Outstanding debtors (receivables) | D59: ='C6-FinPos'!C9+'C6-FinPos'!C10+'C6-FinPos'!C11+'C6-FinPos'!C16 -> 23934275 | E59: ='C6-FinPos'!D9+'C6-FinPos'!D10+'C6-FinPos'!D11+'C6-FinPos'!D16 -> 39462003 | F59: ='C6-FinPos'!E9+'C6-FinPos'!E10+'C6-FinPos'!E11+'C6-FinPos'!E16 -> 39462003 | G59: ='C6-FinPos'!F9+'C6-FinPos'!F10+'C6-FinPos'!F11+'C6-FinPos'!F16 -> 36644885.7 | H59: ='C6-FinPos'!G9+'C6-FinPos'!G10+'C6-FinPos'!G11+'C6-FinPos'!G16 -> 39462003
A60: Annual services revenue | D60: =SUM('C4-FinPerf RE'!C7:C11) -> 528201 | E60: =SUM('C4-FinPerf RE'!D7:D11) -> 574287 | F60: =SUM('C4-FinPerf RE'!E7:E11) -> 574287 | G60: =SUM('C4-FinPerf RE'!G7:G11) -> 266748
A61: Cash + investments | B61: Including LT investments | D61: ='C6-FinPos'!C7+'C6-FinPos'!C8+'C6-FinPos'!C17-'C6-FinPos'!C30 -> 63942251 | E61: ='C6-FinPos'!D7+'C6-FinPos'!D8+'C6-FinPos'!D17-'C6-FinPos'!D30 -> 67350898 | F61: ='C6-FinPos'!E7+'C6-FinPos'!E8+'C6-FinPos'!E17-'C6-FinPos'!E30 -> 67350898 | G61: ='C6-FinPos'!F7+'C6-FinPos'!F8+'C6-FinPos'!F17-'C6-FinPos'!F30 -> 85627651 | H61: ='C6-FinPos'!G7+'C6-FinPos'!G8+'C6-FinPos'!G17-'C6-FinPos'!G30 -> 67350898
A62: Fixed operational expend. (monthly)
A63: Longstanding debtors outstanding | D63: ='C6-FinPos'!C16 -> 0 | E63: ='C6-FinPos'!D16 -> 0 | F63: ='C6-FinPos'!E16 -> 0 | G63: ='C6-FinPos'!F16 -> 0 | H63: ='C6-FinPos'!G16 -> 0
A64: Longstanding debtors recovered
A65: Attorney collections

Sheet SC3
A1: =muni& " - "&S71I& " - "&Head57 -> Choose name from list - Supporting Table SC3 Monthly Budget Statement - aged debtors - Mid-Year Assessment
A2: =desc -> Description | C2: =Head2 -> Budget Year 2020/21
A3: R thousands | B3: NT Code | C3: 0-30 Days | D3: 31-60 Days | E3: 61-90 Days | F3: 91-120 Days | G3: 121-150 Dys | H3: 151-180 Dys | I3: 181 Dys-1 Yr | J3: Over 1Yr | K3: Total | L3: Total over 90 days | M3: Actual Bad Debts Written Off against Debtors | N3: Impairment - Bad Debts i.t.o Council Policy
A4: Debtors Age Analysis By Income Source
A5: Trade and Other Receivables from Exchange Transactions - Water | B5: 1200 | C5: 0 | D5: 0 | E5: 0 | F5: 0 | G5: 0 | H5: 0 | I5: 0 | J5: 0 | K5: =SUM(C5:J5) -> 0 | L5: =SUM(F5:J5) -> 0
A6: Trade and Other Receivables from Exchange Transactions - Electricity | B6: 1300 | C6: 0 | D6: 0 | E6: 0 | F6: 0 | G6: 0 | H6: 0 | I6: 0 | J6: 0 | K6: =SUM(C6:J6) -> 0 | L6: =SUM(F6:J6) -> 0
A7: Receivables from Non-exchange Transactions - Property Rates | B7: 1400 | C7: 1219162 | D7: 654404 | E7: -780617 | F7: 616838 | G7: 453422 | H7: 434960 | I7: 2128865 | J7: 14532333 | K7: =SUM(C7:J7) -> 19259367 | L7: 18166418
A8: Receivables from Exchange Transactions - Waste Water Management | B8: 1500 | C8: 0 | D8: 0 | E8: 0 | F8: 0 | G8: 0 | H8: 0 | I8: 0 | J8: 0 | K8: 0 | L8: 0
A9: Receivables from Exchange Transactions - Waste Management | B9: 1600 | C9: 44617 | D9: 26658 | E9: 19651 | F9: 16683 | G9: 14939 | H9: 14424 | I9: 70926 | J9: 210133 | K9: 418031 | L9: =SUM(F9:J9) -> 327105
A10: Receivables from Exchange Transactions - Property Rental Debtors | B10: 1700 | C10: 0 | D10: 0 | E10: 0 | F10: 0 | G10: 0 | H10: 0 | I10: 0 | J10: 0 | K10: 0 | L10: =SUM(F10:J10) -> 0
A11: Interest on Arrear Debtor Accounts | B11: 1810 | C11: 0 | D11: 0 | E11: 0 | F11: 0 | G11: 0 | H11: 0 | I11: 327606 | J11: 9130358 | K11: 9457964 | L11: 9457964
A12: Recoverable unauthorised, irregular, fruitless and wasteful expenditure | B12: 1820 | C12: 0 | D12: 0 | E12: 0 | F12: 0 | G12: 0 | H12: 0 | I12: 0 | J12: 0 | K12: 0 | L12: 0
A13: Other | B13: 1900 | C13: 0 | D13: 0 | E13: 0 | F13: 0 | G13: 0 | H13: 0 | I13: 0 | J13: 0 | K13: 0 | L13: =SUM(F13:J13) -> 0
A14: Total By Income Source | B14: 2000 | C14: =SUM(C5:C13) -> 1263779 | D14: 681062 | E14: -760966 | F14: 633521 | G14: 468361 | H14: 449384 | I14: 2527397 | J14: 23872824 | K14: 29135362 | L14: =SUM(L5:L13) -> 27951487 | M14: 0 | N14: 0
A15: =Head1&" - totals only" -> 2019/20 - totals only | K15: =SUM(C15:J15) -> 0 | L15: =SUM(F15:J15) -> 0
A16: Debtors Age Analysis By Customer Group
A17: Organs of State | B17: 2200 | C17: 68105 | D17: -36119 | E17: -207578 | F17: 44451 | G17: 42642 | H17: 41595 | I17: 89399 | J17: 613029 | K17: =SUM(C17:J17) -> 655524 | L17: =SUM(F17:J17) -> 831116
A18: Commercial | B18: 2300 | C18: 846221 | D18: 578694 | E18: 494486 | F18: 393427 | G18: 239972 | H18: 232561 | I18: 1413537 | J18: 9028275 | K18: =SUM(C18:J18) -> 13227173 | L18: =SUM(F18:J18) -> 11307772
A19: Households | B19: 2400 | C19: 282411 | D19: 188673 | E19: 17761 | F19: 130163 | G19: 120703 | H19: 110889 | I19: 586828 | J19: 2863229 | K19: =SUM(C19:J19) -> 4300657 | L19: =SUM(F19:J19) -> 3811812
A20: Other | B20: 2500 | C20: 67042 | D20: -50186 | E20: -1065635 | F20: 65480 | G20: 65044 | H20: 64339 | I20: 437633 | J20: 11368291 | K20: =SUM(C20:J20) -> 10952008 | L20: =SUM(F20:J20) -> 12000787
A21: Total By Customer Group | B21: 2600 | C21: =SUM(C17:C20) -> 1263779 | D21: 681062 | E21: -760966 | F21: 633521 | G21: 468361 | H21: 449384 | I21: 2527397 | J21: =SUM(J17:J20) -> 23872824 | K21: =SUM(K17:K20) -> 29135362 | L21: =SUM(L17:L20) -> 27951487 | M21: =SUM(M17:M20) -> 0 | N21: =SUM(N17:N20) -> 0
A22: Notes
A23: Material increases in value of debtors' categories compared to previous month to be explained
A24: Bad debts = amounts actually written off in the month
A25: Total by Income Source must reconcile with Total by Customer Group
C26: =C14-C21 -> 0 | D26: =D14-D21 -> 0 | E26: =E14-E21 -> 0 | F26: 0 | G26: 0 | H26: 0 | I26: 0 | J26: =J14-J21 -> 0 | K26: 0
C27: =IF(C26=0,"","MUST AGREE") ->  | D27: =IF(D26=0,"","MUST AGREE") -> 

Sheet SC4
A1: =muni& " - "&S71J& " - "&Head57 -> Choose name from list - Supporting Table SC4 Monthly Budget Statement - aged creditors - Mid-Year Assessment
A2: =desc -> Description | B2: NT Code | C2: =Head2 -> Budget Year 2020/21 | L2: Prior year totals for chart (same period)
C3: 0 - 30 Days | D3: 31 - 60 Days | E3: 61 - 90 Days | F3: 91 - 120 Days | G3: 121 - 150 Days | H3: 151 - 180 Days | I3: 181 Days - 1 Year | J3: Over 1 Year | K3: Total
A4: R thousands
A5: Creditors Age Analysis By Customer Type
A6: Bulk Electricity | B6: 0100 | C6: 0 | D6: 0 | E6: 0 | F6: 0 | G6: 0 | H6: 0 | I6: 0 | J6: 0 | K6: =SUM(C6:J6) -> 0 | L6: 0
A7: Bulk Water | B7: 0200 | C7: 0 | D7: 0 | E7: 0 | F7: 0 | G7: 0 | H7: 0 | I7: 0 | J7: 0 | K7: =SUM(C7:J7) -> 0 | L7: 0
A8: PAYE deductions | B8: 0300 | C8: 0 | D8: 0 | E8: 0 | F8: 0 | G8: 0 | H8: 0 | I8: 0 | J8: 0 | K8: 0 | L8: 0
A9: VAT (output less input) | B9: 0400 | C9: 0 | D9: 0 | E9: 0 | F9: 0 | G9: 0 | H9: 0 | I9: 0 | J9: 0 | K9: 0 | L9: 0
A10: Pensions / Retirement deductions | B10: 0500 | C10: 0 | D10: 0 | E10: 0 | F10: 0 | G10: 0 | H10: 0 | I10: 0 | J10: 0 | K10: 0 | L10: 0
A11: Loan repayments | B11: 0600 | C11: 0 | D11: 0 | E11: 0 | F11: 0 | G11: 0 | H11: 0 | I11: 0 | J11: 0 | K11: 0 | L11: 0
A12: Trade Creditors | B12: 0700 | C12: 0 | D12: 0 | E12: 0 | F12: 0 | G12: 0 | H12: 0 | I12: 0 | J12: 0 | K12: 0 | L12: 0
A13: Auditor General | B13: 0800 | C13: 0 | D13: 0 | E13: 0 | F13: 0 | G13: 0 | H13: 0 | I13: 0 | J13: 0 | K13: 0 | L13: 0
A14: Other | B14: 0900 | C14: 1175646 | D14: 0 | E14: 0 | F14: 0 | G14: 0 | H14: 0 | I14: 0 | J14: 0 | K14: =SUM(C14:J14) -> 1175646 | L14: 0
A15: Total By Customer Type | B15: 1000 | C15: =SUM(C6:C14) -> 1175646 | D15: =SUM(D6:D14) -> 0 | E15: 0 | F15: 0 | G15: 0 | H15: 0 | I15: 0 | J15: 0 | K15: =SUM(K6:K14) -> 1175646 | L15: =SUM(L6:L14) -> 0
A16: Notes
A17: Material increases in value of creditors' categories compared to previous month to be explained

Sheet SC5
A1: =muni& " - "&S71K& " - "&Head57 -> Choose name from list - Supporting Table SC5 Monthly Budget Statement - investment portfolio - Mid-Year Assessment
A2: Investments by maturity Name of institution & investment ID | B2: Ref | C2: Period of Investment | D2: Type of Investment | E2: Capital Guarantee (Yes/ No) | F2: Variable or Fixed interest rate | G2: Interest Rate ᶟ | H2: Commission Paid (Rands) | I2: Commission Recipient | J2: Expiry date of investment | K2: Opening balance | L2: Interest to be realised | M2: Partial / Premature Withdrawal (4) | N2: Investment Top Up | O2: Closing Balance
A3: R thousands | C3: Yrs/Months
A4: Municipality
A5: FIXED Deposit Investment | C5: Months | D5: Fixed | E5: no | F5: Fixed Interest rate | G5: 0.04275 | H5: 0 | I5: 0 | J5: 2021-06-25 | K5: 30000000 | L5: 0 | M5: 0 | N5: 0 | O5: =SUM(K5:N5) -> 30000000
A6: Call Investment | C6: Months | D6: Viriable | E6: no | F6: variable | G6: 0.04275 | H6: 0 | I6: 0 | J6: 2021-06-25 | K6: 45233789 | L6: 704737 | M6: 0 | N6: 0 | O6: 45938526
O7: 0
O8: 0
O9: 0
O10: 0
O11: 0
A12: Municipality sub-total | K12: =SUM(K5:K11) -> 75233789 | M12: =SUM(M5:M11) -> 0 | N12: =SUM(N5:N11) -> 0 | O12: =SUM(O5:O11) -> 75938526
A14: Entities
O15: =SUM(K15:N15) -> 0
O16: 0
O17: 0
O18: 0
O19: 0
O20: 0
O21: 0
A22: Entities sub-total | K22: =SUM(K15:K21) -> 0 | M22: =SUM(M15:M21) -> 0 | N22: =SUM(N15:N21) -> 0 | O22: =SUM(O15:O21) -> 0
A24: TOTAL INVESTMENTS AND INTEREST | B24: 2 | K24: =K12+K22 -> 75233789 | M24: =M12+M22 -> 0 | N24: =N12+N22 -> 0 | O24: =O12+O22 -> 75938526
A25: =head27a -> References
A26: 2. List investments in expiry date order
A27: 3. If 'variable' is selected in column F, input interest rate range
A28: 4. Withdrawals to be entered as negative

Sheet SC6
A1: =muni& " - "&S71L& " - "&Head57 -> Choose name from list - Supporting Table SC6 Monthly Budget Statement - transfers and grant receipts - Mid-Year Assessment
A2: =desc -> Description | B2: =head27 -> Ref | C2: =Head1 -> 2019/20 | D2: =Head2 -> Budget Year 2020/21
C3: =Head5 -> Audited Outcome | D3: =Head6 -> Original Budget | E3: =Head7 -> Adjusted Budget | F3: =Head38 -> Monthly actual | G3: =Head39 -> YearTD actual | H3: =Head40 -> YearTD budget | I3: =Head41 -> YTD variance | J3: =Head41 -> YTD variance | K3: =Head8 -> Full Year Forecast
A4: R thousands | J4: %
A5: RECEIPTS: | B5: 1,2
A7: Operating Transfers and Grants
A8: National Government: | C8: =SUM(C9:C19) -> 72075000 | D8: 88678000 | E8: 88678000 | F8: 32604000 | G8: 71502000 | H8: 71502000 | I8: 0 | J8: =IF(I8=0,"",I8/H8) ->  | K8: =SUM(K9:K19) -> 88678000
A9: Local Government Equitable Share | C9: 62733000 | D9: 79735000 | E9: 79735000 | F9: 32604000 | G9: 62902000 | H9: 62902000 | I9: =G9-H9 -> 0 | K9: 79735000
A10: Finance Management | C10: 2435000 | D10: 2800000 | E10: 2800000 | G10: 2800000 | H10: 2800000 | K10: 2800000
A11: EPWP Incentive | C11: 1440000 | D11: 1143000 | E11: 1143000 | F11: 0 | G11: 800000 | H11: 800000 | K11: 1143000
A12: Integrated National Electrification Programme | C12: 5467000 | D12: 5000000 | E12: 5000000 | F12: 0 | G12: 5000000 | H12: 5000000 | K12: 5000000
B14: 3 | I14: 0
I15: 0
I16: 0
I17: 0
I18: 0
A19: Other transfers and grants [insert description] | I19: 0
A20: Provincial Government: | C20: =SUM(C21:C26) -> 1714000 | D20: 1817000 | E20: 1817000 | F20: 0 | G20: 1817000 | H20: 1817000 | I20: 0 | K20: =SUM(K21:K26) -> 1817000
A21: Library Grant | C21: 1714000 | D21: 1817000 | E21: 1817000 | F21: 0 | G21: 1817000 | H21: 1817000 | I21: =G21-H21 -> 0 | K21: 1817000
I23: 0
B24: 4 | I24: 0
I25: 0
A26: Other transfers and grants [insert description] | I26: 0
A27: District Municipality: | C27: =SUM(C28:C29) -> 0 | D27: 0 | E27: 0 | F27: 0 | G27: 0 | H27: 0 | I27: 0 | K27: =SUM(K28:K29) -> 0
A28: [insert description] | I28: 0
I29: 0
A30: Other grant providers: | C30: =SUM(C31:C37) -> 0 | D30: 0 | E30: 0 | F30: 0 | G30: 0 | H30: 0 | I30: 0 | K30: =SUM(K31:K37) -> 0
A31: [insert description] | I31: 0
I37: 0
A38: Total Operating Transfers and Grants | B38: 5 | C38: =C8+C20+C27+C30 -> 73789000 | D38: 90495000 | E38: 90495000 | F38: 32604000 | G38: 73319000 | H38: 73319000 | I38: 0 | K38: =K8+K20+K27+K30 -> 90495000
A40: Capital Transfers and Grants
A41: =A8 -> National Government: | C41: =SUM(C42:C51) -> 16076000 | D41: 15996000 | E41: 15996000 | F41: 3000000 | G41: 12000000 | H41: 12000000 | I41: 0 | J41: =IF(I41=0,"",I41/H41) ->  | K41: 15996000
A42: Municipal Infrastructure Grant (MIG) | C42: 16076000 | D42: 15996000 | E42: 15996000 | F42: 3000000 | G42: 12000000 | H42: 12000000 | I42: =G42-H42 -> 0 | K42: 15996000
I47: 0
I48: 0
I49: 0
I50: 0
A51: Other capital transfers [insert description] | I51: 0
A52: =A20 -> Provincial Government: | C52: =SUM(C53:C58) -> 0 | D52: 0 | E52: 0 | F52: 0 | G52: 0 | H52: 0 | I52: =G52-H52 -> 0 | J52: =IF(I52=0,"",I52/H52) ->  | K52: =SUM(K53:K58) -> 0
A53: [insert description] | I53: 0 | J53: =IF(I53=0,"",I53/H53) -> 
I58: 0
A59: =A27 -> District Municipality: | C59: =SUM(C60:C61) -> 0 | D59: 0 | E59: 0 | F59: 0 | G59: 0 | H59: 0 | I59: 0 | K59: =SUM(K60:K61) -> 0
A60: [insert description] | I60: 0
I61: 0
A62: =A30 -> Other grant providers: | C62: =SUM(C63:C68) -> 0 | D62: 0 | E62: 0 | F62: 0 | G62: 0 | H62: 0 | I62: 0 | K62: =SUM(K63:K68) -> 0
A63: [insert description] | I63: 0 | J63: =IF(I63=0,"",I63/H63) -> 
I68: 0
A69: Total Capital Transfers and Grants | B69: 5 | C69: =C41+C52+C59+C62 -> 16076000 | D69: =D41+D52+D59+D62 -> 15996000 | E69: 15996000 | F69: 3000000 | G69: 12000000 | H69: 12000000 | I69: 0 | K69: 15996000
A71: TOTAL RECEIPTS OF TRANSFERS & GRANTS | B71: 5 | C71: =C38+C69 -> 89865000 | D71: 106491000 | E71: 106491000 | F71: 35604000 | G71: 85319000 | H71: 85319000 | I71: 0 | K71: 106491000
A72: =head27a -> References
A73: 1. Each grant is listed by name as gazetted together with the name of the transferring department or municipality, donor or other organisation
A74: 2. Grant expenditure must be separately listed for each grant received
A75: 3. Replacement of RSC levies
A76: 4. Housing subsidies for housing where ownership transferred
A77: 5. Total recurrent/capital grants and subsidies must reconcile to the 'Financial Performance' Statement

Sheet SC7(1)
A1: =muni& " - "&S71M& " - "&Head57 -> Choose name from list - Supporting Table SC7(1) Monthly Budget Statement - transfers and grant expenditure - Mid-Year Assessment
A2: =desc -> Description | B2: =head27 -> Ref | C2: =Head1 -> 2019/20 | D2: =Head2 -> Budget Year 2020/21
C3: =Head5 -> Audited Outcome | D3: =Head6 -> Original Budget | E3: =Head7 -> Adjusted Budget | F3: =Head38 -> Monthly actual | G3: =Head39 -> YearTD actual | H3: =Head40 -> YearTD budget | I3: =Head41 -> YTD variance | J3: =Head41 -> YTD variance | K3: =Head8 -> Full Year Forecast
A4: R thousands | J4: %
A5: EXPENDITURE
A7: Operating expenditure of Transfers and Grants
A8: ='SC6'!A8 -> National Government: | C8: =SUM(C9:C15) -> 72075000 | D8: 88678000 | E8: 88678000 | F8: 6939772 | G8: 31533434.9 | H8: 44339000 | I8: -12805565.1 | J8: =IF(I8=0,"",I8/H8) -> -0.2888104174 | K8: =SUM(K9:K15) -> 88678000
A9: ='SC6'!A9 -> Local Government Equitable Share | C9: 62733000 | D9: 79735000 | E9: 79735000 | F9: 6644583 | G9: 26578333.33 | H9: 39867500 | I9: =G9-H9 -> -13289166.67 | J9: -0.3333333333 | K9: 79735000
A10: ='SC6'!A10 -> Finance Management | C10: 2435000 | D10: 2800000 | E10: 2800000 | F10: 87189 | G10: 457193.57 | H10: 1400000 | I10: -942806.43 | J10: -0.6734331643 | K10: 2800000
A11: ='SC6'!A11 -> EPWP Incentive | C11: 1440000 | D11: 1143000 | E11: 1143000 | F11: 208000 | G11: 1134481 | H11: 571500 | I11: 562981 | J11: 0.9850936133 | K11: 1143000
A12: ='SC6'!A12 -> Integrated National Electrification Programme | C12: 5467000 | D12: 5000000 | E12: 5000000 | F12: 0 | G12: 3363427 | H12: 2500000 | I12: 863427 | J12: 0.3453708 | K12: 5000000
A13: ='SC6'!A13 -> 0 | I13: 0
A14: ='SC6'!A14 -> 0 | I14: 0
A15: ='SC6'!A19 -> Other transfers and grants [insert description] | I15: 0
A16: ='SC6'!A20 -> Provincial Government: | C16: =SUM(C17:C21) -> 1714000 | D16: 1817000 | E16: 1817000 | F16: 339878 | G16: 1112074 | H16: 908500 | I16: 203574 | J16: 0.2240770501 | K16: =SUM(K17:K21) -> 1817000
A17: ='SC6'!A21 -> Library Grant | C17: 1714000 | D17: 1817000 | E17: 1817000 | F17: 339878 | G17: 1112074 | H17: 908500 | I17: =G17-H17 -> 203574 | J17: 0.2240770501 | K17: 1817000
A18: ='SC6'!A23 -> 0 | I18: 0
A19: ='SC6'!A24 -> 0 | I19: 0
A20: ='SC6'!A25 -> 0 | I20: 0
A21: ='SC6'!A26 -> Other transfers and grants [insert description] | I21: 0
A22: ='SC6'!A27 -> District Municipality: | C22: =SUM(C23:C24) -> 0 | D22: 0 | E22: =SUM(E23:E24) -> 0 | F22: 0 | G22: 0 | H22: 0 | I22: 0 | K22: =SUM(K23:K24) -> 0
I23: 0
A24: ='SC6'!A28 -> [insert description] | I24: 0
A25: ='SC6'!A30 -> Other grant providers: | C25: =SUM(C26:C27) -> 0 | D25: 0 | E25: 0 | F25: 0 | G25: 0 | H25: 0 | I25: 0 | K25: =SUM(K26:K27) -> 0
I26: 0
A27: ='SC6'!A31 -> [insert description] | I27: 0
A28: Total operating expenditure of Transfers and Grants: | C28: =C8+C16+C22+C25 -> 73789000 | D28: =D8+D16+D22+D25 -> 90495000 | E28: 90495000 | F28: 7279650 | G28: 32645508.9 | H28: 45247500 | I28: -12601991.1 | J28: -0.2785124282 | K28: =K8+K16+K22+K25 -> 90495000
A30: Capital expenditure of Transfers and Grants
A31: ='SC6'!A41 -> National Government: | C31: =SUM(C32:C37) -> 16076000 | D31: 15996000 | E31: 15996000 | F31: 289654 | G31: 11106881 | H31: 7998000 | I31: 3108881 | J31: =IF(I31=0,"",I31/H31) -> 0.3887073018 | K31: 15996000
A32: ='SC6'!A42 -> Municipal Infrastructure Grant (MIG) | C32: 16076000 | D32: 15996000 | E32: 15996000 | F32: 289654 | G32: 11106881 | H32: 7998000 | I32: =G32-H32 -> 3108881 | J32: 0.3887073018 | K32: 15996000
A33: ='SC6'!A47 -> 0 | I33: 0
A34: ='SC6'!A48 -> 0 | I34: 0
A35: ='SC6'!A49 -> 0 | I35: 0
A36: ='SC6'!A50 -> 0 | I36: 0
A37: ='SC6'!A51 -> Other capital transfers [insert description] | I37: 0
A38: ='SC6'!A52 -> Provincial Government: | C38: =SUM(C39:C40) -> 0 | D38: 0 | E38: 0 | F38: 0 | G38: 0 | H38: 0 | I38: =G38-H38 -> 0 | K38: =SUM(K39:K40) -> 0
I39: 0
A40: ='SC6'!A58 -> 0 | I40: 0
A41: ='SC6'!A59 -> District Municipality: | C41: =SUM(C42:C43) -> 0 | D41: 0 | E41: 0 | F41: 0 | G41: 0 | H41: 0 | I41: 0 | K41: =SUM(K42:K43) -> 0
I42: 0
A43: ='SC6'!A61 -> 0 | I43: 0
A44: ='SC6'!A62 -> Other grant providers: | C44: =SUM(C45:C46) -> 0 | D44: 0 | E44: 0 | F44: 0 | G44: 0 | H44: 0 | I44: 0 | K44: =SUM(K45:K46) -> 0
I45: 0
A46: ='SC6'!A68 -> 0 | I46: 0
A47: Total capital expenditure of Transfers and Grants | C47: =C31+C38+C41+C44 -> 16076000 | D47: =D31+D38+D41+D44 -> 15996000 | E47: 15996000 | F47: 289654 | G47: 11106881 | H47: 7998000 | I47: 3108881 | J47: =IF(I47=0,"",I47/H47) -> 0.3887073018 | K47: 15996000
A49: TOTAL EXPENDITURE OF TRANSFERS AND GRANTS | C49: =C28+C47 -> 89865000 | D49: 106491000 | E49: 106491000 | F49: 7569304 | G49: 43752389.9 | H49: 53245500 | I49: -9493110.097 | J49: =IF(I49=0,"",I49/H49) -> -0.1782894347 | K49: 106491000
A50: =head27a -> References

Sheet SC7(2)
A1: =muni& " - "&S71T& " - "&Head57 -> Choose name from list - Supporting Table SC7(2) Monthly Budget Statement - Expenditure against approved rollovers - Mid-Year Assessment
A2: =desc -> Description | B2: =head27 -> Ref | C2: =Head2 -> Budget Year 2020/21
C3: ="Approved Rollover " &Head1 -> Approved Rollover 2019/20 | D3: =Head38 -> Monthly actual | E3: =Head39 -> YearTD actual | F3: =Head41 -> YTD variance | G3: =Head41 -> YTD variance
A4: R thousands | G4: %
A5: EXPENDITURE
A7: Operating expenditure of Approved Roll-overs
A8: ='SC6'!A8 -> National Government: | C8: =SUM(C9:C15) -> 0 | D8: =SUM(D9:D15) -> 0 | E8: =SUM(E9:E15) -> 0 | F8: =SUM(F9:F15) -> 0 | G8: =IF(F8=0,"",F8/C8) -> 
A9: ='SC6'!A9 -> Local Government Equitable Share | F9: =E9-C9 -> 0 | G9: =IF(F9=0,"",F9/C9) -> 
A10: ='SC6'!A10 -> Finance Management | F10: =C10-E10 -> 0
A11: ='SC6'!A11 -> EPWP Incentive | F11: 0
A12: ='SC6'!A12 -> Integrated National Electrification Programme | F12: 0
A13: ='SC6'!A13 -> 0 | F13: 0
A14: ='SC6'!A14 -> 0 | F14: 0
A15: ='SC6'!A19 -> Other transfers and grants [insert description] | F15: 0
A16: ='SC6'!A20 -> Provincial Government: | C16: =SUM(C17:C21) -> 0 | D16: =SUM(D17:D21) -> 0 | E16: =SUM(E17:E21) -> 0 | F16: =SUM(F17:F21) -> 0
A17: ='SC6'!A21 -> Library Grant | F17: =C17-E17 -> 0
A18: ='SC6'!A23 -> 0 | F18: =C18-E18 -> 0
A19: ='SC6'!A24 -> 0 | F19: =C19-E19 -> 0
A20: ='SC6'!A25 -> 0 | F20: =C20-E20 -> 0
A21: ='SC6'!A26 -> Other transfers and grants [insert description] | F21: =C21-E21 -> 0
A22: ='SC6'!A27 -> District Municipality: | C22: =SUM(C23:C24) -> 0 | D22: =SUM(D23:D24) -> 0 | E22: =SUM(E23:E24) -> 0 | F22: =SUM(F23:F24) -> 0
F23: =C23-E23 -> 0
A24: ='SC6'!A28 -> [insert description] | F24: =C24-E24 -> 0
A25: ='SC6'!A30 -> Other grant providers: | C25: =SUM(C26:C27) -> 0 | D25: =SUM(D26:D27) -> 0 | E25: =SUM(E26:E27) -> 0 | F25: =SUM(F26:F27) -> 0
F26: =C26-E26 -> 0
A27: ='SC6'!A31 -> [insert description] | F27: =C27-E27 -> 0
A28: Total operating expenditure of Approved Roll-overs | C28: =C8+C16+C22+C25 -> 0 | D28: =D8+D16+D22+D25 -> 0 | E28: =E8+E16+E22+E25 -> 0 | F28: =F8+F16+F22+F25 -> 0
A30: Capital expenditure of Approved Roll-overs
A31: ='SC6'!A41 -> National Government: | C31: =SUM(C32:C37) -> 0 | D31: =SUM(D32:D37) -> 0 | E31: =SUM(E32:E37) -> 0 | F31: =SUM(F32:F37) -> 0
A32: ='SC6'!A42 -> Municipal Infrastructure Grant (MIG) | F32: =C32-E32 -> 0
A33: ='SC6'!A47 -> 0 | F33: 0
A34: ='SC6'!A48 -> 0 | F34: 0
A35: ='SC6'!A49 -> 0 | F35: 0
A36: ='SC6'!A50 -> 0 | F36: 0
A37: ='SC6'!A51 -> Other capital transfers [insert description] | F37: 0
A38: ='SC6'!A52 -> Provincial Government: | C38: =SUM(C39:C40) -> 0 | D38: =SUM(D39:D40) -> 0 | E38: =SUM(E39:E40) -> 0 | F38: =SUM(F39:F40) -> 0
F39: =C39-E39 -> 0
A40: ='SC6'!A58 -> 0 | F40: =C40-E40 -> 0
A41: ='SC6'!A59 -> District Municipality: | C41: =SUM(C42:C43) -> 0 | D41: =SUM(D42:D43) -> 0 | E41: =SUM(E42:E43) -> 0 | F41: =SUM(F42:F43) -> 0
F42: =C42-E42 -> 0
A43: ='SC6'!A61 -> 0 | F43: =C43-E43 -> 0
A44: ='SC6'!A62 -> Other grant providers: | C44: =SUM(C45:C46) -> 0 | D44: =SUM(D45:D46) -> 0 | E44: =SUM(E45:E46) -> 0 | F44: =SUM(F45:F46) -> 0
F45: =C45-E45 -> 0
A46: ='SC6'!A68 -> 0 | F46: =C46-E46 -> 0
A47: Total capital expenditure of Approved Roll-overs | C47: =C31+C38+C41+C44 -> 0 | D47: =D31+D38+D41+D44 -> 0 | E47: =E31+E38+E41+E44 -> 0 | F47: =F31+F38+F41+F44 -> 0
A49: TOTAL EXPENDITURE OF APPROVED ROLL-OVERS | C49: =C28+C47 -> 0 | D49: =D28+D47 -> 0 | E49: =E28+E47 -> 0 | F49: =F28+F47 -> 0
A50: =head27a -> References

Sheet SC8
A1: =muni& " - "&S71N& " - "&Head57 -> Choose name from list - Supporting Table SC8 Monthly Budget Statement - councillor and staff benefits - Mid-Year Assessment
A2: Summary of Employee and Councillor remuneration | B2: =head27 -> Ref | C2: =Head1 -> 2019/20 | D2: =Head2 -> Budget Year 2020/21
C3: =Head5 -> Audited Outcome | D3: =Head6 -> Original Budget | E3: =Head7 -> Adjusted Budget | F3: =Head38 -> Monthly actual | G3: =Head39 -> YearTD actual | H3: =Head40 -> YearTD budget | I3: =Head41 -> YTD variance | J3: =Head41 -> YTD variance | K3: =Head8 -> Full Year Forecast
A4: R thousands | J4: %
B5: 1 | C5: A | D5: B | E5: C | K5: D
A6: Councillors (Political Office Bearers plus Other)
A7: Basic Salaries and Wages | C7: 5429725 | D7: 5752321 | E7: 5752321 | F7: 468493 | G7: 2816259 | H7: 2876166 | I7: =G7-H7 -> -59907 | J7: =IF(I7=0,"",I7/H7) -> -0.02082876997 | K7: 5752320.73
A8: Pension and UIF Contributions | C8: 0 | D8: 0 | E8: 0 | F8: 0 | G8: 0 | H8: 0 | I8: 0 | K8: 0
A9: Medical Aid Contributions | C9: 0 | D9: 0 | E9: 0 | F9: 0 | G9: 0 | H9: 0 | I9: 0 | K9: 0
A10: Motor Vehicle Allowance | C10: 0 | D10: 0 | E10: 0 | F10: 0 | G10: 0 | H10: 0 | I10: =G10-H10 -> 0 | J10: =IF(I10=0,"",I10/H10) ->  | K10: 0
A11: Cellphone Allowance | C11: 593830 | D11: 621600 | E11: 621600 | F11: 33300 | G11: 157500 | H11: 310800 | I11: =G11-H11 -> -153300 | J11: =IF(I11=0,"",I11/H11) -> -0.4932432432 | K11: 621600
A12: Housing Allowances | C12: 0 | D12: 0 | E12: 0 | F12: 0 | G12: 0 | H12: 0 | I12: =G12-H12 -> 0 | J12: =IF(I12=0,"",I12/H12) ->  | K12: 0
A13: Other benefits and allowances | C13: 0 | D13: 0 | E13: 0 | F13: 0 | G13: 0 | H13: 0 | I13: 0 | K13: 0
A14: Sub Total - Councillors | C14: =SUM(C7:C13) -> 6023555 | D14: 6373921 | E14: 6373921 | F14: 501793 | G14: 2973759 | H14: 3186966 | I14: -213207 | J14: -0.06689967825 | K14: 6373920.73
A15: % increase | B15: 4 | D15: =IF(D14=0,"",(D14/C14)-1) -> 0.05816598338 | E15: =IF(E14=0,"",(E14/C14)-1) -> 0.05816598338 | K15: =IF(K14=0,"",(K14/C14)-1) -> 0.05816593855
A17: Senior Managers of the Municipality | B17: 3
A18: Basic Salaries and Wages | C18: 3358616 | D18: 4718457 | E18: 4718457 | F18: 257486 | G18: 1026791 | H18: 2359230 | I18: =G18-H18 -> -1332439 | J18: =IF(I18=0,"",I18/H18) -> -0.5647770671 | K18: 4718456.74
A19: Pension and UIF Contributions | C19: 14295 | D19: 29458 | E19: 29458 | F19: 3616 | G19: 18468 | H19: 14730 | I19: 3738 | J19: 0.2537678208 | K19: 29458
A20: Medical Aid Contributions | C20: 11470 | D20: 0 | E20: 0 | F20: 5000 | G20: 20000 | H20: 0 | I20: 20000 | K20: 0
A21: Overtime | C21: 0 | D21: 0 | E21: 0 | F21: 0 | G21: 0 | H21: 0 | I21: 0 | K21: 0
A22: Performance Bonus | C22: 170507 | D22: 122042 | E22: 122042 | F22: 0 | G22: 0 | H22: 61020 | I22: =G22-H22 -> -61020 | J22: =IF(I22=0,"",I22/H22) -> -1 | K22: 122041.92
A23: Motor Vehicle Allowance | C23: 2000 | D23: 0 | E23: 0 | F23: 10000 | G23: 42151 | H23: 0 | I23: =G23-H23 -> 42151 | J23: =IF(I23=0,"",I23/H23) ->  | K23: 0
A24: Cellphone Allowance | C24: 47360 | D24: 78000 | E24: 78000 | F24: 10810 | G24: 390826 | H24: 39000 | I24: =G24-H24 -> 351826 | J24: =IF(I24=0,"",I24/H24) -> 9.021179487 | K24: 78000
A25: Housing Allowances | C25: 59671 | D25: 13200 | E25: 13200 | F25: 0 | G25: 0 | H25: 6600 | I25: =G25-H25 -> -6600 | J25: =IF(I25=0,"",I25/H25) -> -1 | K25: 13200
A26: Other benefits and allowances | C26: 37 | D26: 142 | E26: 142 | F26: 0 | G26: 3908 | H26: 72 | I26: 3836 | J26: 53.27777778 | K26: 142
A27: Payments in lieu of leave | C27: 5403 | D27: 120931 | E27: 120931 | F27: 0 | G27: 26554 | H27: 60468 | I27: -33914 | J27: -0.560858636 | K27: 120931
A28: Long service awards | C28: 0 | D28: 0 | E28: 0 | F28: 0 | G28: 0 | H28: 0 | I28: 0 | K28: 0
A29: Post-retirement benefit obligations | B29: 2 | C29: 0 | D29: 0 | E29: 0 | F29: 0 | G29: 0 | H29: 0 | I29: 0 | K29: 0
A30: Sub Total - Senior Managers of Municipality | C30: =SUM(C18:C29) -> 3669359 | D30: 5082230 | E30: 5082230 | F30: =SUM(F18:F29) -> 286912 | G30: =SUM(G18:G29) -> 1528698 | H30: =SUM(H18:H29) -> 2541120 | I30: -1012422 | J30: =IF(I30=0,"",I30/H30) -> -0.3984156592 | K30: 5082229.66
A31: % increase | B31: 4 | D31: =IF(D30=0,"",(D30/C30)-1) -> 0.385045726 | E31: =IF(E30=0,"",(E30/C30)-1) -> 0.385045726 | K31: =IF(K30=0,"",(K30/C30)-1) -> 0.3850456333
A33: Other Municipal Staff
A34: Basic Salaries and Wages | C34: 24116722 | D34: 28014700 | E34: 28014700 | F34: 2285420 | G34: 13007099 | H34: 14007354 | I34: =G34-H34 -> -1000255 | J34: =IF(I34=0,"",I34/H34) -> -0.07140927544 | K34: 28014700.34
A35: Pension and UIF Contributions | C35: 3774067 | D35: 4402609 | E35: 4402609 | F35: 407420 | G35: 2240439 | H35: 2201310 | I35: 39129 | J35: 0.01777532469 | K35: 4402606.85
A36: Medical Aid Contributions | C36: 1558246 | D36: 1893423 | E36: 1893423 | F36: 154567 | G36: 999712 | H36: 946710 | I36: 53002 | J36: 0.05598546545 | K36: 1893422.68
A37: Overtime | C37: 0 | D37: 0 | E37: 0 | F37: 0 | G37: 0 | H37: 0 | I37: 0 | K37: 0
A38: Performance Bonus | C38: 1519641 | D38: 2167886 | E38: 2167886 | F38: 1165946 | G38: 1462901 | H38: 1083942 | I38: 378959 | J38: 0.3496118796 | K38: 2167885.62
A39: Motor Vehicle Allowance | C39: 167944 | D39: 0 | E39: 0 | F39: 39461 | G39: 211327 | H39: 0 | I39: =G39-H39 -> 211327 | J39: =IF(I39=0,"",I39/H39) ->  | K39: 0
A40: Cellphone Allowance | C40: 9840 | D40: 57001 | E40: 57001 | F40: 0 | G40: 70362 | H40: 28500 | I40: =G40-H40 -> 41862 | J40: =IF(I40=0,"",I40/H40) -> 1.468842105 | K40: 57001
A41: Housing Allowances | C41: 108931 | D41: 324047 | E41: 324047 | F41: 17611 | G41: 126213 | H41: 162024 | I41: =G41-H41 -> -35811 | J41: =IF(I41=0,"",I41/H41) -> -0.2210228114 | K41: 324046.7
A42: Other benefits and allowances | C42: 202424 | D42: 1068111 | E42: 1068111 | F42: 20500 | G42: 166340 | H42: 534054 | I42: -367714 | J42: -0.6885333693 | K42: 1068110.17
A43: Payments in lieu of leave | C43: 1437287 | D43: 1681578 | E43: 1681578 | F43: 0 | G43: 109206 | H43: 840792 | I43: -731586 | J43: -0.8701153198 | K43: 1681579.32
A44: Long service awards | C44: 16682 | D44: 0 | E44: 0 | F44: 743466 | G44: 743466 | H44: 0 | I44: 743466 | K44: 0
A45: Post-retirement benefit obligations | B45: 2 | C45: -52048 | D45: 0 | E45: 0 | F45: 0 | G45: 35109 | H45: 0 | I45: 35109 | K45: 0
A46: Sub Total - Other Municipal Staff | C46: =SUM(C34:C45) -> 32859736 | D46: 39609355 | E46: 39609355 | F46: =SUM(F34:F45) -> 4834391 | G46: =SUM(G34:G45) -> 19172174 | H46: =SUM(H34:H45) -> 19804686 | I46: -632512 | J46: =IF(I46=0,"",I46/H46) -> -0.03193749197 | K46: 39609352.68
A47: % increase | B47: 4 | D47: =IF(D46=0,"",(D46/C46)-1) -> 0.2054069759 | E47: =IF(E46=0,"",(E46/C46)-1) -> 0.2054069759 | K47: =IF(K46=0,"",(K46/C46)-1) -> 0.2054069053
A49: Total Parent Municipality | C49: =C14+C30+C46 -> 42552650 | D49: =D14+D30+D46 -> 51065506 | E49: 51065506 | F49: 5623096 | G49: 23674631 | H49: 25532772 | I49: =G49-H49 -> -1858141 | J49: =IF(I49=0,"",I49/H49) -> -0.07277474612 | K49: 51065503.07
D50: =IF(D49=0,"",(D49/C49)-1) -> 0.2000546617 | E50: =IF(E49=0,"",(E49/C49)-1) -> 0.2000546617 | K50: =IF(K49=0,"",(K49/C49)-1) -> 0.2000545928
A51: Unpaid salary, allowances & benefits in arrears:
A53: Board Members of Entities
A54: Basic Salaries and Wages | I54: =G54-H54 -> 0 | J54: =IF(I54=0,"",I54/H54) -> 
A55: Pension and UIF Contributions | I55: 0
A56: Medical Aid Contributions | I56: 0
A57: Overtime | I57: =G57-H57 -> 0 | J57: =IF(I57=0,"",I57/H57) -> 
A58: Performance Bonus | I58: =G58-H58 -> 0 | J58: =IF(I58=0,"",I58/H58) -> 
A59: Motor Vehicle Allowance | I59: =G59-H59 -> 0 | J59: =IF(I59=0,"",I59/H59) -> 
A60: Cellphone Allowance | I60: =G60-H60 -> 0 | J60: =IF(I60=0,"",I60/H60) -> 
A61: Housing Allowances | I61: =G61-H61 -> 0 | J61: =IF(I61=0,"",I61/H61) -> 
A62: Other benefits and allowances | I62: 0
A63: Board Fees | I63: =G63-H63 -> 0 | J63: =IF(I63=0,"",I63/H63) -> 
A64: Payments in lieu of leave | I64: 0
A65: Long service awards | I65: 0
A66: Post-retirement benefit obligations | I66: 0
A67: Sub Total - Board Members of Entities | B67: 2 | C67: =SUM(C54:C66) -> 0 | D67: 0 | E67: 0 | F67: =SUM(F54:F66) -> 0 | G67: =SUM(G54:G66) -> 0 | H67: =SUM(H54:H66) -> 0 | I67: 0 | J67: =IF(I67=0,"",I67/H67) ->  | K67: 0
A68: % increase | B68: 4 | D68: =IF(D67=0,"",(D67/C67)-1) ->  | E68: =IF(E67=0,"",(E67/C67)-1) ->  | K68: =IF(K67=0,"",(K67/C67)-1) -> 
A70: Senior Managers of Entities
A71: Basic Salaries and Wages | I71: =G71-H71 -> 0 | J71: =IF(I71=0,"",I71/H71) -> 
A72: Pension and UIF Contributions | I72: 0
A73: Medical Aid Contributions | I73: 0
A74: Overtime | I74: 0
A75: Performance Bonus | I75: =G75-H75 -> 0 | J75: =IF(I75=0,"",I75/H75) -> 
A76: Motor Vehicle Allowance | I76: =G76-H76 -> 0 | J76: =IF(I76=0,"",I76/H76) -> 
A77: Cellphone Allowance | I77: =G77-H77 -> 0 | J77: =IF(I77=0,"",I77/H77) -> 
A78: Housing Allowances | I78: =G78-H78 -> 0 | J78: =IF(I78=0,"",I78/H78) -> 
A79: Other benefits and allowances | I79: 0
A80: Payments in lieu of leave | I80: 0
A81: Long service awards | I81: 0
A82: Post-retirement benefit obligations | B82: 2 | I82: 0
A83: Sub Total - Senior Managers of Entities | C83: =SUM(C71:C82) -> 0 | D83: 0 | E83: 0 | F83: =SUM(F71:F82) -> 0 | G83: =SUM(G71:G82) -> 0 | H83: =SUM(H71:H82) -> 0 | I83: 0 | J83: =IF(I83=0,"",I83/H83) ->  | K83: 0
A84: % increase | B84: 4 | D84: =IF(D83=0,"",(D83/C83)-1) ->  | E84: =IF(E83=0,"",(E83/C83)-1) ->  | K84: =IF(K83=0,"",(K83/C83)-1) -> 
A86: Other Staff of Entities
A87: Basic Salaries and Wages | I87: =G87-H87 -> 0 | J87: =IF(I87=0,"",I87/H87) -> 
A88: Pension and UIF Contributions | I88: 0
A89: Medical Aid Contributions | I89: =G89-H89 -> 0 | J89: =IF(I89=0,"",I89/H89) -> 
A90: Overtime | I90: =G90-H90 -> 0 | J90: =IF(I90=0,"",I90/H90) -> 
A91: Performance Bonus | I91: =G91-H91 -> 0 | J91: =IF(I91=0,"",I91/H91) -> 
A92: Motor Vehicle Allowance | I92: =G92-H92 -> 0 | J92: =IF(I92=0,"",I92/H92) -> 
A93: Cellphone Allowance | I93: 0
A94: Housing Allowances | I94: 0
A95: Other benefits and allowances | I95: 0
A96: Payments in lieu of leave | I96: 0
A97: Long service awards | I97: 0
A98: Post-retirement benefit obligations | I98: 0
A99: Sub Total - Other Staff of Entities | C99: =SUM(C87:C98) -> 0 | D99: 0 | E99: 0 | F99: 0 | G99: 0 | H99: 0 | I99: 0 | J99: =IF(I99=0,"",I99/H99) ->  | K99: =SUM(K87:K98) -> 0
A100: % increase | B100: 4 | D100: =IF(D99=0,"",(D99/C99)-1) ->  | E100: =IF(E99=0,"",(E99/C99)-1) ->  | K100: =IF(K99=0,"",(K99/C99)-1) -> 
A102: Total Municipal Entities | C102: =C67+C83+C99 -> 0 | D102: 0 | E102: 0 | F102: 0 | G102: 0 | H102: 0 | I102: =G102-H102 -> 0 | J102: =IF(I102=0,"",I102/H102) ->  | K102: =K67+K83+K99 -> 0
A104: TOTAL SALARY, ALLOWANCES & BENEFITS | C104: =C49+C102 -> 42552650 | D104: 51065506 | E104: 51065506 | F104: 5623096 | G104: 23674631 | H104: 25532772 | I104: =G104-H104 -> -1858141 | J104: =IF(I104=0,"",I104/H104) -> -0.07277474612 | K104: =K49+K102 -> 51065503.07
A105: % increase | B105: 4 | D105: =IF(D104=0,"",(D104/C104)-1) -> 0.2000546617 | E105: =IF(E104=0,"",(E104/C104)-1) -> 0.2000546617 | K105: =IF(K104=0,"",(K104/C104)-1) -> 0.2000545928
A106: TOTAL MANAGERS AND STAFF | C106: =C30+C46+C83+C99 -> 36529095 | D106: 44691585 | E106: 44691585 | F106: 5121303 | G106: 20700872 | H106: 22345806 | I106: -1644934 | J106: =IF(I106=0,"",I106/H106) -> -0.07361265018 | K106: =K30+K46+K83+K99 -> 44691582.34
A107: =head27a -> References
A108: 1. Include 'Loans and advances' where applicable if any reportable amounts until phased compliance with s164 of MFMA achieved
A109: 2. If benefits in kind are provided (e.g. provision of living quarters) the full market value must be shown as the cost to the municipality
A110: 3. s57 of the Systems Act
A111: 4. B/A, C/A, D/A
A112: Column Definitions:
A113: A. Audited actual 2005/06 (audited financial statements). If audited amounts unavailable, unaudited amounts must be provided with a note stating these are unaudited
A114: B. The original budget approved by council for the 2006/07 budget year.
A115: C. The budget for 2006/07 budget year as adjusted by council resolution in terms of section 28 of the MFMA.
A116: D. An estimate of final actual amounts (pre audit - 2006/07 budget year) at the time of preparing the budget for the 2007/08 budget year. This may differ from C.

Sheet SC9
A1: =muni& " - "&S71O& " - "&Head57 -> Choose name from list - Supporting Table SC9 Monthly Budget Statement - actuals and revised targets for cash receipts - Mid-Year Assessment
A2: =desc -> Description | B2: =head27 -> Ref | C2: =Head2 -> Budget Year 2020/21 | O2: ='Template names'!B5 -> 2020/21 Medium Term Revenue & Expenditure Framework
C3: July | D3: August | E3: Sept | F3: October | G3: Nov | H3: Dec | I3: January | J3: Feb | K3: March | L3: April | M3: May | N3: June | O3: =Head9 -> Budget Year 2020/21 | P3: =Head10 -> Budget Year +1 2021/22 | Q3: =Head11 -> Budget Year +2 2022/23
A4: R thousands | B4: 1 | C4: Outcome | D4: Outcome | E4: Outcome | F4: Outcome | G4: Outcome | H4: Outcome | I4: Budget | J4: Budget | K4: Budget | L4: Budget | M4: Budget | N4: Budget
A5: Cash Receipts By Source
A6: Property rates | C6: 2251290.99 | D6: 784756.92 | E6: 1320043.77 | F6: 4457289.46 | G6: 1489438.96 | H6: 1044867.88 | I6: 1405655.571 | J6: 1405655.571 | K6: 1405655.571 | L6: 1405655.571 | M6: 1405655.571 | N6: =O6-SUM(C6:M6) -> 1405655.571 | O6: 19781621.41 | P6: 20968518.99 | Q6: 22226630.13
A7: Service charges - electricity revenue | N7: 0
A8: Service charges - water revenue | N8: 0
A9: Service charges - sanitation revenue | N9: 0
A10: Service charges - refuse | C10: 38618.57 | D10: 38326.53 | E10: 49147.1 | F10: 60488.99 | G10: 35697.25 | H10: 42388.65 | I10: 51603 | J10: 51603 | K10: 51603 | L10: 51603 | M10: 51603 | N10: 51604.71 | O10: 574286.8 | P10: 608744.008 | Q10: 645268.6485
A12: Rental of facilities and equipment | N12: 0
A13: Interest earned - external investments | C13: 169079.03 | D13: 209517.38 | E13: 159306.91 | F13: 122414.04 | G13: 105160.53 | H13: 127274.03 | I13: 492874.68 | J13: 492874.68 | K13: 492874.68 | L13: 492874.68 | M13: 492874.68 | N13: 492874.68 | O13: 3850000 | P13: 4081000 | Q13: 4325860
A14: Interest earned - outstanding debtors | N14: 0
A15: Dividends received | N15: 0
A16: Fines, penalties and forfeits | F16: 2133.91 | G16: 2 | N16: -2135.91
A17: Licences and permits | C17: 345918.21 | D17: 242613.33 | E17: 347747.81 | F17: 477817.36 | G17: 945406 | H17: 405995 | I17: 725802.157 | J17: 725802.157 | K17: 725802.157 | L17: 725802.157 | M17: 725802.157 | N17: 725802.157 | O17: 7120310.652 | P17: 7547529.291 | Q17: 8000381.049
A18: Agency services | N18: 0
A19: Transfers and Subsidies - Operational | C19: =30298000+2800000 -> 33098000 | D19: =286000+3000000 -> 3286000 | F19: 1817000 | G19: 2514000 | H19: 32604000 | K19: 12176000 | N19: 0 | O19: 85495000 | P19: 75423000 | Q19: 80081000
A20: Other revenue | C20: 49309.77 | D20: 53226.42 | E20: 25102.29 | F20: 1740 | G20: 42699 | H20: 2282272 | I20: 163897.7638 | J20: 163897.7638 | K20: 163897.7638 | L20: 163897.7638 | M20: 163897.7638 | N20: 163897.7638 | O20: 3437736.063 | P20: 3591874.249 | Q20: 3753217.092
A21: Cash Receipts by Source | C21: =SUM(C6:C10)+SUM(C12:C20) -> 35952216.57 | D21: =SUM(D6:D10)+SUM(D12:D20) -> 4614440.58 | E21: 1901347.88 | F21: 6938883.76 | G21: 5132403.74 | H21: 36506797.56 | I21: 2839833.172 | J21: 2839833.172 | K21: 15015833.17 | L21: 2839833.172 | M21: 2839833.172 | N21: 2837698.972 | O21: 120258954.9 | P21: 112220666.5 | Q21: 119032356.9
N22: =O22-SUM(C22:M22) -> 0
A23: Other Cash Flows by Source | N23: 0
A24: ='C4-FinPerf RE'!A39 -> Transfers and subsidies - capital (monetary allocations) (National / Provincial and District) | C24: 4000000 | E24: 5000000 | G24: 0 | H24: 3000000 | K24: 3996000 | N24: 0 | O24: 15996000 | P24: 17027000 | Q24: 17781000
A25: ='C4-FinPerf RE'!A40 -> Transfers and subsidies - capital (monetary allocations) (National / Provincial Departmental Agencies, Households, Non-profit Institutions, Private Enterprises, Public Corporatons, Higher Educational Institutions) | N25: 0
A26: Proceeds on Disposal of Fixed and Intangible Assets | N26: 0
A27: Short term loans | N27: 0
A28: Borrowing long term/refinancing | N28: 0
A29: Increase (decrease) in consumer deposits | N29: 0
A31: Decrease (increase) in non-current receivables | N31: 0
A32: Decrease (increase) in non-current investments | N32: 0
A33: Total Cash Receipts by Source | C33: =SUM(C21:C29)+SUM(C31:C32) -> 39952216.57 | D33: =SUM(D21:D29)+SUM(D31:D32) -> 4614440.58 | E33: 6901347.88 | F33: 6938883.76 | G33: 5132403.74 | H33: 39506797.56 | I33: 2839833.172 | J33: 2839833.172 | K33: 19011833.17 | L33: 2839833.172 | M33: 2839833.172 | N33: 2837698.972 | O33: 136254954.9 | P33: 129247666.5 | Q33: 136813356.9
N34: =O34-SUM(C34:M34) -> 0
A35: Cash Payments by Type | N35: 0
A36: Employee related costs | C36: 2601639.04 | D36: 3586701.55 | E36: 3122580 | F36: 3053089 | G36: 3242149 | H36: 5121303 | I36: 3523187.531 | J36: 3523187.531 | K36: 3523187.531 | L36: 3523187.531 | M36: 3523187.531 | N36: 3523187.531 | O36: 41866586.78 | P36: 44587914.92 | Q36: 47486129.39
A37: Remuneration of councillors | C37: 464793.1 | D37: 501793.1 | E37: 501793 | F37: 501793 | G37: 501793 | H37: 501793 | I37: 547345.3446 | J37: 547345.3446 | K37: 547345.3446 | L37: 547345.3446 | M37: 547345.3446 | N37: 547345.3446 | O37: 6257830.268 | P37: 6539641.781 | Q37: 6577412.52
A38: Interest paid | C38: 20077.64 | D38: 24927.47 | E38: 48761 | F38: 29429 | G38: 15488 | H38: 16098 | I38: 9960.331333 | J38: 9960.331333 | K38: 9960.331333 | L38: 9960.331333 | M38: 9960.331333 | N38: 9960.331333 | O38: 214543.098 | P38: 235997.4078 | Q38: 259597.1486
A39: Bulk purchases - Electricity | N39: 0
A40: Bulk purchases - Water & Sewer | N40: 0
A41: Other materials | E41: 92225 | F41: 823445 | G41: 511435 | H41: 321575 | I41: 1758244.5 | J41: 1758244.5 | K41: 1758244.5 | L41: 1758244.5 | M41: 1758244.5 | N41: 1758244.5 | O41: 12298147 | P41: 12790073 | Q41: 13301676
A42: Contracted services | C42: =4235018.3-3064479 -> 1170539.3 | D42: 2698899.53 | E42: 5657956 | F42: 2447436 | G42: 3600477 | H42: 489021 | I42: 1492663.528 | J42: 1492663.528 | K42: 1492663.528 | L42: 1492663.528 | M42: 1492663.528 | N42: 1492663.528 | O42: 25020310 | P42: 26021123 | Q42: 27061967
A43: Grants and subsidies paid - other municipalities | C43: 12680.26 | D43: 14109.44 | E43: 13356 | F43: 13483 | G43: 12656 | H43: 0 | N43: -66284.7
A44: Grants and subsidies paid - other | E44: 0 | N44: 0
A45: General expenses | C45: 219292.67 | D45: 1565360.01 | E45: 765541 | F45: =2025984+5806295.9 -> 7832279.9 | H45: 8626121.08 | N45: -5598526.726 | O45: 13410067.93 | P45: 14214671 | Q45: 14783257
A46: Cash Payments by Type | B46: =SUM(B36:B45) -> 0 | C46: =SUM(C36:C45) -> 4489022.01 | D46: =SUM(D36:D45) -> 8391791.1 | E46: 10202212 | F46: 14700954.9 | G46: 7883998 | H46: 15075911.08 | I46: 7331401.236 | J46: 7331401.236 | K46: 7331401.236 | L46: 7331401.236 | M46: 7331401.236 | N46: 1666589.809 | O46: 99067485.08 | P46: 104389421.1 | Q46: 109470039.1
N47: =O47-SUM(C47:M47) -> 0
A48: Other Cash Flows/Payments by Type
A49: Capital assets | C49: 6273247 | D49: 455488 | E49: 1298996 | F49: 5896600 | G49: 4173969 | H49: 4030949 | N49: =O49-SUM(C49:M49) -> -22129249
A50: Repayment of borrowing | N50: =O50-SUM(C50:M50) -> 0
A51: Other Cash Flows/Payments | N51: =O51-SUM(C51:M51) -> 31941000 | O51: 31941000 | P51: 32227000 | Q51: 24381000
A52: Total Cash Payments by Type | B52: =SUM(B46:B51) -> 0 | C52: 10762269.01 | D52: 8847279.1 | E52: 11501208 | F52: 20597554.9 | G52: 12057967 | H52: 19106860.08 | I52: 7331401.236 | J52: 7331401.236 | K52: 7331401.236 | L52: 7331401.236 | M52: 7331401.236 | N52: 11478340.81 | O52: 131008485.1 | P52: 136616421.1 | Q52: 133851039.1
N53: =O53-SUM(C53:M53) -> 0
A54: NET INCREASE/(DECREASE) IN CASH HELD | B54: =B33-B52 -> 0 | C54: 29189947.56 | D54: -4232838.52 | E54: -4599860.12 | F54: -13658671.14 | G54: -6925563.26 | H54: 20399937.48 | I54: -4491568.063 | J54: -4491568.063 | K54: 11680431.94 | L54: -4491568.063 | M54: -4491568.063 | N54: -8640641.837 | O54: 5246469.846 | P54: -7368754.567 | Q54: 2962317.863
A55: Cash/cash equivalents at the month/year beginning: | C55: 65454699 | D55: =C56 -> 94644646.56 | E55: =D56 -> 90411808.04 | F55: 85811947.92 | G55: 72153276.78 | H55: 65227713.52 | I55: 85627651 | J55: 81136082.94 | K55: 76644514.87 | L55: 88324946.81 | M55: 83833378.75 | N55: 79341810.68 | O55: =C55 -> 65454699 | P55: =O56 -> 70701168.85 | Q55: =P56 -> 63332414.28
A56: Cash/cash equivalents at the month/year end: | C56: =C54+C55 -> 94644646.56 | D56: =D54+D55 -> 90411808.04 | E56: =E54+E55 -> 85811947.92 | F56: 72153276.78 | G56: 65227713.52 | H56: 85627651 | I56: 81136082.94 | J56: 76644514.87 | K56: 88324946.81 | L56: 83833378.75 | M56: 79341810.68 | N56: 70701168.85 | O56: =O54+O55 -> 70701168.85 | P56: =P54+P55 -> 63332414.28 | Q56: =Q54+Q55 -> 66294732.14
A57: =head27a -> References
A58: 1. Replace 'budget' heading with adjusted budget, or 'outcome' only for month/s complete
A59: 2. Total of monthly amounts must always agree to the approved or adjusted budget
A60: 3. Amend 'cash-at-beginning' when prior year actual known (as part of the adjustments budget)
E65: =E46+E64 -> 10202212 | F65: 14700954.9 | G65: 7883998 | H65: 15075911.08 | I65: 7331401.236 | J65: 7331401.236 | K65: 7331401.236 | L65: 7331401.236 | N65: =N46+N64 -> 1666589.809 | O65: 99067485.08 | P65: 104389421.1
E66: =E54-E64 -> -4599860.12 | F66: -13658671.14 | G66: -6925563.26 | H66: 20399937.48 | I66: -4491568.063 | J66: -4491568.063 | K66: 11680431.94 | L66: -4491568.063 | M66: =M54-M64 -> -4491568.063 | N66: =N54-N64 -> -8640641.837 | O66: 5246469.846 | P66: -7368754.567

Sheet SC10
A1: =muni& " - "&S71P& " - "&Head57 -> Choose name from list - NOT REQUIRED - municipality does not have entities or this is the parent municipality's budget - Mid-Year Assessment
A2: =desc -> Description | B2: =head27 -> Ref | C2: =Head1 -> 2019/20 | D2: =Head2 -> Budget Year 2020/21
C3: =Head5 -> Audited Outcome | D3: =Head6 -> Original Budget | E3: =Head7 -> Adjusted Budget | F3: =Head38 -> Monthly actual | G3: =Head39 -> YearTD actual | H3: =Head40 -> YearTD budget | I3: =Head41 -> YTD variance | J3: =Head41 -> YTD variance | K3: =Head8 -> Full Year Forecast
A4: R thousands | B4: 1 | J4: %
A5: ='C4-FinPerf RE'!A5 -> Revenue By Source
A6: ='C4-FinPerf RE'!A6 -> Property rates | I6: =G6-H6 -> 0 | J6: =IF(I6=0,"",I6/H6) -> 
A7: ='C4-FinPerf RE'!A7 -> Service charges - electricity revenue | I7: 0 | J7: =IF(I7=0,"",I7/H7) -> 
A8: ='C4-FinPerf RE'!A8 -> Service charges - water revenue | I8: 0
A9: ='C4-FinPerf RE'!A9 -> Service charges - sanitation revenue | I9: 0
A10: ='C4-FinPerf RE'!A10 -> Service charges - refuse revenue | I10: 0
A12: ='C4-FinPerf RE'!A12 -> Rental of facilities and equipment | I12: 0
A13: ='C4-FinPerf RE'!A13 -> Interest earned - external investments | I13: 0
A14: ='C4-FinPerf RE'!A14 -> Interest earned - outstanding debtors | I14: 0
A15: ='C4-FinPerf RE'!A15 -> Dividends received | I15: 0
A16: ='C4-FinPerf RE'!A16 -> Fines, penalties and forfeits | I16: 0
A17: ='C4-FinPerf RE'!A17 -> Licences and permits | I17: 0
A18: ='C4-FinPerf RE'!A18 -> Agency services | I18: 0
A19: ='C4-FinPerf RE'!A19 -> Transfers and subsidies | I19: 0
A20: ='C4-FinPerf RE'!A20 -> Other revenue | I20: 0
A21: ='C4-FinPerf RE'!A21 -> Gains | I21: 0
A22: Total Revenue (excluding capital transfers and contributions) | C22: =SUM(C6:C10)+SUM(C12:C21) -> 0 | D22: 0 | E22: 0 | F22: 0 | G22: 0 | H22: 0 | I22: =G22-H22 -> 0 | K22: =SUM(K6:K10)+SUM(K12:K21) -> 0
A24: Expenditure By Type
A25: ='C4-FinPerf RE'!A25 -> Employee related costs | I25: =G25-H25 -> 0 | J25: =IF(I25=0,"",I25/H25) -> 
A26: ='C4-FinPerf RE'!A26 -> Remuneration of councillors | I26: 0
A27: ='C4-FinPerf RE'!A27 -> Debt impairment | I27: 0
A28: ='C4-FinPerf RE'!A28 -> Depreciation & asset impairment | I28: 0
A29: ='C4-FinPerf RE'!A29 -> Finance charges | I29: 0
A30: ='C4-FinPerf RE'!A30 -> Bulk purchases | I30: 0
A31: ='C4-FinPerf RE'!A31 -> Other materials | I31: 0
A32: ='C4-FinPerf RE'!A32 -> Contracted services | I32: 0
A33: ='C4-FinPerf RE'!A33 -> Transfers and subsidies | I33: 0
A34: ='C4-FinPerf RE'!A34 -> Other expenditure | I34: 0
A35: ='C4-FinPerf RE'!A35 -> Losses | I35: 0
A36: Total Expenditure | C36: =SUM(C25:C35) -> 0 | D36: 0 | E36: 0 | F36: 0 | G36: 0 | H36: 0 | I36: 0 | K36: =SUM(K25:K35) -> 0
I37: 0
A38: ='C4-FinPerf RE'!A38 -> Surplus/(Deficit) | C38: =C22-C36 -> 0 | D38: 0 | E38: 0 | F38: 0 | G38: 0 | H38: 0 | I38: 0 | K38: =K22-K36 -> 0
A39: ='C4-FinPerf RE'!A39 -> Transfers and subsidies - capital (monetary allocations) (National / Provincial and District) | I39: 0
A40: ='C4-FinPerf RE'!A40 -> Transfers and subsidies - capital (monetary allocations) (National / Provincial Departmental Agencies, Households, Non-profit Institutions, Private Enterprises, Public Corporatons, Higher Educational Institutions) | I40: 0
A41: ='C4-FinPerf RE'!A41 -> Transfers and subsidies - capital (in-kind - all) | I41: 0
A42: ='C4-FinPerf RE'!A42 -> Surplus/(Deficit) after capital transfers & contributions | C42: =C38+SUM(C39:C41) -> 0 | D42: =D38+SUM(D39:D41) -> 0 | E42: 0 | F42: 0 | G42: 0 | H42: 0 | I42: 0 | K42: 0
A43: ='C4-FinPerf RE'!A43 -> Taxation | I43: 0
A44: ='C4-FinPerf RE'!A44 -> Surplus/(Deficit) after taxation | C44: =C42-C43 -> 0 | D44: 0 | E44: 0 | F44: 0 | G44: 0 | H44: 0 | I44: 0 | K44: =K42-K43 -> 0
A45: =head27a -> References
A46: 1. Votes (consolidated) are revenue sources and expenditure type

Sheet SC11
A1: =muni& " - "&S71Q& " - "&Head57 -> Choose name from list - NOT REQUIRED - municipality does not have entities or this is the parent municipality's budget - Mid-Year Assessment
A2: =desc -> Description | B2: =head27 -> Ref | C2: =Head1 -> 2019/20 | D2: =Head2 -> Budget Year 2020/21
C3: =Head5 -> Audited Outcome | D3: =Head6 -> Original Budget | E3: =Head7 -> Adjusted Budget | F3: =Head38 -> Monthly actual | G3: =Head39 -> YearTD actual | H3: =Head40 -> YearTD budget | I3: =Head41 -> YTD variance | J3: =Head41 -> YTD variance | K3: =Head8 -> Full Year Forecast
A4: R thousands | J4: %
A5: Revenue By Municipal Entity
A6: Insert name of municipal entity | I6: =G6-H6 -> 0 | J6: =IF(I6=0,"",I6/H6) -> 
I7: 0 | J7: =IF(I7=0,"",I7/H7) -> 
I8: 0
I9: 0
I10: 0
I11: 0
I12: 0
I13: 0
I14: 0
I15: 0
A16: Total Operating Revenue | B16: 1 | C16: =SUM(C6:C15) -> 0 | D16: 0 | E16: 0 | F16: 0 | G16: 0 | H16: 0 | I16: 0 | K16: =SUM(K6:K15) -> 0
A18: Expenditure By Municipal Entity
A19: =A6 -> Insert name of municipal entity | I19: 0 | J19: =IF(I19=0,"",I19/H19) -> 
A20: =IF(A7="","",A7) ->  | I20: 0
A21: =IF(A8="","",A8) ->  | I21: 0
I22: 0
I23: 0
I24: 0
I25: 0
I26: 0
I27: 0
I28: 0
A29: Total Operating Expenditure | B29: 2 | C29: =SUM(C19:C28) -> 0 | D29: 0 | E29: 0 | F29: 0 | G29: 0 | H29: 0 | I29: 0 | K29: =SUM(K19:K28) -> 0
A31: =Head42 -> Surplus/ (Deficit) for the yr/period | C31: =C16-C29 -> 0 | D31: =D16-D29 -> 0 | E31: 0 | F31: 0 | G31: 0 | H31: 0 | I31: =I16+I29 -> 0 | K31: 0
A32: Capital Expenditure By Municipal Entity
A33: =$A$6 -> Insert name of municipal entity | I33: 0
A34: =IF(A7="","",A7) ->  | I34: 0
A35: =IF(A8="","",A8) ->  | I35: 0
I36: 0
I37: 0
I38: 0
I39: 0
I40: 0
I41: 0
A43: Total Capital Expenditure | B43: 3 | C43: =SUM(C32:C42) -> 0 | D43: =SUM(D32:D42) -> 0 | E43: 0 | F43: 0 | G43: 0 | H43: =SUM(H32:H42) -> 0 | I43: =G43-H43 -> 0 | K43: 0
A44: =head27a -> References
A45: 1. Must reconcile to the sum of all municipal entity monthly revenue reports
A46: 2. Must reconcile to the sum of all municipal entity monthly expenditure reports
A47: 3. YTD = Year to date; FAV - favourable variance or unfavourable variance
A48: 4. Material variances to be explained
A49: 5. Insert additional 'Adjustment' Budget column for each Adjustment made by an entity

Sheet SC12
A1: =muni& " - "&S71R& " - "&Head57 -> Choose name from list - Supporting Table SC12 Monthly Budget Statement - capital expenditure trend - Mid-Year Assessment
A2: Month | B2: =Head1 -> 2019/20 | C2: =Head2 -> Budget Year 2020/21
B3: =Head5 -> Audited Outcome | C3: =Head6 -> Original Budget | D3: =Head7 -> Adjusted Budget | E3: =Head38 -> Monthly actual | F3: =Head39 -> YearTD actual | G3: =Head40 -> YearTD budget | H3: =Head41 -> YTD variance | I3: =Head41 -> YTD variance | J3: % spend of Original Budget
A4: R thousands | I4: %
A5: Monthly expenditure performance trend
A6: July | B6: 15787663.33 | C6: 2661750 | D6: 2661750 | E6: 6273247 | F6: =IF(E6>0,E6,"") -> 6273247 | G6: =IF(D6>0,D6,C6) -> 2661750 | H6: =IF(F6="",0,G6-F6) -> -3611497 | I6: =IF(F6="","",IF(H6=0,"",H6/G6)) -> -1.356812999 | J6: =IF(F6="","",F6/$C$18) -> 0.1964010832
A7: August | B7: 15787663.33 | C7: 2661750 | D7: 2661750 | E7: 455488 | F7: =IF(E7>0,E7+F6,"") -> 6728735 | G7: =IF(D7>0,D7+D6,C7+C6) -> 5323500 | H7: -1405235 | I7: -0.263968254 | J7: 0.2106613757
A8: September | B8: 15787663.33 | C8: 2661750 | D8: 2661750 | E8: 1298996 | F8: =IF(E8>0,E8+F7,"") -> 8027731 | G8: =IF(D8>0,D8+G7,C8+G7) -> 7985250 | H8: -42481 | I8: -0.005319933628 | J8: 0.2513299834
A9: October | B9: 15787663.33 | C9: 2661750 | D9: 2661750 | E9: 5896600 | F9: 13924331 | G9: =IF(D9>0,D9+G8,C9+G8) -> 10647000 | H9: -3277331 | I9: -0.3078173194 | J9: 0.4359391065
A10: November | B10: 15787663.33 | C10: 2661750 | D10: 2661750 | E10: 4173969 | F10: 18098300 | G10: 13308750 | H10: -4789550 | I10: -0.3598797783 | J10: 0.5666165743
A11: December | B11: 15787663.33 | C11: 2661750 | D11: 2661750 | E11: 4030949 | F11: 22129249 | G11: 15970500 | H11: -6158749 | I11: -0.385632823 | J11: 0.6928164115
A12: January | B12: 15787663.33 | C12: 2661750 | D12: 2661750 | E12: 0 | G12: 18632250 | H12: 0
A13: February | B13: 15787663.33 | C13: 2661750 | D13: 2661750 | E13: 0 | G13: 21294000 | H13: 0
A14: March | B14: 15787663.33 | C14: 2661750 | D14: 2661750 | E14: 0 | G14: 23955750 | H14: 0
A15: April | B15: 15787663.33 | C15: 2661750 | D15: 2661750 | E15: 0 | G15: 26617500 | H15: 0
A16: May | B16: 15787663.33 | C16: 2661750 | D16: 2661750 | E16: 0 | G16: 29279250 | H16: 0
A17: June | B17: 15787663.33 | C17: 2661750 | D17: 2661750 | E17: 0 | G17: 31941000 | H17: =IF(F17="",0,G17-F17) -> 0 | I17: =IF(F17="","",IF(H17=0,"",H17/G17)) ->  | J17: =IF(F17="","",F17/$C$18) -> 
A18: Total Capital expenditure | B18: =SUM(B6:B17) -> 189451960 | C18: =SUM(C6:C17) -> 31941000 | D18: =SUM(D6:D17) -> 31941000 | E18: =SUM(E6:E17) -> 22129249

Sheet SC13a
A1: =muni& " - "&S71Sa& " - "&Head57 -> Choose name from list - Supporting Table SC13a Monthly Budget Statement - capital expenditure on new assets by asset class - Mid-Year Assessment
A2: =desc -> Description | B2: =head27 -> Ref | C2: =Head1 -> 2019/20 | D2: =Head2 -> Budget Year 2020/21
C3: =Head5 -> Audited Outcome | D3: =Head6 -> Original Budget | E3: =Head7 -> Adjusted Budget | F3: =Head38 -> Monthly actual | G3: =Head39 -> YearTD actual | H3: =Head40 -> YearTD budget | I3: =Head41 -> YTD variance | J3: =Head41 -> YTD variance | K3: =Head8 -> Full Year Forecast
A4: R thousands | B4: 1 | J4: %
A5: Capital expenditure on new assets by Asset Class/Sub-class
A7: Infrastructure | C7: =C8+C13+C17+C27+C38+C45+C53+C63+C69 -> 71583669 | D7: 9467783 | E7: 17191768 | F7: 2670098 | G7: 17019808 | H7: 7856016 | I7: =H7-G7 -> -9163792 | J7: =IF(I7=0,"",I7/H7) -> -1.166468093 | K7: =K8+K13+K17+K27+K38+K45+K53+K63+K69 -> 15712018
A8: Roads Infrastructure | C8: =SUM(C9:C12) -> 71583669 | D8: 9467783 | E8: 17191768 | F8: 2670098 | G8: 17019808 | H8: 7856016 | I8: -9163792 | J8: -1.166468093 | K8: =SUM(K9:K12) -> 15712018
A9: Roads | C9: 71583669 | D9: 9467783 | E9: 17191768 | F9: 2670098 | G9: 17019808 | H9: 7856016 | I9: -9163792 | J9: -1.166468093 | K9: 15712018
A10: Road Structures | C10: 0 | D10: 0 | E10: 0 | F10: 0 | G10: 0 | H10: 0 | I10: 0 | K10: 0
A11: Road Furniture | C11: 0 | D11: 0 | E11: 0 | F11: 0 | G11: 0 | H11: 0 | I11: 0 | K11: 0
A12: Capital Spares | C12: 0 | D12: 0 | E12: 0 | F12: 0 | G12: 0 | H12: 0 | I12: 0 | K12: 0
A13: Storm water Infrastructure | C13: =SUM(C14:C16) -> 0 | D13: 0 | E13: 0 | F13: 0 | G13: 0 | H13: 0 | I13: 0 | K13: =SUM(K14:K16) -> 0
A14: Drainage Collection | I14: 0
A15: Storm water Conveyance | I15: 0
A16: Attenuation | I16: 0
A17: Electrical Infrastructure | C17: =SUM(C18:C26) -> 0 | D17: 0 | E17: 0 | F17: 0 | G17: 0 | H17: 0 | I17: 0 | K17: =SUM(K18:K26) -> 0
A18: Power Plants | I18: 0
A19: HV Substations | I19: 0
A20: HV Switching Station | I20: 0
A21: HV Transmission Conductors | I21: 0
A22: MV Substations | I22: 0
A23: MV Switching Stations | I23: 0
A24: MV Networks | I24: 0
A25: LV Networks | I25: 0
A26: Capital Spares | I26: 0
A27: Water Supply Infrastructure | C27: =SUM(C28:C37) -> 0 | D27: 0 | E27: 0 | F27: 0 | G27: 0 | H27: 0 | I27: 0 | K27: =SUM(K28:K37) -> 0
A28: Dams and Weirs | I28: 0
A29: Boreholes | I29: 0
A30: Reservoirs | I30: 0
A31: Pump Stations | I31: 0
A32: Water Treatment Works | I32: 0
A33: Bulk Mains | I33: 0
A34: Distribution | I34: 0
A35: Distribution Points | I35: 0
A36: PRV Stations | I36: 0
A37: Capital Spares | I37: 0
A38: Sanitation Infrastructure | C38: =SUM(C39:C44) -> 0 | D38: 0 | E38: 0 | F38: 0 | G38: 0 | H38: 0 | I38: =H38-G38 -> 0 | J38: =IF(I38=0,"",I38/H38) ->  | K38: =SUM(K39:K44) -> 0
A39: Pump Station | I39: 0
A40: Reticulation | I40: =H40-G40 -> 0 | J40: =IF(I40=0,"",I40/H40) -> 
A41: Waste Water Treatment Works | I41: =H41-G41 -> 0 | J41: =IF(I41=0,"",I41/H41) -> 
A42: Outfall Sewers | I42: =H42-G42 -> 0 | J42: =IF(I42=0,"",I42/H42) -> 
A43: Toilet Facilities | I43: 0
A44: Capital Spares | I44: 0
A45: Solid Waste Infrastructure | C45: =SUM(C46:C52) -> 0 | D45: 0 | E45: 0 | F45: 0 | G45: 0 | H45: 0 | I45: =H45-G45 -> 0 | J45: =IF(I45=0,"",I45/H45) ->  | K45: =SUM(K46:K52) -> 0
A46: Landfill Sites | I46: 0
A47: Waste Transfer Stations | I47: 0
A48: Waste Processing Facilities | I48: =H48-G48 -> 0 | J48: =IF(I48=0,"",I48/H48) -> 
A49: Waste Drop-off Points | I49: 0
A50: Waste Separation Facilities | I50: 0
A51: Electricity Generation Facilities | I51: 0
A52: Capital Spares | I52: 0
A53: Rail Infrastructure | C53: =SUM(C54:C62) -> 0 | D53: 0 | E53: 0 | F53: 0 | G53: 0 | H53: 0 | I53: 0 | K53: =SUM(K54:K62) -> 0
A54: Rail Lines | I54: 0
A55: Rail Structures | I55: 0
A56: Rail Furniture | I56: 0
A57: Drainage Collection | I57: 0
A58: Storm water Conveyance | I58: 0
A59: Attenuation | I59: 0
A60: MV Substations | I60: 0
A61: LV Networks | I61: 0
A62: Capital Spares | I62: 0
A63: Coastal Infrastructure | C63: =SUM(C64:C68) -> 0 | D63: 0 | E63: 0 | F63: 0 | G63: 0 | H63: 0 | I63: 0 | K63: =SUM(K64:K68) -> 0
A64: Sand Pumps | I64: 0
A65: Piers | I65: 0
A66: Revetments | I66: 0
A67: Promenades | I67: 0
A68: Capital Spares | I68: 0
A69: Information and Communication Infrastructure | C69: =SUM(C70:C73) -> 0 | D69: 0 | E69: 0 | F69: 0 | G69: 0 | H69: 0 | I69: =H69-G69 -> 0 | J69: =IF(I69=0,"",I69/H69) ->  | K69: =SUM(K70:K73) -> 0
A70: Data Centres | I70: =H70-G70 -> 0
A71: Core Layers | I71: =H71-G71 -> 0
A72: Distribution Layers | I72: =H72-G72 -> 0
A73: Capital Spares | I73: =H73-G73 -> 0
A75: Community Assets | C75: =+C76+C99 -> 108974942 | D75: 9528984 | E75: 9528984 | F75: 289655 | G75: 3387019 | H75: 4764492 | I75: =H75-G75 -> 1377473 | J75: 0.2891122495 | K75: =+K76+K99 -> 9528984
A76: Community Facilities | C76: =SUM(C77:C98) -> 108974942 | D76: 9528984 | E76: 9528984 | F76: 289655 | G76: 3387019 | H76: 4764492 | I76: =H76-G76 -> 1377473 | J76: =IF(I76=0,"",I76/H76) -> 0.2891122495 | K76: =SUM(K77:K98) -> 9528984
A77: Halls | C77: 9335505 | D77: 7990468 | E77: 7990468 | F77: 289655 | G77: 2546341 | H77: 3995232 | I77: 1448891 | J77: 0.3626550348 | K77: 7990468
A78: Centres | C78: 0 | D78: 0 | E78: 0 | F78: 0 | G78: 0 | H78: 0 | I78: 0 | K78: 0
A79: Crèches | C79: 99639437 | D79: 1538516 | E79: 1538516 | F79: 0 | G79: 840678 | H79: 769260 | I79: -71418 | J79: -0.09283987208 | K79: 1538516
A80: Clinics/Care Centres | I80: 0
A81: Fire/Ambulance Stations | I81: 0
A82: Testing Stations | I82: 0
A83: Museums | I83: 0
A84: Galleries | I84: 0
A85: Theatres | I85: 0
A86: Libraries | I86: 0
A87: Cemeteries/Crematoria | I87: 0
A88: Police | I88: =H88-G88 -> 0 | J88: =IF(I88=0,"",I88/H88) -> 
A89: Purls | I89: 0
A90: Public Open Space | I90: 0
A91: Nature Reserves | I91: 0
A92: Public Ablution Facilities | I92: 0
A93: Markets | I93: 0
A94: Stalls | I94: 0
A95: Abattoirs | I95: 0
A96: Airports | I96: 0
A97: Taxi Ranks/Bus Terminals | I97: 0
A98: Capital Spares | I98: 0
A99: Sport and Recreation Facilities | C99: =SUM(C100:C102) -> 0 | D99: 0 | E99: 0 | F99: 0 | G99: 0 | H99: 0 | I99: 0 | K99: =SUM(K100:K102) -> 0
A100: Indoor Facilities | I100: 0
A101: Outdoor Facilities | I101: 0
A102: Capital Spares | I102: 0
A103: Heritage assets | C103: =SUM(C104:C108) -> 0 | D103: 0 | E103: 0 | F103: 0 | G103: 0 | H103: 0 | I103: 0 | K103: =SUM(K104:K108) -> 0
A104: Monuments | I104: 0
A105: Historic Buildings | I105: 0
A106: Works of Art | I106: 0
A107: Conservation Areas | I107: 0
A108: Other Heritage | I108: 0
I109: 0
A110: Investment properties | C110: =+C111+C114 -> 0 | D110: 0 | E110: 0 | F110: 0 | G110: 0 | H110: 0 | I110: 0 | K110: =+K111+K114 -> 0
A111: Revenue Generating | C111: =SUM(C112:C113) -> 0 | D111: 0 | E111: 0 | F111: 0 | G111: 0 | H111: 0 | I111: 0 | K111: =SUM(K112:K113) -> 0
A112: Improved Property | I112: 0
A113: Unimproved Property | I113: 0
A114: Non-revenue Generating | C114: =SUM(C115:C116) -> 0 | D114: 0 | E114: 0 | F114: 0 | G114: 0 | H114: 0 | I114: 0 | K114: =SUM(K115:K116) -> 0
A115: Improved Property | I115: 0
A116: Unimproved Property | I116: 0
A117: Other assets | C117: =+C118+C130 -> 13182084 | D117: 5000000 | E117: 5000000 | F117: 1022301 | G117: 1022301 | H117: 2500002 | I117: 1477701 | J117: 0.5910799271 | K117: =+K118+K130 -> 5000000
A118: Operational Buildings | C118: =SUM(C119:C129) -> 13182084 | D118: 5000000 | E118: 5000000 | F118: 1022301 | G118: 1022301 | H118: 2500002 | I118: 1477701 | J118: 0.5910799271 | K118: =SUM(K119:K129) -> 5000000
A119: Municipal Offices | C119: 13182084 | D119: 5000000 | E119: 5000000 | F119: 1022301 | G119: 1022301 | H119: 2500002 | I119: 1477701 | J119: 0.5910799271 | K119: 5000000
A120: Pay/Enquiry Points | I120: 0 | J120: =IF(I120=0,"",I120/H120) -> 
A121: Building Plan Offices | I121: 0
A122: Workshops | I122: 0
A123: Yards | I123: 0
A124: Stores | I124: 0
A125: Laboratories | I125: 0
A126: Training Centres | I126: 0
A127: Manufacturing Plant | I127: 0
A128: Depots | I128: 0
A129: Capital Spares | I129: 0
A130: Housing | C130: =SUM(C131:C133) -> 0 | D130: 0 | E130: 0 | F130: 0 | G130: 0 | H130: 0 | I130: 0 | K130: =SUM(K131:K133) -> 0
A131: Staff Housing | I131: 0
A132: Social Housing | I132: 0
A133: Capital Spares | I133: 0
A135: Biological or Cultivated Assets | C135: =SUM(C136:C136) -> 0 | D135: 0 | E135: 0 | F135: 0 | G135: 0 | H135: 0 | I135: =H135-G135 -> 0 | K135: =SUM(K136) -> 0
A136: Biological or Cultivated Assets | I136: =H136-G136 -> 0
A138: Intangible Assets | C138: =SUM(C139:C140) -> 1383449 | D138: 0 | E138: 0 | F138: 0 | G138: 0 | H138: 0 | I138: =H138-G138 -> 0 | K138: =SUM(K139:K140) -> 0
A139: Servitudes | I139: 0
A140: Licences and Rights | C140: =SUM(C141:C146) -> 1383449 | D140: 0 | E140: 0 | F140: 0 | G140: 0 | H140: 0 | I140: 0 | K140: =SUM(K141:K146) -> 0
A141: Water Rights | I141: 0
A142: Effluent Licenses | I142: 0
A143: Solid Waste Licenses | I143: 0
A144: Computer Software and Applications | C144: 1383449 | I144: 0
A145: Load Settlement Software Applications | I145: 0
A146: Unspecified | I146: 0
A148: Computer Equipment | C148: =SUM(C149:C149) -> 977996 | D148: 300000 | E148: 300000 | F148: 0 | G148: 92826 | H148: 150000 | I148: =H148-G148 -> 57174 | J148: =IF(I148=0,"",I148/H148) -> 0.38116 | K148: =SUM(K149) -> 300000
A149: Computer Equipment | C149: 977996 | D149: 300000 | E149: 300000 | F149: 0 | G149: 92826 | H149: 150000 | I149: =H149-G149 -> 57174 | J149: =IF(I149=0,"",I149/H149) -> 0.38116 | K149: 300000
A151: Furniture and Office Equipment | C151: =SUM(C152:C152) -> 5388998 | D151: 400000 | E151: 400000 | F151: 48895 | G151: 124785 | H151: 199998 | I151: =H151-G151 -> 75213 | J151: =IF(I151=0,"",I151/H151) -> 0.3760687607 | K151: =SUM(K152) -> 400000
A152: Furniture and Office Equipment | C152: 5388998 | D152: 400000 | E152: 400000 | F152: 48895 | G152: 124785 | H152: 199998 | I152: =H152-G152 -> 75213 | J152: =IF(I152=0,"",I152/H152) -> 0.3760687607 | K152: 400000
J153: =IF(I153=0,"",I153/H153) -> 
A154: Machinery and Equipment | C154: =SUM(C155:C155) -> 0 | D154: 0 | E154: 0 | F154: 0 | G154: 0 | H154: 0 | I154: =H154-G154 -> 0 | J154: =IF(I154=0,"",I154/H154) ->  | K154: =SUM(K155) -> 0
A155: Machinery and Equipment | I155: =H155-G155 -> 0 | J155: =IF(I155=0,"",I155/H155) -> 
A157: Transport Assets | C157: =SUM(C158:C158) -> 4779160 | D157: 0 | E157: 0 | F157: 0 | G157: 0 | H157: 0 | I157: =H157-G157 -> 0 | J157: =IF(I157=0,"",I157/H157) ->  | K157: =SUM(K158) -> 0
A158: Transport Assets | C158: 4779160 | I158: =H158-G158 -> 0 | J158: =IF(I158=0,"",I158/H158) -> 
A160: Land | C160: =SUM(C161:C161) -> 10405000 | D160: 0 | E160: 0 | F160: 0 | G160: 0 | H160: 0 | I160: =H160-G160 -> 0 | J160: =IF(I160=0,"",I160/H160) ->  | K160: =SUM(K161) -> 0
A161: Land | C161: 10405000 | I161: =H161-G161 -> 0 | J161: =IF(I161=0,"",I161/H161) -> 
A163: Zoo's, Marine and Non-biological Animals | C163: =SUM(C164:C164) -> 0 | D163: 0 | E163: 0 | F163: 0 | G163: 0 | H163: 0 | I163: =H163-G163 -> 0 | J163: =IF(I163=0,"",I163/H163) ->  | K163: =SUM(K164) -> 0
A164: Zoo's, Marine and Non-biological Animals | I164: =H164-G164 -> 0 | J164: =IF(I164=0,"",I164/H164) -> 
J165: =IF(I165=0,"",I165/H165) -> 
A166: Total Capital Expenditure on new assets | B166: 1 | C166: =C7+C75+C103+C110+C117+C135+C138+C148+C151+C154+C157+C160+C163 -> 216675298 | D166: 24696767 | E166: 32420752 | F166: 4030949 | G166: 21646739 | H166: 15470508 | I166: =H166-G166 -> -6176231 | J166: =IF(I166=0,"",I166/H166) -> -0.3992261275 | K166: =K7+K75+K103+K110+K117+K135+K138+K148+K151+K154+K157+K160+K163 -> 30941002
A168: =head27a -> References
A169: 1. Total Capital Expenditure on new assets (SC13a) plus Total Capital Expenditure on renewal of existing assets (SC13b) plus Total Capital Expenditure on upgrading of existing assets (SC13e) must reconcile to total capital expenditure in Table C5
A171: check balance | C171: =C166+SC13b!C166+SC13e!C166-'C5-Capex'!C40 -> 5887005 | D171: =D166+SC13b!D166+SC13e!D166-'C5-Capex'!D40 -> 0 | E171: =E166+SC13b!E166+SC13e!E166-'C5-Capex'!E40 -> 0 | F171: =F166+SC13b!F166+SC13e!F166-'C5-Capex'!F40 -> 0 | G171: =G166+SC13b!G166+SC13e!G166-'C5-Capex'!G40 -> 0 | H171: =H166+SC13b!H166+SC13e!H166-'C5-Capex'!H40 -> 0 | K171: =K166+SC13b!K166+SC13e!K166-'C5-Capex'!K40 -> 1.340000004

Sheet SC13b
A1: =muni& " - "&S71Sb& " - "&Head57 -> Choose name from list - Supporting Table SC13b Monthly Budget Statement - capital expenditure on renewal of existing assets by asset class - Mid-Year Assessment
A2: =desc -> Description | B2: =head27 -> Ref | C2: =Head1 -> 2019/20 | D2: =Head2 -> Budget Year 2020/21
C3: =Head5 -> Audited Outcome | D3: =Head6 -> Original Budget | E3: =Head7 -> Adjusted Budget | F3: =Head38 -> Monthly actual | G3: =Head39 -> YearTD actual | H3: =Head40 -> YearTD budget | I3: =Head41 -> YTD variance | J3: =Head41 -> YTD variance | K3: =Head8 -> Full Year Forecast
A4: R thousands | B4: 1 | J4: %
A5: Capital expenditure on renewal of existing assets by Asset Class/Sub-class
A7: Infrastructure | C7: =C8+C13+C17+C27+C38+C45+C53+C63+C69 -> 0 | D7: 0 | E7: 0 | F7: 0 | G7: 0 | H7: 0 | I7: =H7-G7 -> 0 | J7: =IF(I7=0,"",I7/H7) ->  | K7: =K8+K13+K17+K27+K38+K45+K53+K63+K69 -> 0
A8: Roads Infrastructure | C8: =SUM(C9:C12) -> 0 | D8: 0 | E8: 0 | F8: 0 | G8: 0 | H8: 0 | I8: 0 | K8: =SUM(K9:K12) -> 0
A9: Roads | I9: 0
A10: Road Structures | I10: 0
A11: Road Furniture | I11: 0
A12: Capital Spares | I12: 0
A13: Storm water Infrastructure | C13: =SUM(C14:C16) -> 0 | D13: 0 | E13: 0 | F13: 0 | G13: 0 | H13: 0 | I13: 0 | K13: =SUM(K14:K16) -> 0
A14: Drainage Collection | I14: 0
A15: Storm water Conveyance | I15: 0
A16: Attenuation | I16: 0
A17: Electrical Infrastructure | C17: =SUM(C18:C26) -> 0 | D17: 0 | E17: 0 | F17: 0 | G17: 0 | H17: 0 | I17: 0 | K17: =SUM(K18:K26) -> 0
A18: Power Plants | I18: 0
A19: HV Substations | I19: 0
A20: HV Switching Station | I20: 0
A21: HV Transmission Conductors | I21: 0
A22: MV Substations | I22: 0
A23: MV Switching Stations | I23: 0
A24: MV Networks | I24: 0
A25: LV Networks | I25: 0
A26: Capital Spares | I26: 0
A27: Water Supply Infrastructure | C27: =SUM(C28:C37) -> 0 | D27: 0 | E27: 0 | F27: 0 | G27: 0 | H27: 0 | I27: 0 | K27: =SUM(K28:K37) -> 0
A28: Dams and Weirs | I28: 0
A29: Boreholes | I29: 0
A30: Reservoirs | I30: 0
A31: Pump Stations | I31: 0
A32: Water Treatment Works | I32: 0
A33: Bulk Mains | I33: 0
A34: Distribution | I34: 0
A35: Distribution Points | I35: 0
A36: PRV Stations | I36: 0
A37: Capital Spares | I37: 0
A38: Sanitation Infrastructure | C38: =SUM(C39:C44) -> 0 | D38: 0 | E38: 0 | F38: 0 | G38: 0 | H38: 0 | I38: 0 | K38: =SUM(K39:K44) -> 0
A39: Pump Station | I39: 0
A40: Reticulation | I40: 0
A41: Waste Water Treatment Works | I41: 0
A42: Outfall Sewers | I42: 0
A43: Toilet Facilities | I43: 0
A44: Capital Spares | I44: 0
A45: Solid Waste Infrastructure | C45: =SUM(C46:C52) -> 0 | D45: 0 | E45: 0 | F45: 0 | G45: 0 | H45: 0 | I45: 0 | K45: =SUM(K46:K52) -> 0
A46: Landfill Sites | I46: 0
A47: Waste Transfer Stations | I47: 0
A48: Waste Processing Facilities | I48: 0
A49: Waste Drop-off Points | I49: 0
A50: Waste Separation Facilities | I50: 0
A51: Electricity Generation Facilities | I51: 0
A52: Capital Spares | I52: 0
A53: Rail Infrastructure | C53: =SUM(C54:C62) -> 0 | D53: 0 | E53: 0 | F53: 0 | G53: 0 | H53: 0 | I53: 0 | K53: =SUM(K54:K62) -> 0
A54: Rail Lines | I54: 0
A55: Rail Structures | I55: 0
A56: Rail Furniture | I56: 0
A57: Drainage Collection | I57: 0
A58: Storm water Conveyance | I58: 0
A59: Attenuation | I59: 0
A60: MV Substations | I60: 0
A61: LV Networks | I61: 0
A62: Capital Spares | I62: 0
A63: Coastal Infrastructure | C63: =SUM(C64:C68) -> 0 | D63: 0 | E63: 0 | F63: 0 | G63: 0 | H63: 0 | I63: 0 | K63: =SUM(K64:K68) -> 0
A64: Sand Pumps | I64: 0
A65: Piers | I65: 0
A66: Revetments | I66: 0
A67: Promenades | I67: 0
A68: Capital Spares | I68: 0
A69: Information and Communication Infrastructure | C69: =SUM(C70:C73) -> 0 | D69: 0 | E69: 0 | F69: 0 | G69: 0 | H69: 0 | I69: 0 | K69: =SUM(K70:K73) -> 0
A70: Data Centres | I70: 0
A71: Core Layers | I71: 0
A72: Distribution Layers | I72: 0
A73: Capital Spares | I73: 0
A75: Community Assets | C75: =+C76+C99 -> 0 | D75: 0 | E75: 0 | F75: 0 | G75: 0 | H75: 0 | I75: 0 | K75: =+K76+K99 -> 0
A76: Community Facilities | C76: =SUM(C77:C98) -> 0 | D76: 0 | E76: 0 | F76: 0 | G76: 0 | H76: 0 | I76: 0 | K76: =SUM(K77:K98) -> 0
A77: Halls | I77: 0
A78: Centres | I78: 0
A79: Crèches | I79: 0
A80: Clinics/Care Centres | I80: 0
A81: Fire/Ambulance Stations | I81: 0
A82: Testing Stations | I82: 0
A83: Museums | I83: 0
A84: Galleries | I84: 0
A85: Theatres | I85: 0
A86: Libraries | I86: 0
A87: Cemeteries/Crematoria | I87: 0
A88: Police | I88: 0
A89: Purls | I89: 0
A90: Public Open Space | I90: 0
A91: Nature Reserves | I91: 0
A92: Public Ablution Facilities | I92: 0
A93: Markets | I93: 0
A94: Stalls | I94: 0
A95: Abattoirs | I95: 0
A96: Airports | I96: 0
A97: Taxi Ranks/Bus Terminals | I97: 0
A98: Capital Spares | I98: 0
A99: Sport and Recreation Facilities | C99: =SUM(C100:C102) -> 0 | D99: 0 | E99: 0 | F99: 0 | G99: 0 | H99: 0 | I99: 0 | K99: =SUM(K100:K102) -> 0
A100: Indoor Facilities | I100: 0
A101: Outdoor Facilities | I101: =H101-G101 -> 0 | J101: =IF(I101=0,"",I101/H101) -> 
A102: Capital Spares | I102: 0
A103: Heritage assets | C103: =SUM(C104:C108) -> 0 | D103: 0 | E103: 0 | F103: 0 | G103: 0 | H103: 0 | I103: 0 | K103: =SUM(K104:K108) -> 0
A104: Monuments | I104: 0
A105: Historic Buildings | I105: 0
A106: Works of Art | I106: 0
A107: Conservation Areas | I107: 0
A108: Other Heritage | I108: 0
I109: 0
A110: Investment properties | C110: =+C111+C114 -> 0 | D110: 0 | E110: 0 | F110: 0 | G110: 0 | H110: 0 | I110: 0 | K110: =+K111+K114 -> 0
A111: Revenue Generating | C111: =SUM(C112:C113) -> 0 | D111: 0 | E111: 0 | F111: 0 | G111: 0 | H111: 0 | I111: 0 | K111: =SUM(K112:K113) -> 0
A112: Improved Property | I112: 0
A113: Unimproved Property | I113: 0
A114: Non-revenue Generating | C114: =SUM(C115:C116) -> 0 | D114: 0 | E114: 0 | F114: 0 | G114: 0 | H114: 0 | I114: 0 | K114: =SUM(K115:K116) -> 0
A115: Improved Property | I115: 0
A116: Unimproved Property | I116: =H116-G116 -> 0 | J116: =IF(I116=0,"",I116/H116) -> 
A117: Other assets | C117: =+C118+C130 -> 0 | D117: 0 | E117: 0 | F117: 0 | G117: 0 | H117: 0 | I117: 0 | K117: =+K118+K130 -> 0
A118: Operational Buildings | C118: =SUM(C119:C129) -> 0 | D118: 0 | E118: 0 | F118: 0 | G118: 0 | H118: 0 | I118: 0 | K118: =SUM(K119:K129) -> 0
A119: Municipal Offices | I119: 0
A120: Pay/Enquiry Points | I120: 0
A121: Building Plan Offices | I121: 0
A122: Workshops | I122: 0
A123: Yards | I123: 0
A124: Stores | I124: 0
A125: Laboratories | I125: 0
A126: Training Centres | I126: 0
A127: Manufacturing Plant | I127: 0
A128: Depots | I128: 0
A129: Capital Spares | I129: 0
A130: Housing | C130: =SUM(C131:C133) -> 0 | D130: 0 | E130: 0 | F130: 0 | G130: 0 | H130: 0 | I130: 0 | K130: =SUM(K131:K133) -> 0
A131: Staff Housing | I131: 0
A132: Social Housing | I132: 0
A133: Capital Spares | I133: 0
A135: Biological or Cultivated Assets | C135: =SUM(C136:C136) -> 0 | D135: 0 | E135: 0 | F135: 0 | G135: 0 | H135: 0 | I135: =H135-G135 -> 0 | K135: =SUM(K136) -> 0
A136: Biological or Cultivated Assets | I136: =H136-G136 -> 0
J137: =IF(I137=0,"",I137/H137) -> 
A138: Intangible Assets | C138: =SUM(C139:C140) -> 0 | D138: 0 | E138: 0 | F138: 0 | G138: 0 | H138: 0 | I138: =H138-G138 -> 0 | K138: =SUM(K139:K140) -> 0
A139: Servitudes | I139: 0
A140: Licences and Rights | C140: =SUM(C141:C146) -> 0 | D140: 0 | E140: 0 | F140: 0 | G140: 0 | H140: 0 | I140: 0 | K140: =SUM(K141:K146) -> 0
A141: Water Rights | I141: 0
A142: Effluent Licenses | I142: 0
A143: Solid Waste Licenses | I143: 0
A144: Computer Software and Applications | I144: 0
A145: Load Settlement Software Applications | I145: 0
A146: Unspecified | I146: 0
A148: Computer Equipment | C148: =SUM(C149:C149) -> 0 | D148: 0 | E148: 0 | F148: 0 | G148: 0 | H148: 0 | I148: =H148-G148 -> 0 | J148: =IF(I148=0,"",I148/H148) ->  | K148: =SUM(K149) -> 0
A149: Computer Equipment | I149: =H149-G149 -> 0 | J149: =IF(I149=0,"",I149/H149) -> 
A151: Furniture and Office Equipment | C151: =SUM(C152:C152) -> 0 | D151: 0 | E151: 0 | F151: 0 | G151: 0 | H151: 0 | I151: =H151-G151 -> 0 | J151: =IF(I151=0,"",I151/H151) ->  | K151: =SUM(K152) -> 0
A152: Furniture and Office Equipment | I152: =H152-G152 -> 0 | J152: =IF(I152=0,"",I152/H152) -> 
J153: =IF(I153=0,"",I153/H153) -> 
A154: Machinery and Equipment | C154: =SUM(C155:C155) -> 0 | D154: 0 | E154: 0 | F154: 0 | G154: 0 | H154: 0 | I154: =H154-G154 -> 0 | J154: =IF(I154=0,"",I154/H154) ->  | K154: =SUM(K155) -> 0
A155: Machinery and Equipment | I155: =H155-G155 -> 0 | J155: =IF(I155=0,"",I155/H155) -> 
A157: Transport Assets | C157: =SUM(C158:C158) -> 0 | D157: 0 | E157: 0 | F157: 0 | G157: 0 | H157: 0 | I157: =H157-G157 -> 0 | J157: =IF(I157=0,"",I157/H157) ->  | K157: =SUM(K158) -> 0
A158: Transport Assets | I158: =H158-G158 -> 0 | J158: =IF(I158=0,"",I158/H158) -> 
A160: Land | C160: =SUM(C161:C161) -> 0 | D160: 0 | E160: 0 | F160: 0 | G160: 0 | H160: 0 | I160: =H160-G160 -> 0 | J160: =IF(I160=0,"",I160/H160) ->  | K160: =SUM(K161) -> 0
A161: Land | I161: =H161-G161 -> 0 | J161: =IF(I161=0,"",I161/H161) -> 
J162: .
A163: Zoo's, Marine and Non-biological Animals | C163: =SUM(C164:C164) -> 0 | D163: 0 | E163: 0 | F163: 0 | G163: 0 | H163: 0 | I163: =H163-G163 -> 0 | J163: =IF(I163=0,"",I163/H163) ->  | K163: =SUM(K164) -> 0
A164: Zoo's, Marine and Non-biological Animals | I164: =H164-G164 -> 0 | J164: =IF(I164=0,"",I164/H164) -> 
J165: =IF(I165=0,"",I165/H165) -> 
A166: Total Capital Expenditure on renewal of existing assets | B166: 1 | C166: =C7+C75+C103+C110+C117+C135+C138+C148+C151+C154+C157+C160+C163 -> 0 | D166: 0 | E166: 0 | F166: 0 | G166: 0 | H166: 0 | I166: =H166-G166 -> 0 | J166: =IF(I166=0,"",I166/H166) ->  | K166: =K7+K75+K103+K110+K117+K135+K138+K148+K151+K154+K157+K160+K163 -> 0
A168: =head27a -> References
A169: 1. Total Capital Expenditure on new assets (SC13a) plus Total Capital Expenditure on renewal of existing assets (SC13b) plus Total Capital Expenditure on upgrading of existing assets (SC13e) must reconcile to total capital expenditure in Table C5
A171: check balance | C171: =C166+SC13a!C166+SC13e!C166-'C5-Capex'!C40 -> 5887005 | D171: =D166+SC13a!D166+SC13e!D166-'C5-Capex'!D40 -> 0 | E171: =E166+SC13a!E166+SC13e!E166-'C5-Capex'!E40 -> 0 | F171: =F166+SC13a!F166+SC13e!F166-'C5-Capex'!F40 -> 0 | G171: =G166+SC13a!G166+SC13e!G166-'C5-Capex'!G40 -> 0 | H171: =H166+SC13a!H166+SC13e!H166-'C5-Capex'!H40 -> 0 | K171: =K166+SC13a!K166+SC13e!K166-'C5-Capex'!K40 -> 1.340000004

Sheet SC13c
A1: =muni& " - "&S71Sc& " - "&Head57 -> Choose name from list - Supporting Table SC13c Monthly Budget Statement - expenditure on repairs and maintenance by asset class - Mid-Year Assessment
A2: =desc -> Description | B2: =head27 -> Ref | C2: =Head1 -> 2019/20 | D2: =Head2 -> Budget Year 2020/21
C3: =Head5 -> Audited Outcome | D3: =Head6 -> Original Budget | E3: =Head7 -> Adjusted Budget | F3: =Head38 -> Monthly actual | G3: =Head39 -> YearTD actual | H3: =Head40 -> YearTD budget | I3: =Head41 -> YTD variance | J3: =Head41 -> YTD variance | K3: =Head8 -> Full Year Forecast
A4: R thousands | B4: 1 | J4: %
A5: Repairs and maintenance expenditure by Asset Class/Sub-class
A7: Infrastructure | C7: =C8+C13+C17+C27+C38+C45+C53+C63+C69 -> 1568075 | D7: 11000000 | E7: 11000000 | F7: 0 | G7: 13633816 | H7: 5500002 | I7: =H7-G7 -> -8133814 | J7: =IF(I7=0,"",I7/H7) -> -1.478874735 | K7: =K8+K13+K17+K27+K38+K45+K53+K63+K69 -> 11000000
A8: Roads Infrastructure | C8: =SUM(C9:C12) -> 1568075 | D8: 11000000 | E8: 11000000 | F8: 0 | G8: 13633816 | H8: 5500002 | I8: -8133814 | J8: -1.478874735 | K8: =SUM(K9:K12) -> 11000000
A9: Roads | C9: 0 | D9: 9000000 | E9: 9000000 | F9: 0 | G9: 11268512 | H9: 4500000 | I9: -6768512 | J9: -1.504113778 | K9: 9000000
A10: Road Structures | C10: 1568075 | D10: 2000000 | E10: 2000000 | F10: 0 | G10: 2365304 | H10: 1000002 | I10: -1365302 | J10: -1.365299269 | K10: 2000000
A11: Road Furniture | C11: 0 | D11: 0 | E11: 0 | F11: 0 | G11: 0 | H11: 0 | I11: 0 | K11: 0
A12: Capital Spares | C12: 0 | D12: 0 | E12: 0 | F12: 0 | G12: 0 | H12: 0 | I12: 0 | K12: 0
A13: Storm water Infrastructure | C13: =SUM(C14:C16) -> 0 | D13: 0 | E13: 0 | F13: 0 | G13: 0 | H13: 0 | I13: 0 | K13: =SUM(K14:K16) -> 0
A14: Drainage Collection | I14: 0
A15: Storm water Conveyance | I15: 0
A16: Attenuation | I16: 0
A17: Electrical Infrastructure | C17: =SUM(C18:C26) -> 0 | D17: 0 | E17: 0 | F17: 0 | G17: 0 | H17: 0 | I17: 0 | K17: =SUM(K18:K26) -> 0
A18: Power Plants | I18: 0
A19: HV Substations | I19: 0
A20: HV Switching Station | I20: 0
A21: HV Transmission Conductors | I21: 0
A22: MV Substations | I22: 0
A23: MV Switching Stations | I23: 0
A24: MV Networks | I24: 0
A25: LV Networks | I25: 0
A26: Capital Spares | I26: 0
A27: Water Supply Infrastructure | C27: =SUM(C28:C37) -> 0 | D27: 0 | E27: 0 | F27: 0 | G27: 0 | H27: 0 | I27: 0 | K27: =SUM(K28:K37) -> 0
A28: Dams and Weirs | I28: 0
A29: Boreholes | I29: 0
A30: Reservoirs | I30: 0
A31: Pump Stations | I31: 0
A32: Water Treatment Works | I32: 0
A33: Bulk Mains | I33: 0
A34: Distribution | I34: 0
A35: Distribution Points | I35: 0
A36: PRV Stations | I36: 0
A37: Capital Spares | I37: 0
A38: Sanitation Infrastructure | C38: =SUM(C39:C44) -> 0 | D38: 0 | E38: 0 | F38: 0 | G38: 0 | H38: 0 | I38: 0 | K38: =SUM(K39:K44) -> 0
A39: Pump Station | I39: 0
A40: Reticulation | I40: 0
A41: Waste Water Treatment Works | I41: 0
A42: Outfall Sewers | I42: 0
A43: Toilet Facilities | I43: 0
A44: Capital Spares | I44: 0
A45: Solid Waste Infrastructure | C45: =SUM(C46:C52) -> 0 | D45: 0 | E45: 0 | F45: 0 | G45: 0 | H45: 0 | I45: 0 | K45: =SUM(K46:K52) -> 0
A46: Landfill Sites | I46: 0
A47: Waste Transfer Stations | I47: 0
A48: Waste Processing Facilities | I48: 0
A49: Waste Drop-off Points | I49: 0
A50: Waste Separation Facilities | I50: 0
A51: Electricity Generation Facilities | I51: 0
A52: Capital Spares | I52: 0
A53: Rail Infrastructure | C53: =SUM(C54:C62) -> 0 | D53: 0 | E53: 0 | F53: 0 | G53: 0 | H53: 0 | I53: 0 | K53: =SUM(K54:K62) -> 0
A54: Rail Lines | I54: 0
A55: Rail Structures | I55: 0
A56: Rail Furniture | I56: 0
A57: Drainage Collection | I57: 0
A58: Storm water Conveyance | I58: 0
A59: Attenuation | I59: 0
A60: MV Substations | I60: 0
A61: LV Networks | I61: 0
A62: Capital Spares | I62: 0
A63: Coastal Infrastructure | C63: =SUM(C64:C68) -> 0 | D63: 0 | E63: 0 | F63: 0 | G63: 0 | H63: 0 | I63: 0 | K63: =SUM(K64:K68) -> 0
A64: Sand Pumps | I64: 0
A65: Piers | I65: 0
A66: Revetments | I66: 0
A67: Promenades | I67: 0
A68: Capital Spares | I68: 0
A69: Information and Communication Infrastructure | C69: =SUM(C70:C73) -> 0 | D69: 0 | E69: 0 | F69: 0 | G69: 0 | H69: 0 | I69: 0 | K69: =SUM(K70:K73) -> 0
A70: Data Centres | I70: 0
A71: Core Layers | I71: 0
A72: Distribution Layers | I72: 0
A73: Capital Spares | I73: 0
A75: Community Assets | C75: =+C76+C99 -> 5083670 | D75: 3500000 | E75: 3500000 | F75: 158951 | G75: 1117298 | H75: 1750002 | I75: 632704 | J75: 0.3615447297 | K75: =+K76+K99 -> 3500000
A76: Community Facilities | C76: =SUM(C77:C98) -> 1950906 | D76: 2000000 | E76: 2000000 | F76: 158951 | G76: 679115 | H76: 1000002 | I76: 320887 | J76: 0.3208863582 | K76: =SUM(K77:K98) -> 2000000
A77: Halls | C77: 1699102 | D77: 2000000 | E77: 2000000 | F77: 158951 | G77: 679115 | H77: 1000002 | I77: 320887 | J77: 0.3208863582 | K77: 2000000
A78: Centres | C78: 0 | D78: 0 | E78: 0 | F78: 0 | G78: 0 | H78: 0 | I78: 0
A79: Crèches | C79: 251804 | D79: 0 | E79: 0 | F79: 0 | G79: 0 | H79: 0 | I79: 0
A80: Clinics/Care Centres | I80: 0
A81: Fire/Ambulance Stations | I81: 0
A82: Testing Stations | I82: 0
A83: Museums | I83: 0
A84: Galleries | I84: 0
A85: Theatres | I85: 0
A86: Libraries | I86: 0
A87: Cemeteries/Crematoria | I87: 0
A88: Police | I88: 0
A89: Purls | I89: 0
A90: Public Open Space | I90: 0
A91: Nature Reserves | I91: 0
A92: Public Ablution Facilities | I92: 0
A93: Markets | I93: 0
A94: Stalls | I94: 0
A95: Abattoirs | I95: 0
A96: Airports | I96: 0
A97: Taxi Ranks/Bus Terminals | I97: 0
A98: Capital Spares | I98: 0
A99: Sport and Recreation Facilities | C99: =SUM(C100:C102) -> 3132764 | D99: 1500000 | E99: 1500000 | F99: 0 | G99: 438183 | H99: 750000 | I99: 311817 | J99: 0.415756 | K99: =SUM(K100:K102) -> 1500000
A100: Indoor Facilities | I100: 0
A101: Outdoor Facilities | C101: 3132764 | D101: 1500000 | E101: 1500000 | F101: 0 | G101: 438183 | H101: 750000 | I101: =H101-G101 -> 311817 | J101: =IF(I101=0,"",I101/H101) -> 0.415756 | K101: 1500000
A102: Capital Spares | I102: 0
A103: Heritage assets | C103: =SUM(C104:C108) -> 0 | D103: 0 | E103: 0 | F103: 0 | G103: 0 | H103: 0 | I103: 0 | K103: =SUM(K104:K108) -> 0
A104: Monuments | I104: 0
A105: Historic Buildings | I105: 0
A106: Works of Art | I106: 0
A107: Conservation Areas | I107: 0
A108: Other Heritage | I108: 0
I109: 0
A110: Investment properties | C110: =+C111+C114 -> 0 | D110: 0 | E110: 0 | F110: 0 | G110: 0 | H110: 0 | I110: 0 | K110: =+K111+K114 -> 0
A111: Revenue Generating | C111: =SUM(C112:C113) -> 0 | D111: 0 | E111: 0 | F111: 0 | G111: 0 | H111: 0 | I111: 0 | K111: =SUM(K112:K113) -> 0
A112: Improved Property | I112: 0
A113: Unimproved Property | I113: 0
A114: Non-revenue Generating | C114: =SUM(C115:C116) -> 0 | D114: 0 | E114: 0 | F114: 0 | G114: 0 | H114: 0 | I114: 0 | K114: =SUM(K115:K116) -> 0
A115: Improved Property | I115: 0
A116: Unimproved Property | I116: =H116-G116 -> 0 | J116: =IF(I116=0,"",I116/H116) -> 
A117: Other assets | C117: =+C118+C130 -> 1064569 | D117: 2000000 | E117: 2000000 | F117: 0 | G117: 492491 | H117: 1000002 | I117: 507511 | J117: 0.507509985 | K117: =+K118+K130 -> 2000000
A118: Operational Buildings | C118: =SUM(C119:C129) -> 1064569 | D118: 2000000 | E118: 2000000 | F118: 0 | G118: 492491 | H118: 1000002 | I118: 507511 | J118: 0.507509985 | K118: =SUM(K119:K129) -> 2000000
A119: Municipal Offices | C119: 1064569 | D119: 2000000 | E119: 2000000 | F119: 0 | G119: 492491 | H119: 1000002 | I119: 507511 | J119: 0.507509985 | K119: 2000000
A120: Pay/Enquiry Points | I120: 0
A121: Building Plan Offices | I121: 0
A122: Workshops | I122: 0
A123: Yards | I123: 0
A124: Stores | I124: 0
A125: Laboratories | I125: 0
A126: Training Centres | I126: 0
A127: Manufacturing Plant | I127: 0
A128: Depots | I128: 0
A129: Capital Spares | I129: 0
A130: Housing | C130: =SUM(C131:C133) -> 0 | D130: 0 | E130: 0 | F130: 0 | G130: 0 | H130: 0 | I130: 0 | K130: =SUM(K131:K133) -> 0
A131: Staff Housing | I131: 0
A132: Social Housing | I132: 0
A133: Capital Spares | I133: 0
A135: Biological or Cultivated Assets | C135: =SUM(C136:C136) -> 0 | D135: 0 | E135: 0 | F135: 0 | G135: 0 | H135: 0 | I135: =H135-G135 -> 0 | K135: =SUM(K136) -> 0
A136: Biological or Cultivated Assets | I136: =H136-G136 -> 0
J137: =IF(I137=0,"",I137/H137) -> 
A138: Intangible Assets | C138: =SUM(C139:C140) -> 0 | D138: 0 | E138: 0 | F138: 0 | G138: 0 | H138: 0 | I138: =H138-G138 -> 0 | K138: =SUM(K139:K140) -> 0
A139: Servitudes | I139: 0
A140: Licences and Rights | C140: =SUM(C141:C146) -> 0 | D140: 0 | E140: 0 | F140: 0 | G140: 0 | H140: 0 | I140: 0 | K140: =SUM(K141:K146) -> 0
A141: Water Rights | I141: 0
A142: Effluent Licenses | I142: 0
A143: Solid Waste Licenses | I143: 0
A144: Computer Software and Applications | I144: 0
A145: Load Settlement Software Applications | I145: 0
A146: Unspecified | I146: 0
A148: Computer Equipment | C148: =SUM(C149:C149) -> 0 | D148: 0 | E148: 0 | F148: 0 | G148: 0 | H148: 0 | I148: =H148-G148 -> 0 | J148: =IF(I148=0,"",I148/H148) ->  | K148: =SUM(K149) -> 0
A149: Computer Equipment | I149: =H149-G149 -> 0 | J149: =IF(I149=0,"",I149/H149) -> 
A151: Furniture and Office Equipment | C151: =SUM(C152:C152) -> 0 | D151: 0 | E151: 0 | F151: 0 | G151: 0 | H151: 0 | I151: =H151-G151 -> 0 | J151: =IF(I151=0,"",I151/H151) ->  | K151: =SUM(K152) -> 0
A152: Furniture and Office Equipment | I152: =H152-G152 -> 0 | J152: =IF(I152=0,"",I152/H152) -> 
J153: =IF(I153=0,"",I153/H153) -> 
A154: Machinery and Equipment | C154: =SUM(C155:C155) -> 0 | D154: 0 | E154: 0 | F154: 0 | G154: 0 | H154: 0 | I154: =H154-G154 -> 0 | J154: =IF(I154=0,"",I154/H154) ->  | K154: =SUM(K155) -> 0
A155: Machinery and Equipment | I155: =H155-G155 -> 0 | J155: =IF(I155=0,"",I155/H155) -> 
A157: Transport Assets | C157: =SUM(C158:C158) -> 599761 | D157: 380000 | E157: 380000 | F157: 21340 | G157: 574288 | H157: 190002 | I157: =H157-G157 -> -384286 | J157: =IF(I157=0,"",I157/H157) -> -2.022536605 | K157: =SUM(K158) -> 380000
A158: Transport Assets | C158: 599761 | D158: 380000 | E158: 380000 | F158: 21340 | G158: 574288 | H158: 190002 | I158: =H158-G158 -> -384286 | J158: =IF(I158=0,"",I158/H158) -> -2.022536605 | K158: 380000
A160: Land | C160: =SUM(C161:C161) -> 0 | D160: 0 | E160: 0 | F160: 0 | G160: 0 | H160: 0 | I160: =H160-G160 -> 0 | J160: =IF(I160=0,"",I160/H160) ->  | K160: =SUM(K161) -> 0
A161: Land | I161: =H161-G161 -> 0 | J161: =IF(I161=0,"",I161/H161) -> 
A163: Zoo's, Marine and Non-biological Animals | C163: =SUM(C164:C164) -> 0 | D163: 0 | E163: 0 | F163: 0 | G163: 0 | H163: 0 | I163: =H163-G163 -> 0 | J163: =IF(I163=0,"",I163/H163) ->  | K163: =SUM(K164) -> 0
A164: Zoo's, Marine and Non-biological Animals | I164: =H164-G164 -> 0 | J164: =IF(I164=0,"",I164/H164) -> 
J165: =IF(I165=0,"",I165/H165) -> 
A166: Total Repairs and Maintenance Expenditure | B166: 1 | C166: =C7+C75+C103+C110+C117+C135+C138+C148+C151+C154+C157+C160+C163 -> 8316075 | D166: 16880000 | E166: 16880000 | F166: 180291 | G166: 15817893 | H166: 8440008 | I166: -7377885 | J166: -0.8741561619 | K166: =K7+K75+K103+K110+K117+K135+K138+K148+K151+K154+K157+K160+K163 -> 16880000

Sheet SC13d
A1: =muni& " - "&S71Sd& " - "&Head57 -> Choose name from list - Supporting Table SC13d Monthly Budget Statement - depreciation by asset class - Mid-Year Assessment
A2: =desc -> Description | B2: =head27 -> Ref | C2: =Head1 -> 2019/20 | D2: =Head2 -> Budget Year 2020/21
C3: =Head5 -> Audited Outcome | D3: =Head6 -> Original Budget | E3: =Head7 -> Adjusted Budget | F3: =Head38 -> Monthly actual | G3: =Head39 -> YearTD actual | H3: =Head40 -> YearTD budget | I3: =Head41 -> YTD variance | J3: =Head41 -> YTD variance | K3: =Head8 -> Full Year Forecast
A4: R thousands | B4: 1 | J4: %
A5: Depreciation by Asset Class/Sub-class
A7: Infrastructure | C7: =C8+C13+C17+C27+C38+C45+C53+C63+C69 -> 3574823 | D7: 3787600 | E7: 3787600 | F7: 310638 | G7: 1843786 | H7: 1893798 | I7: =H7-G7 -> 50012 | J7: =IF(I7=0,"",I7/H7) -> 0.02640830754 | K7: =K8+K13+K17+K27+K38+K45+K53+K63+K69 -> 3787600
A8: Roads Infrastructure | C8: =SUM(C9:C12) -> 3574823 | D8: 3787600 | E8: 3787600 | F8: 310638 | G8: 1843786 | H8: 1893798 | I8: 50012 | J8: 0.02640830754 | K8: =SUM(K9:K12) -> 3787600
A9: Roads | C9: 3574823 | D9: 3787600 | E9: 3787600 | F9: 310638 | G9: 1843786 | H9: 1893798 | I9: 50012 | J9: 0.02640830754 | K9: 3787600
A10: Road Structures | I10: 0
A11: Road Furniture | I11: 0
A12: Capital Spares | I12: 0
A13: Storm water Infrastructure | C13: =SUM(C14:C16) -> 0 | D13: 0 | E13: 0 | F13: 0 | G13: 0 | H13: 0 | I13: 0 | K13: =SUM(K14:K16) -> 0
A14: Drainage Collection | I14: 0
A15: Storm water Conveyance | I15: 0
A16: Attenuation | I16: 0
A17: Electrical Infrastructure | C17: =SUM(C18:C26) -> 0 | D17: 0 | E17: 0 | F17: 0 | G17: 0 | H17: 0 | I17: 0 | K17: =SUM(K18:K26) -> 0
A18: Power Plants | I18: 0
A19: HV Substations | I19: 0
A20: HV Switching Station | I20: 0
A21: HV Transmission Conductors | I21: 0
A22: MV Substations | I22: 0
A23: MV Switching Stations | I23: 0
A24: MV Networks | I24: 0
A25: LV Networks | I25: 0
A26: Capital Spares | I26: 0
A27: Water Supply Infrastructure | C27: =SUM(C28:C37) -> 0 | D27: 0 | E27: 0 | F27: 0 | G27: 0 | H27: 0 | I27: 0 | K27: =SUM(K28:K37) -> 0
A28: Dams and Weirs | I28: 0
A29: Boreholes | I29: 0
A30: Reservoirs | I30: 0
A31: Pump Stations | I31: 0
A32: Water Treatment Works | I32: 0
A33: Bulk Mains | I33: 0
A34: Distribution | I34: 0
A35: Distribution Points | I35: 0
A36: PRV Stations | I36: 0
A37: Capital Spares | I37: 0
A38: Sanitation Infrastructure | C38: =SUM(C39:C44) -> 0 | D38: 0 | E38: 0 | F38: 0 | G38: 0 | H38: 0 | I38: 0 | K38: =SUM(K39:K44) -> 0
A39: Pump Station | I39: 0
A40: Reticulation | I40: 0
A41: Waste Water Treatment Works | I41: 0
A42: Outfall Sewers | I42: 0
A43: Toilet Facilities | I43: 0
A44: Capital Spares | I44: 0
A45: Solid Waste Infrastructure | C45: =SUM(C46:C52) -> 0 | D45: 0 | E45: 0 | F45: 0 | G45: 0 | H45: 0 | I45: 0 | K45: =SUM(K46:K52) -> 0
A46: Landfill Sites | I46: 0
A47: Waste Transfer Stations | I47: 0
A48: Waste Processing Facilities | I48: 0
A49: Waste Drop-off Points | I49: 0
A50: Waste Separation Facilities | I50: 0
A51: Electricity Generation Facilities | I51: 0
A52: Capital Spares | I52: 0
A53: Rail Infrastructure | C53: =SUM(C54:C62) -> 0 | D53: 0 | E53: 0 | F53: 0 | G53: 0 | H53: 0 | I53: 0 | K53: =SUM(K54:K62) -> 0
A54: Rail Lines | I54: 0
A55: Rail Structures | I55: 0
A56: Rail Furniture | I56: 0
A57: Drainage Collection | I57: 0
A58: Storm water Conveyance | I58: 0
A59: Attenuation | I59: 0
A60: MV Substations | I60: 0
A61: LV Networks | I61: 0
A62: Capital Spares | I62: 0
A63: Coastal Infrastructure | C63: =SUM(C64:C68) -> 0 | D63: 0 | E63: 0 | F63: 0 | G63: 0 | H63: 0 | I63: 0 | K63: =SUM(K64:K68) -> 0
A64: Sand Pumps | I64: 0
A65: Piers | I65: 0
A66: Revetments | I66: 0
A67: Promenades | I67: 0
A68: Capital Spares | I68: 0
A69: Information and Communication Infrastructure | C69: =SUM(C70:C73) -> 0 | D69: 0 | E69: 0 | F69: 0 | G69: 0 | H69: 0 | I69: 0 | K69: =SUM(K70:K73) -> 0
A70: Data Centres | I70: 0
A71: Core Layers | I71: 0
A72: Distribution Layers | I72: 0
A73: Capital Spares | I73: 0
A75: Community Assets | C75: =+C76+C99 -> 3916490 | D75: 3787600 | E75: 3787600 | F75: 334222 | G75: 1983768 | H75: 1893798 | I75: -89970 | J75: -0.04750770674 | K75: =+K76+K99 -> 3787600
A76: Community Facilities | C76: =SUM(C77:C98) -> 3916490 | D76: 3787600 | E76: 3787600 | F76: 334222 | G76: 1983768 | H76: 1893798 | I76: -89970 | J76: -0.04750770674 | K76: =SUM(K77:K98) -> 3787600
A77: Halls | C77: 3916490 | D77: 3787600 | E77: 3787600 | F77: 334222 | G77: 1983768 | H77: 1893798 | I77: -89970 | J77: -0.04750770674 | K77: 3787600
A78: Centres | I78: 0
A79: Crèches | I79: 0
A80: Clinics/Care Centres | I80: 0
A81: Fire/Ambulance Stations | I81: 0
A82: Testing Stations | I82: 0
A83: Museums | I83: 0
A84: Galleries | I84: 0
A85: Theatres | I85: 0
A86: Libraries | I86: 0
A87: Cemeteries/Crematoria | I87: 0
A88: Police | I88: 0
A89: Purls | I89: 0
A90: Public Open Space | I90: 0
A91: Nature Reserves | I91: 0
A92: Public Ablution Facilities | I92: 0
A93: Markets | I93: 0
A94: Stalls | I94: 0
A95: Abattoirs | I95: 0
A96: Airports | I96: 0
A97: Taxi Ranks/Bus Terminals | I97: 0
A98: Capital Spares | I98: 0
A99: Sport and Recreation Facilities | C99: =SUM(C100:C102) -> 0 | D99: 0 | E99: 0 | F99: 0 | G99: 0 | H99: 0 | I99: 0 | K99: =SUM(K100:K102) -> 0
A100: Indoor Facilities | I100: 0
A101: Outdoor Facilities | I101: =H101-G101 -> 0 | J101: =IF(I101=0,"",I101/H101) -> 
A102: Capital Spares | I102: 0
A103: Heritage assets | C103: =SUM(C104:C108) -> 0 | D103: 0 | E103: 0 | F103: 0 | G103: 0 | H103: 0 | I103: 0 | K103: =SUM(K104:K108) -> 0
A104: Monuments | I104: 0
A105: Historic Buildings | I105: 0
A106: Works of Art | I106: 0
A107: Conservation Areas | I107: 0
A108: Other Heritage | I108: 0
I109: 0
A110: Investment properties | C110: =+C111+C114 -> 0 | D110: 0 | E110: 0 | F110: 0 | G110: 0 | H110: 0 | I110: 0 | K110: =+K111+K114 -> 0
A111: Revenue Generating | C111: =SUM(C112:C113) -> 0 | D111: 0 | E111: 0 | F111: 0 | G111: 0 | H111: 0 | I111: 0 | K111: =SUM(K112:K113) -> 0
A112: Improved Property | I112: 0
A113: Unimproved Property | I113: 0
A114: Non-revenue Generating | C114: =SUM(C115:C116) -> 0 | D114: 0 | E114: 0 | F114: 0 | G114: 0 | H114: 0 | I114: 0 | K114: =SUM(K115:K116) -> 0
A115: Improved Property | I115: 0
A116: Unimproved Property | I116: =H116-G116 -> 0 | J116: =IF(I116=0,"",I116/H116) -> 
A117: Other assets | C117: =+C118+C130 -> 355326 | D117: 545746 | E117: 545746 | F117: 30031 | G117: 467226 | H117: 272874 | I117: -194352 | J117: -0.7122408144 | K117: =+K118+K130 -> 545746
A118: Operational Buildings | C118: =SUM(C119:C129) -> 355326 | D118: 545746 | E118: 545746 | F118: 30031 | G118: 467226 | H118: 272874 | I118: -194352 | J118: -0.7122408144 | K118: =SUM(K119:K129) -> 545746
A119: Municipal Offices | C119: 355326 | D119: 545746 | E119: 545746 | F119: 30031 | G119: 467226 | H119: 272874 | I119: -194352 | J119: -0.7122408144 | K119: 545746
A120: Pay/Enquiry Points | I120: 0
A121: Building Plan Offices | I121: 0
A122: Workshops | I122: 0
A123: Yards | I123: 0
A124: Stores | I124: 0
A125: Laboratories | I125: 0
A126: Training Centres | I126: 0
A127: Manufacturing Plant | I127: 0
A128: Depots | I128: 0
A129: Capital Spares | I129: 0
A130: Housing | C130: =SUM(C131:C133) -> 0 | D130: 0 | E130: 0 | F130: 0 | G130: 0 | H130: 0 | I130: 0 | K130: =SUM(K131:K133) -> 0
A131: Staff Housing | I131: 0
A132: Social Housing | I132: 0
A133: Capital Spares | I133: 0
A135: Biological or Cultivated Assets | C135: =SUM(C136:C136) -> 0 | D135: 0 | E135: 0 | F135: 0 | G135: 0 | H135: 0 | I135: =H135-G135 -> 0 | K135: =SUM(K136) -> 0
A136: Biological or Cultivated Assets | I136: =H136-G136 -> 0
J137: =IF(I137=0,"",I137/H137) -> 
A138: Intangible Assets | C138: =SUM(C139:C140) -> 221717 | D138: 234628 | E138: 234628 | F138: 20617 | G138: 79613 | H138: 117312 | I138: =H138-G138 -> 37699 | J138: 0.3213567239 | K138: =SUM(K139:K140) -> 234628
A139: Servitudes | I139: 0
A140: Licences and Rights | C140: =SUM(C141:C146) -> 221717 | D140: 234628 | E140: 234628 | F140: 20617 | G140: 79613 | H140: 117312 | I140: 37699 | J140: 0.3213567239 | K140: =SUM(K141:K146) -> 234628
A141: Water Rights | C141: 0 | D141: 0 | E141: 0 | F141: 0 | G141: 0 | H141: 0 | I141: 0 | K141: 0
A142: Effluent Licenses | C142: 0 | D142: 0 | E142: 0 | F142: 0 | G142: 0 | H142: 0 | I142: 0 | K142: 0
A143: Solid Waste Licenses | C143: 0 | D143: 0 | E143: 0 | F143: 0 | G143: 0 | H143: 0 | I143: 0 | K143: 0
A144: Computer Software and Applications | C144: 221717 | D144: 234628 | E144: 234628 | F144: 20617 | G144: 79613 | H144: 117312 | I144: 37699 | J144: 0.3213567239 | K144: 234628
A145: Load Settlement Software Applications | C145: 0 | D145: 0 | E145: 0 | F145: 0 | G145: 0 | H145: 0 | I145: 0 | K145: 0
A146: Unspecified | C146: 0 | D146: 0 | E146: 0 | F146: 0 | G146: 0 | H146: 0 | I146: 0 | K146: 0
A148: Computer Equipment | C148: =SUM(C149:C149) -> 145430 | D148: 712510 | E148: 712510 | F148: 16609 | G148: 58844 | H148: 356256 | I148: =H148-G148 -> 297412 | J148: =IF(I148=0,"",I148/H148) -> 0.8348266415 | K148: =SUM(K149) -> 712510
A149: Computer Equipment | C149: 145430 | D149: 712510 | E149: 712510 | F149: 16609 | G149: 58844 | H149: 356256 | I149: =H149-G149 -> 297412 | J149: =IF(I149=0,"",I149/H149) -> 0.8348266415 | K149: 712510
A151: Furniture and Office Equipment | C151: =SUM(C152:C152) -> 228980 | D151: 1002993 | E151: 1002993 | F151: 21926 | G151: 79996 | H151: 501498 | I151: =H151-G151 -> 421502 | J151: =IF(I151=0,"",I151/H151) -> 0.8404859042 | K151: =SUM(K152) -> 1002993
A152: Furniture and Office Equipment | C152: 228980 | D152: 1002993 | E152: 1002993 | F152: 21926 | G152: 79996 | H152: 501498 | I152: =H152-G152 -> 421502 | J152: =IF(I152=0,"",I152/H152) -> 0.8404859042 | K152: 1002993
J153: =IF(I153=0,"",I153/H153) -> 
A154: Machinery and Equipment | C154: =SUM(C155:C155) -> 130400 | D154: 175336 | E154: 175336 | F154: 11706 | G154: 40646 | H154: 87666 | I154: =H154-G154 -> 47020 | J154: =IF(I154=0,"",I154/H154) -> 0.5363538886 | K154: =SUM(K155) -> 175336
A155: Machinery and Equipment | C155: 130400 | D155: 175336 | E155: 175336 | F155: 11706 | G155: 40646 | H155: 87666 | I155: =H155-G155 -> 47020 | J155: =IF(I155=0,"",I155/H155) -> 0.5363538886 | K155: 175336
A157: Transport Assets | C157: =SUM(C158:C158) -> 745359 | D157: 926926 | E157: 926926 | F157: 64969 | G157: 252813 | H157: 463464 | I157: =H157-G157 -> 210651 | J157: =IF(I157=0,"",I157/H157) -> 0.4545142665 | K157: =SUM(K158) -> 926926
A158: Transport Assets | C158: 745359 | D158: 926926 | E158: 926926 | F158: 64969 | G158: 252813 | H158: 463464 | I158: =H158-G158 -> 210651 | J158: =IF(I158=0,"",I158/H158) -> 0.4545142665 | K158: 926926
A160: Land | C160: =SUM(C161:C161) -> 0 | D160: 0 | E160: 0 | F160: 0 | G160: 0 | H160: 0 | I160: =H160-G160 -> 0 | J160: =IF(I160=0,"",I160/H160) ->  | K160: =SUM(K161) -> 0
A161: Land | I161: =H161-G161 -> 0 | J161: =IF(I161=0,"",I161/H161) -> 
A163: Zoo's, Marine and Non-biological Animals | C163: =SUM(C164:C164) -> 0 | D163: 0 | E163: 0 | F163: 0 | G163: 0 | H163: 0 | I163: =H163-G163 -> 0 | J163: =IF(I163=0,"",I163/H163) ->  | K163: =SUM(K164) -> 0
A164: Zoo's, Marine and Non-biological Animals | I164: =H164-G164 -> 0 | J164: =IF(I164=0,"",I164/H164) -> 
J165: =IF(I165=0,"",I165/H165) -> 
A166: Total Depreciation | B166: 1 | C166: =C7+C75+C103+C110+C117+C135+C138+C148+C151+C154+C157+C160+C163 -> 9318525 | D166: 11173339 | E166: 11173339 | F166: 810718 | G166: 4806692 | H166: 5586666 | I166: 779974 | J166: 0.1396135011 | K166: =K7+K75+K103+K110+K117+K135+K138+K148+K151+K154+K157+K160+K163 -> 11173339

Sheet SC13e
A1: =muni& " - "&S71Se& " - "&Head57 -> Choose name from list - Supporting Table SC13e Monthly Budget Statement - capital expenditure on upgrading of existing assets by asset class - Mid-Year Assessment
A2: =desc -> Description | B2: =head27 -> Ref | C2: =Head1 -> 2019/20 | D2: =Head2 -> Budget Year 2020/21
C3: =Head5 -> Audited Outcome | D3: =Head6 -> Original Budget | E3: =Head7 -> Adjusted Budget | F3: =Head38 -> Monthly actual | G3: =Head39 -> YearTD actual | H3: =Head40 -> YearTD budget | I3: =Head41 -> YTD variance | J3: =Head41 -> YTD variance | K3: =Head8 -> Full Year Forecast
A4: R thousands | B4: 1 | J4: %
A5: Capital expenditure on upgrading of existing assets by Asset Class/Sub-class
A7: Infrastructure | C7: =C8+C13+C17+C27+C38+C45+C53+C63+C69 -> 0 | D7: 0 | E7: 0 | F7: 0 | G7: 482509 | H7: 0 | I7: =H7-G7 -> -482509 | J7: =IF(I7=0,"",I7/H7) ->  | K7: =K8+K13+K17+K27+K38+K45+K53+K63+K69 -> 0
A8: Roads Infrastructure | C8: =SUM(C9:C12) -> 0 | D8: 0 | E8: 0 | F8: 0 | G8: 482509 | H8: 0 | I8: -482509 | K8: =SUM(K9:K12) -> 0
A9: Roads | C9: 0 | D9: 0 | E9: 0 | G9: 482509 | H9: 0 | I9: -482509
A10: Road Structures | I10: 0
A11: Road Furniture | I11: 0
A12: Capital Spares | I12: 0
A13: Storm water Infrastructure | C13: =SUM(C14:C16) -> 0 | D13: 0 | E13: 0 | F13: 0 | G13: 0 | H13: 0 | I13: 0 | K13: =SUM(K14:K16) -> 0
A14: Drainage Collection | I14: 0
A15: Storm water Conveyance | I15: 0
A16: Attenuation | I16: 0
A17: Electrical Infrastructure | C17: =SUM(C18:C26) -> 0 | D17: 0 | E17: 0 | F17: 0 | G17: 0 | H17: 0 | I17: 0 | K17: =SUM(K18:K26) -> 0
A18: Power Plants | I18: 0
A19: HV Substations | I19: 0
A20: HV Switching Station | I20: 0
A21: HV Transmission Conductors | I21: 0
A22: MV Substations | I22: 0
A23: MV Switching Stations | I23: 0
A24: MV Networks | I24: 0
A25: LV Networks | I25: 0
A26: Capital Spares | I26: 0
A27: Water Supply Infrastructure | C27: =SUM(C28:C37) -> 0 | D27: 0 | E27: 0 | F27: 0 | G27: 0 | H27: 0 | I27: 0 | K27: =SUM(K28:K37) -> 0
A28: Dams and Weirs | I28: 0
A29: Boreholes | I29: 0
A30: Reservoirs | I30: 0
A31: Pump Stations | I31: 0
A32: Water Treatment Works | I32: 0
A33: Bulk Mains | I33: 0
A34: Distribution | I34: 0
A35: Distribution Points | I35: 0
A36: PRV Stations | I36: 0
A37: Capital Spares | I37: 0
A38: Sanitation Infrastructure | C38: =SUM(C39:C44) -> 0 | D38: 0 | E38: 0 | F38: 0 | G38: 0 | H38: 0 | I38: 0 | K38: =SUM(K39:K44) -> 0
A39: Pump Station | I39: 0
A40: Reticulation | I40: 0
A41: Waste Water Treatment Works | I41: 0
A42: Outfall Sewers | I42: 0
A43: Toilet Facilities | I43: 0
A44: Capital Spares | I44: 0
A45: Solid Waste Infrastructure | C45: =SUM(C46:C52) -> 0 | D45: 0 | E45: 0 | F45: 0 | G45: 0 | H45: 0 | I45: 0 | K45: =SUM(K46:K52) -> 0
A46: Landfill Sites | I46: 0
A47: Waste Transfer Stations | I47: 0
A48: Waste Processing Facilities | I48: 0
A49: Waste Drop-off Points | I49: 0
A50: Waste Separation Facilities | I50: 0
A51: Electricity Generation Facilities | I51: 0
A52: Capital Spares | I52: 0
A53: Rail Infrastructure | C53: =SUM(C54:C62) -> 0 | D53: 0 | E53: 0 | F53: 0 | G53: 0 | H53: 0 | I53: 0 | K53: =SUM(K54:K62) -> 0
A54: Rail Lines | I54: 0
A55: Rail Structures | I55: 0
A56: Rail Furniture | I56: 0
A57: Drainage Collection | I57: 0
A58: Storm water Conveyance | I58: 0
A59: Attenuation | I59: 0
A60: MV Substations | I60: 0
A61: LV Networks | I61: 0
A62: Capital Spares | I62: 0
A63: Coastal Infrastructure | C63: =SUM(C64:C68) -> 0 | D63: 0 | E63: 0 | F63: 0 | G63: 0 | H63: 0 | I63: 0 | K63: =SUM(K64:K68) -> 0
A64: Sand Pumps | I64: 0
A65: Piers | I65: 0
A66: Revetments | I66: 0
A67: Promenades | I67: 0
A68: Capital Spares | I68: 0
A69: Information and Communication Infrastructure | C69: =SUM(C70:C73) -> 0 | D69: 0 | E69: 0 | F69: 0 | G69: 0 | H69: 0 | I69: 0 | K69: =SUM(K70:K73) -> 0
A70: Data Centres | I70: 0
A71: Core Layers | I71: 0
A72: Distribution Layers | I72: 0
A73: Capital Spares | I73: 0
A75: Community Assets | C75: =+C76+C99 -> 0 | D75: 0 | E75: 0 | F75: 0 | G75: 0 | H75: 0 | I75: 0 | K75: =+K76+K99 -> 0
A76: Community Facilities | C76: =SUM(C77:C98) -> 0 | D76: 0 | E76: 0 | F76: 0 | G76: 0 | H76: 0 | I76: 0 | K76: =SUM(K77:K98) -> 0
A77: Halls | I77: 0
A78: Centres | I78: 0
A79: Crèches | I79: 0
A80: Clinics/Care Centres | I80: 0
A81: Fire/Ambulance Stations | I81: 0
A82: Testing Stations | I82: 0
A83: Museums | I83: 0
A84: Galleries | I84: 0
A85: Theatres | I85: 0
A86: Libraries | I86: 0
A87: Cemeteries/Crematoria | I87: 0
A88: Police | I88: 0
A89: Purls | I89: 0
A90: Public Open Space | I90: 0
A91: Nature Reserves | I91: 0
A92: Public Ablution Facilities | I92: 0
A93: Markets | I93: 0
A94: Stalls | I94: 0
A95: Abattoirs | I95: 0
A96: Airports | I96: 0
A97: Taxi Ranks/Bus Terminals | I97: 0
A98: Capital Spares | I98: 0
A99: Sport and Recreation Facilities | C99: =SUM(C100:C102) -> 0 | D99: 0 | E99: 0 | F99: 0 | G99: 0 | H99: 0 | I99: 0 | K99: =SUM(K100:K102) -> 0
A100: Indoor Facilities | I100: 0
A101: Outdoor Facilities | I101: =H101-G101 -> 0 | J101: =IF(I101=0,"",I101/H101) -> 
A102: Capital Spares | I102: 0
A103: Heritage assets | C103: =SUM(C104:C108) -> 0 | D103: 0 | E103: 0 | F103: 0 | G103: 0 | H103: 0 | I103: 0 | K103: =SUM(K104:K108) -> 0
A104: Monuments | I104: 0
A105: Historic Buildings | I105: 0
A106: Works of Art | I106: 0
A107: Conservation Areas | I107: 0
A108: Other Heritage | I108: 0
I109: 0
A110: Investment properties | C110: =+C111+C114 -> 0 | D110: 0 | E110: 0 | F110: 0 | G110: 0 | H110: 0 | I110: 0 | K110: =+K111+K114 -> 0
A111: Revenue Generating | C111: =SUM(C112:C113) -> 0 | D111: 0 | E111: 0 | F111: 0 | G111: 0 | H111: 0 | I111: 0 | K111: =SUM(K112:K113) -> 0
A112: Improved Property | I112: 0
A113: Unimproved Property | I113: 0
A114: Non-revenue Generating | C114: =SUM(C115:C116) -> 0 | D114: 0 | E114: 0 | F114: 0 | G114: 0 | H114: 0 | I114: 0 | K114: =SUM(K115:K116) -> 0
A115: Improved Property | I115: 0
A116: Unimproved Property | I116: =H116-G116 -> 0 | J116: =IF(I116=0,"",I116/H116) -> 
A117: Other assets | C117: =+C118+C130 -> 0 | D117: 1000000 | E117: 1000000 | F117: 0 | G117: 0 | H117: 499998 | I117: 499998 | J117: 1 | K117: =+K118+K130 -> 1000000
A118: Operational Buildings | C118: =SUM(C119:C129) -> 0 | D118: 1000000 | E118: 1000000 | F118: 0 | G118: 0 | H118: 499998 | I118: 499998 | J118: 1 | K118: =SUM(K119:K129) -> 1000000
A119: Municipal Offices | C119: 0 | D119: 1000000 | E119: 1000000 | F119: 0 | G119: 0 | H119: 499998 | I119: 499998 | J119: 1 | K119: 1000000
A120: Pay/Enquiry Points | I120: 0
A121: Building Plan Offices | I121: 0
A122: Workshops | I122: 0
A123: Yards | I123: 0
A124: Stores | I124: 0
A125: Laboratories | I125: 0
A126: Training Centres | I126: 0
A127: Manufacturing Plant | I127: 0
A128: Depots | I128: 0
A129: Capital Spares | I129: 0
A130: Housing | C130: =SUM(C131:C133) -> 0 | D130: 0 | E130: 0 | F130: 0 | G130: 0 | H130: 0 | I130: 0 | K130: =SUM(K131:K133) -> 0
A131: Staff Housing | I131: 0
A132: Social Housing | I132: 0
A133: Capital Spares | I133: 0
A135: Biological or Cultivated Assets | C135: =SUM(C136:C136) -> 0 | D135: 0 | E135: 0 | F135: 0 | G135: 0 | H135: 0 | I135: =H135-G135 -> 0 | K135: =SUM(K136) -> 0
A136: Biological or Cultivated Assets | I136: =H136-G136 -> 0
J137: =IF(I137=0,"",I137/H137) -> 
A138: Intangible Assets | C138: =SUM(C139:C140) -> 0 | D138: 0 | E138: 0 | F138: 0 | G138: 0 | H138: 0 | I138: =H138-G138 -> 0 | K138: =SUM(K139:K140) -> 0
A139: Servitudes | I139: 0
A140: Licences and Rights | C140: =SUM(C141:C146) -> 0 | D140: 0 | E140: 0 | F140: 0 | G140: 0 | H140: 0 | I140: 0 | K140: =SUM(K141:K146) -> 0
A141: Water Rights | I141: 0
A142: Effluent Licenses | I142: 0
A143: Solid Waste Licenses | I143: 0
A144: Computer Software and Applications | I144: 0
A145: Load Settlement Software Applications | I145: 0
A146: Unspecified | I146: 0
A148: Computer Equipment | C148: =SUM(C149:C149) -> 0 | D148: 0 | E148: 0 | F148: 0 | G148: 0 | H148: 0 | I148: =H148-G148 -> 0 | J148: =IF(I148=0,"",I148/H148) ->  | K148: =SUM(K149) -> 0
A149: Computer Equipment | I149: =H149-G149 -> 0 | J149: =IF(I149=0,"",I149/H149) -> 
A151: Furniture and Office Equipment | C151: =SUM(C152:C152) -> 0 | D151: 0 | E151: 0 | F151: 0 | G151: 0 | H151: 0 | I151: =H151-G151 -> 0 | J151: =IF(I151=0,"",I151/H151) ->  | K151: =SUM(K152) -> 0
A152: Furniture and Office Equipment | I152: =H152-G152 -> 0 | J152: =IF(I152=0,"",I152/H152) -> 
J153: =IF(I153=0,"",I153/H153) -> 
A154: Machinery and Equipment | C154: =SUM(C155:C155) -> 0 | D154: 0 | E154: 0 | F154: 0 | G154: 0 | H154: 0 | I154: =H154-G154 -> 0 | J154: =IF(I154=0,"",I154/H154) ->  | K154: =SUM(K155) -> 0
A155: Machinery and Equipment | I155: =H155-G155 -> 0 | J155: =IF(I155=0,"",I155/H155) -> 
A157: Transport Assets | C157: =SUM(C158:C158) -> 0 | D157: 0 | E157: 0 | F157: 0 | G157: 0 | H157: 0 | I157: =H157-G157 -> 0 | J157: =IF(I157=0,"",I157/H157) ->  | K157: =SUM(K158) -> 0
A158: Transport Assets | I158: =H158-G158 -> 0 | J158: =IF(I158=0,"",I158/H158) -> 
A160: Land | C160: =SUM(C161:C161) -> 0 | D160: 0 | E160: 0 | F160: 0 | G160: 0 | H160: 0 | I160: =H160-G160 -> 0 | J160: =IF(I160=0,"",I160/H160) ->  | K160: =SUM(K161) -> 0
A161: Land | I161: =H161-G161 -> 0 | J161: =IF(I161=0,"",I161/H161) -> 
J162: .
A163: Zoo's, Marine and Non-biological Animals | C163: =SUM(C164:C164) -> 0 | D163: 0 | E163: 0 | F163: 0 | G163: 0 | H163: 0 | I163: =H163-G163 -> 0 | J163: =IF(I163=0,"",I163/H163) ->  | K163: =SUM(K164) -> 0
A164: Zoo's, Marine and Non-biological Animals | I164: =H164-G164 -> 0 | J164: =IF(I164=0,"",I164/H164) -> 
J165: =IF(I165=0,"",I165/H165) -> 
A166: Total Capital Expenditure on upgrading of existing assets | B166: 1 | C166: =C7+C75+C103+C110+C117+C135+C138+C148+C151+C154+C157+C160+C163 -> 0 | D166: 1000000 | E166: 1000000 | F166: 0 | G166: 482509 | H166: 499998 | I166: =H166-G166 -> 17489 | J166: =IF(I166=0,"",I166/H166) -> 0.03497813991 | K166: =K7+K75+K103+K110+K117+K135+K138+K148+K151+K154+K157+K160+K163 -> 1000000
A168: =head27a -> References
A169: 1. Total Capital Expenditure on new assets (SC13a) plus Total Capital Expenditure on renewal of existing assets (SC13b) plus Total Capital Expenditure on upgrading of existing assets (SC13e) must reconcile to total capital expenditure in Table C5
A171: check balance | C171: =C166+SC13a!C166+SC13b!C166-'C5-Capex'!C40 -> 5887005 | D171: =D166+SC13a!D166+SC13b!D166-'C5-Capex'!D40 -> 0 | E171: =E166+SC13a!E166+SC13b!E166-'C5-Capex'!E40 -> 0 | F171: =F166+SC13a!F166+SC13b!F166-'C5-Capex'!F40 -> 0 | G171: =G166+SC13a!G166+SC13b!G166-'C5-Capex'!G40 -> 0 | H171: =H166+SC13a!H166+SC13b!H166-'C5-Capex'!H40 -> 0 | K171: =K166+SC13a!K166+SC13b!K166-'C5-Capex'!K40 -> 1.340000004

Sheet SC71charts
A1: ='Template names'!B102 -> Chart C1 2020/21 Capital Expenditure Monthly Trend: actual v target
A2: Month | B2: ='SC12'!B2 -> 2019/20 | C2: ='SC12'!C3 -> Original Budget | D2: ='SC12'!D3 -> Adjusted Budget | E2: ='SC12'!E3 -> Monthly actual
A3: =LEFT('SC12'!A6,3) -> Jul | B3: ='SC12'!B6 -> 15787663.33 | C3: ='SC12'!C6 -> 2661750 | D3: ='SC12'!D6 -> 2661750 | E3: ='SC12'!E6 -> 6273247
A4: =LEFT('SC12'!A7,3) -> Aug | B4: ='SC12'!B7 -> 15787663.33 | C4: ='SC12'!C7 -> 2661750 | D4: ='SC12'!D7 -> 2661750 | E4: ='SC12'!E7 -> 455488
A5: =LEFT('SC12'!A8,3) -> Sep | B5: ='SC12'!B8 -> 15787663.33 | C5: ='SC12'!C8 -> 2661750 | D5: ='SC12'!D8 -> 2661750 | E5: ='SC12'!E8 -> 1298996
A6: =LEFT('SC12'!A9,3) -> Oct | B6: ='SC12'!B9 -> 15787663.33 | C6: ='SC12'!C9 -> 2661750 | D6: ='SC12'!D9 -> 2661750 | E6: ='SC12'!E9 -> 5896600
A7: =LEFT('SC12'!A10,3) -> Nov | B7: ='SC12'!B10 -> 15787663.33 | C7: ='SC12'!C10 -> 2661750 | D7: ='SC12'!D10 -> 2661750 | E7: ='SC12'!E10 -> 4173969
A8: =LEFT('SC12'!A11,3) -> Dec | B8: ='SC12'!B11 -> 15787663.33 | C8: ='SC12'!C11 -> 2661750 | D8: ='SC12'!D11 -> 2661750 | E8: ='SC12'!E11 -> 4030949
A9: =LEFT('SC12'!A12,3) -> Jan | B9: ='SC12'!B12 -> 15787663.33 | C9: ='SC12'!C12 -> 2661750 | D9: ='SC12'!D12 -> 2661750 | E9: ='SC12'!E12 -> 0
A10: =LEFT('SC12'!A13,3) -> Feb | B10: ='SC12'!B13 -> 15787663.33 | C10: ='SC12'!C13 -> 2661750 | D10: ='SC12'!D13 -> 2661750 | E10: ='SC12'!E13 -> 0
A11: =LEFT('SC12'!A14,3) -> Mar | B11: ='SC12'!B14 -> 15787663.33 | C11: ='SC12'!C14 -> 2661750 | D11: ='SC12'!D14 -> 2661750 | E11: ='SC12'!E14 -> 0
A12: =LEFT('SC12'!A15,3) -> Apr | B12: ='SC12'!B15 -> 15787663.33 | C12: ='SC12'!C15 -> 2661750 | D12: ='SC12'!D15 -> 2661750 | E12: ='SC12'!E15 -> 0
A13: =LEFT('SC12'!A16,3) -> May | B13: ='SC12'!B16 -> 15787663.33 | C13: ='SC12'!C16 -> 2661750 | D13: ='SC12'!D16 -> 2661750 | E13: ='SC12'!E16 -> 0
A14: =LEFT('SC12'!A17,3) -> Jun | B14: ='SC12'!B17 -> 15787663.33 | C14: ='SC12'!C17 -> 2661750 | D14: ='SC12'!D17 -> 2661750 | E14: ='SC12'!E17 -> 0
A26: ='Template names'!B103 -> Chart C2 2020/21 Capital Expenditure: YTD actual v YTD target
A27: Month | B27: ='SC12'!F3 -> YearTD actual | C27: ='SC12'!G3 -> YearTD budget
A28: =LEFT('SC12'!A6,3) -> Jul | B28: ='SC12'!F6 -> 6273247 | C28: ='SC12'!G6 -> 2661750
A29: =LEFT('SC12'!A7,3) -> Aug | B29: ='SC12'!F7 -> 6728735 | C29: ='SC12'!G7 -> 5323500
